{"text_format":"1","workbook":"xlsx","n_sheets":21,"sheets":["Header","Body","Common","Report","eD","eD-fsh","eD-ConceptMap","eD-CM-fsh","eP","eP-fsh","eP-ConceptMap","eP-ConceptMap-2","eP-CM-fsh","Subj","Subj-fsh","Subj-ConceptMap-1","Subj-CM-fsh","Product","Product-fsh","Product-ConceptMap","Product-CM-fsh"],"not_rendered":{"charts":0,"images":0,"macros":1,"external_links":1,"defined_names":1,"comments":0,"pivot_tables":0},"unopened":[],"bounds":{"document_bytes":16777216,"sheet_cells":100000,"rows_first":2000,"rows_last":500,"rows_between":2000,"halvings":0,"cell_chars":16384,"cell_head_chars":4096},"cells_cut":0,"cells_raw":0,"read":"whole","date_system":"1900"}

{"sheet":"Header","index":0,"n_rows":44,"n_cols":5,"rows_kept":44,"cut":false,"hidden":false,"merged":[[38,1,38,4],[12,1,12,4],[15,1,15,4],[20,1,20,4],[24,1,24,4],[28,1,28,4],[33,1,33,4],[2,1,2,2],[3,1,3,4],[4,1,4,4],[9,1,11,1],[9,2,11,2],[9,4,11,4]]}
[]
[]
[null,"Field",null,"Field description  ","Preferred Code System  "]
[null,"A.1 Report header data elements"]
[null,"A.1.1 Identification of the patient/subject"]
[null,"A.1.1.1","Family name/surname","The family name/surname/last name of the patient. This field can contain more than one element or multiple fields could be present. "]
[null,"A.1.1.2","Given name ","The given name/first name of the patient (also known as forename or first name). This field can contain more than one element.  "]
[null,"A.1.1.3","Date of birth ","The date of birth of the patient [ISO TS 22220]. As age of the patient might be important for correct interpretation of the test result values, complete date of birth should be provided.","Complete date, without time, following the ISO 8601 "]
[null,"A.1.1.4","Personal identifier ","An identifier of the patient that is unique within a defined scope. Example: National ID (birth number) for Czech patient. Multiple identifiers could be provided.  "]
[null,"A.1.1.5","Gender","This field must contain a recognised valid value for \"administrative gender\".","HL7 Administrative Gender "]
[]
[null,null,null,"If different, \"physiological gender\" should be communicated elsewhere."]
[null,"A.1.2 Patient/subject related contact information  "]
[null,"A.1.2.1","Address","Mailing and home or office addresses. The addresses are always sequences of address parts (e.g. street address line, country, ZIP code, city) even if postal address formats may vary depending on the country. An address may or may not include a specific use code; if this attribute is not present it is assumed to be the default address useful for any purpose."," ISO 3166"]
[null,"A.1.2.2","Telecom","Telecommunication contact information (addresses) associated to a person. Multiple telecommunication addresses might be provided."]
[null,"A.1.3 Health insurance and payment information"]
[null,"A.1.3.1","Health insurance information","Health insurance information is not always required, however, in some jurisdictions, the insurance number is also used as the patient identifier. It is necessary not just for identification but also forms access to funding for care. "]
[null,"A.1.3.1.1","Health insurance code","Unique health insurance company identification code."]
[null,"A.1.3.1.2","Health insurance name","Full, official name of the healthcare insurance provider."]
[null,"A.1.3.1.3","Health insurance number","Number or code under which the insured person is registered at the insurance provider."]
[null,"A.1.4 Information recipient (intended recipient or recipients of the report, additional recipients might be identified by the ordering party, e.g. GP, other specialist), if applicable"]
[null,"A.1.4.1","Recipient identifier","The health professional identification number. Either an internal identifier assigned by a healthcare provider institution or (preferably) a national health professional ID such as the license or registration number. In case when recipient is not a health professional, e.g. patient, appropriate personal identifier should be used. "]
[null,"A.1.4.2","Recipient name","Person name."]
[null,"A.1.4.3","Recipient organization ","The healthcare provider organization information."]
[null,"A.1.5 Author (by whom the Laboratory result report or a subset of its results was authored)"]
[null,"A.1.5.1","Author identifier","The health professional or authoring device identification number. Either an internal identifier assigned by a healthcare provider institution or (preferably) a national health professional ID such as the license or registration number. "]
[null,"A.1.5.2","Author name","Person or device name."]
[null,"A.1.5.3","Author organization ","The healthcare provider organization information."]
[null,"A.1.6 Legal authenticator (The person taking responsibility for the medical content of the document)"]
[null,"A.1.6.1","Legal authenticator identifier","The health professional identification number. Either an internal identifier assigned by a healthcare provider institution or (preferably) a national health professional ID such as the license or registration number. "]
[null,"A.1.6.2","Legal authenticator name","Person name."]
[null,"A.1.6.3","Legal authenticator organization ","The healthcare provider organization information."]
[null,"A.1.6.4","Authentication date and time","Date and time when the document was authorized.","ISO 8601"]
[null,"A.1.7 Result validator"]
[null,"A.1.7.1","Result validator identifier","The health professional identification number. Either an internal identifier assign by a healthcare provider institution or (preferably) a national health professional ID such as the license or registration number. "]
[null,"A.1.7.2","Result validator name","Person name."]
[null,"A.1.7.3","Result validator organisation ","The healthcare provider organisation information."]
[null,"A.1.7.4","Validation date and time","Date and time when the document was validated.","ISO 8601"]
[null,"A.1.8 Laboratory report metadata"]
[null,"A.1.8.1","Document type","A coded type of the document. Fixed value \"Laboratory report\"","LOINC"]
[null,"A.1.8.2","Document status","The status of the laboratory test result report. E.g., preliminary, final.","hl7:DiagnosticReportStatus"]
[null,"A.1.8.3","Report date and time","Date and time of the result report creation.","ISO 8601"]
[null,"A.1.8.4","Document title","Document title, e.g. \"Laboratory Result report\""]
[null,"A.1.8.5","Report custodian","Organisation that is in charge of maintaining the laboratory report"]

{"sheet":"Body","index":1,"n_rows":53,"n_cols":5,"rows_kept":53,"cut":false,"hidden":false,"merged":[[45,1,47,1],[45,2,47,2],[45,3,47,3],[48,1,50,1],[48,2,50,2],[48,3,50,3],[30,1,30,4],[32,1,34,1],[32,2,34,2],[32,3,34,3],[39,1,41,1],[39,2,41,2],[39,3,41,3],[27,1,27,4],[2,1,2,2],[3,1,3,4],[10,1,10,4],[11,1,13,1],[11,2,13,2],[11,3,13,3],[14,1,14,4],[21,1,23,1],[21,2,23,2],[21,3,23,3],[26,1,26,4]]}
[]
[]
[null,"Field",null,"Field description  ","Preferred Code System  "]
[null,"A.2 Order information (Laboratory Result Report could respond to multiple test orders)"]
[null,"A.2.1","Order Id","An identifier of the laboratory test order. Laboratory Result Report may respond to multiple orders."]
[null,"A.2.2","Order date and time","Date and time of the order placement.","ISO 8601"]
[null,"A.2.3","Order placer identifier","The health professional identification number. Either an internal identifier assigned by a healthcare provider institution or (preferably) a national health professional ID such as the license or registration number. In case when order placer is not a health professional, e.g. by patients themselves where applicable, appropriate personal identifier should be used. "]
[null,"A.2.4","Order placer name","Person name."]
[null,"A.2.5","Order placer contact details","Contact details of order placer (address and telecom details)."]
[null,"A.2.6","Order placer organization ","Order placer organization information."]
[null,"A.3 Order reason (Laboratory Result Report could respond to multiple reasons)"]
[null,"A.3.1","Problem / diagnosis / condition description","Health conditions affecting the health of the patient and are important to be known for a health professional during a health encounter. Clinical conditions of the subject relevant for the results interpretation.","ICD-10 (ICD-11 when available)"]
[null,null,null,null,"SNOMED CT"]
[null,null,null,null,"Orphacode"]
[null,"A.4 Specimen information"]
[null,"A.4.1","Specimen identifier","An identifier of the specimen which is unique within in a defined scope. Example: identifier assigned by ordering system, identifier assigned by laboratory etc. Multiple identifiers can be used."]
[null,"A.4.2","Type of species","Biologic type of species for laboratory result reports bound to non-human subjects.","SNOMED CT"]
[null,"A.4.3","Material","Specimen material.","SNOMED CT"]
[null,"A.4.4","Collection period","Collection date time or period.","ISO 8601"]
[null,"A.4.5","Anatomic location","Anatomic location (body location, laterality) where the material is collected, e.g. Elbow, left","SNOMED CT"]
[null,"A.4.6","Morphology","Morphological abnormalities of the anatomical location where the material is taken, for example wound, ulcer.","SNOMED CT"]
[null,"A.4.7","Source Device","If the material is not collected directly from the patient but comes from a patient-related object, e.g. a catheter","SNOMED CT"]
[]
[null,null,null,null,"EMDN"]
[null,"A.4.8","Collection procedure/method","If relevant for the results, the method of obtaining the specimen.","SNOMED CT"]
[null,"A.4.9","Received date","Date and time that the material is handed over at the laboratory or specimen collection centre.","ISO 8601"]
[null,"A.5 Results data elements"]
[null,"A.5.1 Laboratory report narrative "]
[null,"A.5.1.1","Narrative report","Entire report (textual summary inside the laboratory result report document) as issued by the laboratory. "]
[null,"A.5.1.2","Comments, interpretation and recommendations","Comments, such as a textual interpretation or advice accompanying the result report, for example."]
[null,"A.5.2 Observation details (report could consist of multiple observations)"]
[null,"A.5.2.1","Observation date","Date and time of the observation","ISO 8601"]
[null,"A.5.2.3","Observation code","Code representing the observation using the agreed code systems.","LOINC"]
[null,null,null,null,"NPU"]
[null,null,null,null,"SNOMED CT"]
[null,"A.5.2.3.1","Observation name","Full name of the observation according to the used test coding standard."]
[null,"A.5.2.3.2","Observation original name","Original (conventional) name of the observation as used by the laboratory"]
[null,"A.5.2.3.3","Observation display name","Simplified (short name of the observation) for display."]
[null,"A.5.2.4","Observation method","Observation method (measurement principle) to obtain the result.","SNOMED CT"]
[null,"A.5.2.5","Observation device","Device (analyser), laboratory test kit and used calibrator information (identifier, type, name, model, manufacturer)","SNOMED CT"]
[]
[null,null,null,null,"EMDN"]
[null,"A.5.2.8","Order","Identifies order and order placer this observation belongs to. "]
[null,"A.5.2.9","Performer","Identifies the originator/author and provides provenance information about the source of the results data that may have not originated with the source of the whole Laboratory Report document. "]
[null,"A.5.2.10","Reporter","With certain observation results, e.g. there may also be an interpreter or a person responsible for validation."]
[null,"A.5.2.11","Observation result","Result of the observation including text, numeric and coded results of the measurement and measurement uncertainty. Content of the observation result will vary according to the type of the observation.","SNOMED CT (for ordinal or nominal scale results and result interpretation)"]
[]
[null,null,null,null,"UCUM (for units)"]
[null,"A.5.2.12","Observation interpretation","Information about reference intervals and result interpretation.","SNOMED CT"]
[]
[null,null,null,null,"HL7 v3 Code System ObservationInterpretation"]
[null,"A.5.2.13","Result description","Comments and narrative representation of the observation result and findings."]
[null,"A.5.2.14","Accreditation status","Accreditation status of the laboratory for the particular observation."]

{"sheet":"Common","index":2,"n_rows":16,"n_cols":7,"rows_kept":16,"cut":false,"hidden":false,"merged":[]}
[]
[]
[]
[]
[]
[null,null,null,"B.1.1","Identifier of the dispenser","A unique number or code issued for the purpose of identifying a dispenser [ISO/TS 27527:2010]; this may be a licence or registration number which can be used to trace the dispenser and to check whether a medicinal product was dispensed by the right person according to the law of the dispensing country."]
[null,null,null,"B.1.2","Family name of the dispenser","The family name/surname/last name of the dispenser. This enables the dispenser to be traced in the event of questions or emergencies."]
[null,null,null,"B.1.3","Given name of the dispenser","The given name/first name of the dispenser. This enables the dispenser to be traced in the event of questions or emergencies."]
[null,null,null,"B.1.4","Identifier of the pharmacy","A unique number or code issued for the purpose of identifying a pharmacy [ISO/TS 27527:2010]; this may be a licence or registration number which can be used to trace the dispensing pharmacy."]
[null,null,null,"B.1.5","Address of the pharmacy","Minimally, the country should be specified."]
[null,null,null,"B.1.6","Details of direct contact","Details of direct contact could be an email address and/or phone/fax number of the dispensing pharmacy."]
[null,null,null,"B.1.7","Identifier of the prescription"," As described in A.1.2."]
[null,null,null,"B.1.8","Medicinal product","Information about the dispensed product as described in A.1.4.\nThe cardinality of the data elements in the product description may differ between ePrescription and eDispensation."]
[null,null,null,"B.1.9","Dispensed quantity","The package size should be clear from the medicinal product data and the overall amount should be automatically calculable. The dispensed quantity may differ from the prescribed quantity.","UCUM, EDQM"]
[null,null,null,"B.1.10","Dispensation date","The date and optionally the time of dispensation.","ISO 8601"]
[null,null,null,"B.1.11","Substitution","Information whether and why the substitution took place"]

{"sheet":"Report","index":3,"n_rows":36,"n_cols":12,"rows_kept":36,"cut":false,"hidden":false,"merged":[]}
[null,null,null,null,null,null,null,null,null,"// -------------------------------------------------------------------------------",null,"// -------------------------------------------------------------------------------"]
["IG Canonical URL ","http://hl7.eu/fhir/laboratory",null,null,null,null,null,null,null,"//  Logical Model",null,"//  Comments"]
[null,null,null,null,null,null,null,null,null,{"$f":"J1","v":"// -------------------------------------------------------------------------------"},null,{"$f":"L1","v":"// -------------------------------------------------------------------------------"}]
["Name","LabReportEhn",null,null,null,null,null,null,null,{"$f":"CONCATENATE(\"Logical: \",B4)","v":"Logical: LabReportEhn"}]
["Id","LabReport",null,null,null,null,null,null,null,{"$f":"CONCATENATE(\"Id: \",B5)","v":"Id: LabReport"}]
["Title","A - Laboratory Report",null,null,null,null,null,null,null,{"$f":"CONCATENATE(\"Title: ##34#\",B6,\"##34#\")","v":"Title: ##34#A - Laboratory Report##34#"}]
["Description","Laboratory Report. eHN guideline model.","Data Element ","Data element description","min","max","dataType","Comment",null,{"$f":"CONCATENATE(\"Description: \",\" ##334#\",B7,\"##334#\",)","v":"Description:  ##334#Laboratory Report. eHN guideline model.##334#"}]
[1,"header","A.1 Report header data elements","A.1 Report header data elements",1,1,"BackboneElement",null,null,{"$f":"CONCATENATE(\"* \",B8, \" \",E8,\"..\",F8,\" \",G8,\" ##34#\",C8,\"##34# ##334#\",D8,\"##334#\")","v":"* header 1..1 BackboneElement ##34#A.1 Report header data elements##34# ##334#A.1 Report header data elements##334#"},null,{"$f":"IF(H8=\"\",IF(J8=\"*  ..  ##34###34# ##334###334#\",J8,\"\"),IF(J8=\"*  ..  ##34###34# ##334###334#\",J8,CONCATENATE(\"* \",B8,\" ^comment = ##334#\",H8,\"##334#\")))","v":""}]
[2,"header.subject","A.1.1 - A1.2 Patient/subject","A.1.1 Identification of the patient/subject and A.1.2 Patient/subject related contact information  ",1,1,{"$f":"$B$2&\"/StructureDefinition/\"&I9","v":"http://hl7.eu/fhir/laboratory/StructureDefinition/Subject"},null,"Subject","* header.subject 1..1 http://hl7.eu/fhir/laboratory/StructureDefinition/Subject ##34#A.1.1 - A1.2 Patient/subject##34# ##334#A.1.1 Identification of the patient/subject and A.1.2 Patient/subject related contact information  ##334#",null,{"$f":"IF(H9=\"\",IF(J9=\"*  ..  ##34###34# ##334###334#\",J9,\"\"),IF(J9=\"*  ..  ##34###34# ##334###334#\",J9,CONCATENATE(\"* \",B9,\" ^comment = ##334#\",H9,\"##334#\")))","v":""}]
[3,"header.payer","A.1.3 Health insurance and payment information","A.1.3 Health insurance and payment information",0,1,{"$f":"$B$2&\"/StructureDefinition/\"&I10","v":"http://hl7.eu/fhir/laboratory/StructureDefinition/Payer"},null,"Payer","* header.payer 0..1 http://hl7.eu/fhir/laboratory/StructureDefinition/Payer ##34#A.1.3 Health insurance and payment information##34# ##334#A.1.3 Health insurance and payment information##334#",null,""]
[4,"header.informationRecipient","A.1.4 Information recipient","A.1.4 Information recipient (intended recipient or recipients of the report, additional recipients might be identified by the ordering party, e.g. GP, other specialist), if applicable",0,1,{"$f":"$B$2&\"/StructureDefinition/\"&I11","v":"http://hl7.eu/fhir/laboratory/StructureDefinition/Recipient"},null,"Recipient","* header.informationRecipient 0..1 http://hl7.eu/fhir/laboratory/StructureDefinition/Recipient ##34#A.1.4 Information recipient##34# ##334#A.1.4 Information recipient (intended recipient or recipients of the report, additional recipients might be identified by the ordering party, e.g. GP, other specialist), if applicable##334#",null,""]
[5,"header.author","A.1.5 Author","A.1.5 Author (by whom the Laboratory result report or a subset of its results was authored)",0,"*","http://hl7.eu/fhir/laboratory/StructureDefinition/Author",null,"Author","* header.author 0..* http://hl7.eu/fhir/laboratory/StructureDefinition/Author ##34#A.1.5 Author##34# ##334#A.1.5 Author (by whom the Laboratory result report or a subset of its results was authored)##334#",null,""]
[6,"header.legalAuthenticator","A.1.6 Legal authenticator","A.1.6 Legal authenticator (The person taking responsibility for the medical content of the document)",0,"*","http://hl7.eu/fhir/laboratory/StructureDefinition/LegalAuthenticator",null,"LegalAuthenticator","* header.legalAuthenticator 0..* http://hl7.eu/fhir/laboratory/StructureDefinition/LegalAuthenticator ##34#A.1.6 Legal authenticator##34# ##334#A.1.6 Legal authenticator (The person taking responsibility for the medical content of the document)##334#",null,""]
[7,"header.validator","A.1.7 Result validator","A.1.7 Result validator",0,"*",{"$f":"$B$2&\"/StructureDefinition/\"&I14","v":"http://hl7.eu/fhir/laboratory/StructureDefinition/Validator"},null,"Validator","* header.validator 0..* http://hl7.eu/fhir/laboratory/StructureDefinition/Validator ##34#A.1.7 Result validator##34# ##334#A.1.7 Result validator##334#",null,""]
[8,"header.metadata","A.1.8 Laboratory report metadata","A.1.8 Laboratory report metadata",1,1,"BackboneElement",null,null,"* header.metadata 1..1 BackboneElement ##34#A.1.8 Laboratory report metadata##34# ##334#A.1.8 Laboratory report metadata##334#",null,""]
[9,"header.metadata.documentId","A.1.8.0 Document Id","Unique identifier of the document",1,1,"Identifier",null,null,"* header.metadata.documentId 1..1 Identifier ##34#A.1.8.0 Document Id##34# ##334#Unique identifier of the document##334#",null,""]
[10,"header.metadata.type","A.1.8.1 Document type","A coded type of the document. Fixed value \"Laboratory report\" - Preferred system(s): LOINC",1,1,"CodeableConcept",null,null,"* header.metadata.type 1..1 CodeableConcept ##34#A.1.8.1 Document type##34# ##334#A coded type of the document. Fixed value \"Laboratory report\" - Preferred system(s): LOINC##334#",null,""]
[11,"header.metadata.status","A.1.8.2 Document status","The status of the laboratory test result report. E.g., preliminary, final. - Preferred system(s): hl7:DiagnosticReportStatus",1,1,"CodeableConcept",null,null,"* header.metadata.status 1..1 CodeableConcept ##34#A.1.8.2 Document status##34# ##334#The status of the laboratory test result report. E.g., preliminary, final. - Preferred system(s): hl7:DiagnosticReportStatus##334#",null,""]
[12,"header.metadata.dateTime","A.1.8.3 Report date and time","Date and time of the result report creation. - Preferred system(s): ISO 8601",1,1,"dateTime",null,null,"* header.metadata.dateTime 1..1 dateTime ##34#A.1.8.3 Report date and time##34# ##334#Date and time of the result report creation. - Preferred system(s): ISO 8601##334#",null,""]
[13,"header.metadata.title","A.1.8.4 Document title","Document title, e.g. 'Laboratory Result report'",0,1,"string",null,null,"* header.metadata.title 0..1 string ##34#A.1.8.4 Document title##34# ##334#Document title, e.g. 'Laboratory Result report'##334#",null,""]
[14,"header.metadata.studyType","A.1.8.5 Study type","Type (or types) of the laboratory study performed.  - Preferred system(s): LOINC SNOMED CT ",0,"*","CodeableConcept",null,null,"* header.metadata.studyType 0..* CodeableConcept ##34#A.1.8.5 Study type##34# ##334#Type (or types) of the laboratory study performed.  - Preferred system(s): LOINC SNOMED CT ##334#",null,""]
[15,"header.metadata.custodian","A.1.8.6 Report custodian","Organisation that is in charge of maintaining the laboratory report ",0,1,"BackboneElement",null,null,"* header.metadata.custodian 0..1 BackboneElement ##34#A.1.8.6 Report custodian##34# ##334#Organisation that is in charge of maintaining the laboratory report ##334#",null,""]
[16,"header.metadata.confidentiality","A.1.8.7 Confidentiality","Level of confidentiality of the document. Implicit value is normal. - Preferred system(s): hl7:Confidentiality",0,1,"CodeableConcept",null,null,"* header.metadata.confidentiality 0..1 CodeableConcept ##34#A.1.8.7 Confidentiality##34# ##334#Level of confidentiality of the document. Implicit value is normal. - Preferred system(s): hl7:Confidentiality##334#",null,""]
[17,"header.metadata.language","A.1.8.8 Language","Language in which the document is written. Language is expressed by the ISO language code.- Preferred system(s):  BCP 47",0,1,"CodeableConcept",null,null,"* header.metadata.language 0..1 CodeableConcept ##34#A.1.8.8 Language##34# ##334#Language in which the document is written. Language is expressed by the ISO language code.- Preferred system(s):  BCP 47##334#",null,""]
[18,"header.metadata.version","A.1.8.9 Version","Version of the document.",0,1,"string",null,null,"* header.metadata.version 0..1 string ##34#A.1.8.9 Version##34# ##334#Version of the document.##334#",null,""]
[19,"order","A.2-A.3 Order","A.2 Order information (Laboratory Result Report could respond to multiple test orders)\nA.3 Order reason (Laboratory Result Report could respond to multiple reasons)\n",0,"*",{"$f":"$B$2&\"/StructureDefinition/\"&I26","v":"http://hl7.eu/fhir/laboratory/StructureDefinition/Order"},null,"Order","* order 0..* http://hl7.eu/fhir/laboratory/StructureDefinition/Order ##34#A.2-A.3 Order##34# ##334#A.2 Order information (Laboratory Result Report could respond to multiple test orders)\nA.3 Order reason (Laboratory Result Report could respond to multiple reasons)\n##334#",null,""]
[20,"specimen","A.4 Specimen information","A.4 Specimen information",0,"*",{"$f":"$B$2&\"/StructureDefinition/\"&I27","v":"http://hl7.eu/fhir/laboratory/StructureDefinition/SpecimenLab"},null,"SpecimenLab","* specimen 0..* http://hl7.eu/fhir/laboratory/StructureDefinition/SpecimenLab ##34#A.4 Specimen information##34# ##334#A.4 Specimen information##334#",null,""]
[21,"result","A.5 Results data elements","A.5 Results data elements",0,"*","http://hl7.eu/fhir/laboratory/StructureDefinition/Result",null,"Result","* result 0..* http://hl7.eu/fhir/laboratory/StructureDefinition/Result ##34#A.5 Results data elements##34# ##334#A.5 Results data elements##334#",null,""]
[null,null,null,null,null,null,null,null,null,"*  ..  ##34###34# ##334###334#",null,"*  ..  ##34###34# ##334###334#"]
[null,null,null,null,null,null,null,null,null,"*  ..  ##34###34# ##334###334#",null,"*  ..  ##34###34# ##334###334#"]
[null,null,null,null,null,null,null,null,null,"*  ..  ##34###34# ##334###334#",null,"*  ..  ##34###34# ##334###334#"]
[null,null,null,null,null,null,null,null,null,null,null,{"$f":"IF(H32=\"\",IF(J32=\"*  ..  ##34###34# ##334###334#\",J32,\"\"),IF(J32=\"*  ..  ##34###34# ##334###334#\",J32,CONCATENATE(\"* \",B32,\" ^comment = ##334#\",H32,\"##334#\")))","v":""}]
[null,null,null,null,null,null,null,null,null,null,null,""]
[null,null,null,null,null,null,null,null,null,null,null,""]
[null,null,null,null,null,null,null,null,null,null,null,""]
[null,null,null,null,null,null,null,null,null,null,null,""]

{"sheet":"eD","index":4,"n_rows":24,"n_cols":9,"rows_kept":24,"cut":false,"hidden":false,"merged":[]}
[null,null,null,null,null,null,null,null,"// -------------------------------------------------------------------------------"]
[null,null,null,null,null,null,null,null,"//  Logical Model"]
[null,null,"dispenserName",null,null,null,null,null,{"$f":"I1","v":"// -------------------------------------------------------------------------------"}]
["Name","EdispensationEhn",null,null,null,null,null,null,{"$f":"CONCATENATE(\"Logical: \",B4)","v":"Logical: EdispensationEhn"}]
["Id","Dispensation",null,null,null,null,null,null,{"$f":"CONCATENATE(\"Id: \",B5)","v":"Id: Dispensation"}]
["Title","B.1 Dispensation information (provided by the dispensing pharmacy)",null,null,null,null,null,null,{"$f":"CONCATENATE(\"Title: ##34#\",B6,\"##34#\")","v":"Title: ##34#B.1 Dispensation information (provided by the dispensing pharmacy)##34#"}]
["Description","Dispensation information (provided by the dispensing pharmacy). Section B1 of the guidelines","Data Element ","Data element description","min","max","dataType",null,{"$f":"CONCATENATE(\"Description: \",\" ##334#\",B7,\"##334#\",)","v":"Description:  ##334#Dispensation information (provided by the dispensing pharmacy). Section B1 of the guidelines##334#"}]
[1,"dispenserIdentifier","B.1.1 Identifier of the dispenser","A unique number or code issued for the purpose of identifying a dispenser [ISO/TS 27527:2010]; this may be a licence or registration number which can be used to trace the dispenser and to check whether a medicinal product was dispensed by the right person according to the law of the dispensing country.",0,"*","Identifier",null,{"$f":"CONCATENATE(\"* \",B8, \" \",E8,\"..\",F8,\" \",G8,\" ##34#\",C8,\"##34# ##334#\",D8,\"##334#\")","v":"* dispenserIdentifier 0..* Identifier ##34#B.1.1 Identifier of the dispenser##34# ##334#A unique number or code issued for the purpose of identifying a dispenser [ISO/TS 27527:2010]; this may be a licence or registration number which can be used to trace the dispenser and to check whether a medicinal product was dispensed by the right person according to the law of the dispensing country.##334#"}]
[2,"dispenserFamilyName","B.1.2 Family name of the dispenser","The family name/surname/last name of the dispenser. This enables the dispenser to be traced in the event of questions or emergencies.",0,"*","string",null,{"$f":"CONCATENATE(\"* \",B9, \" \",E9,\"..\",F9,\" \",G9,\" ##34#\",C9,\"##34# ##334#\",D9,\"##334#\")","v":"* dispenserFamilyName 0..* string ##34#B.1.2 Family name of the dispenser##34# ##334#The family name/surname/last name of the dispenser. This enables the dispenser to be traced in the event of questions or emergencies.##334#"}]
[3,"dispenserGivenName","B.1.3 Given name of the dispenser","The given name/first name of the dispenser. This enables the dispenser to be traced in the event of questions or emergencies.",0,"*","string",null,"* dispenserGivenName 0..* string ##34#B.1.3 Given name of the dispenser##34# ##334#The given name/first name of the dispenser. This enables the dispenser to be traced in the event of questions or emergencies.##334#"]
[4,"pharmacyIdentifier","B.1.4 Identifier of the pharmacy","A unique number or code issued for the purpose of identifying a pharmacy [ISO/TS 27527:2010]; this may be a licence or registration number which can be used to trace the dispensing pharmacy.",0,"*","dateTime",null,"* pharmacyIdentifier 0..* dateTime ##34#B.1.4 Identifier of the pharmacy##34# ##334#A unique number or code issued for the purpose of identifying a pharmacy [ISO/TS 27527:2010]; this may be a licence or registration number which can be used to trace the dispensing pharmacy.##334#"]
[5,"pharmacyAddress","B.1.5 Address of the pharmacy","Minimally, the country should be specified.",0,1,"Address",null,"* pharmacyAddress 0..1 Address ##34#B.1.5 Address of the pharmacy##34# ##334#Minimally, the country should be specified.##334#"]
[6,"contactDetails","B.1.6 Details of direct contact","Details of direct contact could be an email address and/or phone/fax number of the dispensing pharmacy.",0,"*","ContactPoint",null,"* contactDetails 0..* ContactPoint ##34#B.1.6 Details of direct contact##34# ##334#Details of direct contact could be an email address and/or phone/fax number of the dispensing pharmacy.##334#"]
[7,"prescriptionIdentifier","B.1.7 Identifier of the prescription"," As described in A.1.2.",0,"*","Identifier",null,"* prescriptionIdentifier 0..* Identifier ##34#B.1.7 Identifier of the prescription##34# ##334# As described in A.1.2.##334#"]
[8,"medicinalProduct","B.1.8 Medicinal product","Information about the dispensed product as described in A.1.4.\nThe cardinality of the data elements in the product description may differ between ePrescription and eDispensation.",0,"*","BackboneElement",null,"* medicinalProduct 0..* BackboneElement ##34#B.1.8 Medicinal product##34# ##334#Information about the dispensed product as described in A.1.4.\nThe cardinality of the data elements in the product description may differ between ePrescription and eDispensation.##334#"]
[9,"dispensedQuantity","B.1.9 Dispensed quantity","The package size should be clear from the medicinal product data and the overall amount should be automatically calculable. The dispensed quantity may differ from the prescribed quantity.\n - Preferred system(s): UCUM, EDQM",0,"*","Quantity",null,"* dispensedQuantity 0..* Quantity ##34#B.1.9 Dispensed quantity##34# ##334#The package size should be clear from the medicinal product data and the overall amount should be automatically calculable. The dispensed quantity may differ from the prescribed quantity.\n - Preferred system(s): UCUM, EDQM##334#"]
[10,"dispensationDate","B.1.10 Dispensation date","The date and optionally the time of dispensation.\n - Preferred system(s): ISO 8601",0,"*","dateTime",null,"* dispensationDate 0..* dateTime ##34#B.1.10 Dispensation date##34# ##334#The date and optionally the time of dispensation.\n - Preferred system(s): ISO 8601##334#"]
[11,"substitution","B.1.11 Substitution","Information whether and why the substitution took place",0,"*","CodeableConcept",null,"* substitution 0..* CodeableConcept ##34#B.1.11 Substitution##34# ##334#Information whether and why the substitution took place##334#"]
[null,null,null,null,null,null,null,null,"*  ..  ##34###34# ##334###334#"]
[null,null,null,null,null,null,null,null,"*  ..  ##34###34# ##334###334#"]
[null,null,null,null,null,null,null,null,"*  ..  ##34###34# ##334###334#"]
[null,null,null,null,null,null,null,null,"*  ..  ##34###34# ##334###334#"]
[null,null,null,null,null,null,null,null,"*  ..  ##34###34# ##334###334#"]
[null,null,null,null,null,null,null,null,"*  ..  ##34###34# ##334###334#"]

{"sheet":"eD-fsh","index":5,"n_rows":23,"n_cols":7,"rows_kept":23,"cut":false,"hidden":false,"merged":[]}
[null,null,{"$f":"eD!I1","v":"// -------------------------------------------------------------------------------"}]
[null,null,{"$f":"eD!I2","v":"//  Logical Model"},null,null,null,{"$f":"eD!B5&\".fsh\"","v":"Dispensation.fsh"}]
[null,null,{"$f":"eD!I3","v":"// -------------------------------------------------------------------------------"}]
[null,null,{"$f":"eD!I4","v":"Logical: EdispensationEhn"}]
[null,null,{"$f":"eD!I5","v":"Id: Dispensation"}]
[null,null,{"$f":"eD!I6","v":"Title: ##34#B.1 Dispensation information (provided by the dispensing pharmacy)##34#"}]
[null,null,{"$f":"eD!I7","v":"Description:  ##334#Dispensation information (provided by the dispensing pharmacy). Section B1 of the guidelines##334#"}]
[null,null,{"$f":"IF(eD!I8=\"*  ..  ##34###34# ##334###334#\",\"//--- END\",eD!I8)","v":"* dispenserIdentifier 0..* Identifier ##34#B.1.1 Identifier of the dispenser##34# ##334#A unique number or code issued for the purpose of identifying a dispenser [ISO/TS 27527:2010]; this may be a licence or registration number which can be used to trace the dispenser and to check whether a medicinal product was dispensed by the right person according to the law of the dispensing country.##334#"}]
[null,null,{"$f":"IF(eD!I9=\"*  ..  ##34###34# ##334###334#\",\"//--- END\",eD!I9)","v":"* dispenserFamilyName 0..* string ##34#B.1.2 Family name of the dispenser##34# ##334#The family name/surname/last name of the dispenser. This enables the dispenser to be traced in the event of questions or emergencies.##334#"}]
[null,null,{"$f":"IF(eD!I10=\"*  ..  ##34###34# ##334###334#\",\"//--- END\",eD!I10)","v":"* dispenserGivenName 0..* string ##34#B.1.3 Given name of the dispenser##34# ##334#The given name/first name of the dispenser. This enables the dispenser to be traced in the event of questions or emergencies.##334#"},null," "]
[null,null,{"$f":"IF(eD!I11=\"*  ..  ##34###34# ##334###334#\",\"//--- END\",eD!I11)","v":"* pharmacyIdentifier 0..* dateTime ##34#B.1.4 Identifier of the pharmacy##34# ##334#A unique number or code issued for the purpose of identifying a pharmacy [ISO/TS 27527:2010]; this may be a licence or registration number which can be used to trace the dispensing pharmacy.##334#"}]
[null,null,{"$f":"IF(eD!I12=\"*  ..  ##34###34# ##334###334#\",\"//--- END\",eD!I12)","v":"* pharmacyAddress 0..1 Address ##34#B.1.5 Address of the pharmacy##34# ##334#Minimally, the country should be specified.##334#"}]
[null,null,{"$f":"IF(eD!I13=\"*  ..  ##34###34# ##334###334#\",\"//--- END\",eD!I13)","v":"* contactDetails 0..* ContactPoint ##34#B.1.6 Details of direct contact##34# ##334#Details of direct contact could be an email address and/or phone/fax number of the dispensing pharmacy.##334#"}]
[null,null,{"$f":"IF(eD!I14=\"*  ..  ##34###34# ##334###334#\",\"//--- END\",eD!I14)","v":"* prescriptionIdentifier 0..* Identifier ##34#B.1.7 Identifier of the prescription##34# ##334# As described in A.1.2.##334#"}]
[null,null,{"$f":"IF(eD!I15=\"*  ..  ##34###34# ##334###334#\",\"//--- END\",eD!I15)","v":"* medicinalProduct 0..* BackboneElement ##34#B.1.8 Medicinal product##34# ##334#Information about the dispensed product as described in A.1.4.\nThe cardinality of the data elements in the product description may differ between ePrescription and eDispensation.##334#"}]
[null,null,{"$f":"IF(eD!I16=\"*  ..  ##34###34# ##334###334#\",\"//--- END\",eD!I16)","v":"* dispensedQuantity 0..* Quantity ##34#B.1.9 Dispensed quantity##34# ##334#The package size should be clear from the medicinal product data and the overall amount should be automatically calculable. The dispensed quantity may differ from the prescribed quantity.\n - Preferred system(s): UCUM, EDQM##334#"}]
[null,null,{"$f":"IF(eD!I17=\"*  ..  ##34###34# ##334###334#\",\"//--- END\",eD!I17)","v":"* dispensationDate 0..* dateTime ##34#B.1.10 Dispensation date##34# ##334#The date and optionally the time of dispensation.\n - Preferred system(s): ISO 8601##334#"}]
[null,null,{"$f":"IF(eD!I18=\"*  ..  ##34###34# ##334###334#\",\"//--- END\",eD!I18)","v":"* substitution 0..* CodeableConcept ##34#B.1.11 Substitution##34# ##334#Information whether and why the substitution took place##334#"}]
[null,null,{"$f":"IF(eD!I19=\"*  ..  ##34###34# ##334###334#\",\"//--- END\",eD!I19)","v":"//--- END"}]
[null,null,{"$f":"IF(eD!I20=\"*  ..  ##34###34# ##334###334#\",\"//--- END\",eD!I20)","v":"//--- END"}]
[null,null,{"$f":"IF(eD!I21=\"*  ..  ##34###34# ##334###334#\",\"//--- END\",eD!I21)","v":"//--- END"}]
[null,null,{"$f":"IF(eD!I22=\"*  ..  ##34###34# ##334###334#\",\"//--- END\",eD!I22)","v":"//--- END"}]
[null,null,{"$f":"IF(eD!I23=\"*  ..  ##34###34# ##334###334#\",\"//--- END\",eD!I23)","v":"//--- END"}]

{"sheet":"eD-ConceptMap","index":6,"n_rows":98,"n_cols":19,"rows_kept":98,"cut":false,"hidden":false,"merged":[[2,4,2,6],[3,4,3,6],[5,4,5,6],[6,4,6,6]]}
[null,null,"http://hl7.eu/fhir/ig/xpandh-mpd/StructureDefinition/"]
[]
[null,"Mapping","eD2Fhir","Source URI","Canonical (EdispensationEhn)"]
[null,"Id","eD2FHIR-eu-mpd","Target URI","Canonical(MedicationDispenseEuMpd)"]
[null,"Title","eHN Dispense to this guide Map"]
[null,"IG url","http://hl7.eu/fhir/ig/xpandh-mpd/","Source Group",{"$f":"E3","v":"Canonical (EdispensationEhn)"}]
[null,"Targte Profile Model","MedicationDispense-eu-mpd","Target Group",{"$f":"E4","v":"Canonical(MedicationDispenseEuMpd)"}]
[null,"description","eHN eDispensation Model to this guide Map",null,null,null,null,null,"* group[=].element[+].code = #Osiris.Patient.BirthDate","* group[=].element[=].display = \"Birth Date [C4]\"","* group[=].element[=].target.code = #Subject.dateOfBirth.date","* group[=].element[=].target.display = \"Date of birth\"","* group[=].element[=].target.equivalence = #equivalent",null,null,"Elements",6]
[null,"purpose","It shows how the eDispensation data set defined by the EU eHN guidelines is mapped into this guide"]
[]
[null,null,null,null,null,null,null,null,"source:code","source:display","code","display","target to source","Comment"]
[]
[null,null,null,null,null,"target to source","Comment"]
[null,{"$f":"eD!B5","v":"Dispensation"},null,"MedicationDispense"]
[null,{"$f":"eD!B8","v":"dispenserIdentifier"},{"$f":"eD!C8","v":"B.1.1 Identifier of the dispenser"},"performer.actor.identifier",null,"equivalent",null,null,{"$f":"\"* group[=].element[+].code = #\"&$B$14&\".\"&B15","v":"* group[=].element[+].code = #Dispensation.dispenserIdentifier"},{"$f":"\"* group[=].element[=].display = ##34#\"&C15&\"##34#\"","v":"* group[=].element[=].display = ##34#B.1.1 Identifier of the dispenser##34#"},{"$f":"IF(F15=\"unmatched\",\"//-- unmatched\",IF(D15=\"\",\"* group[=].element[=].target.code = #\"&$D$14,\"* group[=].element[=].target.code = #\"&$D$14&\".\"&D15))","v":"* group[=].element[=].target.code = #MedicationDispense.performer.actor.identifier"},{"$f":"IF(F15=\"unmatched\",\"//-- unmatched\",\"* group[=].element[=].target.display = ##34#\"&E15&\"##34#\")","v":"* group[=].element[=].target.display = ##34###34#"},{"$f":"\"* group[=].element[=].target.equivalence = #\"&F15","v":"* group[=].element[=].target.equivalence = #equivalent"},{"$f":"IF(G15<>\"\",CONCATENATE(\"* group[=].element[=].target.comment = \",\"##34#\",G15,\"##34#\"),\"\")","v":""},null,1,{"$f":"IF(MOD(P15,$Q$8)=0,P15/$Q$8-1,INT(P15/$Q$8))","v":0},{"$f":"IF(MOD(P15,$Q$8)=0,$Q$8,MOD(P15,$Q$8))","v":1},{"$f":"INDEX('eD-ConceptMap'!$I$15:$N$98,Q15+1,R15)","v":"* group[=].element[+].code = #Dispensation.dispenserIdentifier"}]
[null,{"$f":"eD!B9","v":"dispenserFamilyName"},{"$f":"eD!C9","v":"B.1.2 Family name of the dispenser"},"performer.actor.practitioner.name.family",null,"relatedto","Assuming actor of type PractitionerRole",null,{"$f":"\"* group[=].element[+].code = #\"&$B$14&\".\"&B16","v":"* group[=].element[+].code = #Dispensation.dispenserFamilyName"},{"$f":"\"* group[=].element[=].display = ##34#\"&C16&\"##34#\"","v":"* group[=].element[=].display = ##34#B.1.2 Family name of the dispenser##34#"},{"$f":"IF(F16=\"unmatched\",\"//-- unmatched\",IF(D16=\"\",\"* group[=].element[=].target.code = #\"&$D$14,\"* group[=].element[=].target.code = #\"&$D$14&\".\"&D16))","v":"* group[=].element[=].target.code = #MedicationDispense.performer.actor.practitioner.name.family"},{"$f":"IF(F16=\"unmatched\",\"//-- unmatched\",\"* group[=].element[=].target.display = ##34#\"&E16&\"##34#\")","v":"* group[=].element[=].target.display = ##34###34#"},{"$f":"\"* group[=].element[=].target.equivalence = #\"&F16","v":"* group[=].element[=].target.equivalence = #relatedto"},{"$f":"IF(G16<>\"\",CONCATENATE(\"* group[=].element[=].target.comment = \",\"##34#\",G16,\"##34#\"),\"\")","v":"* group[=].element[=].target.comment = ##34#Assuming actor of type PractitionerRole##34#"},null,2,{"$f":"IF(MOD(P16,$Q$8)=0,P16/$Q$8-1,INT(P16/$Q$8))","v":0},{"$f":"IF(MOD(P16,$Q$8)=0,$Q$8,MOD(P16,$Q$8))","v":2},{"$f":"INDEX('eD-ConceptMap'!$I$15:$N$98,Q16+1,R16)","v":"* group[=].element[=].display = ##34#B.1.1 Identifier of the dispenser##34#"}]
[null,{"$f":"eD!B10","v":"dispenserGivenName"},{"$f":"eD!C10","v":"B.1.3 Given name of the dispenser"},"performer.actor.practitioner.name.given",null,"equivalent","Assuming actor of type PractitionerRole",null,"* group[=].element[+].code = #Dispensation.dispenserGivenName","* group[=].element[=].display = ##34#B.1.3 Given name of the dispenser##34#","* group[=].element[=].target.code = #MedicationDispense.performer.actor.practitioner.name.given","* group[=].element[=].target.display = ##34###34#","* group[=].element[=].target.equivalence = #equivalent","* group[=].element[=].target.comment = ##34#Assuming actor of type PractitionerRole##34#",null,3,0,3,{"$f":"INDEX('eD-ConceptMap'!$I$15:$N$98,Q17+1,R17)","v":"* group[=].element[=].target.code = #MedicationDispense.performer.actor.identifier"}]
[null,{"$f":"eD!B11","v":"pharmacyIdentifier"},{"$f":"eD!C11","v":"B.1.4 Identifier of the pharmacy"},"performer.actor.organization.identifier",null,"relatedto","Assuming actor of type PractitionerRole (to be checked this assume that the pharamcy  is the org the dispenser is working for…)",null,"* group[=].element[+].code = #Dispensation.pharmacyIdentifier","* group[=].element[=].display = ##34#B.1.4 Identifier of the pharmacy##34#","* group[=].element[=].target.code = #MedicationDispense.performer.actor.organization.identifier","* group[=].element[=].target.display = ##34###34#","* group[=].element[=].target.equivalence = #relatedto","* group[=].element[=].target.comment = ##34#Assuming actor of type PractitionerRole (to be checked this assume that the pharamcy  is the org the dispenser is working for…)##34#",null,4,0,4,{"$f":"INDEX('eD-ConceptMap'!$I$15:$N$98,Q18+1,R18)","v":"* group[=].element[=].target.display = ##34###34#"}]
[null,{"$f":"eD!B11","v":"pharmacyIdentifier"},{"$f":"eD!C11","v":"B.1.4 Identifier of the pharmacy"},"performer.actor.identifier",null,"relatedto","Assuming actor of type Organziation (to be checked this assumes that the pharamcy  is the org dispensing)",null,"* group[=].element[+].code = #Dispensation.pharmacyIdentifier","* group[=].element[=].display = ##34#B.1.4 Identifier of the pharmacy##34#","* group[=].element[=].target.code = #MedicationDispense.performer.actor.identifier","* group[=].element[=].target.display = ##34###34#","* group[=].element[=].target.equivalence = #relatedto","* group[=].element[=].target.comment = ##34#Assuming actor of type Organziation (to be checked this assumes that the pharamcy  is the org dispensing)##34#",null,5,0,5,{"$f":"INDEX('eD-ConceptMap'!$I$15:$N$98,Q19+1,R19)","v":"* group[=].element[=].target.equivalence = #equivalent"}]
[null,{"$f":"eD!B12","v":"pharmacyAddress"},{"$f":"eD!C12","v":"B.1.5 Address of the pharmacy"},"performer.actor.address",null,"relatedto","Assuming actor of type Organziation (to be checked this assumes that the pharamcy  is the org dispensing)",null,"* group[=].element[+].code = #Dispensation.pharmacyAddress","* group[=].element[=].display = ##34#B.1.5 Address of the pharmacy##34#","* group[=].element[=].target.code = #MedicationDispense.performer.actor.address","* group[=].element[=].target.display = ##34###34#","* group[=].element[=].target.equivalence = #relatedto","* group[=].element[=].target.comment = ##34#Assuming actor of type Organziation (to be checked this assumes that the pharamcy  is the org dispensing)##34#",null,6,0,6,{"$f":"INDEX('eD-ConceptMap'!$I$15:$N$98,Q20+1,R20)","v":""}]
[null,{"$f":"eD!B13","v":"contactDetails"},{"$f":"eD!C13","v":"B.1.6 Details of direct contact"},"subject.contact",null,"relatedto","subject of type Patient",null,"* group[=].element[+].code = #Dispensation.contactDetails","* group[=].element[=].display = ##34#B.1.6 Details of direct contact##34#","* group[=].element[=].target.code = #MedicationDispense.subject.contact","* group[=].element[=].target.display = ##34###34#","* group[=].element[=].target.equivalence = #relatedto","* group[=].element[=].target.comment = ##34#subject of type Patient##34#",null,7,1,1,{"$f":"INDEX('eD-ConceptMap'!$I$15:$N$98,Q21+1,R21)","v":"* group[=].element[+].code = #Dispensation.dispenserFamilyName"}]
[null,{"$f":"eD!B14","v":"prescriptionIdentifier"},{"$f":"eD!C14","v":"B.1.7 Identifier of the prescription"},"authorizingPrescription.identifier",null,"relatedto","TO BE CHECKED is this true for multi-items prescriptions ?",null,"* group[=].element[+].code = #Dispensation.prescriptionIdentifier","* group[=].element[=].display = ##34#B.1.7 Identifier of the prescription##34#","* group[=].element[=].target.code = #MedicationDispense.authorizingPrescription.identifier","* group[=].element[=].target.display = ##34###34#","* group[=].element[=].target.equivalence = #relatedto","* group[=].element[=].target.comment = ##34#TO BE CHECKED is this true for multi-items prescriptions ?##34#",null,8,1,2,{"$f":"INDEX('eD-ConceptMap'!$I$15:$N$98,Q22+1,R22)","v":"* group[=].element[=].display = ##34#B.1.2 Family name of the dispenser##34#"}]
[null,{"$f":"eD!B15","v":"medicinalProduct"},{"$f":"eD!C15","v":"B.1.8 Medicinal product"},"medicationReference",null,"relatedto",null,null,"* group[=].element[+].code = #Dispensation.medicinalProduct","* group[=].element[=].display = ##34#B.1.8 Medicinal product##34#","* group[=].element[=].target.code = #MedicationDispense.medicationReference","* group[=].element[=].target.display = ##34###34#","* group[=].element[=].target.equivalence = #relatedto","",null,9,1,3,{"$f":"INDEX('eD-ConceptMap'!$I$15:$N$98,Q23+1,R23)","v":"* group[=].element[=].target.code = #MedicationDispense.performer.actor.practitioner.name.family"}]
[null,{"$f":"eD!B16","v":"dispensedQuantity"},{"$f":"eD!C16","v":"B.1.9 Dispensed quantity"},"quantity",null,"equivalent",null,null,"* group[=].element[+].code = #Dispensation.dispensedQuantity","* group[=].element[=].display = ##34#B.1.9 Dispensed quantity##34#","* group[=].element[=].target.code = #MedicationDispense.quantity","* group[=].element[=].target.display = ##34###34#","* group[=].element[=].target.equivalence = #equivalent","",null,10,1,4,{"$f":"INDEX('eD-ConceptMap'!$I$15:$N$98,Q24+1,R24)","v":"* group[=].element[=].target.display = ##34###34#"}]
[null,{"$f":"eD!B17","v":"dispensationDate"},{"$f":"eD!C17","v":"B.1.10 Dispensation date"},"whenHandedOver",null,"equivalent",null,null,"* group[=].element[+].code = #Dispensation.dispensationDate","* group[=].element[=].display = ##34#B.1.10 Dispensation date##34#","* group[=].element[=].target.code = #MedicationDispense.whenHandedOver","* group[=].element[=].target.display = ##34###34#","* group[=].element[=].target.equivalence = #equivalent","",null,11,1,5,{"$f":"INDEX('eD-ConceptMap'!$I$15:$N$98,Q25+1,R25)","v":"* group[=].element[=].target.equivalence = #relatedto"}]
[null,{"$f":"eD!B18","v":"substitution"},{"$f":"eD!C18","v":"B.1.11 Substitution"},"substitution",null,"relatedto",null,null,"* group[=].element[+].code = #Dispensation.substitution","* group[=].element[=].display = ##34#B.1.11 Substitution##34#","* group[=].element[=].target.code = #MedicationDispense.substitution","* group[=].element[=].target.display = ##34###34#","* group[=].element[=].target.equivalence = #relatedto","",null,12,1,6,{"$f":"INDEX('eD-ConceptMap'!$I$15:$N$98,Q26+1,R26)","v":"* group[=].element[=].target.comment = ##34#Assuming actor of type PractitionerRole##34#"}]
[null,null,null,null,null,null,null,null,null,null,null,null,null,null,null,13,2,1,{"$f":"INDEX('eD-ConceptMap'!$I$15:$N$98,Q27+1,R27)","v":"* group[=].element[+].code = #Dispensation.dispenserGivenName"}]
[null,null,null,null,null,null,null,null,null,null,null,null,null,null,null,14,2,2,{"$f":"INDEX('eD-ConceptMap'!$I$15:$N$98,Q28+1,R28)","v":"* group[=].element[=].display = ##34#B.1.3 Given name of the dispenser##34#"}]
[null,null,null,null,null,null,null,null,null,null,null,null,null,null,null,15,2,3,{"$f":"INDEX('eD-ConceptMap'!$I$15:$N$98,Q29+1,R29)","v":"* group[=].element[=].target.code = #MedicationDispense.performer.actor.practitioner.name.given"}]
[null,null,null,null,null,null,null,null,null,null,null,null,null,null,null,16,2,4,{"$f":"INDEX('eD-ConceptMap'!$I$15:$N$98,Q30+1,R30)","v":"* group[=].element[=].target.display = ##34###34#"}]
[null,null,null,null,null,null,null,null,null,null,null,null,null,null,null,17,2,5,{"$f":"INDEX('eD-ConceptMap'!$I$15:$N$98,Q31+1,R31)","v":"* group[=].element[=].target.equivalence = #equivalent"}]
[null,null,null,null,null,null,null,null,null,null,null,null,null,null,null,18,2,6,{"$f":"INDEX('eD-ConceptMap'!$I$15:$N$98,Q32+1,R32)","v":"* group[=].element[=].target.comment = ##34#Assuming actor of type PractitionerRole##34#"}]
[null,null,null,null,null,null,null,null,null,null,null,null,null,null,null,19,3,1,{"$f":"INDEX('eD-ConceptMap'!$I$15:$N$98,Q33+1,R33)","v":"* group[=].element[+].code = #Dispensation.pharmacyIdentifier"}]
[null,null,null,null,null,null,null,null,null,null,null,null,null,null,null,20,3,2,{"$f":"INDEX('eD-ConceptMap'!$I$15:$N$98,Q34+1,R34)","v":"* group[=].element[=].display = ##34#B.1.4 Identifier of the pharmacy##34#"}]
[null,null,null,null,null,null,null,null,null,null,null,null,null,null,null,21,3,3,{"$f":"INDEX('eD-ConceptMap'!$I$15:$N$98,Q35+1,R35)","v":"* group[=].element[=].target.code = #MedicationDispense.performer.actor.organization.identifier"}]
[null,null,null,null,null,null,null,null,null,null,null,null,null,null,null,22,3,4,{"$f":"INDEX('eD-ConceptMap'!$I$15:$N$98,Q36+1,R36)","v":"* group[=].element[=].target.display = ##34###34#"}]
[null,null,null,null,null,null,null,null,null,null,null,null,null,null,null,23,3,5,{"$f":"INDEX('eD-ConceptMap'!$I$15:$N$98,Q37+1,R37)","v":"* group[=].element[=].target.equivalence = #relatedto"}]
[null,null,null,null,null,null,null,null,null,null,null,null,null,null,null,24,3,6,{"$f":"INDEX('eD-ConceptMap'!$I$15:$N$98,Q38+1,R38)","v":"* group[=].element[=].target.comment = ##34#Assuming actor of type PractitionerRole (to be checked this assume that the pharamcy  is the org the dispenser is working for…)##34#"}]
[null,null,null,null,null,null,null,null,null,null,null,null,null,null,null,25,4,1,{"$f":"INDEX('eD-ConceptMap'!$I$15:$N$98,Q39+1,R39)","v":"* group[=].element[+].code = #Dispensation.pharmacyIdentifier"}]
[null,null,null,null,null,null,null,null,null,null,null,null,null,null,null,26,4,2,{"$f":"INDEX('eD-ConceptMap'!$I$15:$N$98,Q40+1,R40)","v":"* group[=].element[=].display = ##34#B.1.4 Identifier of the pharmacy##34#"}]
[null,null,null,null,null,null,null,null,null,null,null,null,null,null,null,27,4,3,{"$f":"INDEX('eD-ConceptMap'!$I$15:$N$98,Q41+1,R41)","v":"* group[=].element[=].target.code = #MedicationDispense.performer.actor.identifier"}]
[null,null,null,null,null,null,null,null,null,null,null,null,null,null,null,28,4,4,{"$f":"INDEX('eD-ConceptMap'!$I$15:$N$98,Q42+1,R42)","v":"* group[=].element[=].target.display = ##34###34#"}]
[null,null,null,null,null,null,null,null,null,null,null,null,null,null,null,29,4,5,{"$f":"INDEX('eD-ConceptMap'!$I$15:$N$98,Q43+1,R43)","v":"* group[=].element[=].target.equivalence = #relatedto"}]
[null,null,null,null,null,null,null,null,null,null,null,null,null,null,null,30,4,6,{"$f":"INDEX('eD-ConceptMap'!$I$15:$N$98,Q44+1,R44)","v":"* group[=].element[=].target.comment = ##34#Assuming actor of type Organziation (to be checked this assumes that the pharamcy  is the org dispensing)##34#"}]
[null,null,null,null,null,null,null,null,null,null,null,null,null,null,null,31,5,1,{"$f":"INDEX('eD-ConceptMap'!$I$15:$N$98,Q45+1,R45)","v":"* group[=].element[+].code = #Dispensation.pharmacyAddress"}]
[null,null,null,null,null,null,null,null,null,null,null,null,null,null,null,32,5,2,{"$f":"INDEX('eD-ConceptMap'!$I$15:$N$98,Q46+1,R46)","v":"* group[=].element[=].display = ##34#B.1.5 Address of the pharmacy##34#"}]
[null,null,null,null,null,null,null,null,null,null,null,null,null,null,null,33,5,3,{"$f":"INDEX('eD-ConceptMap'!$I$15:$N$98,Q47+1,R47)","v":"* group[=].element[=].target.code = #MedicationDispense.performer.actor.address"}]
[null,null,null,null,null,null,null,null,null,null,null,null,null,null,null,34,5,4,{"$f":"INDEX('eD-ConceptMap'!$I$15:$N$98,Q48+1,R48)","v":"* group[=].element[=].target.display = ##34###34#"}]
[null,null,null,null,null,null,null,null,null,null,null,null,null,null,null,35,5,5,{"$f":"INDEX('eD-ConceptMap'!$I$15:$N$98,Q49+1,R49)","v":"* group[=].element[=].target.equivalence = #relatedto"}]
[null,null,null,null,null,null,null,null,null,null,null,null,null,null,null,36,5,6,{"$f":"INDEX('eD-ConceptMap'!$I$15:$N$98,Q50+1,R50)","v":"* group[=].element[=].target.comment = ##34#Assuming actor of type Organziation (to be checked this assumes that the pharamcy  is the org dispensing)##34#"}]
[null,null,null,null,null,null,null,null,null,null,null,null,null,null,null,37,6,1,{"$f":"INDEX('eD-ConceptMap'!$I$15:$N$98,Q51+1,R51)","v":"* group[=].element[+].code = #Dispensation.contactDetails"}]
[null,null,null,null,null,null,null,null,null,null,null,null,null,null,null,38,6,2,{"$f":"INDEX('eD-ConceptMap'!$I$15:$N$98,Q52+1,R52)","v":"* group[=].element[=].display = ##34#B.1.6 Details of direct contact##34#"}]
[null,null,null,null,null,null,null,null,null,null,null,null,null,null,null,39,6,3,{"$f":"INDEX('eD-ConceptMap'!$I$15:$N$98,Q53+1,R53)","v":"* group[=].element[=].target.code = #MedicationDispense.subject.contact"}]
[null,null,null,null,null,null,null,null,null,null,null,null,null,null,null,40,6,4,{"$f":"INDEX('eD-ConceptMap'!$I$15:$N$98,Q54+1,R54)","v":"* group[=].element[=].target.display = ##34###34#"}]
[null,null,null,null,null,null,null,null,null,null,null,null,null,null,null,41,6,5,{"$f":"INDEX('eD-ConceptMap'!$I$15:$N$98,Q55+1,R55)","v":"* group[=].element[=].target.equivalence = #relatedto"}]
[null,null,null,null,null,null,null,null,null,null,null,null,null,null,null,42,6,6,{"$f":"INDEX('eD-ConceptMap'!$I$15:$N$98,Q56+1,R56)","v":"* group[=].element[=].target.comment = ##34#subject of type Patient##34#"}]
[null,null,null,null,null,null,null,null,null,null,null,null,null,null,null,43,7,1,{"$f":"INDEX('eD-ConceptMap'!$I$15:$N$98,Q57+1,R57)","v":"* group[=].element[+].code = #Dispensation.prescriptionIdentifier"}]
[null,null,null,null,null,null,null,null,null,null,null,null,null,null,null,44,7,2,{"$f":"INDEX('eD-ConceptMap'!$I$15:$N$98,Q58+1,R58)","v":"* group[=].element[=].display = ##34#B.1.7 Identifier of the prescription##34#"}]
[null,null,null,null,null,null,null,null,null,null,null,null,null,null,null,45,7,3,{"$f":"INDEX('eD-ConceptMap'!$I$15:$N$98,Q59+1,R59)","v":"* group[=].element[=].target.code = #MedicationDispense.authorizingPrescription.identifier"}]
[null,null,null,null,null,null,null,null,null,null,null,null,null,null,null,46,7,4,{"$f":"INDEX('eD-ConceptMap'!$I$15:$N$98,Q60+1,R60)","v":"* group[=].element[=].target.display = ##34###34#"}]
[null,null,null,null,null,null,null,null,null,null,null,null,null,null,null,47,7,5,{"$f":"INDEX('eD-ConceptMap'!$I$15:$N$98,Q61+1,R61)","v":"* group[=].element[=].target.equivalence = #relatedto"}]
[null,null,null,null,null,null,null,null,null,null,null,null,null,null,null,48,7,6,{"$f":"INDEX('eD-ConceptMap'!$I$15:$N$98,Q62+1,R62)","v":"* group[=].element[=].target.comment = ##34#TO BE CHECKED is this true for multi-items prescriptions ?##34#"}]
[null,null,null,null,null,null,null,null,null,null,null,null,null,null,null,49,8,1,{"$f":"INDEX('eD-ConceptMap'!$I$15:$N$98,Q63+1,R63)","v":"* group[=].element[+].code = #Dispensation.medicinalProduct"}]
[null,null,null,null,null,null,null,null,null,null,null,null,null,null,null,50,8,2,{"$f":"INDEX('eD-ConceptMap'!$I$15:$N$98,Q64+1,R64)","v":"* group[=].element[=].display = ##34#B.1.8 Medicinal product##34#"}]
[null,null,null,null,null,null,null,null,null,null,null,null,null,null,null,51,8,3,{"$f":"INDEX('eD-ConceptMap'!$I$15:$N$98,Q65+1,R65)","v":"* group[=].element[=].target.code = #MedicationDispense.medicationReference"}]
[null,null,null,null,null,null,null,null,null,null,null,null,null,null,null,52,8,4,{"$f":"INDEX('eD-ConceptMap'!$I$15:$N$98,Q66+1,R66)","v":"* group[=].element[=].target.display = ##34###34#"}]
[null,null,null,null,null,null,null,null,null,null,null,null,null,null,null,53,8,5,{"$f":"INDEX('eD-ConceptMap'!$I$15:$N$98,Q67+1,R67)","v":"* group[=].element[=].target.equivalence = #relatedto"}]
[null,null,null,null,null,null,null,null,null,null,null,null,null,null,null,54,8,6,{"$f":"INDEX('eD-ConceptMap'!$I$15:$N$98,Q68+1,R68)","v":""}]
[null,null,null,null,null,null,null,null,null,null,null,null,null,null,null,55,9,1,{"$f":"INDEX('eD-ConceptMap'!$I$15:$N$98,Q69+1,R69)","v":"* group[=].element[+].code = #Dispensation.dispensedQuantity"}]
[null,null,null,null,null,null,null,null,null,null,null,null,null,null,null,56,9,2,{"$f":"INDEX('eD-ConceptMap'!$I$15:$N$98,Q70+1,R70)","v":"* group[=].element[=].display = ##34#B.1.9 Dispensed quantity##34#"}]
[null,null,null,null,null,null,null,null,null,null,null,null,null,null,null,57,9,3,{"$f":"INDEX('eD-ConceptMap'!$I$15:$N$98,Q71+1,R71)","v":"* group[=].element[=].target.code = #MedicationDispense.quantity"}]
[null,null,null,null,null,null,null,null,null,null,null,null,null,null,null,58,9,4,{"$f":"INDEX('eD-ConceptMap'!$I$15:$N$98,Q72+1,R72)","v":"* group[=].element[=].target.display = ##34###34#"}]
[null,null,null,null,null,null,null,null,null,null,null,null,null,null,null,59,9,5,{"$f":"INDEX('eD-ConceptMap'!$I$15:$N$98,Q73+1,R73)","v":"* group[=].element[=].target.equivalence = #equivalent"}]
[null,null,null,null,null,null,null,null,null,null,null,null,null,null,null,60,9,6,{"$f":"INDEX('eD-ConceptMap'!$I$15:$N$98,Q74+1,R74)","v":""}]
[null,null,null,null,null,null,null,null,null,null,null,null,null,null,null,61,10,1,{"$f":"INDEX('eD-ConceptMap'!$I$15:$N$98,Q75+1,R75)","v":"* group[=].element[+].code = #Dispensation.dispensationDate"}]
[null,null,null,null,null,null,null,null,null,null,null,null,null,null,null,62,10,2,{"$f":"INDEX('eD-ConceptMap'!$I$15:$N$98,Q76+1,R76)","v":"* group[=].element[=].display = ##34#B.1.10 Dispensation date##34#"}]
[null,null,null,null,null,null,null,null,null,null,null,null,null,null,null,63,10,3,{"$f":"INDEX('eD-ConceptMap'!$I$15:$N$98,Q77+1,R77)","v":"* group[=].element[=].target.code = #MedicationDispense.whenHandedOver"}]
[null,null,null,null,null,null,null,null,null,null,null,null,null,null,null,64,10,4,{"$f":"INDEX('eD-ConceptMap'!$I$15:$N$98,Q78+1,R78)","v":"* group[=].element[=].target.display = ##34###34#"}]
[null,null,null,null,null,null,null,null,null,null,null,null,null,null,null,65,10,5,{"$f":"INDEX('eD-ConceptMap'!$I$15:$N$98,Q79+1,R79)","v":"* group[=].element[=].target.equivalence = #equivalent"}]
[null,null,null,null,null,null,null,null,null,null,null,null,null,null,null,66,{"$f":"IF(MOD(P80,$Q$8)=0,P80/$Q$8-1,INT(P80/$Q$8))","v":10},{"$f":"IF(MOD(P80,$Q$8)=0,$Q$8,MOD(P80,$Q$8))","v":6},{"$f":"INDEX('eD-ConceptMap'!$I$15:$N$98,Q80+1,R80)","v":""}]
[null,null,null,null,null,null,null,null,null,null,null,null,null,null,null,67,11,1,{"$f":"INDEX('eD-ConceptMap'!$I$15:$N$98,Q81+1,R81)","v":"* group[=].element[+].code = #Dispensation.substitution"}]
[null,null,null,null,null,null,null,null,null,null,null,null,null,null,null,68,11,2,{"$f":"INDEX('eD-ConceptMap'!$I$15:$N$98,Q82+1,R82)","v":"* group[=].element[=].display = ##34#B.1.11 Substitution##34#"}]
[null,null,null,null,null,null,null,null,null,null,null,null,null,null,null,69,11,3,{"$f":"INDEX('eD-ConceptMap'!$I$15:$N$98,Q83+1,R83)","v":"* group[=].element[=].target.code = #MedicationDispense.substitution"}]
[null,null,null,null,null,null,null,null,null,null,null,null,null,null,null,70,11,4,{"$f":"INDEX('eD-ConceptMap'!$I$15:$N$98,Q84+1,R84)","v":"* group[=].element[=].target.display = ##34###34#"}]
[null,null,null,null,null,null,null,null,null,null,null,null,null,null,null,71,11,5,{"$f":"INDEX('eD-ConceptMap'!$I$15:$N$98,Q85+1,R85)","v":"* group[=].element[=].target.equivalence = #relatedto"}]
[null,null,null,null,null,null,null,null,null,null,null,null,null,null,null,72,11,6,{"$f":"INDEX('eD-ConceptMap'!$I$15:$N$98,Q86+1,R86)","v":""}]
[null,null,null,null,null,null,null,null,null,null,null,null,null,null,null,73,12,1,{"$f":"INDEX('eD-ConceptMap'!$I$15:$N$98,Q87+1,R87)","v":0}]
[null,null,null,null,null,null,null,null,null,null,null,null,null,null,null,74,12,2,{"$f":"INDEX('eD-ConceptMap'!$I$15:$N$98,Q88+1,R88)","v":0}]
[null,null,null,null,null,null,null,null,null,null,null,null,null,null,null,75,12,3,{"$f":"INDEX('eD-ConceptMap'!$I$15:$N$98,Q89+1,R89)","v":0}]
[null,null,null,null,null,null,null,null,null,null,null,null,null,null,null,76,12,4,{"$f":"INDEX('eD-ConceptMap'!$I$15:$N$98,Q90+1,R90)","v":0}]
[null,null,null,null,null,null,null,null,null,null,null,null,null,null,null,77,12,5,{"$f":"INDEX('eD-ConceptMap'!$I$15:$N$98,Q91+1,R91)","v":0}]
[null,null,null,null,null,null,null,null,null,null,null,null,null,null,null,78,12,6,{"$f":"INDEX('eD-ConceptMap'!$I$15:$N$98,Q92+1,R92)","v":0}]
[null,null,null,null,null,null,null,null,null,null,null,null,null,null,null,79,13,1,{"$f":"INDEX('eD-ConceptMap'!$I$15:$N$98,Q93+1,R93)","v":0}]
[null,null,null,null,null,null,null,null,null,null,null,null,null,null,null,80,13,2,{"$f":"INDEX('eD-ConceptMap'!$I$15:$N$98,Q94+1,R94)","v":0}]
[null,null,null,null,null,null,null,null,null,null,null,null,null,null,null,81,13,3,{"$f":"INDEX('eD-ConceptMap'!$I$15:$N$98,Q95+1,R95)","v":0}]
[null,null,null,null,null,null,null,null,null,null,null,null,null,null,null,82,13,4,{"$f":"INDEX('eD-ConceptMap'!$I$15:$N$98,Q96+1,R96)","v":0}]
[null,null,null,null,null,null,null,null,null,null,null,null,null,null,null,83,13,5,{"$f":"INDEX('eD-ConceptMap'!$I$15:$N$98,Q97+1,R97)","v":0}]
[null,null,null,null,null,null,null,null,null,null,null,null,null,null,null,84,13,6,{"$f":"INDEX('eD-ConceptMap'!$I$15:$N$98,Q98+1,R98)","v":0}]

{"sheet":"eD-CM-fsh","index":7,"n_rows":97,"n_cols":7,"rows_kept":97,"cut":false,"hidden":false,"merged":[]}
[null,"// -------------------------------------------------------------------------------"]
[null,"//  Concept Model. File: ",null,null,null,null,{"$f":"'eD-ConceptMap'!C4&\".fsh\"","v":"eD2FHIR-eu-mpd.fsh"}]
[null,"// -------------------------------------------------------------------------------"]
[null,{"$f":"\"Instance: \"&'eD-ConceptMap'!C4","v":"Instance: eD2FHIR-eu-mpd"}]
[null,"InstanceOf: ConceptMap"]
[null,"Usage: #definition"]
[null,"// * url = ##34#http://terminology.hl7.it/ConceptMap/ConceptMap-subject2osiris##34#"]
[null,{"$f":"\"* name = ##34#\"&'eD-ConceptMap'!C3&\"##34#\"","v":"* name = ##34#eD2Fhir##34#"}]
[null,{"$f":"\"* title = ##34#\"&'eD-ConceptMap'!C5&\"##34#\"","v":"* title = ##34#eHN Dispense to this guide Map##34#"}]
[null,"* status = #draft"]
[null,"* experimental = true"]
[null,{"$f":"\"* description = ##34#\"&'eD-ConceptMap'!C8&\"##34#\"","v":"* description = ##34#eHN eDispensation Model to this guide Map##34#"}]
[null,{"$f":"\"* purpose = ##34#\"&'eD-ConceptMap'!C9&\"##34#\"","v":"* purpose = ##34#It shows how the eDispensation data set defined by the EU eHN guidelines is mapped into this guide##34#"}]
[null,{"$f":"\"* sourceUri = ##34#\"&'eD-ConceptMap'!E3&\"##34#\"","v":"* sourceUri = ##34#Canonical (EdispensationEhn)##34#"}]
[null,{"$f":"\"* targetUri = ##34#\"&'eD-ConceptMap'!E4&\"##34#\"","v":"* targetUri = ##34#Canonical(MedicationDispenseEuMpd)##34#"}]
[]
[null,{"$f":"\"* group[+].source = ##34#\"&'eD-ConceptMap'!E6&\"##34#\"","v":"* group[+].source = ##34#Canonical (EdispensationEhn)##34#"}]
[null,{"$f":"\"* group[=].target = ##34#\"&'eD-ConceptMap'!E7&\"##34#\"","v":"* group[=].target = ##34#Canonical(MedicationDispenseEuMpd)##34#"}]
[]
[null,{"$f":"IF('eD-ConceptMap'!S15=0,\"//---END\",'eD-ConceptMap'!S15)","v":"* group[=].element[+].code = #Dispensation.dispenserIdentifier"}]
[null,{"$f":"IF('eD-ConceptMap'!S16=0,\"//---END\",'eD-ConceptMap'!S16)","v":"* group[=].element[=].display = ##34#B.1.1 Identifier of the dispenser##34#"}]
[null,{"$f":"IF('eD-ConceptMap'!S17=0,\"//---END\",'eD-ConceptMap'!S17)","v":"* group[=].element[=].target.code = #MedicationDispense.performer.actor.identifier"}]
[null,{"$f":"IF('eD-ConceptMap'!S18=0,\"//---END\",'eD-ConceptMap'!S18)","v":"* group[=].element[=].target.display = ##34###34#"}]
[null,{"$f":"IF('eD-ConceptMap'!S19=0,\"//---END\",'eD-ConceptMap'!S19)","v":"* group[=].element[=].target.equivalence = #equivalent"}]
[null,{"$f":"IF('eD-ConceptMap'!S20=0,\"//---END\",'eD-ConceptMap'!S20)","v":""}]
[null,{"$f":"IF('eD-ConceptMap'!S21=0,\"//---END\",'eD-ConceptMap'!S21)","v":"* group[=].element[+].code = #Dispensation.dispenserFamilyName"}]
[null,{"$f":"IF('eD-ConceptMap'!S22=0,\"//---END\",'eD-ConceptMap'!S22)","v":"* group[=].element[=].display = ##34#B.1.2 Family name of the dispenser##34#"}]
[null,{"$f":"IF('eD-ConceptMap'!S23=0,\"//---END\",'eD-ConceptMap'!S23)","v":"* group[=].element[=].target.code = #MedicationDispense.performer.actor.practitioner.name.family"}]
[null,{"$f":"IF('eD-ConceptMap'!S24=0,\"//---END\",'eD-ConceptMap'!S24)","v":"* group[=].element[=].target.display = ##34###34#"}]
[null,{"$f":"IF('eD-ConceptMap'!S25=0,\"//---END\",'eD-ConceptMap'!S25)","v":"* group[=].element[=].target.equivalence = #relatedto"}]
[null,{"$f":"IF('eD-ConceptMap'!S26=0,\"//---END\",'eD-ConceptMap'!S26)","v":"* group[=].element[=].target.comment = ##34#Assuming actor of type PractitionerRole##34#"}]
[null,{"$f":"IF('eD-ConceptMap'!S27=0,\"//---END\",'eD-ConceptMap'!S27)","v":"* group[=].element[+].code = #Dispensation.dispenserGivenName"}]
[null,{"$f":"IF('eD-ConceptMap'!S28=0,\"//---END\",'eD-ConceptMap'!S28)","v":"* group[=].element[=].display = ##34#B.1.3 Given name of the dispenser##34#"}]
[null,{"$f":"IF('eD-ConceptMap'!S29=0,\"//---END\",'eD-ConceptMap'!S29)","v":"* group[=].element[=].target.code = #MedicationDispense.performer.actor.practitioner.name.given"}]
[null,{"$f":"IF('eD-ConceptMap'!S30=0,\"//---END\",'eD-ConceptMap'!S30)","v":"* group[=].element[=].target.display = ##34###34#"}]
[null,{"$f":"IF('eD-ConceptMap'!S31=0,\"//---END\",'eD-ConceptMap'!S31)","v":"* group[=].element[=].target.equivalence = #equivalent"}]
[null,{"$f":"IF('eD-ConceptMap'!S32=0,\"//---END\",'eD-ConceptMap'!S32)","v":"* group[=].element[=].target.comment = ##34#Assuming actor of type PractitionerRole##34#"}]
[null,{"$f":"IF('eD-ConceptMap'!S33=0,\"//---END\",'eD-ConceptMap'!S33)","v":"* group[=].element[+].code = #Dispensation.pharmacyIdentifier"}]
[null,{"$f":"IF('eD-ConceptMap'!S34=0,\"//---END\",'eD-ConceptMap'!S34)","v":"* group[=].element[=].display = ##34#B.1.4 Identifier of the pharmacy##34#"}]
[null,{"$f":"IF('eD-ConceptMap'!S35=0,\"//---END\",'eD-ConceptMap'!S35)","v":"* group[=].element[=].target.code = #MedicationDispense.performer.actor.organization.identifier"}]
[null,{"$f":"IF('eD-ConceptMap'!S36=0,\"//---END\",'eD-ConceptMap'!S36)","v":"* group[=].element[=].target.display = ##34###34#"}]
[null,{"$f":"IF('eD-ConceptMap'!S37=0,\"//---END\",'eD-ConceptMap'!S37)","v":"* group[=].element[=].target.equivalence = #relatedto"}]
[null,{"$f":"IF('eD-ConceptMap'!S38=0,\"//---END\",'eD-ConceptMap'!S38)","v":"* group[=].element[=].target.comment = ##34#Assuming actor of type PractitionerRole (to be checked this assume that the pharamcy  is the org the dispenser is working for…)##34#"}]
[null,{"$f":"IF('eD-ConceptMap'!S39=0,\"//---END\",'eD-ConceptMap'!S39)","v":"* group[=].element[+].code = #Dispensation.pharmacyIdentifier"}]
[null,{"$f":"IF('eD-ConceptMap'!S40=0,\"//---END\",'eD-ConceptMap'!S40)","v":"* group[=].element[=].display = ##34#B.1.4 Identifier of the pharmacy##34#"}]
[null,{"$f":"IF('eD-ConceptMap'!S41=0,\"//---END\",'eD-ConceptMap'!S41)","v":"* group[=].element[=].target.code = #MedicationDispense.performer.actor.identifier"}]
[null,{"$f":"IF('eD-ConceptMap'!S42=0,\"//---END\",'eD-ConceptMap'!S42)","v":"* group[=].element[=].target.display = ##34###34#"}]
[null,{"$f":"IF('eD-ConceptMap'!S43=0,\"//---END\",'eD-ConceptMap'!S43)","v":"* group[=].element[=].target.equivalence = #relatedto"}]
[null,{"$f":"IF('eD-ConceptMap'!S44=0,\"//---END\",'eD-ConceptMap'!S44)","v":"* group[=].element[=].target.comment = ##34#Assuming actor of type Organziation (to be checked this assumes that the pharamcy  is the org dispensing)##34#"}]
[null,{"$f":"IF('eD-ConceptMap'!S45=0,\"//---END\",'eD-ConceptMap'!S45)","v":"* group[=].element[+].code = #Dispensation.pharmacyAddress"}]
[null,{"$f":"IF('eD-ConceptMap'!S46=0,\"//---END\",'eD-ConceptMap'!S46)","v":"* group[=].element[=].display = ##34#B.1.5 Address of the pharmacy##34#"}]
[null,{"$f":"IF('eD-ConceptMap'!S47=0,\"//---END\",'eD-ConceptMap'!S47)","v":"* group[=].element[=].target.code = #MedicationDispense.performer.actor.address"}]
[null,{"$f":"IF('eD-ConceptMap'!S48=0,\"//---END\",'eD-ConceptMap'!S48)","v":"* group[=].element[=].target.display = ##34###34#"}]
[null,{"$f":"IF('eD-ConceptMap'!S49=0,\"//---END\",'eD-ConceptMap'!S49)","v":"* group[=].element[=].target.equivalence = #relatedto"}]
[null,{"$f":"IF('eD-ConceptMap'!S50=0,\"//---END\",'eD-ConceptMap'!S50)","v":"* group[=].element[=].target.comment = ##34#Assuming actor of type Organziation (to be checked this assumes that the pharamcy  is the org dispensing)##34#"}]
[null,{"$f":"IF('eD-ConceptMap'!S51=0,\"//---END\",'eD-ConceptMap'!S51)","v":"* group[=].element[+].code = #Dispensation.contactDetails"}]
[null,{"$f":"IF('eD-ConceptMap'!S52=0,\"//---END\",'eD-ConceptMap'!S52)","v":"* group[=].element[=].display = ##34#B.1.6 Details of direct contact##34#"}]
[null,{"$f":"IF('eD-ConceptMap'!S53=0,\"//---END\",'eD-ConceptMap'!S53)","v":"* group[=].element[=].target.code = #MedicationDispense.subject.contact"}]
[null,{"$f":"IF('eD-ConceptMap'!S54=0,\"//---END\",'eD-ConceptMap'!S54)","v":"* group[=].element[=].target.display = ##34###34#"}]
[null,{"$f":"IF('eD-ConceptMap'!S55=0,\"//---END\",'eD-ConceptMap'!S55)","v":"* group[=].element[=].target.equivalence = #relatedto"}]
[null,{"$f":"IF('eD-ConceptMap'!S56=0,\"//---END\",'eD-ConceptMap'!S56)","v":"* group[=].element[=].target.comment = ##34#subject of type Patient##34#"}]
[null,{"$f":"IF('eD-ConceptMap'!S57=0,\"//---END\",'eD-ConceptMap'!S57)","v":"* group[=].element[+].code = #Dispensation.prescriptionIdentifier"}]
[null,{"$f":"IF('eD-ConceptMap'!S58=0,\"//---END\",'eD-ConceptMap'!S58)","v":"* group[=].element[=].display = ##34#B.1.7 Identifier of the prescription##34#"}]
[null,{"$f":"IF('eD-ConceptMap'!S59=0,\"//---END\",'eD-ConceptMap'!S59)","v":"* group[=].element[=].target.code = #MedicationDispense.authorizingPrescription.identifier"}]
[null,{"$f":"IF('eD-ConceptMap'!S60=0,\"//---END\",'eD-ConceptMap'!S60)","v":"* group[=].element[=].target.display = ##34###34#"}]
[null,{"$f":"IF('eD-ConceptMap'!S61=0,\"//---END\",'eD-ConceptMap'!S61)","v":"* group[=].element[=].target.equivalence = #relatedto"}]
[null,{"$f":"IF('eD-ConceptMap'!S62=0,\"//---END\",'eD-ConceptMap'!S62)","v":"* group[=].element[=].target.comment = ##34#TO BE CHECKED is this true for multi-items prescriptions ?##34#"}]
[null,{"$f":"IF('eD-ConceptMap'!S63=0,\"//---END\",'eD-ConceptMap'!S63)","v":"* group[=].element[+].code = #Dispensation.medicinalProduct"}]
[null,{"$f":"IF('eD-ConceptMap'!S64=0,\"//---END\",'eD-ConceptMap'!S64)","v":"* group[=].element[=].display = ##34#B.1.8 Medicinal product##34#"}]
[null,{"$f":"IF('eD-ConceptMap'!S65=0,\"//---END\",'eD-ConceptMap'!S65)","v":"* group[=].element[=].target.code = #MedicationDispense.medicationReference"}]
[null,{"$f":"IF('eD-ConceptMap'!S66=0,\"//---END\",'eD-ConceptMap'!S66)","v":"* group[=].element[=].target.display = ##34###34#"}]
[null,{"$f":"IF('eD-ConceptMap'!S67=0,\"//---END\",'eD-ConceptMap'!S67)","v":"* group[=].element[=].target.equivalence = #relatedto"}]
[null,{"$f":"IF('eD-ConceptMap'!S68=0,\"//---END\",'eD-ConceptMap'!S68)","v":""}]
[null,{"$f":"IF('eD-ConceptMap'!S69=0,\"//---END\",'eD-ConceptMap'!S69)","v":"* group[=].element[+].code = #Dispensation.dispensedQuantity"}]
[null,{"$f":"IF('eD-ConceptMap'!S70=0,\"//---END\",'eD-ConceptMap'!S70)","v":"* group[=].element[=].display = ##34#B.1.9 Dispensed quantity##34#"}]
[null,{"$f":"IF('eD-ConceptMap'!S71=0,\"//---END\",'eD-ConceptMap'!S71)","v":"* group[=].element[=].target.code = #MedicationDispense.quantity"}]
[null,{"$f":"IF('eD-ConceptMap'!S72=0,\"//---END\",'eD-ConceptMap'!S72)","v":"* group[=].element[=].target.display = ##34###34#"}]
[null,{"$f":"IF('eD-ConceptMap'!S73=0,\"//---END\",'eD-ConceptMap'!S73)","v":"* group[=].element[=].target.equivalence = #equivalent"}]
[null,{"$f":"IF('eD-ConceptMap'!S74=0,\"//---END\",'eD-ConceptMap'!S74)","v":""}]
[null,{"$f":"IF('eD-ConceptMap'!S75=0,\"//---END\",'eD-ConceptMap'!S75)","v":"* group[=].element[+].code = #Dispensation.dispensationDate"}]
[null,{"$f":"IF('eD-ConceptMap'!S76=0,\"//---END\",'eD-ConceptMap'!S76)","v":"* group[=].element[=].display = ##34#B.1.10 Dispensation date##34#"}]
[null,{"$f":"IF('eD-ConceptMap'!S77=0,\"//---END\",'eD-ConceptMap'!S77)","v":"* group[=].element[=].target.code = #MedicationDispense.whenHandedOver"}]
[null,{"$f":"IF('eD-ConceptMap'!S78=0,\"//---END\",'eD-ConceptMap'!S78)","v":"* group[=].element[=].target.display = ##34###34#"}]
[null,{"$f":"IF('eD-ConceptMap'!S79=0,\"//---END\",'eD-ConceptMap'!S79)","v":"* group[=].element[=].target.equivalence = #equivalent"}]
[null,{"$f":"IF('eD-ConceptMap'!S80=0,\"//---END\",'eD-ConceptMap'!S80)","v":""}]
[null,{"$f":"IF('eD-ConceptMap'!S81=0,\"//---END\",'eD-ConceptMap'!S81)","v":"* group[=].element[+].code = #Dispensation.substitution"}]
[null,{"$f":"IF('eD-ConceptMap'!S82=0,\"//---END\",'eD-ConceptMap'!S82)","v":"* group[=].element[=].display = ##34#B.1.11 Substitution##34#"}]
[null,{"$f":"IF('eD-ConceptMap'!S83=0,\"//---END\",'eD-ConceptMap'!S83)","v":"* group[=].element[=].target.code = #MedicationDispense.substitution"}]
[null,{"$f":"IF('eD-ConceptMap'!S84=0,\"//---END\",'eD-ConceptMap'!S84)","v":"* group[=].element[=].target.display = ##34###34#"}]
[null,{"$f":"IF('eD-ConceptMap'!S85=0,\"//---END\",'eD-ConceptMap'!S85)","v":"* group[=].element[=].target.equivalence = #relatedto"}]
[null,{"$f":"IF('eD-ConceptMap'!S86=0,\"//---END\",'eD-ConceptMap'!S86)","v":""}]
[null,{"$f":"IF('eD-ConceptMap'!S87=0,\"//---END\",'eD-ConceptMap'!S87)","v":"//---END"}]
[null,{"$f":"IF('eD-ConceptMap'!S88=0,\"//---END\",'eD-ConceptMap'!S88)","v":"//---END"}]
[null,{"$f":"IF('eD-ConceptMap'!S89=0,\"//---END\",'eD-ConceptMap'!S89)","v":"//---END"}]
[null,{"$f":"IF('eD-ConceptMap'!S90=0,\"//---END\",'eD-ConceptMap'!S90)","v":"//---END"}]
[null,{"$f":"IF('eD-ConceptMap'!S91=0,\"//---END\",'eD-ConceptMap'!S91)","v":"//---END"}]
[null,{"$f":"IF('eD-ConceptMap'!S92=0,\"//---END\",'eD-ConceptMap'!S92)","v":"//---END"}]

{"sheet":"eP","index":8,"n_rows":44,"n_cols":9,"rows_kept":44,"cut":false,"hidden":false,"merged":[]}
[null,null,null,null,null,null,null,null,"// -------------------------------------------------------------------------------"]
[null,null,null,null,null,null,null,null,"//  Logical Model"]
[null,null,null,null,null,null,null,null,{"$f":"I1","v":"// -------------------------------------------------------------------------------"}]
["Name","EprescriptionEhn",null,null,null,null,null,null,{"$f":"CONCATENATE(\"Logical: \",B4)","v":"Logical: EprescriptionEhn"}]
["Id","Prescription",null,null,null,null,null,null,{"$f":"CONCATENATE(\"Id: \",B5)","v":"Id: Prescription"}]
["Title","A - Prescription",null,null,null,null,null,null,{"$f":"CONCATENATE(\"Title: ##34#\",B6,\"##34#\")","v":"Title: ##34#A - Prescription##34#"}]
["Description","Prescription. Several Sections of the eHN guideline.","Data Element ","Data element description","min","max","dataType",null,{"$f":"CONCATENATE(\"Description: \",\" ##334#\",B7,\"##334#\",)","v":"Description:  ##334#Prescription. Several Sections of the eHN guideline.##334#"}]
[1,"patient","A.1.1 Patient administrative data","Patient administrative data",0,"*","http://hl7.eu/fhir/ig/xpandh-mpd/StructureDefinition/Subject",null,{"$f":"CONCATENATE(\"* \",B8, \" \",E8,\"..\",F8,\" \",G8,\" ##34#\",C8,\"##34# ##334#\",D8,\"##334#\")","v":"* patient 0..* http://hl7.eu/fhir/ig/xpandh-mpd/StructureDefinition/Subject ##34#A.1.1 Patient administrative data##34# ##334#Patient administrative data##334#"}]
[2,"authentication","A.1.2 Authentication of the prescription","Authentication of the prescription",0,"*","BackboneElement",null,{"$f":"CONCATENATE(\"* \",B9, \" \",E9,\"..\",F9,\" \",G9,\" ##34#\",C9,\"##34# ##334#\",D9,\"##334#\")","v":"* authentication 0..* BackboneElement ##34#A.1.2 Authentication of the prescription##34# ##334#Authentication of the prescription##334#"}]
[3,"authentication.identifier","A.1.2.1 Identifier of the Prescription","A  unique string generated by an EPS (Electronic Prescribing System) to \nuniquely identify a prescription; this unique code is needed for traceability. \nIt might be used to register whether a prescription, and/or the maximum \nnumber of repeats, has already been dispensed. The identifier can consist of \na root and an extension [ISO 21090:2011].",0,"*","Identifier",null,"* authentication.identifier 0..* Identifier ##34#A.1.2.1 Identifier of the Prescription##34# ##334#A  unique string generated by an EPS (Electronic Prescribing System) to \nuniquely identify a prescription; this unique code is needed for traceability. \nIt might be used to register whether a prescription, and/or the maximum \nnumber of repeats, has already been dispensed. The identifier can consist of \na root and an extension [ISO 21090:2011].##334#"]
[4,"authentication.date","A.1.2.2 Issue date","The date and optionally the time the prescription was issued.\n - Preferred system(s): ISO 8601 ",0,"*","dateTime",null,"* authentication.date 0..* dateTime ##34#A.1.2.2 Issue date##34# ##334#The date and optionally the time the prescription was issued.\n - Preferred system(s): ISO 8601 ##334#"]
[5,"prescriber","A.1.3 Identification of the prescribing health professional","Identification of the prescribing health professional",0,1,"BackboneElement",null,"* prescriber 0..1 BackboneElement ##34#A.1.3 Identification of the prescribing health professional##34# ##334#Identification of the prescribing health professional##334#"]
[6,"prescriber.familyName","A.1.3.1 Familyname","The family name/surname/last name of the prescriber. This enables the prescriber to be traced in the event of questions or emergencies.",0,"*","string",null,"* prescriber.familyName 0..* string ##34#A.1.3.1 Familyname##34# ##334#The family name/surname/last name of the prescriber. This enables the prescriber to be traced in the event of questions or emergencies.##334#"]
[7,"prescriber.givenName","A.1.3.2 Given name","The given name/ first name of the prescriber. This enables the prescriber to be traced in the event of questions or emergencies.",0,"*","string",null,"* prescriber.givenName 0..* string ##34#A.1.3.2 Given name##34# ##334#The given name/ first name of the prescriber. This enables the prescriber to be traced in the event of questions or emergencies.##334#"]
[8,"prescriber.qualification","A.1.3.3 Professional qualifications","The professional title of the prescribing health professional, which may be used to prove the authority of the prescriber.",0,"*","CodeableConcept",null,"* prescriber.qualification 0..* CodeableConcept ##34#A.1.3.3 Professional qualifications##34# ##334#The professional title of the prescribing health professional, which may be used to prove the authority of the prescriber.##334#"]
[9,"prescriber.contact","A.1.3.4 Details for direct contact","Details for direct contact could be an email address and/or phone/fax number of the prescriber in order for the dispenser and/or patient to contact  the prescriber. This might be necessary if problems arise with dosage, allergies, reimbursement etc.",0,"*","ContactPoint",null,"* prescriber.contact 0..* ContactPoint ##34#A.1.3.4 Details for direct contact##34# ##334#Details for direct contact could be an email address and/or phone/fax number of the prescriber in order for the dispenser and/or patient to contact  the prescriber. This might be necessary if problems arise with dosage, allergies, reimbursement etc.##334#"]
[10,"prescriber.workAddress","A.1.3.5 Work address","This is the address of the hospital or the practice, etc. where the health professional normally works, meets patients and prescribes medication. Minimally, the country should be specified.",0,"*","Address",null,"* prescriber.workAddress 0..* Address ##34#A.1.3.5 Work address##34# ##334#This is the address of the hospital or the practice, etc. where the health professional normally works, meets patients and prescribes medication. Minimally, the country should be specified.##334#"]
[11,"prescriber.signature","A.1.3.6 Signature","Digital signature or token as proof of the authenticity of the prescriber.",0,"*","Signature",null,"* prescriber.signature 0..* Signature ##34#A.1.3.6 Signature##34# ##334#Digital signature or token as proof of the authenticity of the prescriber.##334#"]
[12,"prescriber.identifier","A.1.3.7  Health care provider identifier","A unique number or code issued for the purpose of identifying a health care provider [ISO/TS 27527:2010]; this may be a licence or registration number which can be used to trace the prescriber and to check whether a medicinal product was prescribed by the right person according to the law of the prescribing country.",0,"*","Identifier",null,"* prescriber.identifier 0..* Identifier ##34#A.1.3.7  Health care provider identifier##34# ##334#A unique number or code issued for the purpose of identifying a health care provider [ISO/TS 27527:2010]; this may be a licence or registration number which can be used to trace the prescriber and to check whether a medicinal product was prescribed by the right person according to the law of the prescribing country.##334#"]
[13,"product","A1.4 Identification of the prescribed product","Identification of the prescribed product",0,1,"http://hl7.eu/fhir/ig/xpandh-mpd/StructureDefinition/MedicinalProduct",null,"* product 0..1 http://hl7.eu/fhir/ig/xpandh-mpd/StructureDefinition/MedicinalProduct ##34#A1.4 Identification of the prescribed product##34# ##334#Identification of the prescribed product##334#"]
[14,"details","A.1.5 Prescription information","Prescription information",0,1,"BackboneElement",null,"* details 0..1 BackboneElement ##34#A.1.5 Prescription information##34# ##334#Prescription information##334#"]
[15,"details.quantity","A.1.5.2 Quantity of prescribed product","Total quantity or volume of the medicinal product that is prescribed to the specific patient. It can be provided as number of packages, given that the pack size is sufficiently described, or it can be the overall amount in appropriate units of measure (UCUM) or units of presentation (EDQM) (ml, g, tablets, vials).\nDepending on national legislation, this quantity may or may not be dispensed in one dispensation.\n - Preferred system(s): UCUM, EDQM",0,"*","Quantity",null,"* details.quantity 0..* Quantity ##34#A.1.5.2 Quantity of prescribed product##34# ##334#Total quantity or volume of the medicinal product that is prescribed to the specific patient. It can be provided as number of packages, given that the pack size is sufficiently described, or it can be the overall amount in appropriate units of measure (UCUM) or units of presentation (EDQM) (ml, g, tablets, vials).\nDepending on national legislation, this quantity may or may not be dispensed in one dispensation.\n - Preferred system(s): UCUM, EDQM##334#"]
[16,"details.doseRegimen","A.1.5.3 Dose regimen","The regimen governing the dose quantity per single administration, the dose frequency, and/or speed of administration (in the event of intravenous administration).\nNote: this information may be used by the dispenser to calculate the quantity to be dispensed.",0,"*","BackboneElement",null,"* details.doseRegimen 0..* BackboneElement ##34#A.1.5.3 Dose regimen##34# ##334#The regimen governing the dose quantity per single administration, the dose frequency, and/or speed of administration (in the event of intravenous administration).\nNote: this information may be used by the dispenser to calculate the quantity to be dispensed.##334#"]
[17,"details.doseRegimen.numOfIntakes","A.1.5.3.1 Number of units per intake","The number of units per intake that the patient is taking. \nExample: 1 tablet \n - Preferred system(s): UCUM, EDQM",0,"*","Quantity",null,"* details.doseRegimen.numOfIntakes 0..* Quantity ##34#A.1.5.3.1 Number of units per intake##34# ##334#The number of units per intake that the patient is taking. \nExample: 1 tablet \n - Preferred system(s): UCUM, EDQM##334#"]
[18,"details.doseRegimen.frequencyOfIntakes","A.1.5.3.2 Frequency of intakes","Frequency of intakes per hour/day/week/month. \nExample: every 24 hours\n - Preferred system(s): UCUM, HL7 TimingEvent",0,"*","Timing",null,"* details.doseRegimen.frequencyOfIntakes 0..* Timing ##34#A.1.5.3.2 Frequency of intakes##34# ##334#Frequency of intakes per hour/day/week/month. \nExample: every 24 hours\n - Preferred system(s): UCUM, HL7 TimingEvent##334#"]
[19,"details.route","A.1.5.4 Route of administration","The route of administration as prescribed. \nExample: oral intake \n - Preferred system(s): EDQM",0,"*","CodeableConcept",null,"* details.route 0..* CodeableConcept ##34#A.1.5.4 Route of administration##34# ##334#The route of administration as prescribed. \nExample: oral intake \n - Preferred system(s): EDQM##334#"]
[20,"details.duration","A.1.5.5 Duration of treatment","The duration of the treatment as indicated by the Prescriber. Example: 14 days. \nCan be left blank for long-term therapies. \n - Preferred system(s): UCUM",0,"*","Period",null,"* details.duration 0..* Period ##34#A.1.5.5 Duration of treatment##34# ##334#The duration of the treatment as indicated by the Prescriber. Example: 14 days. \nCan be left blank for long-term therapies. \n - Preferred system(s): UCUM##334#"]
[21,"details.startDate","A.1.5.6 Starting date of therapy ","The time and date on which it is agreed that therapy will start. \n - Preferred system(s): ISO 8601",0,"*","dateTime",null,"* details.startDate 0..* dateTime ##34#A.1.5.6 Starting date of therapy ##34# ##334#The time and date on which it is agreed that therapy will start. \n - Preferred system(s): ISO 8601##334#"]
[22,"details.directionsOfUse","A.1.5.7 Directions for use","Information about the directions for use of the prescribed medicinal product (such as ‘with food’ or ‘before a meal’) and any cautionary advice for correct use of the prescribed medicinal product by the patient.\n - Preferred system(s): HL7 TimingEvent",0,"*","CodeableConcept",null,"* details.directionsOfUse 0..* CodeableConcept ##34#A.1.5.7 Directions for use##34# ##334#Information about the directions for use of the prescribed medicinal product (such as ‘with food’ or ‘before a meal’) and any cautionary advice for correct use of the prescribed medicinal product by the patient.\n - Preferred system(s): HL7 TimingEvent##334#"]
[23,"details.expiryDate","A.1.5.8 Prescription expiry date","This might be dependent on local or national policy or legislation, in accordance with the treatment plan or because the therapeutic need for the prescribed medicine has expired.\n - Preferred system(s): ISO 8601",0,"*","dateTime",null,"* details.expiryDate 0..* dateTime ##34#A.1.5.8 Prescription expiry date##34# ##334#This might be dependent on local or national policy or legislation, in accordance with the treatment plan or because the therapeutic need for the prescribed medicine has expired.\n - Preferred system(s): ISO 8601##334#"]
[24,"details.repeats","A.1.5.9 Repeats","In some countries, when medicinal products are dispensed for the first time, \nthe patient may only receive medication for a short period of time. When a \npatient starts taking medication for a chronic illness, the prescriber can issue a prescription for a longer period that is now separated by repeats. In addition, the maximum quantity (A.1.4.3) of the prescribed product that may be dispensed in one dispensation may be stated here.\nDecision on dispensability is made in the country of prescription.",0,"*","integer",null,"* details.repeats 0..* integer ##34#A.1.5.9 Repeats##34# ##334#In some countries, when medicinal products are dispensed for the first time, \nthe patient may only receive medication for a short period of time. When a \npatient starts taking medication for a chronic illness, the prescriber can issue a prescription for a longer period that is now separated by repeats. In addition, the maximum quantity (A.1.4.3) of the prescribed product that may be dispensed in one dispensation may be stated here.\nDecision on dispensability is made in the country of prescription.##334#"]
[25,"details.reason","A.1.5.10 Reason for prescription","The reason why the medicine is being prescribed, including the option to mention that the medicinal product is being prescribed for ‘off label’ use. \nThe reason for the prescription gives the dispenser the opportunity to review the prescription for medication safety issues.\nNote: in some countries it is obligatory to state the reason for prescription on the prescription itself for some or all medicinal products.",0,"*","CodeableConcept",null,"* details.reason 0..* CodeableConcept ##34#A.1.5.10 Reason for prescription##34# ##334#The reason why the medicine is being prescribed, including the option to mention that the medicinal product is being prescribed for ‘off label’ use. \nThe reason for the prescription gives the dispenser the opportunity to review the prescription for medication safety issues.\nNote: in some countries it is obligatory to state the reason for prescription on the prescription itself for some or all medicinal products.##334#"]
[26,"details.substitution","A.1.5.11 Substitution","Substitution handling can be recorded to indicate whether and to what extent substitution is allowed by the prescriber.",0,"*","CodeableConcept",null,"* details.substitution 0..* CodeableConcept ##34#A.1.5.11 Substitution##34# ##334#Substitution handling can be recorded to indicate whether and to what extent substitution is allowed by the prescriber.##334#"]
[null,null,null,null,null,null,null,null,"*  ..  ##34###34# ##334###334#"]
[null,null,null,null,null,null,null,null,"*  ..  ##34###34# ##334###334#"]
[null,null,null,null,null,null,null,null,"*  ..  ##34###34# ##334###334#"]
[null,null,null,null,null,null,null,null,"*  ..  ##34###34# ##334###334#"]
[null,null,null,null,null,null,null,null,"*  ..  ##34###34# ##334###334#"]
[null,null,null,null,null,null,null,null,"*  ..  ##34###34# ##334###334#"]
[null,null,null,null,null,null,null,null,"*  ..  ##34###34# ##334###334#"]
[null,null,null,null,null,null,null,null,"*  ..  ##34###34# ##334###334#"]
[null,null,null,null,null,null,null,null,"*  ..  ##34###34# ##334###334#"]
[null,null,null,null,null,null,null,null,"*  ..  ##34###34# ##334###334#"]
[null,null,null,null,null,null,null,null,"*  ..  ##34###34# ##334###334#"]

{"sheet":"eP-fsh","index":9,"n_rows":37,"n_cols":7,"rows_kept":37,"cut":false,"hidden":false,"merged":[]}
[null,null,{"$f":"eP!I1","v":"// -------------------------------------------------------------------------------"}]
[null,null,{"$f":"eP!I2","v":"//  Logical Model"},null,null,null,{"$f":"eP!B5&\".fsh\"","v":"Prescription.fsh"}]
[null,null,{"$f":"eP!I3","v":"// -------------------------------------------------------------------------------"}]
[null,null,{"$f":"eP!I4","v":"Logical: EprescriptionEhn"}]
[null,null,{"$f":"eP!I5","v":"Id: Prescription"}]
[null,null,{"$f":"eP!I6","v":"Title: ##34#A - Prescription##34#"}]
[null,null,{"$f":"eP!I7","v":"Description:  ##334#Prescription. Several Sections of the eHN guideline.##334#"}]
[null,null,{"$f":"IF(eP!I8=\"*  ..  ##34###34# ##334###334#\",\"//--- END\",eP!I8)","v":"* patient 0..* http://hl7.eu/fhir/ig/xpandh-mpd/StructureDefinition/Subject ##34#A.1.1 Patient administrative data##34# ##334#Patient administrative data##334#"}]
[null,null,{"$f":"IF(eP!I9=\"*  ..  ##34###34# ##334###334#\",\"//--- END\",eP!I9)","v":"* authentication 0..* BackboneElement ##34#A.1.2 Authentication of the prescription##34# ##334#Authentication of the prescription##334#"}]
[null,null,{"$f":"IF(eP!I10=\"*  ..  ##34###34# ##334###334#\",\"//--- END\",eP!I10)","v":"* authentication.identifier 0..* Identifier ##34#A.1.2.1 Identifier of the Prescription##34# ##334#A  unique string generated by an EPS (Electronic Prescribing System) to \nuniquely identify a prescription; this unique code is needed for traceability. \nIt might be used to register whether a prescription, and/or the maximum \nnumber of repeats, has already been dispensed. The identifier can consist of \na root and an extension [ISO 21090:2011].##334#"},null," "]
[null,null,{"$f":"IF(eP!I11=\"*  ..  ##34###34# ##334###334#\",\"//--- END\",eP!I11)","v":"* authentication.date 0..* dateTime ##34#A.1.2.2 Issue date##34# ##334#The date and optionally the time the prescription was issued.\n - Preferred system(s): ISO 8601 ##334#"}]
[null,null,{"$f":"IF(eP!I12=\"*  ..  ##34###34# ##334###334#\",\"//--- END\",eP!I12)","v":"* prescriber 0..1 BackboneElement ##34#A.1.3 Identification of the prescribing health professional##34# ##334#Identification of the prescribing health professional##334#"}]
[null,null,{"$f":"IF(eP!I13=\"*  ..  ##34###34# ##334###334#\",\"//--- END\",eP!I13)","v":"* prescriber.familyName 0..* string ##34#A.1.3.1 Familyname##34# ##334#The family name/surname/last name of the prescriber. This enables the prescriber to be traced in the event of questions or emergencies.##334#"}]
[null,null,{"$f":"IF(eP!I14=\"*  ..  ##34###34# ##334###334#\",\"//--- END\",eP!I14)","v":"* prescriber.givenName 0..* string ##34#A.1.3.2 Given name##34# ##334#The given name/ first name of the prescriber. This enables the prescriber to be traced in the event of questions or emergencies.##334#"}]
[null,null,{"$f":"IF(eP!I15=\"*  ..  ##34###34# ##334###334#\",\"//--- END\",eP!I15)","v":"* prescriber.qualification 0..* CodeableConcept ##34#A.1.3.3 Professional qualifications##34# ##334#The professional title of the prescribing health professional, which may be used to prove the authority of the prescriber.##334#"}]
[null,null,{"$f":"IF(eP!I16=\"*  ..  ##34###34# ##334###334#\",\"//--- END\",eP!I16)","v":"* prescriber.contact 0..* ContactPoint ##34#A.1.3.4 Details for direct contact##34# ##334#Details for direct contact could be an email address and/or phone/fax number of the prescriber in order for the dispenser and/or patient to contact  the prescriber. This might be necessary if problems arise with dosage, allergies, reimbursement etc.##334#"}]
[null,null,{"$f":"IF(eP!I17=\"*  ..  ##34###34# ##334###334#\",\"//--- END\",eP!I17)","v":"* prescriber.workAddress 0..* Address ##34#A.1.3.5 Work address##34# ##334#This is the address of the hospital or the practice, etc. where the health professional normally works, meets patients and prescribes medication. Minimally, the country should be specified.##334#"}]
[null,null,{"$f":"IF(eP!I18=\"*  ..  ##34###34# ##334###334#\",\"//--- END\",eP!I18)","v":"* prescriber.signature 0..* Signature ##34#A.1.3.6 Signature##34# ##334#Digital signature or token as proof of the authenticity of the prescriber.##334#"}]
[null,null,{"$f":"IF(eP!I19=\"*  ..  ##34###34# ##334###334#\",\"//--- END\",eP!I19)","v":"* prescriber.identifier 0..* Identifier ##34#A.1.3.7  Health care provider identifier##34# ##334#A unique number or code issued for the purpose of identifying a health care provider [ISO/TS 27527:2010]; this may be a licence or registration number which can be used to trace the prescriber and to check whether a medicinal product was prescribed by the right person according to the law of the prescribing country.##334#"}]
[null,null,{"$f":"IF(eP!I20=\"*  ..  ##34###34# ##334###334#\",\"//--- END\",eP!I20)","v":"* product 0..1 http://hl7.eu/fhir/ig/xpandh-mpd/StructureDefinition/MedicinalProduct ##34#A1.4 Identification of the prescribed product##34# ##334#Identification of the prescribed product##334#"}]
[null,null,{"$f":"IF(eP!I21=\"*  ..  ##34###34# ##334###334#\",\"//--- END\",eP!I21)","v":"* details 0..1 BackboneElement ##34#A.1.5 Prescription information##34# ##334#Prescription information##334#"}]
[null,null,{"$f":"IF(eP!I22=\"*  ..  ##34###34# ##334###334#\",\"//--- END\",eP!I22)","v":"* details.quantity 0..* Quantity ##34#A.1.5.2 Quantity of prescribed product##34# ##334#Total quantity or volume of the medicinal product that is prescribed to the specific patient. It can be provided as number of packages, given that the pack size is sufficiently described, or it can be the overall amount in appropriate units of measure (UCUM) or units of presentation (EDQM) (ml, g, tablets, vials).\nDepending on national legislation, this quantity may or may not be dispensed in one dispensation.\n - Preferred system(s): UCUM, EDQM##334#"}]
[null,null,{"$f":"IF(eP!I23=\"*  ..  ##34###34# ##334###334#\",\"//--- END\",eP!I23)","v":"* details.doseRegimen 0..* BackboneElement ##34#A.1.5.3 Dose regimen##34# ##334#The regimen governing the dose quantity per single administration, the dose frequency, and/or speed of administration (in the event of intravenous administration).\nNote: this information may be used by the dispenser to calculate the quantity to be dispensed.##334#"}]
[null,null,{"$f":"IF(eP!I24=\"*  ..  ##34###34# ##334###334#\",\"//--- END\",eP!I24)","v":"* details.doseRegimen.numOfIntakes 0..* Quantity ##34#A.1.5.3.1 Number of units per intake##34# ##334#The number of units per intake that the patient is taking. \nExample: 1 tablet \n - Preferred system(s): UCUM, EDQM##334#"}]
[null,null,{"$f":"IF(eP!I25=\"*  ..  ##34###34# ##334###334#\",\"//--- END\",eP!I25)","v":"* details.doseRegimen.frequencyOfIntakes 0..* Timing ##34#A.1.5.3.2 Frequency of intakes##34# ##334#Frequency of intakes per hour/day/week/month. \nExample: every 24 hours\n - Preferred system(s): UCUM, HL7 TimingEvent##334#"}]
[null,null,{"$f":"IF(eP!I26=\"*  ..  ##34###34# ##334###334#\",\"//--- END\",eP!I26)","v":"* details.route 0..* CodeableConcept ##34#A.1.5.4 Route of administration##34# ##334#The route of administration as prescribed. \nExample: oral intake \n - Preferred system(s): EDQM##334#"}]
[null,null,{"$f":"IF(eP!I27=\"*  ..  ##34###34# ##334###334#\",\"//--- END\",eP!I27)","v":"* details.duration 0..* Period ##34#A.1.5.5 Duration of treatment##34# ##334#The duration of the treatment as indicated by the Prescriber. Example: 14 days. \nCan be left blank for long-term therapies. \n - Preferred system(s): UCUM##334#"}]
[null,null,{"$f":"IF(eP!I28=\"*  ..  ##34###34# ##334###334#\",\"//--- END\",eP!I28)","v":"* details.startDate 0..* dateTime ##34#A.1.5.6 Starting date of therapy ##34# ##334#The time and date on which it is agreed that therapy will start. \n - Preferred system(s): ISO 8601##334#"}]
[null,null,{"$f":"IF(eP!I29=\"*  ..  ##34###34# ##334###334#\",\"//--- END\",eP!I29)","v":"* details.directionsOfUse 0..* CodeableConcept ##34#A.1.5.7 Directions for use##34# ##334#Information about the directions for use of the prescribed medicinal product (such as ‘with food’ or ‘before a meal’) and any cautionary advice for correct use of the prescribed medicinal product by the patient.\n - Preferred system(s): HL7 TimingEvent##334#"}]
[null,null,{"$f":"IF(eP!I30=\"*  ..  ##34###34# ##334###334#\",\"//--- END\",eP!I30)","v":"* details.expiryDate 0..* dateTime ##34#A.1.5.8 Prescription expiry date##34# ##334#This might be dependent on local or national policy or legislation, in accordance with the treatment plan or because the therapeutic need for the prescribed medicine has expired.\n - Preferred system(s): ISO 8601##334#"}]
[null,null,{"$f":"IF(eP!I31=\"*  ..  ##34###34# ##334###334#\",\"//--- END\",eP!I31)","v":"* details.repeats 0..* integer ##34#A.1.5.9 Repeats##34# ##334#In some countries, when medicinal products are dispensed for the first time, \nthe patient may only receive medication for a short period of time. When a \npatient starts taking medication for a chronic illness, the prescriber can issue a prescription for a longer period that is now separated by repeats. In addition, the maximum quantity (A.1.4.3) of the prescribed product that may be dispensed in one dispensation may be stated here.\nDecision on dispensability is made in the country of prescription.##334#"}]
[null,null,{"$f":"IF(eP!I32=\"*  ..  ##34###34# ##334###334#\",\"//--- END\",eP!I32)","v":"* details.reason 0..* CodeableConcept ##34#A.1.5.10 Reason for prescription##34# ##334#The reason why the medicine is being prescribed, including the option to mention that the medicinal product is being prescribed for ‘off label’ use. \nThe reason for the prescription gives the dispenser the opportunity to review the prescription for medication safety issues.\nNote: in some countries it is obligatory to state the reason for prescription on the prescription itself for some or all medicinal products.##334#"}]
[null,null,{"$f":"IF(eP!I33=\"*  ..  ##34###34# ##334###334#\",\"//--- END\",eP!I33)","v":"* details.substitution 0..* CodeableConcept ##34#A.1.5.11 Substitution##34# ##334#Substitution handling can be recorded to indicate whether and to what extent substitution is allowed by the prescriber.##334#"}]
[null,null,{"$f":"IF(eP!I34=\"*  ..  ##34###34# ##334###334#\",\"//--- END\",eP!I34)","v":"//--- END"}]
[null,null,{"$f":"IF(eP!I35=\"*  ..  ##34###34# ##334###334#\",\"//--- END\",eP!I35)","v":"//--- END"}]
[null,null,{"$f":"IF(eP!I36=\"*  ..  ##34###34# ##334###334#\",\"//--- END\",eP!I36)","v":"//--- END"}]
[null,null,{"$f":"IF(eP!I37=\"*  ..  ##34###34# ##334###334#\",\"//--- END\",eP!I37)","v":"//--- END"}]

{"sheet":"eP-ConceptMap","index":10,"n_rows":192,"n_cols":19,"rows_kept":192,"cut":false,"hidden":false,"merged":[[2,4,2,6],[3,4,3,6],[5,4,5,6],[6,4,6,6]]}
[null,null,"http://hl7.eu/fhir/ig/xpandh-mpd/StructureDefinition/"]
[]
[null,"Mapping","eP2Fhir","Source URI",{"$f":"C1&eP!B5","v":"http://hl7.eu/fhir/ig/xpandh-mpd/StructureDefinition/Prescription"}]
[null,"Id","eP2FHIR-eu-xpandh","Target URI",{"$f":"C6&\"/StructureDefinition/\"&C7","v":"http://hl7.eu/fhir/ig/xpandh-mpd//StructureDefinition/MedicationRequest-eu-xpandh"}]
[null,"Title","eHN Prescription to this guide Map"]
[null,"IG url","http://hl7.eu/fhir/ig/xpandh-mpd/","Source Group",{"$f":"E3","v":"http://hl7.eu/fhir/ig/xpandh-mpd/StructureDefinition/Prescription"}]
[null,"Targte Profile Model","MedicationRequest-eu-xpandh","Target Group",{"$f":"E4","v":"http://hl7.eu/fhir/ig/xpandh-mpd//StructureDefinition/MedicationRequest-eu-xpandh"}]
[null,"description","eHN ePrescription Model to this guide Map",null,null,null,null,null,"* group[=].element[+].code = #Osiris.Patient.BirthDate","* group[=].element[=].display = \"Birth Date [C4]\"","* group[=].element[=].target.code = #Subject.dateOfBirth.date","* group[=].element[=].target.display = \"Date of birth\"","* group[=].element[=].target.equivalence = #equivalent",null,null,"Elements",6]
[null,"purpose","It shows how the ePrescription data set defined by the EU eHN guidelines is mapped into this guide"]
[]
[null,null,null,null,null,null,null,null,"source:code","source:display","code","display","target to source","Comment"]
[]
[null,null,null,null,null,"target to source","Comment"]
[null,{"$f":"eP!B5","v":"Prescription"},null,"MedicationRequest"]
[null,{"$f":"eP!B8","v":"patient"},{"$f":"eP!C8","v":"A.1.1 Patient administrative data"},"subject",null,"equivalent",null,null,{"$f":"\"* group[=].element[+].code = #\"&$B$14&\".\"&B15","v":"* group[=].element[+].code = #Prescription.patient"},{"$f":"\"* group[=].element[=].display = ##34#\"&C15&\"##34#\"","v":"* group[=].element[=].display = ##34#A.1.1 Patient administrative data##34#"},{"$f":"IF(F15=\"unmatched\",\"//-- unmatched\",IF(D15=\"\",\"* group[=].element[=].target.code = #\"&$D$14,\"* group[=].element[=].target.code = #\"&$D$14&\".\"&D15))","v":"* group[=].element[=].target.code = #MedicationRequest.subject"},{"$f":"IF(F15=\"unmatched\",\"//-- unmatched\",\"* group[=].element[=].target.display = ##34#\"&E15&\"##34#\")","v":"* group[=].element[=].target.display = ##34###34#"},{"$f":"\"* group[=].element[=].target.equivalence = #\"&F15","v":"* group[=].element[=].target.equivalence = #equivalent"},{"$f":"IF(G15<>\"\",CONCATENATE(\"* group[=].element[=].target.comment = \",\"##34#\",G15,\"##34#\"),\"\")","v":""},null,1,{"$f":"IF(MOD(P15,$Q$8)=0,P15/$Q$8-1,INT(P15/$Q$8))","v":0},{"$f":"IF(MOD(P15,$Q$8)=0,$Q$8,MOD(P15,$Q$8))","v":1},{"$f":"INDEX('eP-ConceptMap'!$I$15:$N$272,Q15+1,R15)","v":"* group[=].element[+].code = #Prescription.patient"}]
[null,{"$f":"eP!B9","v":"authentication"},{"$f":"eP!C9","v":"A.1.2 Authentication of the prescription"},null,null,"relatedto",null,null,{"$f":"\"* group[=].element[+].code = #\"&$B$14&\".\"&B16","v":"* group[=].element[+].code = #Prescription.authentication"},{"$f":"\"* group[=].element[=].display = ##34#\"&C16&\"##34#\"","v":"* group[=].element[=].display = ##34#A.1.2 Authentication of the prescription##34#"},{"$f":"IF(F16=\"unmatched\",\"//-- unmatched\",IF(D16=\"\",\"* group[=].element[=].target.code = #\"&$D$14,\"* group[=].element[=].target.code = #\"&$D$14&\".\"&D16))","v":"* group[=].element[=].target.code = #MedicationRequest"},{"$f":"IF(F16=\"unmatched\",\"//-- unmatched\",\"* group[=].element[=].target.display = ##34#\"&E16&\"##34#\")","v":"* group[=].element[=].target.display = ##34###34#"},{"$f":"\"* group[=].element[=].target.equivalence = #\"&F16","v":"* group[=].element[=].target.equivalence = #relatedto"},"",null,2,{"$f":"IF(MOD(P16,$Q$8)=0,P16/$Q$8-1,INT(P16/$Q$8))","v":0},{"$f":"IF(MOD(P16,$Q$8)=0,$Q$8,MOD(P16,$Q$8))","v":2},{"$f":"INDEX('eP-ConceptMap'!$I$15:$N$272,Q16+1,R16)","v":"* group[=].element[=].display = ##34#A.1.1 Patient administrative data##34#"}]
[null,{"$f":"eP!B10","v":"authentication.identifier"},{"$f":"eP!C10","v":"A.1.2.1 Identifier of the Prescription"},"identifier",null,"equivalent","if a prescription includes only one prescribed item",null,"* group[=].element[+].code = #Prescription.authentication.identifier","* group[=].element[=].display = ##34#A.1.2.1 Identifier of the Prescription##34#","* group[=].element[=].target.code = #MedicationRequest.identifier","* group[=].element[=].target.display = ##34###34#","* group[=].element[=].target.equivalence = #equivalent","* group[=].element[=].target.comment = ##34#if a prescription includes only one prescribed item##34#",null,3,0,3,{"$f":"INDEX('eP-ConceptMap'!$I$15:$N$272,Q17+1,R17)","v":"* group[=].element[=].target.code = #MedicationRequest.subject"}]
[null,{"$f":"eP!B10","v":"authentication.identifier"},{"$f":"eP!C10","v":"A.1.2.1 Identifier of the Prescription"},"groupIdentifier",null,"equivalent","if a prescription includes more then one prescribed item",null,"* group[=].element[+].code = #Prescription.authentication.identifier","* group[=].element[=].display = ##34#A.1.2.1 Identifier of the Prescription##34#","* group[=].element[=].target.code = #MedicationRequest.groupIdentifier","* group[=].element[=].target.display = ##34###34#","* group[=].element[=].target.equivalence = #equivalent","* group[=].element[=].target.comment = ##34#if a prescription includes more then one prescribed item##34#",null,4,0,4,{"$f":"INDEX('eP-ConceptMap'!$I$15:$N$272,Q18+1,R18)","v":"* group[=].element[=].target.display = ##34###34#"}]
[null,{"$f":"eP!B11","v":"authentication.date"},{"$f":"eP!C11","v":"A.1.2.2 Issue date"},"authoredOn",null,"equivalent",null,null,"* group[=].element[+].code = #Prescription.authentication.date","* group[=].element[=].display = ##34#A.1.2.2 Issue date##34#","* group[=].element[=].target.code = #MedicationRequest.authoredOn","* group[=].element[=].target.display = ##34###34#","* group[=].element[=].target.equivalence = #equivalent","",null,5,0,{"$f":"IF(MOD(P19,$Q$8)=0,$Q$8,MOD(P19,$Q$8))","v":5},{"$f":"INDEX('eP-ConceptMap'!$I$15:$N$272,Q19+1,R19)","v":"* group[=].element[=].target.equivalence = #equivalent"}]
[null,{"$f":"eP!B12","v":"prescriber"},{"$f":"eP!C12","v":"A.1.3 Identification of the prescribing health professional"},"requester",null,"equivalent",null,null,"* group[=].element[+].code = #Prescription.prescriber","* group[=].element[=].display = ##34#A.1.3 Identification of the prescribing health professional##34#","* group[=].element[=].target.code = #MedicationRequest.requester","* group[=].element[=].target.display = ##34###34#","* group[=].element[=].target.equivalence = #equivalent","",null,6,0,6,{"$f":"INDEX('eP-ConceptMap'!$I$15:$N$272,Q20+1,R20)","v":""}]
[null,{"$f":"eP!B13","v":"prescriber.familyName"},{"$f":"eP!C13","v":"A.1.3.1 Familyname"},"requester",null,"relatedto","Details in the referred Practitioner resource",null,"* group[=].element[+].code = #Prescription.prescriber.familyName","* group[=].element[=].display = ##34#A.1.3.1 Familyname##34#","* group[=].element[=].target.code = #MedicationRequest.requester","* group[=].element[=].target.display = ##34###34#","* group[=].element[=].target.equivalence = #relatedto","* group[=].element[=].target.comment = ##34#Details in the referred Practitioner resource##34#",null,7,1,1,{"$f":"INDEX('eP-ConceptMap'!$I$15:$N$272,Q21+1,R21)","v":"* group[=].element[+].code = #Prescription.authentication"}]
[null,{"$f":"eP!B14","v":"prescriber.givenName"},{"$f":"eP!C14","v":"A.1.3.2 Given name"},"requester",null,"relatedto","Details in the referred Practitioner resource",null,"* group[=].element[+].code = #Prescription.prescriber.givenName","* group[=].element[=].display = ##34#A.1.3.2 Given name##34#","* group[=].element[=].target.code = #MedicationRequest.requester","* group[=].element[=].target.display = ##34###34#","* group[=].element[=].target.equivalence = #relatedto","* group[=].element[=].target.comment = ##34#Details in the referred Practitioner resource##34#",null,8,1,2,{"$f":"INDEX('eP-ConceptMap'!$I$15:$N$272,Q22+1,R22)","v":"* group[=].element[=].display = ##34#A.1.2 Authentication of the prescription##34#"}]
[null,{"$f":"eP!B15","v":"prescriber.qualification"},{"$f":"eP!C15","v":"A.1.3.3 Professional qualifications"},"requester",null,"relatedto","Details in the referred Practitioner resource",null,"* group[=].element[+].code = #Prescription.prescriber.qualification","* group[=].element[=].display = ##34#A.1.3.3 Professional qualifications##34#","* group[=].element[=].target.code = #MedicationRequest.requester","* group[=].element[=].target.display = ##34###34#","* group[=].element[=].target.equivalence = #relatedto","* group[=].element[=].target.comment = ##34#Details in the referred Practitioner resource##34#",null,9,1,3,{"$f":"INDEX('eP-ConceptMap'!$I$15:$N$272,Q23+1,R23)","v":"* group[=].element[=].target.code = #MedicationRequest"}]
[null,{"$f":"eP!B16","v":"prescriber.contact"},{"$f":"eP!C16","v":"A.1.3.4 Details for direct contact"},"requester",null,"relatedto","Details in the referred Practitioner resource",null,"* group[=].element[+].code = #Prescription.prescriber.contact","* group[=].element[=].display = ##34#A.1.3.4 Details for direct contact##34#","* group[=].element[=].target.code = #MedicationRequest.requester","* group[=].element[=].target.display = ##34###34#","* group[=].element[=].target.equivalence = #relatedto","* group[=].element[=].target.comment = ##34#Details in the referred Practitioner resource##34#",null,10,1,4,{"$f":"INDEX('eP-ConceptMap'!$I$15:$N$272,Q24+1,R24)","v":"* group[=].element[=].target.display = ##34###34#"}]
[null,{"$f":"eP!B17","v":"prescriber.workAddress"},{"$f":"eP!C17","v":"A.1.3.5 Work address"},"requester",null,"relatedto","Details in the referred Practitioner resource",null,"* group[=].element[+].code = #Prescription.prescriber.workAddress","* group[=].element[=].display = ##34#A.1.3.5 Work address##34#","* group[=].element[=].target.code = #MedicationRequest.requester","* group[=].element[=].target.display = ##34###34#","* group[=].element[=].target.equivalence = #relatedto","* group[=].element[=].target.comment = ##34#Details in the referred Practitioner resource##34#",null,11,1,5,{"$f":"INDEX('eP-ConceptMap'!$I$15:$N$272,Q25+1,R25)","v":"* group[=].element[=].target.equivalence = #relatedto"}]
[null,{"$f":"eP!B18","v":"prescriber.signature"},{"$f":"eP!C18","v":"A.1.3.6 Signature"},"requester",null,"relatedto","Not implemented in the current eP / eD service",null,"* group[=].element[+].code = #Prescription.prescriber.signature","* group[=].element[=].display = ##34#A.1.3.6 Signature##34#","* group[=].element[=].target.code = #MedicationRequest.requester","* group[=].element[=].target.display = ##34###34#","* group[=].element[=].target.equivalence = #relatedto","* group[=].element[=].target.comment = ##34#Not implemented in the current eP / eD service##34#",null,12,1,6,{"$f":"INDEX('eP-ConceptMap'!$I$15:$N$272,Q26+1,R26)","v":""}]
[null,{"$f":"eP!B19","v":"prescriber.identifier"},{"$f":"eP!C19","v":"A.1.3.7  Health care provider identifier"},"requester",null,"relatedto","Details in the referred Practitioner resource",null,"* group[=].element[+].code = #Prescription.prescriber.identifier","* group[=].element[=].display = ##34#A.1.3.7  Health care provider identifier##34#","* group[=].element[=].target.code = #MedicationRequest.requester","* group[=].element[=].target.display = ##34###34#","* group[=].element[=].target.equivalence = #relatedto","* group[=].element[=].target.comment = ##34#Details in the referred Practitioner resource##34#",null,13,2,{"$f":"IF(MOD(P27,$Q$8)=0,$Q$8,MOD(P27,$Q$8))","v":1},{"$f":"INDEX('eP-ConceptMap'!$I$15:$N$272,Q27+1,R27)","v":"* group[=].element[+].code = #Prescription.authentication.identifier"}]
[null,{"$f":"eP!B20","v":"product"},{"$f":"eP!C20","v":"A1.4 Identification of the prescribed product"},"medicationReference",null,"equivalent",null,null,"* group[=].element[+].code = #Prescription.product","* group[=].element[=].display = ##34#A1.4 Identification of the prescribed product##34#","* group[=].element[=].target.code = #MedicationRequest.medicationReference","* group[=].element[=].target.display = ##34###34#","* group[=].element[=].target.equivalence = #equivalent","",null,14,2,2,{"$f":"INDEX('eP-ConceptMap'!$I$15:$N$272,Q28+1,R28)","v":"* group[=].element[=].display = ##34#A.1.2.1 Identifier of the Prescription##34#"}]
[null,{"$f":"eP!B21","v":"details"},{"$f":"eP!C21","v":"A.1.5 Prescription information"},null,null,"relatedto",null,null,{"$f":"\"* group[=].element[+].code = #\"&$B$14&\".\"&B29","v":"* group[=].element[+].code = #Prescription.details"},{"$f":"\"* group[=].element[=].display = ##34#\"&C29&\"##34#\"","v":"* group[=].element[=].display = ##34#A.1.5 Prescription information##34#"},{"$f":"IF(F29=\"unmatched\",\"//-- unmatched\",IF(D29=\"\",\"* group[=].element[=].target.code = #\"&$D$14,\"* group[=].element[=].target.code = #\"&$D$14&\".\"&D29))","v":"* group[=].element[=].target.code = #MedicationRequest"},{"$f":"IF(F29=\"unmatched\",\"//-- unmatched\",\"* group[=].element[=].target.display = ##34#\"&E29&\"##34#\")","v":"* group[=].element[=].target.display = ##34###34#"},{"$f":"\"* group[=].element[=].target.equivalence = #\"&F29","v":"* group[=].element[=].target.equivalence = #relatedto"},{"$f":"IF(G29<>\"\",CONCATENATE(\"* group[=].element[=].target.comment = \",\"##34#\",G29,\"##34#\"),\"\")","v":""},null,15,2,3,{"$f":"INDEX('eP-ConceptMap'!$I$15:$N$272,Q29+1,R29)","v":"* group[=].element[=].target.code = #MedicationRequest.identifier"}]
[null,{"$f":"eP!B22","v":"details.quantity"},{"$f":"eP!C22","v":"A.1.5.2 Quantity of prescribed product"},"dispenseRequest.quantity",null,"relatedto",null,null,"* group[=].element[+].code = #Prescription.details.quantity","* group[=].element[=].display = ##34#A.1.5.2 Quantity of prescribed product##34#","* group[=].element[=].target.code = #MedicationRequest.dispenseRequest.quantity","* group[=].element[=].target.display = ##34###34#","* group[=].element[=].target.equivalence = #relatedto","",null,16,2,4,{"$f":"INDEX('eP-ConceptMap'!$I$15:$N$272,Q30+1,R30)","v":"* group[=].element[=].target.display = ##34###34#"}]
[null,{"$f":"eP!B23","v":"details.doseRegimen"},{"$f":"eP!C23","v":"A.1.5.3 Dose regimen"},"dosageInstruction",null,"equivalent",null,null,"* group[=].element[+].code = #Prescription.details.doseRegimen","* group[=].element[=].display = ##34#A.1.5.3 Dose regimen##34#","* group[=].element[=].target.code = #MedicationRequest.dosageInstruction","* group[=].element[=].target.display = ##34###34#","* group[=].element[=].target.equivalence = #equivalent","",null,17,2,5,{"$f":"INDEX('eP-ConceptMap'!$I$15:$N$272,Q31+1,R31)","v":"* group[=].element[=].target.equivalence = #equivalent"}]
[null,{"$f":"eP!B24","v":"details.doseRegimen.numOfIntakes"},{"$f":"eP!C24","v":"A.1.5.3.1 Number of units per intake"},"dosageInstruction.doseAndRate.doseQuantity",null,"equivalent",null,null,"* group[=].element[+].code = #Prescription.details.doseRegimen.numOfIntakes","* group[=].element[=].display = ##34#A.1.5.3.1 Number of units per intake##34#","* group[=].element[=].target.code = #MedicationRequest.dosageInstruction.doseAndRate.doseQuantity","* group[=].element[=].target.display = ##34###34#","* group[=].element[=].target.equivalence = #equivalent","",null,18,2,6,{"$f":"INDEX('eP-ConceptMap'!$I$15:$N$272,Q32+1,R32)","v":"* group[=].element[=].target.comment = ##34#if a prescription includes only one prescribed item##34#"}]
[null,{"$f":"eP!B25","v":"details.doseRegimen.frequencyOfIntakes"},{"$f":"eP!C25","v":"A.1.5.3.2 Frequency of intakes"},"dosageInstruction.timing",null,"relatedto","A combination of frequency, period and periodUnit.\n'3 times per day', 3 would be the frequency and '1 day' would be the period/periodUnit.",null,"* group[=].element[+].code = #Prescription.details.doseRegimen.frequencyOfIntakes","* group[=].element[=].display = ##34#A.1.5.3.2 Frequency of intakes##34#","* group[=].element[=].target.code = #MedicationRequest.dosageInstruction.timing","* group[=].element[=].target.display = ##34###34#","* group[=].element[=].target.equivalence = #relatedto","* group[=].element[=].target.comment = ##34#A combination of frequency, period and periodUnit.\n'3 times per day', 3 would be the frequency and '1 day' would be the period/periodUnit.##34#",null,19,3,1,{"$f":"INDEX('eP-ConceptMap'!$I$15:$N$272,Q33+1,R33)","v":"* group[=].element[+].code = #Prescription.authentication.identifier"}]
[null,{"$f":"eP!B26","v":"details.route"},{"$f":"eP!C26","v":"A.1.5.4 Route of administration"},"dosageInstruction.route",null,"equivalent",null,null,"* group[=].element[+].code = #Prescription.details.route","* group[=].element[=].display = ##34#A.1.5.4 Route of administration##34#","* group[=].element[=].target.code = #MedicationRequest.dosageInstruction.route","* group[=].element[=].target.display = ##34###34#","* group[=].element[=].target.equivalence = #equivalent","",null,20,3,2,{"$f":"INDEX('eP-ConceptMap'!$I$15:$N$272,Q34+1,R34)","v":"* group[=].element[=].display = ##34#A.1.2.1 Identifier of the Prescription##34#"}]
[null,{"$f":"eP!B27","v":"details.duration"},{"$f":"eP!C27","v":"A.1.5.5 Duration of treatment"},"dosageInstruction.timing.repeat.duration",null,"equivalent",null,null,"* group[=].element[+].code = #Prescription.details.duration","* group[=].element[=].display = ##34#A.1.5.5 Duration of treatment##34#","* group[=].element[=].target.code = #MedicationRequest.dosageInstruction.timing.repeat.duration","* group[=].element[=].target.display = ##34###34#","* group[=].element[=].target.equivalence = #equivalent","",null,21,3,3,{"$f":"INDEX('eP-ConceptMap'!$I$15:$N$272,Q35+1,R35)","v":"* group[=].element[=].target.code = #MedicationRequest.groupIdentifier"}]
[null,{"$f":"eP!B28","v":"details.startDate"},{"$f":"eP!C28","v":"A.1.5.6 Starting date of therapy "},"dosageInstruction.timing.duration",null,"relatedto",null,null,"* group[=].element[+].code = #Prescription.details.startDate","* group[=].element[=].display = ##34#A.1.5.6 Starting date of therapy ##34#","* group[=].element[=].target.code = #MedicationRequest.dosageInstruction.timing.duration","* group[=].element[=].target.display = ##34###34#","* group[=].element[=].target.equivalence = #relatedto","",null,22,3,4,{"$f":"INDEX('eP-ConceptMap'!$I$15:$N$272,Q36+1,R36)","v":"* group[=].element[=].target.display = ##34###34#"}]
[null,{"$f":"eP!B29","v":"details.directionsOfUse"},{"$f":"eP!C29","v":"A.1.5.7 Directions for use"},"dosageInstruction",null,"relatedto",null,null,"* group[=].element[+].code = #Prescription.details.directionsOfUse","* group[=].element[=].display = ##34#A.1.5.7 Directions for use##34#","* group[=].element[=].target.code = #MedicationRequest.dosageInstruction","* group[=].element[=].target.display = ##34###34#","* group[=].element[=].target.equivalence = #relatedto","",null,23,3,5,{"$f":"INDEX('eP-ConceptMap'!$I$15:$N$272,Q37+1,R37)","v":"* group[=].element[=].target.equivalence = #equivalent"}]
[null,{"$f":"eP!B30","v":"details.expiryDate"},{"$f":"eP!C30","v":"A.1.5.8 Prescription expiry date"},"dispenseRequest.validityPeriod",null,"equivalent",null,null,"* group[=].element[+].code = #Prescription.details.expiryDate","* group[=].element[=].display = ##34#A.1.5.8 Prescription expiry date##34#","* group[=].element[=].target.code = #MedicationRequest.dispenseRequest.validityPeriod","* group[=].element[=].target.display = ##34###34#","* group[=].element[=].target.equivalence = #equivalent","",null,24,3,6,{"$f":"INDEX('eP-ConceptMap'!$I$15:$N$272,Q38+1,R38)","v":"* group[=].element[=].target.comment = ##34#if a prescription includes more then one prescribed item##34#"}]
[null,{"$f":"eP!B31","v":"details.repeats"},{"$f":"eP!C31","v":"A.1.5.9 Repeats"},null,null,"relatedto","TO BE DISCUSSED",null,"* group[=].element[+].code = #Prescription.details.repeats","* group[=].element[=].display = ##34#A.1.5.9 Repeats##34#","* group[=].element[=].target.code = #MedicationRequest","* group[=].element[=].target.display = ##34###34#","* group[=].element[=].target.equivalence = #relatedto","* group[=].element[=].target.comment = ##34#TO BE DISCUSSED##34#",null,25,4,1,{"$f":"INDEX('eP-ConceptMap'!$I$15:$N$272,Q39+1,R39)","v":"* group[=].element[+].code = #Prescription.authentication.date"}]
[null,{"$f":"eP!B32","v":"details.reason"},{"$f":"eP!C32","v":"A.1.5.10 Reason for prescription"},"reasonReference",null,"relatedto",null,null,"* group[=].element[+].code = #Prescription.details.reason","* group[=].element[=].display = ##34#A.1.5.10 Reason for prescription##34#","* group[=].element[=].target.code = #MedicationRequest.reasonReference","* group[=].element[=].target.display = ##34###34#","* group[=].element[=].target.equivalence = #relatedto","",null,26,{"$f":"IF(MOD(P40,$Q$8)=0,P40/$Q$8-1,INT(P40/$Q$8))","v":4},{"$f":"IF(MOD(P40,$Q$8)=0,$Q$8,MOD(P40,$Q$8))","v":2},{"$f":"INDEX('eP-ConceptMap'!$I$15:$N$272,Q40+1,R40)","v":"* group[=].element[=].display = ##34#A.1.2.2 Issue date##34#"}]
[null,{"$f":"eP!B32","v":"details.reason"},{"$f":"eP!C32","v":"A.1.5.10 Reason for prescription"},"reasonCode",null,"equivalent",null,null,"* group[=].element[+].code = #Prescription.details.reason","* group[=].element[=].display = ##34#A.1.5.10 Reason for prescription##34#","* group[=].element[=].target.code = #MedicationRequest.reasonCode","* group[=].element[=].target.display = ##34###34#","* group[=].element[=].target.equivalence = #equivalent","",null,27,4,{"$f":"IF(MOD(P41,$Q$8)=0,$Q$8,MOD(P41,$Q$8))","v":3},{"$f":"INDEX('eP-ConceptMap'!$I$15:$N$272,Q41+1,R41)","v":"* group[=].element[=].target.code = #MedicationRequest.authoredOn"}]
[null,{"$f":"eP!B33","v":"details.substitution"},{"$f":"eP!C33","v":"A.1.5.11 Substitution"},"substitution.allowedCodeableConcept",null,"equivalent",null,null,"* group[=].element[+].code = #Prescription.details.substitution","* group[=].element[=].display = ##34#A.1.5.11 Substitution##34#","* group[=].element[=].target.code = #MedicationRequest.substitution.allowedCodeableConcept","* group[=].element[=].target.display = ##34###34#","* group[=].element[=].target.equivalence = #equivalent","",null,28,4,4,{"$f":"INDEX('eP-ConceptMap'!$I$15:$N$272,Q42+1,R42)","v":"* group[=].element[=].target.display = ##34###34#"}]
[null,null,null,null,null,null,null,null,null,null,null,null,null,null,null,29,4,5,{"$f":"INDEX('eP-ConceptMap'!$I$15:$N$272,Q43+1,R43)","v":"* group[=].element[=].target.equivalence = #equivalent"}]
[null,null,null,null,null,null,null,null,null,null,null,null,null,null,null,30,4,6,{"$f":"INDEX('eP-ConceptMap'!$I$15:$N$272,Q44+1,R44)","v":""}]
[null,null,null,null,null,null,null,null,null,null,null,null,null,null,null,31,5,1,{"$f":"INDEX('eP-ConceptMap'!$I$15:$N$272,Q45+1,R45)","v":"* group[=].element[+].code = #Prescription.prescriber"}]
[null,null,null,null,null,null,null,null,null,null,null,null,null,null,null,32,5,2,{"$f":"INDEX('eP-ConceptMap'!$I$15:$N$272,Q46+1,R46)","v":"* group[=].element[=].display = ##34#A.1.3 Identification of the prescribing health professional##34#"}]
[null,null,null,null,null,null,null,null,null,null,null,null,null,null,null,33,5,3,{"$f":"INDEX('eP-ConceptMap'!$I$15:$N$272,Q47+1,R47)","v":"* group[=].element[=].target.code = #MedicationRequest.requester"}]
[null,null,null,null,null,null,null,null,null,null,null,null,null,null,null,34,5,4,{"$f":"INDEX('eP-ConceptMap'!$I$15:$N$272,Q48+1,R48)","v":"* group[=].element[=].target.display = ##34###34#"}]
[null,null,null,null,null,null,null,null,null,null,null,null,null,null,null,35,5,5,{"$f":"INDEX('eP-ConceptMap'!$I$15:$N$272,Q49+1,R49)","v":"* group[=].element[=].target.equivalence = #equivalent"}]
[null,null,null,null,null,null,null,null,null,null,null,null,null,null,null,36,5,6,{"$f":"INDEX('eP-ConceptMap'!$I$15:$N$272,Q50+1,R50)","v":""}]
[null,null,null,null,null,null,null,null,null,null,null,null,null,null,null,37,6,1,{"$f":"INDEX('eP-ConceptMap'!$I$15:$N$272,Q51+1,R51)","v":"* group[=].element[+].code = #Prescription.prescriber.familyName"}]
[null,null,null,null,null,null,null,null,null,null,null,null,null,null,null,38,6,2,{"$f":"INDEX('eP-ConceptMap'!$I$15:$N$272,Q52+1,R52)","v":"* group[=].element[=].display = ##34#A.1.3.1 Familyname##34#"}]
[null,null,null,null,null,null,null,null,null,null,null,null,null,null,null,39,6,3,{"$f":"INDEX('eP-ConceptMap'!$I$15:$N$272,Q53+1,R53)","v":"* group[=].element[=].target.code = #MedicationRequest.requester"}]
[null,null,null,null,null,null,null,null,null,null,null,null,null,null,null,40,6,4,{"$f":"INDEX('eP-ConceptMap'!$I$15:$N$272,Q54+1,R54)","v":"* group[=].element[=].target.display = ##34###34#"}]
[null,null,null,null,null,null,null,null,null,null,null,null,null,null,null,41,6,5,{"$f":"INDEX('eP-ConceptMap'!$I$15:$N$272,Q55+1,R55)","v":"* group[=].element[=].target.equivalence = #relatedto"}]
[null,null,null,null,null,null,null,null,null,null,null,null,null,null,null,42,6,6,{"$f":"INDEX('eP-ConceptMap'!$I$15:$N$272,Q56+1,R56)","v":"* group[=].element[=].target.comment = ##34#Details in the referred Practitioner resource##34#"}]
[null,null,null,null,null,null,null,null,null,null,null,null,null,null,null,43,7,1,{"$f":"INDEX('eP-ConceptMap'!$I$15:$N$272,Q57+1,R57)","v":"* group[=].element[+].code = #Prescription.prescriber.givenName"}]
[null,null,null,null,null,null,null,null,null,null,null,null,null,null,null,44,7,2,{"$f":"INDEX('eP-ConceptMap'!$I$15:$N$272,Q58+1,R58)","v":"* group[=].element[=].display = ##34#A.1.3.2 Given name##34#"}]
[null,null,null,null,null,null,null,null,null,null,null,null,null,null,null,45,7,3,{"$f":"INDEX('eP-ConceptMap'!$I$15:$N$272,Q59+1,R59)","v":"* group[=].element[=].target.code = #MedicationRequest.requester"}]
[null,null,null,null,null,null,null,null,null,null,null,null,null,null,null,46,7,4,{"$f":"INDEX('eP-ConceptMap'!$I$15:$N$272,Q60+1,R60)","v":"* group[=].element[=].target.display = ##34###34#"}]
[null,null,null,null,null,null,null,null,null,null,null,null,null,null,null,47,7,5,{"$f":"INDEX('eP-ConceptMap'!$I$15:$N$272,Q61+1,R61)","v":"* group[=].element[=].target.equivalence = #relatedto"}]
[null,null,null,null,null,null,null,null,null,null,null,null,null,null,null,48,7,6,{"$f":"INDEX('eP-ConceptMap'!$I$15:$N$272,Q62+1,R62)","v":"* group[=].element[=].target.comment = ##34#Details in the referred Practitioner resource##34#"}]
[null,null,null,null,null,null,null,null,null,null,null,null,null,null,null,49,8,1,{"$f":"INDEX('eP-ConceptMap'!$I$15:$N$272,Q63+1,R63)","v":"* group[=].element[+].code = #Prescription.prescriber.qualification"}]
[null,null,null,null,null,null,null,null,null,null,null,null,null,null,null,50,8,2,{"$f":"INDEX('eP-ConceptMap'!$I$15:$N$272,Q64+1,R64)","v":"* group[=].element[=].display = ##34#A.1.3.3 Professional qualifications##34#"}]
[null,null,null,null,null,null,null,null,null,null,null,null,null,null,null,51,8,3,{"$f":"INDEX('eP-ConceptMap'!$I$15:$N$272,Q65+1,R65)","v":"* group[=].element[=].target.code = #MedicationRequest.requester"}]
[null,null,null,null,null,null,null,null,null,null,null,null,null,null,null,52,8,4,{"$f":"INDEX('eP-ConceptMap'!$I$15:$N$272,Q66+1,R66)","v":"* group[=].element[=].target.display = ##34###34#"}]
[null,null,null,null,null,null,null,null,null,null,null,null,null,null,null,53,8,5,{"$f":"INDEX('eP-ConceptMap'!$I$15:$N$272,Q67+1,R67)","v":"* group[=].element[=].target.equivalence = #relatedto"}]
[null,null,null,null,null,null,null,null,null,null,null,null,null,null,null,54,8,6,{"$f":"INDEX('eP-ConceptMap'!$I$15:$N$272,Q68+1,R68)","v":"* group[=].element[=].target.comment = ##34#Details in the referred Practitioner resource##34#"}]
[null,null,null,null,null,null,null,null,null,null,null,null,null,null,null,55,9,1,{"$f":"INDEX('eP-ConceptMap'!$I$15:$N$272,Q69+1,R69)","v":"* group[=].element[+].code = #Prescription.prescriber.contact"}]
[null,null,null,null,null,null,null,null,null,null,null,null,null,null,null,56,9,2,{"$f":"INDEX('eP-ConceptMap'!$I$15:$N$272,Q70+1,R70)","v":"* group[=].element[=].display = ##34#A.1.3.4 Details for direct contact##34#"}]
[null,null,null,null,null,null,null,null,null,null,null,null,null,null,null,57,9,3,{"$f":"INDEX('eP-ConceptMap'!$I$15:$N$272,Q71+1,R71)","v":"* group[=].element[=].target.code = #MedicationRequest.requester"}]
[null,null,null,null,null,null,null,null,null,null,null,null,null,null,null,58,9,4,{"$f":"INDEX('eP-ConceptMap'!$I$15:$N$272,Q72+1,R72)","v":"* group[=].element[=].target.display = ##34###34#"}]
[null,null,null,null,null,null,null,null,null,null,null,null,null,null,null,59,9,5,{"$f":"INDEX('eP-ConceptMap'!$I$15:$N$272,Q73+1,R73)","v":"* group[=].element[=].target.equivalence = #relatedto"}]
[null,null,null,null,null,null,null,null,null,null,null,null,null,null,null,60,9,6,{"$f":"INDEX('eP-ConceptMap'!$I$15:$N$272,Q74+1,R74)","v":"* group[=].element[=].target.comment = ##34#Details in the referred Practitioner resource##34#"}]
[null,null,null,null,null,null,null,null,null,null,null,null,null,null,null,61,10,1,{"$f":"INDEX('eP-ConceptMap'!$I$15:$N$272,Q75+1,R75)","v":"* group[=].element[+].code = #Prescription.prescriber.workAddress"}]
[null,null,null,null,null,null,null,null,null,null,null,null,null,null,null,62,10,2,{"$f":"INDEX('eP-ConceptMap'!$I$15:$N$272,Q76+1,R76)","v":"* group[=].element[=].display = ##34#A.1.3.5 Work address##34#"}]
[null,null,null,null,null,null,null,null,null,null,null,null,null,null,null,63,10,3,{"$f":"INDEX('eP-ConceptMap'!$I$15:$N$272,Q77+1,R77)","v":"* group[=].element[=].target.code = #MedicationRequest.requester"}]
[null,null,null,null,null,null,null,null,null,null,null,null,null,null,null,64,10,4,{"$f":"INDEX('eP-ConceptMap'!$I$15:$N$272,Q78+1,R78)","v":"* group[=].element[=].target.display = ##34###34#"}]
[null,null,null,null,null,null,null,null,null,null,null,null,null,null,null,65,10,{"$f":"IF(MOD(P79,$Q$8)=0,$Q$8,MOD(P79,$Q$8))","v":5},{"$f":"INDEX('eP-ConceptMap'!$I$15:$N$272,Q79+1,R79)","v":"* group[=].element[=].target.equivalence = #relatedto"}]
[null,null,null,null,null,null,null,null,null,null,null,null,null,null,null,66,10,6,{"$f":"INDEX('eP-ConceptMap'!$I$15:$N$272,Q80+1,R80)","v":"* group[=].element[=].target.comment = ##34#Details in the referred Practitioner resource##34#"}]
[null,null,null,null,null,null,null,null,null,null,null,null,null,null,null,67,11,1,{"$f":"INDEX('eP-ConceptMap'!$I$15:$N$272,Q81+1,R81)","v":"* group[=].element[+].code = #Prescription.prescriber.signature"}]
[null,null,null,null,null,null,null,null,null,null,null,null,null,null,null,68,11,2,{"$f":"INDEX('eP-ConceptMap'!$I$15:$N$272,Q82+1,R82)","v":"* group[=].element[=].display = ##34#A.1.3.6 Signature##34#"}]
[null,null,null,null,null,null,null,null,null,null,null,null,null,null,null,69,11,3,{"$f":"INDEX('eP-ConceptMap'!$I$15:$N$272,Q83+1,R83)","v":"* group[=].element[=].target.code = #MedicationRequest.requester"}]
[null,null,null,null,null,null,null,null,null,null,null,null,null,null,null,70,11,4,{"$f":"INDEX('eP-ConceptMap'!$I$15:$N$272,Q84+1,R84)","v":"* group[=].element[=].target.display = ##34###34#"}]
[null,null,null,null,null,null,null,null,null,null,null,null,null,null,null,71,11,5,{"$f":"INDEX('eP-ConceptMap'!$I$15:$N$272,Q85+1,R85)","v":"* group[=].element[=].target.equivalence = #relatedto"}]
[null,null,null,null,null,null,null,null,null,null,null,null,null,null,null,72,11,6,{"$f":"INDEX('eP-ConceptMap'!$I$15:$N$272,Q86+1,R86)","v":"* group[=].element[=].target.comment = ##34#Not implemented in the current eP / eD service##34#"}]
[null,null,null,null,null,null,null,null,null,null,null,null,null,null,null,73,12,1,{"$f":"INDEX('eP-ConceptMap'!$I$15:$N$272,Q87+1,R87)","v":"* group[=].element[+].code = #Prescription.prescriber.identifier"}]
[null,null,null,null,null,null,null,null,null,null,null,null,null,null,null,74,12,2,{"$f":"INDEX('eP-ConceptMap'!$I$15:$N$272,Q88+1,R88)","v":"* group[=].element[=].display = ##34#A.1.3.7  Health care provider identifier##34#"}]
[null,null,null,null,null,null,null,null,null,null,null,null,null,null,null,75,12,3,{"$f":"INDEX('eP-ConceptMap'!$I$15:$N$272,Q89+1,R89)","v":"* group[=].element[=].target.code = #MedicationRequest.requester"}]
[null,null,null,null,null,null,null,null,null,null,null,null,null,null,null,76,12,4,{"$f":"INDEX('eP-ConceptMap'!$I$15:$N$272,Q90+1,R90)","v":"* group[=].element[=].target.display = ##34###34#"}]
[null,null,null,null,null,null,null,null,null,null,null,null,null,null,null,77,{"$f":"IF(MOD(P91,$Q$8)=0,P91/$Q$8-1,INT(P91/$Q$8))","v":12},5,{"$f":"INDEX('eP-ConceptMap'!$I$15:$N$272,Q91+1,R91)","v":"* group[=].element[=].target.equivalence = #relatedto"}]
[null,null,null,null,null,null,null,null,null,null,null,null,null,null,null,78,12,6,{"$f":"INDEX('eP-ConceptMap'!$I$15:$N$272,Q92+1,R92)","v":"* group[=].element[=].target.comment = ##34#Details in the referred Practitioner resource##34#"}]
[null,null,null,null,null,null,null,null,null,null,null,null,null,null,null,79,13,1,{"$f":"INDEX('eP-ConceptMap'!$I$15:$N$272,Q93+1,R93)","v":"* group[=].element[+].code = #Prescription.product"}]
[null,null,null,null,null,null,null,null,null,null,null,null,null,null,null,80,13,2,{"$f":"INDEX('eP-ConceptMap'!$I$15:$N$272,Q94+1,R94)","v":"* group[=].element[=].display = ##34#A1.4 Identification of the prescribed product##34#"}]
[null,null,null,null,null,null,null,null,null,null,null,null,null,null,null,81,13,3,{"$f":"INDEX('eP-ConceptMap'!$I$15:$N$272,Q95+1,R95)","v":"* group[=].element[=].target.code = #MedicationRequest.medicationReference"}]
[null,null,null,null,null,null,null,null,null,null,null,null,null,null,null,82,13,4,{"$f":"INDEX('eP-ConceptMap'!$I$15:$N$272,Q96+1,R96)","v":"* group[=].element[=].target.display = ##34###34#"}]
[null,null,null,null,null,null,null,null,null,null,null,null,null,null,null,83,13,5,{"$f":"INDEX('eP-ConceptMap'!$I$15:$N$272,Q97+1,R97)","v":"* group[=].element[=].target.equivalence = #equivalent"}]
[null,null,null,null,null,null,null,null,null,null,null,null,null,null,null,84,13,6,{"$f":"INDEX('eP-ConceptMap'!$I$15:$N$272,Q98+1,R98)","v":""}]
[null,null,null,null,null,null,null,null,null,null,null,null,null,null,null,85,14,1,{"$f":"INDEX('eP-ConceptMap'!$I$15:$N$272,Q99+1,R99)","v":"* group[=].element[+].code = #Prescription.details"}]
[null,null,null,null,null,null,null,null,null,null,null,null,null,null,null,86,14,2,{"$f":"INDEX('eP-ConceptMap'!$I$15:$N$272,Q100+1,R100)","v":"* group[=].element[=].display = ##34#A.1.5 Prescription information##34#"}]
[null,null,null,null,null,null,null,null,null,null,null,null,null,null,null,87,14,3,{"$f":"INDEX('eP-ConceptMap'!$I$15:$N$272,Q101+1,R101)","v":"* group[=].element[=].target.code = #MedicationRequest"}]
[null,null,null,null,null,null,null,null,null,null,null,null,null,null,null,88,14,4,{"$f":"INDEX('eP-ConceptMap'!$I$15:$N$272,Q102+1,R102)","v":"* group[=].element[=].target.display = ##34###34#"}]
[null,null,null,null,null,null,null,null,null,null,null,null,null,null,null,89,14,5,{"$f":"INDEX('eP-ConceptMap'!$I$15:$N$272,Q103+1,R103)","v":"* group[=].element[=].target.equivalence = #relatedto"}]
[null,null,null,null,null,null,null,null,null,null,null,null,null,null,null,90,14,6,{"$f":"INDEX('eP-ConceptMap'!$I$15:$N$272,Q104+1,R104)","v":""}]
[null,null,null,null,null,null,null,null,null,null,null,null,null,null,null,91,{"$f":"IF(MOD(P105,$Q$8)=0,P105/$Q$8-1,INT(P105/$Q$8))","v":15},{"$f":"IF(MOD(P105,$Q$8)=0,$Q$8,MOD(P105,$Q$8))","v":1},{"$f":"INDEX('eP-ConceptMap'!$I$15:$N$272,Q105+1,R105)","v":"* group[=].element[+].code = #Prescription.details.quantity"}]
[null,null,null,null,null,null,null,null,null,null,null,null,null,null,null,92,15,{"$f":"IF(MOD(P106,$Q$8)=0,$Q$8,MOD(P106,$Q$8))","v":2},{"$f":"INDEX('eP-ConceptMap'!$I$15:$N$272,Q106+1,R106)","v":"* group[=].element[=].display = ##34#A.1.5.2 Quantity of prescribed product##34#"}]
[null,null,null,null,null,null,null,null,null,null,null,null,null,null,null,93,15,3,{"$f":"INDEX('eP-ConceptMap'!$I$15:$N$272,Q107+1,R107)","v":"* group[=].element[=].target.code = #MedicationRequest.dispenseRequest.quantity"}]
[null,null,null,null,null,null,null,null,null,null,null,null,null,null,null,94,15,4,{"$f":"INDEX('eP-ConceptMap'!$I$15:$N$272,Q108+1,R108)","v":"* group[=].element[=].target.display = ##34###34#"}]
[null,null,null,null,null,null,null,null,null,null,null,null,null,null,null,95,15,5,{"$f":"INDEX('eP-ConceptMap'!$I$15:$N$272,Q109+1,R109)","v":"* group[=].element[=].target.equivalence = #relatedto"}]
[null,null,null,null,null,null,null,null,null,null,null,null,null,null,null,96,15,6,{"$f":"INDEX('eP-ConceptMap'!$I$15:$N$272,Q110+1,R110)","v":""}]
[null,null,null,null,null,null,null,null,null,null,null,null,null,null,null,97,16,1,{"$f":"INDEX('eP-ConceptMap'!$I$15:$N$272,Q111+1,R111)","v":"* group[=].element[+].code = #Prescription.details.doseRegimen"}]
[null,null,null,null,null,null,null,null,null,null,null,null,null,null,null,98,16,2,{"$f":"INDEX('eP-ConceptMap'!$I$15:$N$272,Q112+1,R112)","v":"* group[=].element[=].display = ##34#A.1.5.3 Dose regimen##34#"}]
[null,null,null,null,null,null,null,null,null,null,null,null,null,null,null,99,16,3,{"$f":"INDEX('eP-ConceptMap'!$I$15:$N$272,Q113+1,R113)","v":"* group[=].element[=].target.code = #MedicationRequest.dosageInstruction"}]
[null,null,null,null,null,null,null,null,null,null,null,null,null,null,null,100,16,4,{"$f":"INDEX('eP-ConceptMap'!$I$15:$N$272,Q114+1,R114)","v":"* group[=].element[=].target.display = ##34###34#"}]
[null,null,null,null,null,null,null,null,null,null,null,null,null,null,null,101,16,5,{"$f":"INDEX('eP-ConceptMap'!$I$15:$N$272,Q115+1,R115)","v":"* group[=].element[=].target.equivalence = #equivalent"}]
[null,null,null,null,null,null,null,null,null,null,null,null,null,null,null,102,16,6,{"$f":"INDEX('eP-ConceptMap'!$I$15:$N$272,Q116+1,R116)","v":""}]
[null,null,null,null,null,null,null,null,null,null,null,null,null,null,null,103,17,1,{"$f":"INDEX('eP-ConceptMap'!$I$15:$N$272,Q117+1,R117)","v":"* group[=].element[+].code = #Prescription.details.doseRegimen.numOfIntakes"}]
[null,null,null,null,null,null,null,null,null,null,null,null,null,null,null,104,17,2,{"$f":"INDEX('eP-ConceptMap'!$I$15:$N$272,Q118+1,R118)","v":"* group[=].element[=].display = ##34#A.1.5.3.1 Number of units per intake##34#"}]
[null,null,null,null,null,null,null,null,null,null,null,null,null,null,null,105,17,3,{"$f":"INDEX('eP-ConceptMap'!$I$15:$N$272,Q119+1,R119)","v":"* group[=].element[=].target.code = #MedicationRequest.dosageInstruction.doseAndRate.doseQuantity"}]
[null,null,null,null,null,null,null,null,null,null,null,null,null,null,null,106,17,4,{"$f":"INDEX('eP-ConceptMap'!$I$15:$N$272,Q120+1,R120)","v":"* group[=].element[=].target.display = ##34###34#"}]
[null,null,null,null,null,null,null,null,null,null,null,null,null,null,null,107,17,5,{"$f":"INDEX('eP-ConceptMap'!$I$15:$N$272,Q121+1,R121)","v":"* group[=].element[=].target.equivalence = #equivalent"}]
[null,null,null,null,null,null,null,null,null,null,null,null,null,null,null,108,17,6,{"$f":"INDEX('eP-ConceptMap'!$I$15:$N$272,Q122+1,R122)","v":""}]
[null,null,null,null,null,null,null,null,null,null,null,null,null,null,null,109,18,1,{"$f":"INDEX('eP-ConceptMap'!$I$15:$N$272,Q123+1,R123)","v":"* group[=].element[+].code = #Prescription.details.doseRegimen.frequencyOfIntakes"}]
[null,null,null,null,null,null,null,null,null,null,null,null,null,null,null,110,18,2,{"$f":"INDEX('eP-ConceptMap'!$I$15:$N$272,Q124+1,R124)","v":"* group[=].element[=].display = ##34#A.1.5.3.2 Frequency of intakes##34#"}]
[null,null,null,null,null,null,null,null,null,null,null,null,null,null,null,111,18,3,{"$f":"INDEX('eP-ConceptMap'!$I$15:$N$272,Q125+1,R125)","v":"* group[=].element[=].target.code = #MedicationRequest.dosageInstruction.timing"}]
[null,null,null,null,null,null,null,null,null,null,null,null,null,null,null,112,18,4,{"$f":"INDEX('eP-ConceptMap'!$I$15:$N$272,Q126+1,R126)","v":"* group[=].element[=].target.display = ##34###34#"}]
[null,null,null,null,null,null,null,null,null,null,null,null,null,null,null,113,18,5,{"$f":"INDEX('eP-ConceptMap'!$I$15:$N$272,Q127+1,R127)","v":"* group[=].element[=].target.equivalence = #relatedto"}]
[null,null,null,null,null,null,null,null,null,null,null,null,null,null,null,114,18,6,{"$f":"INDEX('eP-ConceptMap'!$I$15:$N$272,Q128+1,R128)","v":"* group[=].element[=].target.comment = ##34#A combination of frequency, period and periodUnit.\n'3 times per day', 3 would be the frequency and '1 day' would be the period/periodUnit.##34#"}]
[null,null,null,null,null,null,null,null,null,null,null,null,null,null,null,115,19,1,{"$f":"INDEX('eP-ConceptMap'!$I$15:$N$272,Q129+1,R129)","v":"* group[=].element[+].code = #Prescription.details.route"}]
[null,null,null,null,null,null,null,null,null,null,null,null,null,null,null,116,{"$f":"IF(MOD(P130,$Q$8)=0,P130/$Q$8-1,INT(P130/$Q$8))","v":19},{"$f":"IF(MOD(P130,$Q$8)=0,$Q$8,MOD(P130,$Q$8))","v":2},{"$f":"INDEX('eP-ConceptMap'!$I$15:$N$272,Q130+1,R130)","v":"* group[=].element[=].display = ##34#A.1.5.4 Route of administration##34#"}]
[null,null,null,null,null,null,null,null,null,null,null,null,null,null,null,117,19,{"$f":"IF(MOD(P131,$Q$8)=0,$Q$8,MOD(P131,$Q$8))","v":3},{"$f":"INDEX('eP-ConceptMap'!$I$15:$N$272,Q131+1,R131)","v":"* group[=].element[=].target.code = #MedicationRequest.dosageInstruction.route"}]
[null,null,null,null,null,null,null,null,null,null,null,null,null,null,null,118,19,4,{"$f":"INDEX('eP-ConceptMap'!$I$15:$N$272,Q132+1,R132)","v":"* group[=].element[=].target.display = ##34###34#"}]
[null,null,null,null,null,null,null,null,null,null,null,null,null,null,null,119,19,5,{"$f":"INDEX('eP-ConceptMap'!$I$15:$N$272,Q133+1,R133)","v":"* group[=].element[=].target.equivalence = #equivalent"}]
[null,null,null,null,null,null,null,null,null,null,null,null,null,null,null,120,19,6,{"$f":"INDEX('eP-ConceptMap'!$I$15:$N$272,Q134+1,R134)","v":""}]
[null,null,null,null,null,null,null,null,null,null,null,null,null,null,null,121,20,1,{"$f":"INDEX('eP-ConceptMap'!$I$15:$N$272,Q135+1,R135)","v":"* group[=].element[+].code = #Prescription.details.duration"}]
[null,null,null,null,null,null,null,null,null,null,null,null,null,null,null,122,20,2,{"$f":"INDEX('eP-ConceptMap'!$I$15:$N$272,Q136+1,R136)","v":"* group[=].element[=].display = ##34#A.1.5.5 Duration of treatment##34#"}]
[null,null,null,null,null,null,null,null,null,null,null,null,null,null,null,123,20,3,{"$f":"INDEX('eP-ConceptMap'!$I$15:$N$272,Q137+1,R137)","v":"* group[=].element[=].target.code = #MedicationRequest.dosageInstruction.timing.repeat.duration"}]
[null,null,null,null,null,null,null,null,null,null,null,null,null,null,null,124,20,4,{"$f":"INDEX('eP-ConceptMap'!$I$15:$N$272,Q138+1,R138)","v":"* group[=].element[=].target.display = ##34###34#"}]
[null,null,null,null,null,null,null,null,null,null,null,null,null,null,null,125,20,5,{"$f":"INDEX('eP-ConceptMap'!$I$15:$N$272,Q139+1,R139)","v":"* group[=].element[=].target.equivalence = #equivalent"}]
[null,null,null,null,null,null,null,null,null,null,null,null,null,null,null,126,20,6,{"$f":"INDEX('eP-ConceptMap'!$I$15:$N$272,Q140+1,R140)","v":""}]
[null,null,null,null,null,null,null,null,null,null,null,null,null,null,null,127,21,1,{"$f":"INDEX('eP-ConceptMap'!$I$15:$N$272,Q141+1,R141)","v":"* group[=].element[+].code = #Prescription.details.startDate"}]
[null,null,null,null,null,null,null,null,null,null,null,null,null,null,null,128,21,2,{"$f":"INDEX('eP-ConceptMap'!$I$15:$N$272,Q142+1,R142)","v":"* group[=].element[=].display = ##34#A.1.5.6 Starting date of therapy ##34#"}]
[null,null,null,null,null,null,null,null,null,null,null,null,null,null,null,129,21,3,{"$f":"INDEX('eP-ConceptMap'!$I$15:$N$272,Q143+1,R143)","v":"* group[=].element[=].target.code = #MedicationRequest.dosageInstruction.timing.duration"}]
[null,null,null,null,null,null,null,null,null,null,null,null,null,null,null,130,21,4,{"$f":"INDEX('eP-ConceptMap'!$I$15:$N$272,Q144+1,R144)","v":"* group[=].element[=].target.display = ##34###34#"}]
[null,null,null,null,null,null,null,null,null,null,null,null,null,null,null,131,21,5,{"$f":"INDEX('eP-ConceptMap'!$I$15:$N$272,Q145+1,R145)","v":"* group[=].element[=].target.equivalence = #relatedto"}]
[null,null,null,null,null,null,null,null,null,null,null,null,null,null,null,132,21,6,{"$f":"INDEX('eP-ConceptMap'!$I$15:$N$272,Q146+1,R146)","v":""}]
[null,null,null,null,null,null,null,null,null,null,null,null,null,null,null,133,22,1,{"$f":"INDEX('eP-ConceptMap'!$I$15:$N$272,Q147+1,R147)","v":"* group[=].element[+].code = #Prescription.details.directionsOfUse"}]
[null,null,null,null,null,null,null,null,null,null,null,null,null,null,null,134,22,2,{"$f":"INDEX('eP-ConceptMap'!$I$15:$N$272,Q148+1,R148)","v":"* group[=].element[=].display = ##34#A.1.5.7 Directions for use##34#"}]
[null,null,null,null,null,null,null,null,null,null,null,null,null,null,null,135,22,3,{"$f":"INDEX('eP-ConceptMap'!$I$15:$N$272,Q149+1,R149)","v":"* group[=].element[=].target.code = #MedicationRequest.dosageInstruction"}]
[null,null,null,null,null,null,null,null,null,null,null,null,null,null,null,136,22,4,{"$f":"INDEX('eP-ConceptMap'!$I$15:$N$272,Q150+1,R150)","v":"* group[=].element[=].target.display = ##34###34#"}]
[null,null,null,null,null,null,null,null,null,null,null,null,null,null,null,137,22,5,{"$f":"INDEX('eP-ConceptMap'!$I$15:$N$272,Q151+1,R151)","v":"* group[=].element[=].target.equivalence = #relatedto"}]
[null,null,null,null,null,null,null,null,null,null,null,null,null,null,null,138,22,6,{"$f":"INDEX('eP-ConceptMap'!$I$15:$N$272,Q152+1,R152)","v":""}]
[null,null,null,null,null,null,null,null,null,null,null,null,null,null,null,139,23,1,{"$f":"INDEX('eP-ConceptMap'!$I$15:$N$272,Q153+1,R153)","v":"* group[=].element[+].code = #Prescription.details.expiryDate"}]
[null,null,null,null,null,null,null,null,null,null,null,null,null,null,null,140,23,2,{"$f":"INDEX('eP-ConceptMap'!$I$15:$N$272,Q154+1,R154)","v":"* group[=].element[=].display = ##34#A.1.5.8 Prescription expiry date##34#"}]
[null,null,null,null,null,null,null,null,null,null,null,null,null,null,null,141,23,3,{"$f":"INDEX('eP-ConceptMap'!$I$15:$N$272,Q155+1,R155)","v":"* group[=].element[=].target.code = #MedicationRequest.dispenseRequest.validityPeriod"}]
[null,null,null,null,null,null,null,null,null,null,null,null,null,null,null,142,23,4,{"$f":"INDEX('eP-ConceptMap'!$I$15:$N$272,Q156+1,R156)","v":"* group[=].element[=].target.display = ##34###34#"}]
[null,null,null,null,null,null,null,null,null,null,null,null,null,null,null,143,23,5,{"$f":"INDEX('eP-ConceptMap'!$I$15:$N$272,Q157+1,R157)","v":"* group[=].element[=].target.equivalence = #equivalent"}]
[null,null,null,null,null,null,null,null,null,null,null,null,null,null,null,144,23,6,{"$f":"INDEX('eP-ConceptMap'!$I$15:$N$272,Q158+1,R158)","v":""}]
[null,null,null,null,null,null,null,null,null,null,null,null,null,null,null,145,24,1,{"$f":"INDEX('eP-ConceptMap'!$I$15:$N$272,Q159+1,R159)","v":"* group[=].element[+].code = #Prescription.details.repeats"}]
[null,null,null,null,null,null,null,null,null,null,null,null,null,null,null,146,24,2,{"$f":"INDEX('eP-ConceptMap'!$I$15:$N$272,Q160+1,R160)","v":"* group[=].element[=].display = ##34#A.1.5.9 Repeats##34#"}]
[null,null,null,null,null,null,null,null,null,null,null,null,null,null,null,147,24,3,{"$f":"INDEX('eP-ConceptMap'!$I$15:$N$272,Q161+1,R161)","v":"* group[=].element[=].target.code = #MedicationRequest"}]
[null,null,null,null,null,null,null,null,null,null,null,null,null,null,null,148,24,4,{"$f":"INDEX('eP-ConceptMap'!$I$15:$N$272,Q162+1,R162)","v":"* group[=].element[=].target.display = ##34###34#"}]
[null,null,null,null,null,null,null,null,null,null,null,null,null,null,null,149,24,5,{"$f":"INDEX('eP-ConceptMap'!$I$15:$N$272,Q163+1,R163)","v":"* group[=].element[=].target.equivalence = #relatedto"}]
[null,null,null,null,null,null,null,null,null,null,null,null,null,null,null,150,24,6,{"$f":"INDEX('eP-ConceptMap'!$I$15:$N$272,Q164+1,R164)","v":"* group[=].element[=].target.comment = ##34#TO BE DISCUSSED##34#"}]
[null,null,null,null,null,null,null,null,null,null,null,null,null,null,null,151,25,1,{"$f":"INDEX('eP-ConceptMap'!$I$15:$N$272,Q165+1,R165)","v":"* group[=].element[+].code = #Prescription.details.reason"}]
[null,null,null,null,null,null,null,null,null,null,null,null,null,null,null,152,25,2,{"$f":"INDEX('eP-ConceptMap'!$I$15:$N$272,Q166+1,R166)","v":"* group[=].element[=].display = ##34#A.1.5.10 Reason for prescription##34#"}]
[null,null,null,null,null,null,null,null,null,null,null,null,null,null,null,153,25,3,{"$f":"INDEX('eP-ConceptMap'!$I$15:$N$272,Q167+1,R167)","v":"* group[=].element[=].target.code = #MedicationRequest.reasonReference"}]
[null,null,null,null,null,null,null,null,null,null,null,null,null,null,null,154,25,4,{"$f":"INDEX('eP-ConceptMap'!$I$15:$N$272,Q168+1,R168)","v":"* group[=].element[=].target.display = ##34###34#"}]
[null,null,null,null,null,null,null,null,null,null,null,null,null,null,null,155,25,5,{"$f":"INDEX('eP-ConceptMap'!$I$15:$N$272,Q169+1,R169)","v":"* group[=].element[=].target.equivalence = #relatedto"}]
[null,null,null,null,null,null,null,null,null,null,null,null,null,null,null,156,25,6,{"$f":"INDEX('eP-ConceptMap'!$I$15:$N$272,Q170+1,R170)","v":""}]
[null,null,null,null,null,null,null,null,null,null,null,null,null,null,null,157,26,1,{"$f":"INDEX('eP-ConceptMap'!$I$15:$N$272,Q171+1,R171)","v":"* group[=].element[+].code = #Prescription.details.reason"}]
[null,null,null,null,null,null,null,null,null,null,null,null,null,null,null,158,26,2,{"$f":"INDEX('eP-ConceptMap'!$I$15:$N$272,Q172+1,R172)","v":"* group[=].element[=].display = ##34#A.1.5.10 Reason for prescription##34#"}]
[null,null,null,null,null,null,null,null,null,null,null,null,null,null,null,159,26,3,{"$f":"INDEX('eP-ConceptMap'!$I$15:$N$272,Q173+1,R173)","v":"* group[=].element[=].target.code = #MedicationRequest.reasonCode"}]
[null,null,null,null,null,null,null,null,null,null,null,null,null,null,null,160,26,4,{"$f":"INDEX('eP-ConceptMap'!$I$15:$N$272,Q174+1,R174)","v":"* group[=].element[=].target.display = ##34###34#"}]
[null,null,null,null,null,null,null,null,null,null,null,null,null,null,null,161,26,5,{"$f":"INDEX('eP-ConceptMap'!$I$15:$N$272,Q175+1,R175)","v":"* group[=].element[=].target.equivalence = #equivalent"}]
[null,null,null,null,null,null,null,null,null,null,null,null,null,null,null,162,26,6,{"$f":"INDEX('eP-ConceptMap'!$I$15:$N$272,Q176+1,R176)","v":""}]
[null,null,null,null,null,null,null,null,null,null,null,null,null,null,null,163,27,1,{"$f":"INDEX('eP-ConceptMap'!$I$15:$N$272,Q177+1,R177)","v":"* group[=].element[+].code = #Prescription.details.substitution"}]
[null,null,null,null,null,null,null,null,null,null,null,null,null,null,null,164,27,2,{"$f":"INDEX('eP-ConceptMap'!$I$15:$N$272,Q178+1,R178)","v":"* group[=].element[=].display = ##34#A.1.5.11 Substitution##34#"}]
[null,null,null,null,null,null,null,null,null,null,null,null,null,null,null,165,27,3,{"$f":"INDEX('eP-ConceptMap'!$I$15:$N$272,Q179+1,R179)","v":"* group[=].element[=].target.code = #MedicationRequest.substitution.allowedCodeableConcept"}]
[null,null,null,null,null,null,null,null,null,null,null,null,null,null,null,166,27,4,{"$f":"INDEX('eP-ConceptMap'!$I$15:$N$272,Q180+1,R180)","v":"* group[=].element[=].target.display = ##34###34#"}]
[null,null,null,null,null,null,null,null,null,null,null,null,null,null,null,167,{"$f":"IF(MOD(P181,$Q$8)=0,P181/$Q$8-1,INT(P181/$Q$8))","v":27},5,{"$f":"INDEX('eP-ConceptMap'!$I$15:$N$272,Q181+1,R181)","v":"* group[=].element[=].target.equivalence = #equivalent"}]
[null,null,null,null,null,null,null,null,null,null,null,null,null,null,null,168,27,6,{"$f":"INDEX('eP-ConceptMap'!$I$15:$N$272,Q182+1,R182)","v":""}]
[null,null,null,null,null,null,null,null,null,null,null,null,null,null,null,169,28,1,{"$f":"INDEX('eP-ConceptMap'!$I$15:$N$272,Q183+1,R183)","v":0}]
[null,null,null,null,null,null,null,null,null,null,null,null,null,null,null,170,28,2,{"$f":"INDEX('eP-ConceptMap'!$I$15:$N$272,Q184+1,R184)","v":0}]
[null,null,null,null,null,null,null,null,null,null,null,null,null,null,null,171,28,3,{"$f":"INDEX('eP-ConceptMap'!$I$15:$N$272,Q185+1,R185)","v":0}]
[null,null,null,null,null,null,null,null,null,null,null,null,null,null,null,172,28,4,{"$f":"INDEX('eP-ConceptMap'!$I$15:$N$272,Q186+1,R186)","v":0}]
[null,null,null,null,null,null,null,null,null,null,null,null,null,null,null,173,28,5,{"$f":"INDEX('eP-ConceptMap'!$I$15:$N$272,Q187+1,R187)","v":0}]
[null,null,null,null,null,null,null,null,null,null,null,null,null,null,null,174,28,6,{"$f":"INDEX('eP-ConceptMap'!$I$15:$N$272,Q188+1,R188)","v":0}]
[null,null,null,null,null,null,null,null,null,null,null,null,null,null,null,175,29,1,{"$f":"INDEX('eP-ConceptMap'!$I$15:$N$272,Q189+1,R189)","v":0}]
[null,null,null,null,null,null,null,null,null,null,null,null,null,null,null,176,29,2,{"$f":"INDEX('eP-ConceptMap'!$I$15:$N$272,Q190+1,R190)","v":0}]
[null,null,null,null,null,null,null,null,null,null,null,null,null,null,null,177,29,3,{"$f":"INDEX('eP-ConceptMap'!$I$15:$N$272,Q191+1,R191)","v":0}]
[null,null,null,null,null,null,null,null,null,null,null,null,null,null,null,178,29,4,{"$f":"INDEX('eP-ConceptMap'!$I$15:$N$272,Q192+1,R192)","v":0}]

{"sheet":"eP-ConceptMap-2","index":11,"n_rows":170,"n_cols":19,"rows_kept":170,"cut":false,"hidden":false,"merged":[[2,4,2,6],[3,4,3,6],[5,4,5,6],[6,4,6,6]]}
[null,null,"http://hl7.eu/fhir/ig/xpandh-mpd/StructureDefinition/"]
[]
[null,"Mapping","eP2Fhir","Source URI",{"$f":"C1&eP!B5","v":"http://hl7.eu/fhir/ig/xpandh-mpd/StructureDefinition/Prescription"}]
[null,"Id","eP2FHIR-eu-xpandh","Target URI","http://hl7.eu/fhir/ig/xpandh-mpd/StructureDefinition/Practitioner-eu-xpandh"]
[null,"Title","eHN Subject to this guide Map"]
[null,"Source","http://hl7.eu/fhir/laboratory/StructureDefinition/LabReport","Source Group",{"$f":"E3","v":"http://hl7.eu/fhir/ig/xpandh-mpd/StructureDefinition/Prescription"}]
[null,"Target","http://hl7.eu/fhir/laboratory","Target Group",{"$f":"E4","v":"http://hl7.eu/fhir/ig/xpandh-mpd/StructureDefinition/Practitioner-eu-xpandh"}]
[null,"description","eHN ePrescription Model to this guide Map",null,null,null,null,null,"* group[=].element[+].code = #Osiris.Patient.BirthDate","* group[=].element[=].display = \"Birth Date [C4]\"","* group[=].element[=].target.code = #Subject.dateOfBirth.date","* group[=].element[=].target.display = \"Date of birth\"","* group[=].element[=].target.equivalence = #equivalent",null,null,"Elements",6]
[null,"purpose","It shows how the ePrescription data set defined by the EU eHN guidelines is mapped into this guide"]
[]
[null,null,null,null,null,null,null,null,"source:code","source:display","code","display","target to source","Comment"]
[]
[null,null,null,null,null,"target to source","Comment"]
[null,{"$f":"eP!B5&\".prescriber\"","v":"Prescription.prescriber"},null,"Practitioner"]
[null,"familyName",{"$f":"eP!C13","v":"A.1.3.1 Familyname"},"name.given",null,"equivalent",null,null,{"$f":"\"* group[=].element[+].code = #\"&$B$14&\".\"&B15","v":"* group[=].element[+].code = #Prescription.prescriber.familyName"},{"$f":"\"* group[=].element[=].display = ##34#\"&C15&\"##34#\"","v":"* group[=].element[=].display = ##34#A.1.3.1 Familyname##34#"},{"$f":"IF(F15=\"unmatched\",\"//-- unmatched\",IF(D15=\"\",\"* group[=].element[=].target.code = #\"&$D$14,\"* group[=].element[=].target.code = #\"&$D$14&\".\"&D15))","v":"* group[=].element[=].target.code = #Practitioner.name.given"},{"$f":"IF(F15=\"unmatched\",\"//-- unmatched\",\"* group[=].element[=].target.display = ##34#\"&E15&\"##34#\")","v":"* group[=].element[=].target.display = ##34###34#"},{"$f":"\"* group[=].element[=].target.equivalence = #\"&F15","v":"* group[=].element[=].target.equivalence = #equivalent"},{"$f":"IF(G15<>\"\",CONCATENATE(\"* group[=].element[=].target.comment = \",\"##34#\",G15,\"##34#\"),\"\")","v":""},null,1,{"$f":"IF(MOD(P15,$Q$8)=0,P15/$Q$8-1,INT(P15/$Q$8))","v":0},{"$f":"IF(MOD(P15,$Q$8)=0,$Q$8,MOD(P15,$Q$8))","v":1},{"$f":"INDEX('eP-ConceptMap-2'!$I$15:$N$250,Q15+1,R15)","v":"* group[=].element[+].code = #Prescription.prescriber.familyName"}]
[null,"givenName",{"$f":"eP!C14","v":"A.1.3.2 Given name"},"name.family",null,"equivalent",null,null,{"$f":"\"* group[=].element[+].code = #\"&$B$14&\".\"&B16","v":"* group[=].element[+].code = #Prescription.prescriber.givenName"},"* group[=].element[=].display = ##34#A.1.3.2 Given name##34#",{"$f":"IF(F16=\"unmatched\",\"//-- unmatched\",IF(D16=\"\",\"* group[=].element[=].target.code = #\"&$D$14,\"* group[=].element[=].target.code = #\"&$D$14&\".\"&D16))","v":"* group[=].element[=].target.code = #Practitioner.name.family"},"* group[=].element[=].target.display = ##34###34#","* group[=].element[=].target.equivalence = #equivalent","",null,2,0,2,{"$f":"INDEX('eP-ConceptMap-2'!$I$15:$N$250,Q16+1,R16)","v":"* group[=].element[=].display = ##34#A.1.3.1 Familyname##34#"}]
[null,"qualification",{"$f":"eP!C15","v":"A.1.3.3 Professional qualifications"},"qualification",null,"equivalent",null,null,{"$f":"\"* group[=].element[+].code = #\"&$B$14&\".\"&B17","v":"* group[=].element[+].code = #Prescription.prescriber.qualification"},{"$f":"\"* group[=].element[=].display = ##34#\"&C17&\"##34#\"","v":"* group[=].element[=].display = ##34#A.1.3.3 Professional qualifications##34#"},{"$f":"IF(F17=\"unmatched\",\"//-- unmatched\",IF(D17=\"\",\"* group[=].element[=].target.code = #\"&$D$14,\"* group[=].element[=].target.code = #\"&$D$14&\".\"&D17))","v":"* group[=].element[=].target.code = #Practitioner.qualification"},{"$f":"IF(F17=\"unmatched\",\"//-- unmatched\",\"* group[=].element[=].target.display = ##34#\"&E17&\"##34#\")","v":"* group[=].element[=].target.display = ##34###34#"},{"$f":"\"* group[=].element[=].target.equivalence = #\"&F17","v":"* group[=].element[=].target.equivalence = #equivalent"},{"$f":"IF(G17<>\"\",CONCATENATE(\"* group[=].element[=].target.comment = \",\"##34#\",G17,\"##34#\"),\"\")","v":""},null,3,{"$f":"IF(MOD(P17,$Q$8)=0,P17/$Q$8-1,INT(P17/$Q$8))","v":0},{"$f":"IF(MOD(P17,$Q$8)=0,$Q$8,MOD(P17,$Q$8))","v":3},{"$f":"INDEX('eP-ConceptMap-2'!$I$15:$N$250,Q17+1,R17)","v":"* group[=].element[=].target.code = #Practitioner.name.given"}]
[null,"contact",{"$f":"eP!C16","v":"A.1.3.4 Details for direct contact"},"telecom",null,"equivalent",null,null,"* group[=].element[+].code = #Prescription.prescriber.contact","* group[=].element[=].display = ##34#A.1.3.4 Details for direct contact##34#","* group[=].element[=].target.code = #Practitioner.telecom","* group[=].element[=].target.display = ##34###34#","* group[=].element[=].target.equivalence = #equivalent","",null,4,0,4,{"$f":"INDEX('eP-ConceptMap-2'!$I$15:$N$250,Q18+1,R18)","v":"* group[=].element[=].target.display = ##34###34#"}]
[null,"workAddress",{"$f":"eP!C17","v":"A.1.3.5 Work address"},"address",null,"equivalent","where use = 'work'",null,"* group[=].element[+].code = #Prescription.prescriber.workAddress","* group[=].element[=].display = ##34#A.1.3.5 Work address##34#","* group[=].element[=].target.code = #Practitioner.address","* group[=].element[=].target.display = ##34###34#","* group[=].element[=].target.equivalence = #equivalent","* group[=].element[=].target.comment = ##34#where use = 'work'##34#",null,5,0,5,{"$f":"INDEX('eP-ConceptMap-2'!$I$15:$N$250,Q19+1,R19)","v":"* group[=].element[=].target.equivalence = #equivalent"}]
[null,"identifier",{"$f":"eP!C19","v":"A.1.3.7  Health care provider identifier"},"identifier",null,"relatedto",null,null,"* group[=].element[+].code = #Prescription.prescriber.identifier","* group[=].element[=].display = ##34#A.1.3.7  Health care provider identifier##34#","* group[=].element[=].target.code = #Practitioner.identifier","* group[=].element[=].target.display = ##34###34#","* group[=].element[=].target.equivalence = #relatedto","",null,6,0,6,{"$f":"INDEX('eP-ConceptMap-2'!$I$15:$N$250,Q20+1,R20)","v":""}]
[null,null,null,null,null,null,null,null,null,null,null,null,null,null,null,7,1,1,{"$f":"INDEX('eP-ConceptMap-2'!$I$15:$N$250,Q21+1,R21)","v":"* group[=].element[+].code = #Prescription.prescriber.givenName"}]
[null,null,null,null,null,null,null,null,null,null,null,null,null,null,null,8,1,2,{"$f":"INDEX('eP-ConceptMap-2'!$I$15:$N$250,Q22+1,R22)","v":"* group[=].element[=].display = ##34#A.1.3.2 Given name##34#"}]
[null,null,null,null,null,null,null,null,null,null,null,null,null,null,null,9,1,3,{"$f":"INDEX('eP-ConceptMap-2'!$I$15:$N$250,Q23+1,R23)","v":"* group[=].element[=].target.code = #Practitioner.name.family"}]
[null,null,null,null,null,null,null,null,null,null,null,null,null,null,null,10,1,4,{"$f":"INDEX('eP-ConceptMap-2'!$I$15:$N$250,Q24+1,R24)","v":"* group[=].element[=].target.display = ##34###34#"}]
[null,null,null,null,null,null,null,null,null,null,null,null,null,null,null,11,1,5,{"$f":"INDEX('eP-ConceptMap-2'!$I$15:$N$250,Q25+1,R25)","v":"* group[=].element[=].target.equivalence = #equivalent"}]
[null,null,null,null,null,null,null,null,null,null,null,null,null,null,null,12,1,6,{"$f":"INDEX('eP-ConceptMap-2'!$I$15:$N$250,Q26+1,R26)","v":""}]
[null,null,null,null,null,null,null,null,null,null,null,null,null,null,null,13,2,1,{"$f":"INDEX('eP-ConceptMap-2'!$I$15:$N$250,Q27+1,R27)","v":"* group[=].element[+].code = #Prescription.prescriber.qualification"}]
[null,null,null,null,null,null,null,null,null,null,null,null,null,null,null,14,2,2,{"$f":"INDEX('eP-ConceptMap-2'!$I$15:$N$250,Q28+1,R28)","v":"* group[=].element[=].display = ##34#A.1.3.3 Professional qualifications##34#"}]
[null,null,null,null,null,null,null,null,null,null,null,null,null,null,null,15,2,3,{"$f":"INDEX('eP-ConceptMap-2'!$I$15:$N$250,Q29+1,R29)","v":"* group[=].element[=].target.code = #Practitioner.qualification"}]
[null,null,null,null,null,null,null,null,null,null,null,null,null,null,null,16,2,4,{"$f":"INDEX('eP-ConceptMap-2'!$I$15:$N$250,Q30+1,R30)","v":"* group[=].element[=].target.display = ##34###34#"}]
[null,null,null,null,null,null,null,null,null,null,null,null,null,null,null,17,2,5,{"$f":"INDEX('eP-ConceptMap-2'!$I$15:$N$250,Q31+1,R31)","v":"* group[=].element[=].target.equivalence = #equivalent"}]
[null,null,null,null,null,null,null,null,null,null,null,null,null,null,null,18,2,6,{"$f":"INDEX('eP-ConceptMap-2'!$I$15:$N$250,Q32+1,R32)","v":""}]
[null,null,null,null,null,null,null,null,null,null,null,null,null,null,null,19,3,1,{"$f":"INDEX('eP-ConceptMap-2'!$I$15:$N$250,Q33+1,R33)","v":"* group[=].element[+].code = #Prescription.prescriber.contact"}]
[null,null,null,null,null,null,null,null,null,null,null,null,null,null,null,20,3,2,{"$f":"INDEX('eP-ConceptMap-2'!$I$15:$N$250,Q34+1,R34)","v":"* group[=].element[=].display = ##34#A.1.3.4 Details for direct contact##34#"}]
[null,null,null,null,null,null,null,null,null,null,null,null,null,null,null,21,3,3,{"$f":"INDEX('eP-ConceptMap-2'!$I$15:$N$250,Q35+1,R35)","v":"* group[=].element[=].target.code = #Practitioner.telecom"}]
[null,null,null,null,null,null,null,null,null,null,null,null,null,null,null,22,3,4,{"$f":"INDEX('eP-ConceptMap-2'!$I$15:$N$250,Q36+1,R36)","v":"* group[=].element[=].target.display = ##34###34#"}]
[null,null,null,null,null,null,null,null,null,null,null,null,null,null,null,23,3,5,{"$f":"INDEX('eP-ConceptMap-2'!$I$15:$N$250,Q37+1,R37)","v":"* group[=].element[=].target.equivalence = #equivalent"}]
[null,null,null,null,null,null,null,null,null,null,null,null,null,null,null,24,3,6,{"$f":"INDEX('eP-ConceptMap-2'!$I$15:$N$250,Q38+1,R38)","v":""}]
[null,null,null,null,null,null,null,null,null,null,null,null,null,null,null,25,4,1,{"$f":"INDEX('eP-ConceptMap-2'!$I$15:$N$250,Q39+1,R39)","v":"* group[=].element[+].code = #Prescription.prescriber.workAddress"}]
[null,null,null,null,null,null,null,null,null,null,null,null,null,null,null,26,4,2,{"$f":"INDEX('eP-ConceptMap-2'!$I$15:$N$250,Q40+1,R40)","v":"* group[=].element[=].display = ##34#A.1.3.5 Work address##34#"}]
[null,null,null,null,null,null,null,null,null,null,null,null,null,null,null,27,4,3,{"$f":"INDEX('eP-ConceptMap-2'!$I$15:$N$250,Q41+1,R41)","v":"* group[=].element[=].target.code = #Practitioner.address"}]
[null,null,null,null,null,null,null,null,null,null,null,null,null,null,null,28,4,4,{"$f":"INDEX('eP-ConceptMap-2'!$I$15:$N$250,Q42+1,R42)","v":"* group[=].element[=].target.display = ##34###34#"}]
[null,null,null,null,null,null,null,null,null,null,null,null,null,null,null,29,4,5,{"$f":"INDEX('eP-ConceptMap-2'!$I$15:$N$250,Q43+1,R43)","v":"* group[=].element[=].target.equivalence = #equivalent"}]
[null,null,null,null,null,null,null,null,null,null,null,null,null,null,null,30,4,6,{"$f":"INDEX('eP-ConceptMap-2'!$I$15:$N$250,Q44+1,R44)","v":"* group[=].element[=].target.comment = ##34#where use = 'work'##34#"}]
[null,null,null,null,null,null,null,null,null,null,null,null,null,null,null,31,5,1,{"$f":"INDEX('eP-ConceptMap-2'!$I$15:$N$250,Q45+1,R45)","v":"* group[=].element[+].code = #Prescription.prescriber.identifier"}]
[null,null,null,null,null,null,null,null,null,null,null,null,null,null,null,32,5,2,{"$f":"INDEX('eP-ConceptMap-2'!$I$15:$N$250,Q46+1,R46)","v":"* group[=].element[=].display = ##34#A.1.3.7  Health care provider identifier##34#"}]
[null,null,null,null,null,null,null,null,null,null,null,null,null,null,null,33,5,3,{"$f":"INDEX('eP-ConceptMap-2'!$I$15:$N$250,Q47+1,R47)","v":"* group[=].element[=].target.code = #Practitioner.identifier"}]
[null,null,null,null,null,null,null,null,null,null,null,null,null,null,null,34,5,4,{"$f":"INDEX('eP-ConceptMap-2'!$I$15:$N$250,Q48+1,R48)","v":"* group[=].element[=].target.display = ##34###34#"}]
[null,null,null,null,null,null,null,null,null,null,null,null,null,null,null,35,5,5,{"$f":"INDEX('eP-ConceptMap-2'!$I$15:$N$250,Q49+1,R49)","v":"* group[=].element[=].target.equivalence = #relatedto"}]
[null,null,null,null,null,null,null,null,null,null,null,null,null,null,null,36,5,6,{"$f":"INDEX('eP-ConceptMap-2'!$I$15:$N$250,Q50+1,R50)","v":""}]
[null,null,null,null,null,null,null,null,null,null,null,null,null,null,null,37,6,1,{"$f":"INDEX('eP-ConceptMap-2'!$I$15:$N$250,Q51+1,R51)","v":0}]
[null,null,null,null,null,null,null,null,null,null,null,null,null,null,null,38,6,2,{"$f":"INDEX('eP-ConceptMap-2'!$I$15:$N$250,Q52+1,R52)","v":0}]
[null,null,null,null,null,null,null,null,null,null,null,null,null,null,null,39,6,3,{"$f":"INDEX('eP-ConceptMap-2'!$I$15:$N$250,Q53+1,R53)","v":0}]
[null,null,null,null,null,null,null,null,null,null,null,null,null,null,null,40,6,4,{"$f":"INDEX('eP-ConceptMap-2'!$I$15:$N$250,Q54+1,R54)","v":0}]
[null,null,null,null,null,null,null,null,null,null,null,null,null,null,null,41,6,5,{"$f":"INDEX('eP-ConceptMap-2'!$I$15:$N$250,Q55+1,R55)","v":0}]
[null,null,null,null,null,null,null,null,null,null,null,null,null,null,null,42,6,6,{"$f":"INDEX('eP-ConceptMap-2'!$I$15:$N$250,Q56+1,R56)","v":0}]
[null,null,null,null,null,null,null,null,null,null,null,null,null,null,null,43,7,1,{"$f":"INDEX('eP-ConceptMap-2'!$I$15:$N$250,Q57+1,R57)","v":0}]
[null,null,null,null,null,null,null,null,null,null,null,null,null,null,null,44,7,2,{"$f":"INDEX('eP-ConceptMap-2'!$I$15:$N$250,Q58+1,R58)","v":0}]
[null,null,null,null,null,null,null,null,null,null,null,null,null,null,null,45,7,3,{"$f":"INDEX('eP-ConceptMap-2'!$I$15:$N$250,Q59+1,R59)","v":0}]
[null,null,null,null,null,null,null,null,null,null,null,null,null,null,null,46,7,4,{"$f":"INDEX('eP-ConceptMap-2'!$I$15:$N$250,Q60+1,R60)","v":0}]
[null,null,null,null,null,null,null,null,null,null,null,null,null,null,null,47,7,5,{"$f":"INDEX('eP-ConceptMap-2'!$I$15:$N$250,Q61+1,R61)","v":0}]
[null,null,null,null,null,null,null,null,null,null,null,null,null,null,null,48,7,6,{"$f":"INDEX('eP-ConceptMap-2'!$I$15:$N$250,Q62+1,R62)","v":0}]
[null,null,null,null,null,null,null,null,null,null,null,null,null,null,null,49,8,1,{"$f":"INDEX('eP-ConceptMap-2'!$I$15:$N$250,Q63+1,R63)","v":0}]
[null,null,null,null,null,null,null,null,null,null,null,null,null,null,null,50,8,2,{"$f":"INDEX('eP-ConceptMap-2'!$I$15:$N$250,Q64+1,R64)","v":0}]
[null,null,null,null,null,null,null,null,null,null,null,null,null,null,null,51,8,3,{"$f":"INDEX('eP-ConceptMap-2'!$I$15:$N$250,Q65+1,R65)","v":0}]
[null,null,null,null,null,null,null,null,null,null,null,null,null,null,null,52,8,4,{"$f":"INDEX('eP-ConceptMap-2'!$I$15:$N$250,Q66+1,R66)","v":0}]
[null,null,null,null,null,null,null,null,null,null,null,null,null,null,null,53,8,5,{"$f":"INDEX('eP-ConceptMap-2'!$I$15:$N$250,Q67+1,R67)","v":0}]
[null,null,null,null,null,null,null,null,null,null,null,null,null,null,null,54,8,6,{"$f":"INDEX('eP-ConceptMap-2'!$I$15:$N$250,Q68+1,R68)","v":0}]
[null,null,null,null,null,null,null,null,null,null,null,null,null,null,null,55,9,1,{"$f":"INDEX('eP-ConceptMap-2'!$I$15:$N$250,Q69+1,R69)","v":0}]
[null,null,null,null,null,null,null,null,null,null,null,null,null,null,null,56,9,2,{"$f":"INDEX('eP-ConceptMap-2'!$I$15:$N$250,Q70+1,R70)","v":0}]
[null,null,null,null,null,null,null,null,null,null,null,null,null,null,null,57,9,3,{"$f":"INDEX('eP-ConceptMap-2'!$I$15:$N$250,Q71+1,R71)","v":0}]
[null,null,null,null,null,null,null,null,null,null,null,null,null,null,null,58,9,4,{"$f":"INDEX('eP-ConceptMap-2'!$I$15:$N$250,Q72+1,R72)","v":0}]
[null,null,null,null,null,null,null,null,null,null,null,null,null,null,null,59,9,5,{"$f":"INDEX('eP-ConceptMap-2'!$I$15:$N$250,Q73+1,R73)","v":0}]
[null,null,null,null,null,null,null,null,null,null,null,null,null,null,null,60,9,6,{"$f":"INDEX('eP-ConceptMap-2'!$I$15:$N$250,Q74+1,R74)","v":0}]
[null,null,null,null,null,null,null,null,null,null,null,null,null,null,null,61,10,1,{"$f":"INDEX('eP-ConceptMap-2'!$I$15:$N$250,Q75+1,R75)","v":0}]
[null,null,null,null,null,null,null,null,null,null,null,null,null,null,null,62,10,2,{"$f":"INDEX('eP-ConceptMap-2'!$I$15:$N$250,Q76+1,R76)","v":0}]
[null,null,null,null,null,null,null,null,null,null,null,null,null,null,null,63,10,3,{"$f":"INDEX('eP-ConceptMap-2'!$I$15:$N$250,Q77+1,R77)","v":0}]
[null,null,null,null,null,null,null,null,null,null,null,null,null,null,null,64,10,4,{"$f":"INDEX('eP-ConceptMap-2'!$I$15:$N$250,Q78+1,R78)","v":0}]
[null,null,null,null,null,null,null,null,null,null,null,null,null,null,null,65,10,5,{"$f":"INDEX('eP-ConceptMap-2'!$I$15:$N$250,Q79+1,R79)","v":0}]
[null,null,null,null,null,null,null,null,null,null,null,null,null,null,null,66,10,6,{"$f":"INDEX('eP-ConceptMap-2'!$I$15:$N$250,Q80+1,R80)","v":0}]
[null,null,null,null,null,null,null,null,null,null,null,null,null,null,null,67,{"$f":"IF(MOD(P81,$Q$8)=0,P81/$Q$8-1,INT(P81/$Q$8))","v":11},{"$f":"IF(MOD(P81,$Q$8)=0,$Q$8,MOD(P81,$Q$8))","v":1},{"$f":"INDEX('eP-ConceptMap-2'!$I$15:$N$250,Q81+1,R81)","v":0}]
[null,null,null,null,null,null,null,null,null,null,null,null,null,null,null,68,11,2,{"$f":"INDEX('eP-ConceptMap-2'!$I$15:$N$250,Q82+1,R82)","v":0}]
[null,null,null,null,null,null,null,null,null,null,null,null,null,null,null,69,11,3,{"$f":"INDEX('eP-ConceptMap-2'!$I$15:$N$250,Q83+1,R83)","v":0}]
[null,null,null,null,null,null,null,null,null,null,null,null,null,null,null,70,11,4,{"$f":"INDEX('eP-ConceptMap-2'!$I$15:$N$250,Q84+1,R84)","v":0}]
[null,null,null,null,null,null,null,null,null,null,null,null,null,null,null,71,11,5,{"$f":"INDEX('eP-ConceptMap-2'!$I$15:$N$250,Q85+1,R85)","v":0}]
[null,null,null,null,null,null,null,null,null,null,null,null,null,null,null,72,11,6,{"$f":"INDEX('eP-ConceptMap-2'!$I$15:$N$250,Q86+1,R86)","v":0}]
[null,null,null,null,null,null,null,null,null,null,null,null,null,null,null,73,12,1,{"$f":"INDEX('eP-ConceptMap-2'!$I$15:$N$250,Q87+1,R87)","v":0}]
[null,null,null,null,null,null,null,null,null,null,null,null,null,null,null,74,12,2,{"$f":"INDEX('eP-ConceptMap-2'!$I$15:$N$250,Q88+1,R88)","v":0}]
[null,null,null,null,null,null,null,null,null,null,null,null,null,null,null,75,12,3,{"$f":"INDEX('eP-ConceptMap-2'!$I$15:$N$250,Q89+1,R89)","v":0}]
[null,null,null,null,null,null,null,null,null,null,null,null,null,null,null,76,12,4,{"$f":"INDEX('eP-ConceptMap-2'!$I$15:$N$250,Q90+1,R90)","v":0}]
[null,null,null,null,null,null,null,null,null,null,null,null,null,null,null,77,12,5,{"$f":"INDEX('eP-ConceptMap-2'!$I$15:$N$250,Q91+1,R91)","v":0}]
[null,null,null,null,null,null,null,null,null,null,null,null,null,null,null,78,12,6,{"$f":"INDEX('eP-ConceptMap-2'!$I$15:$N$250,Q92+1,R92)","v":0}]
[null,null,null,null,null,null,null,null,null,null,null,null,null,null,null,79,13,1,{"$f":"INDEX('eP-ConceptMap-2'!$I$15:$N$250,Q93+1,R93)","v":0}]
[null,null,null,null,null,null,null,null,null,null,null,null,null,null,null,80,13,2,{"$f":"INDEX('eP-ConceptMap-2'!$I$15:$N$250,Q94+1,R94)","v":0}]
[null,null,null,null,null,null,null,null,null,null,null,null,null,null,null,81,13,3,{"$f":"INDEX('eP-ConceptMap-2'!$I$15:$N$250,Q95+1,R95)","v":0}]
[null,null,null,null,null,null,null,null,null,null,null,null,null,null,null,82,13,4,{"$f":"INDEX('eP-ConceptMap-2'!$I$15:$N$250,Q96+1,R96)","v":0}]
[null,null,null,null,null,null,null,null,null,null,null,null,null,null,null,83,13,5,{"$f":"INDEX('eP-ConceptMap-2'!$I$15:$N$250,Q97+1,R97)","v":0}]
[null,null,null,null,null,null,null,null,null,null,null,null,null,null,null,84,13,6,{"$f":"INDEX('eP-ConceptMap-2'!$I$15:$N$250,Q98+1,R98)","v":0}]
[null,null,null,null,null,null,null,null,null,null,null,null,null,null,null,85,14,1,{"$f":"INDEX('eP-ConceptMap-2'!$I$15:$N$250,Q99+1,R99)","v":0}]
[null,null,null,null,null,null,null,null,null,null,null,null,null,null,null,86,14,2,{"$f":"INDEX('eP-ConceptMap-2'!$I$15:$N$250,Q100+1,R100)","v":0}]
[null,null,null,null,null,null,null,null,null,null,null,null,null,null,null,87,14,3,{"$f":"INDEX('eP-ConceptMap-2'!$I$15:$N$250,Q101+1,R101)","v":0}]
[null,null,null,null,null,null,null,null,null,null,null,null,null,null,null,88,14,4,{"$f":"INDEX('eP-ConceptMap-2'!$I$15:$N$250,Q102+1,R102)","v":0}]
[null,null,null,null,null,null,null,null,null,null,null,null,null,null,null,89,14,5,{"$f":"INDEX('eP-ConceptMap-2'!$I$15:$N$250,Q103+1,R103)","v":0}]
[null,null,null,null,null,null,null,null,null,null,null,null,null,null,null,90,14,6,{"$f":"INDEX('eP-ConceptMap-2'!$I$15:$N$250,Q104+1,R104)","v":0}]
[null,null,null,null,null,null,null,null,null,null,null,null,null,null,null,91,15,1,{"$f":"INDEX('eP-ConceptMap-2'!$I$15:$N$250,Q105+1,R105)","v":0}]
[null,null,null,null,null,null,null,null,null,null,null,null,null,null,null,92,15,2,{"$f":"INDEX('eP-ConceptMap-2'!$I$15:$N$250,Q106+1,R106)","v":0}]
[null,null,null,null,null,null,null,null,null,null,null,null,null,null,null,93,15,3,{"$f":"INDEX('eP-ConceptMap-2'!$I$15:$N$250,Q107+1,R107)","v":0}]
[null,null,null,null,null,null,null,null,null,null,null,null,null,null,null,94,15,4,{"$f":"INDEX('eP-ConceptMap-2'!$I$15:$N$250,Q108+1,R108)","v":0}]
[null,null,null,null,null,null,null,null,null,null,null,null,null,null,null,95,15,5,{"$f":"INDEX('eP-ConceptMap-2'!$I$15:$N$250,Q109+1,R109)","v":0}]
[null,null,null,null,null,null,null,null,null,null,null,null,null,null,null,96,15,6,{"$f":"INDEX('eP-ConceptMap-2'!$I$15:$N$250,Q110+1,R110)","v":0}]
[null,null,null,null,null,null,null,null,null,null,null,null,null,null,null,97,16,1,{"$f":"INDEX('eP-ConceptMap-2'!$I$15:$N$250,Q111+1,R111)","v":0}]
[null,null,null,null,null,null,null,null,null,null,null,null,null,null,null,98,16,2,{"$f":"INDEX('eP-ConceptMap-2'!$I$15:$N$250,Q112+1,R112)","v":0}]
[null,null,null,null,null,null,null,null,null,null,null,null,null,null,null,99,16,3,{"$f":"INDEX('eP-ConceptMap-2'!$I$15:$N$250,Q113+1,R113)","v":0}]
[null,null,null,null,null,null,null,null,null,null,null,null,null,null,null,100,16,4,{"$f":"INDEX('eP-ConceptMap-2'!$I$15:$N$250,Q114+1,R114)","v":0}]
[null,null,null,null,null,null,null,null,null,null,null,null,null,null,null,101,16,5,{"$f":"INDEX('eP-ConceptMap-2'!$I$15:$N$250,Q115+1,R115)","v":0}]
[null,null,null,null,null,null,null,null,null,null,null,null,null,null,null,102,16,6,{"$f":"INDEX('eP-ConceptMap-2'!$I$15:$N$250,Q116+1,R116)","v":0}]
[null,null,null,null,null,null,null,null,null,null,null,null,null,null,null,103,17,1,{"$f":"INDEX('eP-ConceptMap-2'!$I$15:$N$250,Q117+1,R117)","v":0}]
[null,null,null,null,null,null,null,null,null,null,null,null,null,null,null,104,17,2,{"$f":"INDEX('eP-ConceptMap-2'!$I$15:$N$250,Q118+1,R118)","v":0}]
[null,null,null,null,null,null,null,null,null,null,null,null,null,null,null,105,17,3,{"$f":"INDEX('eP-ConceptMap-2'!$I$15:$N$250,Q119+1,R119)","v":0}]
[null,null,null,null,null,null,null,null,null,null,null,null,null,null,null,106,17,4,{"$f":"INDEX('eP-ConceptMap-2'!$I$15:$N$250,Q120+1,R120)","v":0}]
[null,null,null,null,null,null,null,null,null,null,null,null,null,null,null,107,17,5,{"$f":"INDEX('eP-ConceptMap-2'!$I$15:$N$250,Q121+1,R121)","v":0}]
[null,null,null,null,null,null,null,null,null,null,null,null,null,null,null,108,17,6,{"$f":"INDEX('eP-ConceptMap-2'!$I$15:$N$250,Q122+1,R122)","v":0}]
[null,null,null,null,null,null,null,null,null,null,null,null,null,null,null,109,18,1,{"$f":"INDEX('eP-ConceptMap-2'!$I$15:$N$250,Q123+1,R123)","v":0}]
[null,null,null,null,null,null,null,null,null,null,null,null,null,null,null,110,18,2,{"$f":"INDEX('eP-ConceptMap-2'!$I$15:$N$250,Q124+1,R124)","v":0}]
[null,null,null,null,null,null,null,null,null,null,null,null,null,null,null,111,18,3,{"$f":"INDEX('eP-ConceptMap-2'!$I$15:$N$250,Q125+1,R125)","v":0}]
[null,null,null,null,null,null,null,null,null,null,null,null,null,null,null,112,18,4,{"$f":"INDEX('eP-ConceptMap-2'!$I$15:$N$250,Q126+1,R126)","v":0}]
[null,null,null,null,null,null,null,null,null,null,null,null,null,null,null,113,18,5,{"$f":"INDEX('eP-ConceptMap-2'!$I$15:$N$250,Q127+1,R127)","v":0}]
[null,null,null,null,null,null,null,null,null,null,null,null,null,null,null,114,18,6,{"$f":"INDEX('eP-ConceptMap-2'!$I$15:$N$250,Q128+1,R128)","v":0}]
[null,null,null,null,null,null,null,null,null,null,null,null,null,null,null,115,19,1,{"$f":"INDEX('eP-ConceptMap-2'!$I$15:$N$250,Q129+1,R129)","v":0}]
[null,null,null,null,null,null,null,null,null,null,null,null,null,null,null,116,19,2,{"$f":"INDEX('eP-ConceptMap-2'!$I$15:$N$250,Q130+1,R130)","v":0}]
[null,null,null,null,null,null,null,null,null,null,null,null,null,null,null,117,19,3,{"$f":"INDEX('eP-ConceptMap-2'!$I$15:$N$250,Q131+1,R131)","v":0}]
[null,null,null,null,null,null,null,null,null,null,null,null,null,null,null,118,19,4,{"$f":"INDEX('eP-ConceptMap-2'!$I$15:$N$250,Q132+1,R132)","v":0}]
[null,null,null,null,null,null,null,null,null,null,null,null,null,null,null,119,19,5,{"$f":"INDEX('eP-ConceptMap-2'!$I$15:$N$250,Q133+1,R133)","v":0}]
[null,null,null,null,null,null,null,null,null,null,null,null,null,null,null,120,19,6,{"$f":"INDEX('eP-ConceptMap-2'!$I$15:$N$250,Q134+1,R134)","v":0}]
[null,null,null,null,null,null,null,null,null,null,null,null,null,null,null,121,20,1,{"$f":"INDEX('eP-ConceptMap-2'!$I$15:$N$250,Q135+1,R135)","v":0}]
[null,null,null,null,null,null,null,null,null,null,null,null,null,null,null,122,20,2,{"$f":"INDEX('eP-ConceptMap-2'!$I$15:$N$250,Q136+1,R136)","v":0}]
[null,null,null,null,null,null,null,null,null,null,null,null,null,null,null,123,20,3,{"$f":"INDEX('eP-ConceptMap-2'!$I$15:$N$250,Q137+1,R137)","v":0}]
[null,null,null,null,null,null,null,null,null,null,null,null,null,null,null,124,20,4,{"$f":"INDEX('eP-ConceptMap-2'!$I$15:$N$250,Q138+1,R138)","v":0}]
[null,null,null,null,null,null,null,null,null,null,null,null,null,null,null,125,20,5,{"$f":"INDEX('eP-ConceptMap-2'!$I$15:$N$250,Q139+1,R139)","v":0}]
[null,null,null,null,null,null,null,null,null,null,null,null,null,null,null,126,20,6,{"$f":"INDEX('eP-ConceptMap-2'!$I$15:$N$250,Q140+1,R140)","v":0}]
[null,null,null,null,null,null,null,null,null,null,null,null,null,null,null,127,21,1,{"$f":"INDEX('eP-ConceptMap-2'!$I$15:$N$250,Q141+1,R141)","v":0}]
[null,null,null,null,null,null,null,null,null,null,null,null,null,null,null,128,21,2,{"$f":"INDEX('eP-ConceptMap-2'!$I$15:$N$250,Q142+1,R142)","v":0}]
[null,null,null,null,null,null,null,null,null,null,null,null,null,null,null,129,21,3,{"$f":"INDEX('eP-ConceptMap-2'!$I$15:$N$250,Q143+1,R143)","v":0}]
[null,null,null,null,null,null,null,null,null,null,null,null,null,null,null,130,21,4,{"$f":"INDEX('eP-ConceptMap-2'!$I$15:$N$250,Q144+1,R144)","v":0}]
[null,null,null,null,null,null,null,null,null,null,null,null,null,null,null,131,{"$f":"IF(MOD(P145,$Q$8)=0,P145/$Q$8-1,INT(P145/$Q$8))","v":21},{"$f":"IF(MOD(P145,$Q$8)=0,$Q$8,MOD(P145,$Q$8))","v":5},{"$f":"INDEX('eP-ConceptMap-2'!$I$15:$N$250,Q145+1,R145)","v":0}]
[null,null,null,null,null,null,null,null,null,null,null,null,null,null,null,132,21,6,{"$f":"INDEX('eP-ConceptMap-2'!$I$15:$N$250,Q146+1,R146)","v":0}]
[null,null,null,null,null,null,null,null,null,null,null,null,null,null,null,133,22,1,{"$f":"INDEX('eP-ConceptMap-2'!$I$15:$N$250,Q147+1,R147)","v":0}]
[null,null,null,null,null,null,null,null,null,null,null,null,null,null,null,134,22,2,{"$f":"INDEX('eP-ConceptMap-2'!$I$15:$N$250,Q148+1,R148)","v":0}]
[null,null,null,null,null,null,null,null,null,null,null,null,null,null,null,135,22,3,{"$f":"INDEX('eP-ConceptMap-2'!$I$15:$N$250,Q149+1,R149)","v":0}]
[null,null,null,null,null,null,null,null,null,null,null,null,null,null,null,136,22,4,{"$f":"INDEX('eP-ConceptMap-2'!$I$15:$N$250,Q150+1,R150)","v":0}]
[null,null,null,null,null,null,null,null,null,null,null,null,null,null,null,137,22,5,{"$f":"INDEX('eP-ConceptMap-2'!$I$15:$N$250,Q151+1,R151)","v":0}]
[null,null,null,null,null,null,null,null,null,null,null,null,null,null,null,138,22,6,{"$f":"INDEX('eP-ConceptMap-2'!$I$15:$N$250,Q152+1,R152)","v":0}]
[null,null,null,null,null,null,null,null,null,null,null,null,null,null,null,139,23,1,{"$f":"INDEX('eP-ConceptMap-2'!$I$15:$N$250,Q153+1,R153)","v":0}]
[null,null,null,null,null,null,null,null,null,null,null,null,null,null,null,140,23,2,{"$f":"INDEX('eP-ConceptMap-2'!$I$15:$N$250,Q154+1,R154)","v":0}]
[null,null,null,null,null,null,null,null,null,null,null,null,null,null,null,163,{"$f":"IF(MOD(P155,$Q$8)=0,P155/$Q$8-1,INT(P155/$Q$8))","v":27},{"$f":"IF(MOD(P155,$Q$8)=0,$Q$8,MOD(P155,$Q$8))","v":1},{"$f":"INDEX('eP-ConceptMap-2'!$I$15:$N$250,Q155+1,R155)","v":0}]
[null,null,null,null,null,null,null,null,null,null,null,null,null,null,null,164,27,2,{"$f":"INDEX('eP-ConceptMap-2'!$I$15:$N$250,Q156+1,R156)","v":0}]
[null,null,null,null,null,null,null,null,null,null,null,null,null,null,null,165,27,3,{"$f":"INDEX('eP-ConceptMap-2'!$I$15:$N$250,Q157+1,R157)","v":0}]
[null,null,null,null,null,null,null,null,null,null,null,null,null,null,null,166,27,4,{"$f":"INDEX('eP-ConceptMap-2'!$I$15:$N$250,Q158+1,R158)","v":0}]
[null,null,null,null,null,null,null,null,null,null,null,null,null,null,null,167,27,5,{"$f":"INDEX('eP-ConceptMap-2'!$I$15:$N$250,Q159+1,R159)","v":0}]
[null,null,null,null,null,null,null,null,null,null,null,null,null,null,null,168,27,6,{"$f":"INDEX('eP-ConceptMap-2'!$I$15:$N$250,Q160+1,R160)","v":0}]
[null,null,null,null,null,null,null,null,null,null,null,null,null,null,null,169,28,1,{"$f":"INDEX('eP-ConceptMap-2'!$I$15:$N$250,Q161+1,R161)","v":0}]
[null,null,null,null,null,null,null,null,null,null,null,null,null,null,null,170,28,2,{"$f":"INDEX('eP-ConceptMap-2'!$I$15:$N$250,Q162+1,R162)","v":0}]
[null,null,null,null,null,null,null,null,null,null,null,null,null,null,null,171,28,3,{"$f":"INDEX('eP-ConceptMap-2'!$I$15:$N$250,Q163+1,R163)","v":0}]
[null,null,null,null,null,null,null,null,null,null,null,null,null,null,null,172,28,4,{"$f":"INDEX('eP-ConceptMap-2'!$I$15:$N$250,Q164+1,R164)","v":0}]
[null,null,null,null,null,null,null,null,null,null,null,null,null,null,null,173,28,5,{"$f":"INDEX('eP-ConceptMap-2'!$I$15:$N$250,Q165+1,R165)","v":0}]
[null,null,null,null,null,null,null,null,null,null,null,null,null,null,null,174,28,6,{"$f":"INDEX('eP-ConceptMap-2'!$I$15:$N$250,Q166+1,R166)","v":0}]
[null,null,null,null,null,null,null,null,null,null,null,null,null,null,null,175,29,1,{"$f":"INDEX('eP-ConceptMap-2'!$I$15:$N$250,Q167+1,R167)","v":0}]
[null,null,null,null,null,null,null,null,null,null,null,null,null,null,null,176,29,2,{"$f":"INDEX('eP-ConceptMap-2'!$I$15:$N$250,Q168+1,R168)","v":0}]
[null,null,null,null,null,null,null,null,null,null,null,null,null,null,null,177,29,3,{"$f":"INDEX('eP-ConceptMap-2'!$I$15:$N$250,Q169+1,R169)","v":0}]
[null,null,null,null,null,null,null,null,null,null,null,null,null,null,null,178,29,4,{"$f":"INDEX('eP-ConceptMap-2'!$I$15:$N$250,Q170+1,R170)","v":0}]

{"sheet":"eP-CM-fsh","index":12,"n_rows":246,"n_cols":7,"rows_kept":246,"cut":false,"hidden":false,"merged":[]}
[null,"// -------------------------------------------------------------------------------"]
[null,"//  Concept Model. File: ",null,null,null,null,{"$f":"'eP-ConceptMap'!C4&\".fsh\"","v":"eP2FHIR-eu-xpandh.fsh"}]
[null,"// -------------------------------------------------------------------------------"]
[null,{"$f":"\"Instance: \"&'eP-ConceptMap'!C4","v":"Instance: eP2FHIR-eu-xpandh"}]
[null,"InstanceOf: ConceptMap"]
[null,"Usage: #definition"]
[null,"// * url = ##34#http://terminology.hl7.it/ConceptMap/ConceptMap-subject2osiris##34#"]
[null,{"$f":"\"* name = ##34#\"&'eP-ConceptMap'!C3&\"##34#\"","v":"* name = ##34#eP2Fhir##34#"}]
[null,{"$f":"\"* title = ##34#\"&'eP-ConceptMap'!C5&\"##34#\"","v":"* title = ##34#eHN Prescription to this guide Map##34#"}]
[null,"* status = #draft"]
[null,"* experimental = true"]
[null,{"$f":"\"* description = ##34#\"&'eP-ConceptMap'!C8&\"##34#\"","v":"* description = ##34#eHN ePrescription Model to this guide Map##34#"}]
[null,{"$f":"\"* purpose = ##34#\"&'eP-ConceptMap'!C9&\"##34#\"","v":"* purpose = ##34#It shows how the ePrescription data set defined by the EU eHN guidelines is mapped into this guide##34#"}]
[null,{"$f":"\"* sourceUri = ##34#\"&'eP-ConceptMap'!E3&\"##34#\"","v":"* sourceUri = ##34#http://hl7.eu/fhir/ig/xpandh-mpd/StructureDefinition/Prescription##34#"}]
[null,{"$f":"\"* targetUri = ##34#\"&'eP-ConceptMap'!E4&\"##34#\"","v":"* targetUri = ##34#http://hl7.eu/fhir/ig/xpandh-mpd//StructureDefinition/MedicationRequest-eu-xpandh##34#"}]
[]
[null,{"$f":"\"* group[+].source = ##34#\"&'eP-ConceptMap'!E6&\"##34#\"","v":"* group[+].source = ##34#http://hl7.eu/fhir/ig/xpandh-mpd/StructureDefinition/Prescription##34#"}]
[null,{"$f":"\"* group[=].target = ##34#\"&'eP-ConceptMap'!E7&\"##34#\"","v":"* group[=].target = ##34#http://hl7.eu/fhir/ig/xpandh-mpd//StructureDefinition/MedicationRequest-eu-xpandh##34#"}]
[]
[null,{"$f":"IF('eP-ConceptMap'!S15=0,\"//---END\",'eP-ConceptMap'!S15)","v":"* group[=].element[+].code = #Prescription.patient"}]
[null,{"$f":"IF('eP-ConceptMap'!S16=0,\"//---END\",'eP-ConceptMap'!S16)","v":"* group[=].element[=].display = ##34#A.1.1 Patient administrative data##34#"}]
[null,{"$f":"IF('eP-ConceptMap'!S17=0,\"//---END\",'eP-ConceptMap'!S17)","v":"* group[=].element[=].target.code = #MedicationRequest.subject"}]
[null,{"$f":"IF('eP-ConceptMap'!S18=0,\"//---END\",'eP-ConceptMap'!S18)","v":"* group[=].element[=].target.display = ##34###34#"}]
[null,{"$f":"IF('eP-ConceptMap'!S19=0,\"//---END\",'eP-ConceptMap'!S19)","v":"* group[=].element[=].target.equivalence = #equivalent"}]
[null,{"$f":"IF('eP-ConceptMap'!S20=0,\"//---END\",'eP-ConceptMap'!S20)","v":""}]
[null,{"$f":"IF('eP-ConceptMap'!S21=0,\"//---END\",'eP-ConceptMap'!S21)","v":"* group[=].element[+].code = #Prescription.authentication"}]
[null,{"$f":"IF('eP-ConceptMap'!S22=0,\"//---END\",'eP-ConceptMap'!S22)","v":"* group[=].element[=].display = ##34#A.1.2 Authentication of the prescription##34#"}]
[null,{"$f":"IF('eP-ConceptMap'!S23=0,\"//---END\",'eP-ConceptMap'!S23)","v":"* group[=].element[=].target.code = #MedicationRequest"}]
[null,{"$f":"IF('eP-ConceptMap'!S24=0,\"//---END\",'eP-ConceptMap'!S24)","v":"* group[=].element[=].target.display = ##34###34#"}]
[null,{"$f":"IF('eP-ConceptMap'!S25=0,\"//---END\",'eP-ConceptMap'!S25)","v":"* group[=].element[=].target.equivalence = #relatedto"}]
[null,{"$f":"IF('eP-ConceptMap'!S26=0,\"//---END\",'eP-ConceptMap'!S26)","v":""}]
[null,{"$f":"IF('eP-ConceptMap'!S27=0,\"//---END\",'eP-ConceptMap'!S27)","v":"* group[=].element[+].code = #Prescription.authentication.identifier"}]
[null,{"$f":"IF('eP-ConceptMap'!S28=0,\"//---END\",'eP-ConceptMap'!S28)","v":"* group[=].element[=].display = ##34#A.1.2.1 Identifier of the Prescription##34#"}]
[null,{"$f":"IF('eP-ConceptMap'!S29=0,\"//---END\",'eP-ConceptMap'!S29)","v":"* group[=].element[=].target.code = #MedicationRequest.identifier"}]
[null,{"$f":"IF('eP-ConceptMap'!S30=0,\"//---END\",'eP-ConceptMap'!S30)","v":"* group[=].element[=].target.display = ##34###34#"}]
[null,{"$f":"IF('eP-ConceptMap'!S31=0,\"//---END\",'eP-ConceptMap'!S31)","v":"* group[=].element[=].target.equivalence = #equivalent"}]
[null,{"$f":"IF('eP-ConceptMap'!S32=0,\"//---END\",'eP-ConceptMap'!S32)","v":"* group[=].element[=].target.comment = ##34#if a prescription includes only one prescribed item##34#"}]
[null,{"$f":"IF('eP-ConceptMap'!S33=0,\"//---END\",'eP-ConceptMap'!S33)","v":"* group[=].element[+].code = #Prescription.authentication.identifier"}]
[null,{"$f":"IF('eP-ConceptMap'!S34=0,\"//---END\",'eP-ConceptMap'!S34)","v":"* group[=].element[=].display = ##34#A.1.2.1 Identifier of the Prescription##34#"}]
[null,{"$f":"IF('eP-ConceptMap'!S35=0,\"//---END\",'eP-ConceptMap'!S35)","v":"* group[=].element[=].target.code = #MedicationRequest.groupIdentifier"}]
[null,{"$f":"IF('eP-ConceptMap'!S36=0,\"//---END\",'eP-ConceptMap'!S36)","v":"* group[=].element[=].target.display = ##34###34#"}]
[null,{"$f":"IF('eP-ConceptMap'!S37=0,\"//---END\",'eP-ConceptMap'!S37)","v":"* group[=].element[=].target.equivalence = #equivalent"}]
[null,{"$f":"IF('eP-ConceptMap'!S38=0,\"//---END\",'eP-ConceptMap'!S38)","v":"* group[=].element[=].target.comment = ##34#if a prescription includes more then one prescribed item##34#"}]
[null,{"$f":"IF('eP-ConceptMap'!S39=0,\"//---END\",'eP-ConceptMap'!S39)","v":"* group[=].element[+].code = #Prescription.authentication.date"}]
[null,{"$f":"IF('eP-ConceptMap'!S40=0,\"//---END\",'eP-ConceptMap'!S40)","v":"* group[=].element[=].display = ##34#A.1.2.2 Issue date##34#"}]
[null,{"$f":"IF('eP-ConceptMap'!S41=0,\"//---END\",'eP-ConceptMap'!S41)","v":"* group[=].element[=].target.code = #MedicationRequest.authoredOn"}]
[null,{"$f":"IF('eP-ConceptMap'!S42=0,\"//---END\",'eP-ConceptMap'!S42)","v":"* group[=].element[=].target.display = ##34###34#"}]
[null,{"$f":"IF('eP-ConceptMap'!S43=0,\"//---END\",'eP-ConceptMap'!S43)","v":"* group[=].element[=].target.equivalence = #equivalent"}]
[null,{"$f":"IF('eP-ConceptMap'!S44=0,\"//---END\",'eP-ConceptMap'!S44)","v":""}]
[null,{"$f":"IF('eP-ConceptMap'!S45=0,\"//---END\",'eP-ConceptMap'!S45)","v":"* group[=].element[+].code = #Prescription.prescriber"}]
[null,{"$f":"IF('eP-ConceptMap'!S46=0,\"//---END\",'eP-ConceptMap'!S46)","v":"* group[=].element[=].display = ##34#A.1.3 Identification of the prescribing health professional##34#"}]
[null,{"$f":"IF('eP-ConceptMap'!S47=0,\"//---END\",'eP-ConceptMap'!S47)","v":"* group[=].element[=].target.code = #MedicationRequest.requester"}]
[null,{"$f":"IF('eP-ConceptMap'!S48=0,\"//---END\",'eP-ConceptMap'!S48)","v":"* group[=].element[=].target.display = ##34###34#"}]
[null,{"$f":"IF('eP-ConceptMap'!S49=0,\"//---END\",'eP-ConceptMap'!S49)","v":"* group[=].element[=].target.equivalence = #equivalent"}]
[null,{"$f":"IF('eP-ConceptMap'!S50=0,\"//---END\",'eP-ConceptMap'!S50)","v":""}]
[null,{"$f":"IF('eP-ConceptMap'!S51=0,\"//---END\",'eP-ConceptMap'!S51)","v":"* group[=].element[+].code = #Prescription.prescriber.familyName"}]
[null,{"$f":"IF('eP-ConceptMap'!S52=0,\"//---END\",'eP-ConceptMap'!S52)","v":"* group[=].element[=].display = ##34#A.1.3.1 Familyname##34#"}]
[null,{"$f":"IF('eP-ConceptMap'!S53=0,\"//---END\",'eP-ConceptMap'!S53)","v":"* group[=].element[=].target.code = #MedicationRequest.requester"}]
[null,{"$f":"IF('eP-ConceptMap'!S54=0,\"//---END\",'eP-ConceptMap'!S54)","v":"* group[=].element[=].target.display = ##34###34#"}]
[null,{"$f":"IF('eP-ConceptMap'!S55=0,\"//---END\",'eP-ConceptMap'!S55)","v":"* group[=].element[=].target.equivalence = #relatedto"}]
[null,{"$f":"IF('eP-ConceptMap'!S56=0,\"//---END\",'eP-ConceptMap'!S56)","v":"* group[=].element[=].target.comment = ##34#Details in the referred Practitioner resource##34#"}]
[null,{"$f":"IF('eP-ConceptMap'!S57=0,\"//---END\",'eP-ConceptMap'!S57)","v":"* group[=].element[+].code = #Prescription.prescriber.givenName"}]
[null,{"$f":"IF('eP-ConceptMap'!S58=0,\"//---END\",'eP-ConceptMap'!S58)","v":"* group[=].element[=].display = ##34#A.1.3.2 Given name##34#"}]
[null,{"$f":"IF('eP-ConceptMap'!S59=0,\"//---END\",'eP-ConceptMap'!S59)","v":"* group[=].element[=].target.code = #MedicationRequest.requester"}]
[null,{"$f":"IF('eP-ConceptMap'!S60=0,\"//---END\",'eP-ConceptMap'!S60)","v":"* group[=].element[=].target.display = ##34###34#"}]
[null,{"$f":"IF('eP-ConceptMap'!S61=0,\"//---END\",'eP-ConceptMap'!S61)","v":"* group[=].element[=].target.equivalence = #relatedto"}]
[null,{"$f":"IF('eP-ConceptMap'!S62=0,\"//---END\",'eP-ConceptMap'!S62)","v":"* group[=].element[=].target.comment = ##34#Details in the referred Practitioner resource##34#"}]
[null,{"$f":"IF('eP-ConceptMap'!S63=0,\"//---END\",'eP-ConceptMap'!S63)","v":"* group[=].element[+].code = #Prescription.prescriber.qualification"}]
[null,{"$f":"IF('eP-ConceptMap'!S64=0,\"//---END\",'eP-ConceptMap'!S64)","v":"* group[=].element[=].display = ##34#A.1.3.3 Professional qualifications##34#"}]
[null,{"$f":"IF('eP-ConceptMap'!S65=0,\"//---END\",'eP-ConceptMap'!S65)","v":"* group[=].element[=].target.code = #MedicationRequest.requester"}]
[null,{"$f":"IF('eP-ConceptMap'!S66=0,\"//---END\",'eP-ConceptMap'!S66)","v":"* group[=].element[=].target.display = ##34###34#"}]
[null,{"$f":"IF('eP-ConceptMap'!S67=0,\"//---END\",'eP-ConceptMap'!S67)","v":"* group[=].element[=].target.equivalence = #relatedto"}]
[null,{"$f":"IF('eP-ConceptMap'!S68=0,\"//---END\",'eP-ConceptMap'!S68)","v":"* group[=].element[=].target.comment = ##34#Details in the referred Practitioner resource##34#"}]
[null,{"$f":"IF('eP-ConceptMap'!S69=0,\"//---END\",'eP-ConceptMap'!S69)","v":"* group[=].element[+].code = #Prescription.prescriber.contact"}]
[null,{"$f":"IF('eP-ConceptMap'!S70=0,\"//---END\",'eP-ConceptMap'!S70)","v":"* group[=].element[=].display = ##34#A.1.3.4 Details for direct contact##34#"}]
[null,{"$f":"IF('eP-ConceptMap'!S71=0,\"//---END\",'eP-ConceptMap'!S71)","v":"* group[=].element[=].target.code = #MedicationRequest.requester"}]
[null,{"$f":"IF('eP-ConceptMap'!S72=0,\"//---END\",'eP-ConceptMap'!S72)","v":"* group[=].element[=].target.display = ##34###34#"}]
[null,{"$f":"IF('eP-ConceptMap'!S73=0,\"//---END\",'eP-ConceptMap'!S73)","v":"* group[=].element[=].target.equivalence = #relatedto"}]
[null,{"$f":"IF('eP-ConceptMap'!S74=0,\"//---END\",'eP-ConceptMap'!S74)","v":"* group[=].element[=].target.comment = ##34#Details in the referred Practitioner resource##34#"}]
[null,{"$f":"IF('eP-ConceptMap'!S75=0,\"//---END\",'eP-ConceptMap'!S75)","v":"* group[=].element[+].code = #Prescription.prescriber.workAddress"}]
[null,{"$f":"IF('eP-ConceptMap'!S76=0,\"//---END\",'eP-ConceptMap'!S76)","v":"* group[=].element[=].display = ##34#A.1.3.5 Work address##34#"}]
[null,{"$f":"IF('eP-ConceptMap'!S77=0,\"//---END\",'eP-ConceptMap'!S77)","v":"* group[=].element[=].target.code = #MedicationRequest.requester"}]
[null,{"$f":"IF('eP-ConceptMap'!S78=0,\"//---END\",'eP-ConceptMap'!S78)","v":"* group[=].element[=].target.display = ##34###34#"}]
[null,{"$f":"IF('eP-ConceptMap'!S79=0,\"//---END\",'eP-ConceptMap'!S79)","v":"* group[=].element[=].target.equivalence = #relatedto"}]
[null,{"$f":"IF('eP-ConceptMap'!S80=0,\"//---END\",'eP-ConceptMap'!S80)","v":"* group[=].element[=].target.comment = ##34#Details in the referred Practitioner resource##34#"}]
[null,{"$f":"IF('eP-ConceptMap'!S81=0,\"//---END\",'eP-ConceptMap'!S81)","v":"* group[=].element[+].code = #Prescription.prescriber.signature"}]
[null,{"$f":"IF('eP-ConceptMap'!S82=0,\"//---END\",'eP-ConceptMap'!S82)","v":"* group[=].element[=].display = ##34#A.1.3.6 Signature##34#"}]
[null,{"$f":"IF('eP-ConceptMap'!S83=0,\"//---END\",'eP-ConceptMap'!S83)","v":"* group[=].element[=].target.code = #MedicationRequest.requester"}]
[null,{"$f":"IF('eP-ConceptMap'!S84=0,\"//---END\",'eP-ConceptMap'!S84)","v":"* group[=].element[=].target.display = ##34###34#"}]
[null,{"$f":"IF('eP-ConceptMap'!S85=0,\"//---END\",'eP-ConceptMap'!S85)","v":"* group[=].element[=].target.equivalence = #relatedto"}]
[null,{"$f":"IF('eP-ConceptMap'!S86=0,\"//---END\",'eP-ConceptMap'!S86)","v":"* group[=].element[=].target.comment = ##34#Not implemented in the current eP / eD service##34#"}]
[null,{"$f":"IF('eP-ConceptMap'!S87=0,\"//---END\",'eP-ConceptMap'!S87)","v":"* group[=].element[+].code = #Prescription.prescriber.identifier"}]
[null,{"$f":"IF('eP-ConceptMap'!S88=0,\"//---END\",'eP-ConceptMap'!S88)","v":"* group[=].element[=].display = ##34#A.1.3.7  Health care provider identifier##34#"}]
[null,{"$f":"IF('eP-ConceptMap'!S89=0,\"//---END\",'eP-ConceptMap'!S89)","v":"* group[=].element[=].target.code = #MedicationRequest.requester"}]
[null,{"$f":"IF('eP-ConceptMap'!S90=0,\"//---END\",'eP-ConceptMap'!S90)","v":"* group[=].element[=].target.display = ##34###34#"}]
[null,{"$f":"IF('eP-ConceptMap'!S91=0,\"//---END\",'eP-ConceptMap'!S91)","v":"* group[=].element[=].target.equivalence = #relatedto"}]
[null,{"$f":"IF('eP-ConceptMap'!S92=0,\"//---END\",'eP-ConceptMap'!S92)","v":"* group[=].element[=].target.comment = ##34#Details in the referred Practitioner resource##34#"}]
[null,{"$f":"IF('eP-ConceptMap'!S93=0,\"//---END\",'eP-ConceptMap'!S93)","v":"* group[=].element[+].code = #Prescription.product"}]
[null,{"$f":"IF('eP-ConceptMap'!S94=0,\"//---END\",'eP-ConceptMap'!S94)","v":"* group[=].element[=].display = ##34#A1.4 Identification of the prescribed product##34#"}]
[null,{"$f":"IF('eP-ConceptMap'!S95=0,\"//---END\",'eP-ConceptMap'!S95)","v":"* group[=].element[=].target.code = #MedicationRequest.medicationReference"}]
[null,{"$f":"IF('eP-ConceptMap'!S96=0,\"//---END\",'eP-ConceptMap'!S96)","v":"* group[=].element[=].target.display = ##34###34#"}]
[null,{"$f":"IF('eP-ConceptMap'!S97=0,\"//---END\",'eP-ConceptMap'!S97)","v":"* group[=].element[=].target.equivalence = #equivalent"}]
[null,{"$f":"IF('eP-ConceptMap'!S98=0,\"//---END\",'eP-ConceptMap'!S98)","v":""}]
[null,{"$f":"IF('eP-ConceptMap'!S99=0,\"//---END\",'eP-ConceptMap'!S99)","v":"* group[=].element[+].code = #Prescription.details"}]
[null,{"$f":"IF('eP-ConceptMap'!S100=0,\"//---END\",'eP-ConceptMap'!S100)","v":"* group[=].element[=].display = ##34#A.1.5 Prescription information##34#"}]
[null,{"$f":"IF('eP-ConceptMap'!S101=0,\"//---END\",'eP-ConceptMap'!S101)","v":"* group[=].element[=].target.code = #MedicationRequest"}]
[null,{"$f":"IF('eP-ConceptMap'!S102=0,\"//---END\",'eP-ConceptMap'!S102)","v":"* group[=].element[=].target.display = ##34###34#"}]
[null,{"$f":"IF('eP-ConceptMap'!S103=0,\"//---END\",'eP-ConceptMap'!S103)","v":"* group[=].element[=].target.equivalence = #relatedto"}]
[null,{"$f":"IF('eP-ConceptMap'!S104=0,\"//---END\",'eP-ConceptMap'!S104)","v":""}]
[null,{"$f":"IF('eP-ConceptMap'!S105=0,\"//---END\",'eP-ConceptMap'!S105)","v":"* group[=].element[+].code = #Prescription.details.quantity"}]
[null,{"$f":"IF('eP-ConceptMap'!S106=0,\"//---END\",'eP-ConceptMap'!S106)","v":"* group[=].element[=].display = ##34#A.1.5.2 Quantity of prescribed product##34#"}]
[null,{"$f":"IF('eP-ConceptMap'!S107=0,\"//---END\",'eP-ConceptMap'!S107)","v":"* group[=].element[=].target.code = #MedicationRequest.dispenseRequest.quantity"}]
[null,{"$f":"IF('eP-ConceptMap'!S108=0,\"//---END\",'eP-ConceptMap'!S108)","v":"* group[=].element[=].target.display = ##34###34#"}]
[null,{"$f":"IF('eP-ConceptMap'!S109=0,\"//---END\",'eP-ConceptMap'!S109)","v":"* group[=].element[=].target.equivalence = #relatedto"}]
[null,{"$f":"IF('eP-ConceptMap'!S110=0,\"//---END\",'eP-ConceptMap'!S110)","v":""}]
[null,{"$f":"IF('eP-ConceptMap'!S111=0,\"//---END\",'eP-ConceptMap'!S111)","v":"* group[=].element[+].code = #Prescription.details.doseRegimen"}]
[null,{"$f":"IF('eP-ConceptMap'!S112=0,\"//---END\",'eP-ConceptMap'!S112)","v":"* group[=].element[=].display = ##34#A.1.5.3 Dose regimen##34#"}]
[null,{"$f":"IF('eP-ConceptMap'!S113=0,\"//---END\",'eP-ConceptMap'!S113)","v":"* group[=].element[=].target.code = #MedicationRequest.dosageInstruction"}]
[null,{"$f":"IF('eP-ConceptMap'!S114=0,\"//---END\",'eP-ConceptMap'!S114)","v":"* group[=].element[=].target.display = ##34###34#"}]
[null,{"$f":"IF('eP-ConceptMap'!S115=0,\"//---END\",'eP-ConceptMap'!S115)","v":"* group[=].element[=].target.equivalence = #equivalent"}]
[null,{"$f":"IF('eP-ConceptMap'!S116=0,\"//---END\",'eP-ConceptMap'!S116)","v":""}]
[null,{"$f":"IF('eP-ConceptMap'!S117=0,\"//---END\",'eP-ConceptMap'!S117)","v":"* group[=].element[+].code = #Prescription.details.doseRegimen.numOfIntakes"}]
[null,{"$f":"IF('eP-ConceptMap'!S118=0,\"//---END\",'eP-ConceptMap'!S118)","v":"* group[=].element[=].display = ##34#A.1.5.3.1 Number of units per intake##34#"}]
[null,{"$f":"IF('eP-ConceptMap'!S119=0,\"//---END\",'eP-ConceptMap'!S119)","v":"* group[=].element[=].target.code = #MedicationRequest.dosageInstruction.doseAndRate.doseQuantity"}]
[null,{"$f":"IF('eP-ConceptMap'!S120=0,\"//---END\",'eP-ConceptMap'!S120)","v":"* group[=].element[=].target.display = ##34###34#"}]
[null,{"$f":"IF('eP-ConceptMap'!S121=0,\"//---END\",'eP-ConceptMap'!S121)","v":"* group[=].element[=].target.equivalence = #equivalent"}]
[null,{"$f":"IF('eP-ConceptMap'!S122=0,\"//---END\",'eP-ConceptMap'!S122)","v":""}]
[null,{"$f":"IF('eP-ConceptMap'!S123=0,\"//---END\",'eP-ConceptMap'!S123)","v":"* group[=].element[+].code = #Prescription.details.doseRegimen.frequencyOfIntakes"}]
[null,{"$f":"IF('eP-ConceptMap'!S124=0,\"//---END\",'eP-ConceptMap'!S124)","v":"* group[=].element[=].display = ##34#A.1.5.3.2 Frequency of intakes##34#"}]
[null,{"$f":"IF('eP-ConceptMap'!S125=0,\"//---END\",'eP-ConceptMap'!S125)","v":"* group[=].element[=].target.code = #MedicationRequest.dosageInstruction.timing"}]
[null,{"$f":"IF('eP-ConceptMap'!S126=0,\"//---END\",'eP-ConceptMap'!S126)","v":"* group[=].element[=].target.display = ##34###34#"}]
[null,{"$f":"IF('eP-ConceptMap'!S127=0,\"//---END\",'eP-ConceptMap'!S127)","v":"* group[=].element[=].target.equivalence = #relatedto"}]
[null,{"$f":"IF('eP-ConceptMap'!S128=0,\"//---END\",'eP-ConceptMap'!S128)","v":"* group[=].element[=].target.comment = ##34#A combination of frequency, period and periodUnit.\n'3 times per day', 3 would be the frequency and '1 day' would be the period/periodUnit.##34#"}]
[null,{"$f":"IF('eP-ConceptMap'!S129=0,\"//---END\",'eP-ConceptMap'!S129)","v":"* group[=].element[+].code = #Prescription.details.route"}]
[null,{"$f":"IF('eP-ConceptMap'!S130=0,\"//---END\",'eP-ConceptMap'!S130)","v":"* group[=].element[=].display = ##34#A.1.5.4 Route of administration##34#"}]
[null,{"$f":"IF('eP-ConceptMap'!S131=0,\"//---END\",'eP-ConceptMap'!S131)","v":"* group[=].element[=].target.code = #MedicationRequest.dosageInstruction.route"}]
[null,{"$f":"IF('eP-ConceptMap'!S132=0,\"//---END\",'eP-ConceptMap'!S132)","v":"* group[=].element[=].target.display = ##34###34#"}]
[null,{"$f":"IF('eP-ConceptMap'!S133=0,\"//---END\",'eP-ConceptMap'!S133)","v":"* group[=].element[=].target.equivalence = #equivalent"}]
[null,{"$f":"IF('eP-ConceptMap'!S134=0,\"//---END\",'eP-ConceptMap'!S134)","v":""}]
[null,{"$f":"IF('eP-ConceptMap'!S135=0,\"//---END\",'eP-ConceptMap'!S135)","v":"* group[=].element[+].code = #Prescription.details.duration"}]
[null,{"$f":"IF('eP-ConceptMap'!S136=0,\"//---END\",'eP-ConceptMap'!S136)","v":"* group[=].element[=].display = ##34#A.1.5.5 Duration of treatment##34#"}]
[null,{"$f":"IF('eP-ConceptMap'!S137=0,\"//---END\",'eP-ConceptMap'!S137)","v":"* group[=].element[=].target.code = #MedicationRequest.dosageInstruction.timing.repeat.duration"}]
[null,{"$f":"IF('eP-ConceptMap'!S138=0,\"//---END\",'eP-ConceptMap'!S138)","v":"* group[=].element[=].target.display = ##34###34#"}]
[null,{"$f":"IF('eP-ConceptMap'!S139=0,\"//---END\",'eP-ConceptMap'!S139)","v":"* group[=].element[=].target.equivalence = #equivalent"}]
[null,{"$f":"IF('eP-ConceptMap'!S140=0,\"//---END\",'eP-ConceptMap'!S140)","v":""}]
[null,{"$f":"IF('eP-ConceptMap'!S141=0,\"//---END\",'eP-ConceptMap'!S141)","v":"* group[=].element[+].code = #Prescription.details.startDate"}]
[null,{"$f":"IF('eP-ConceptMap'!S142=0,\"//---END\",'eP-ConceptMap'!S142)","v":"* group[=].element[=].display = ##34#A.1.5.6 Starting date of therapy ##34#"}]
[null,{"$f":"IF('eP-ConceptMap'!S143=0,\"//---END\",'eP-ConceptMap'!S143)","v":"* group[=].element[=].target.code = #MedicationRequest.dosageInstruction.timing.duration"}]
[null,{"$f":"IF('eP-ConceptMap'!S144=0,\"//---END\",'eP-ConceptMap'!S144)","v":"* group[=].element[=].target.display = ##34###34#"}]
[null,{"$f":"IF('eP-ConceptMap'!S145=0,\"//---END\",'eP-ConceptMap'!S145)","v":"* group[=].element[=].target.equivalence = #relatedto"}]
[null,{"$f":"IF('eP-ConceptMap'!S146=0,\"//---END\",'eP-ConceptMap'!S146)","v":""}]
[null,{"$f":"IF('eP-ConceptMap'!S147=0,\"//---END\",'eP-ConceptMap'!S147)","v":"* group[=].element[+].code = #Prescription.details.directionsOfUse"}]
[null,{"$f":"IF('eP-ConceptMap'!S148=0,\"//---END\",'eP-ConceptMap'!S148)","v":"* group[=].element[=].display = ##34#A.1.5.7 Directions for use##34#"}]
[null,{"$f":"IF('eP-ConceptMap'!S149=0,\"//---END\",'eP-ConceptMap'!S149)","v":"* group[=].element[=].target.code = #MedicationRequest.dosageInstruction"}]
[null,{"$f":"IF('eP-ConceptMap'!S150=0,\"//---END\",'eP-ConceptMap'!S150)","v":"* group[=].element[=].target.display = ##34###34#"}]
[null,{"$f":"IF('eP-ConceptMap'!S151=0,\"//---END\",'eP-ConceptMap'!S151)","v":"* group[=].element[=].target.equivalence = #relatedto"}]
[null,{"$f":"IF('eP-ConceptMap'!S152=0,\"//---END\",'eP-ConceptMap'!S152)","v":""}]
[null,{"$f":"IF('eP-ConceptMap'!S153=0,\"//---END\",'eP-ConceptMap'!S153)","v":"* group[=].element[+].code = #Prescription.details.expiryDate"}]
[null,{"$f":"IF('eP-ConceptMap'!S154=0,\"//---END\",'eP-ConceptMap'!S154)","v":"* group[=].element[=].display = ##34#A.1.5.8 Prescription expiry date##34#"}]
[null,{"$f":"IF('eP-ConceptMap'!S155=0,\"//---END\",'eP-ConceptMap'!S155)","v":"* group[=].element[=].target.code = #MedicationRequest.dispenseRequest.validityPeriod"}]
[null,{"$f":"IF('eP-ConceptMap'!S156=0,\"//---END\",'eP-ConceptMap'!S156)","v":"* group[=].element[=].target.display = ##34###34#"}]
[null,{"$f":"IF('eP-ConceptMap'!S157=0,\"//---END\",'eP-ConceptMap'!S157)","v":"* group[=].element[=].target.equivalence = #equivalent"}]
[null,{"$f":"IF('eP-ConceptMap'!S158=0,\"//---END\",'eP-ConceptMap'!S158)","v":""}]
[null,{"$f":"IF('eP-ConceptMap'!S159=0,\"//---END\",'eP-ConceptMap'!S159)","v":"* group[=].element[+].code = #Prescription.details.repeats"}]
[null,{"$f":"IF('eP-ConceptMap'!S160=0,\"//---END\",'eP-ConceptMap'!S160)","v":"* group[=].element[=].display = ##34#A.1.5.9 Repeats##34#"}]
[null,{"$f":"IF('eP-ConceptMap'!S161=0,\"//---END\",'eP-ConceptMap'!S161)","v":"* group[=].element[=].target.code = #MedicationRequest"}]
[null,{"$f":"IF('eP-ConceptMap'!S162=0,\"//---END\",'eP-ConceptMap'!S162)","v":"* group[=].element[=].target.display = ##34###34#"}]
[null,{"$f":"IF('eP-ConceptMap'!S163=0,\"//---END\",'eP-ConceptMap'!S163)","v":"* group[=].element[=].target.equivalence = #relatedto"}]
[null,{"$f":"IF('eP-ConceptMap'!S164=0,\"//---END\",'eP-ConceptMap'!S164)","v":"* group[=].element[=].target.comment = ##34#TO BE DISCUSSED##34#"}]
[null,{"$f":"IF('eP-ConceptMap'!S165=0,\"//---END\",'eP-ConceptMap'!S165)","v":"* group[=].element[+].code = #Prescription.details.reason"}]
[null,{"$f":"IF('eP-ConceptMap'!S166=0,\"//---END\",'eP-ConceptMap'!S166)","v":"* group[=].element[=].display = ##34#A.1.5.10 Reason for prescription##34#"}]
[null,{"$f":"IF('eP-ConceptMap'!S167=0,\"//---END\",'eP-ConceptMap'!S167)","v":"* group[=].element[=].target.code = #MedicationRequest.reasonReference"}]
[null,{"$f":"IF('eP-ConceptMap'!S168=0,\"//---END\",'eP-ConceptMap'!S168)","v":"* group[=].element[=].target.display = ##34###34#"}]
[null,{"$f":"IF('eP-ConceptMap'!S169=0,\"//---END\",'eP-ConceptMap'!S169)","v":"* group[=].element[=].target.equivalence = #relatedto"}]
[null,{"$f":"IF('eP-ConceptMap'!S170=0,\"//---END\",'eP-ConceptMap'!S170)","v":""}]
[null,{"$f":"IF('eP-ConceptMap'!S171=0,\"//---END\",'eP-ConceptMap'!S171)","v":"* group[=].element[+].code = #Prescription.details.reason"}]
[null,{"$f":"IF('eP-ConceptMap'!S172=0,\"//---END\",'eP-ConceptMap'!S172)","v":"* group[=].element[=].display = ##34#A.1.5.10 Reason for prescription##34#"}]
[null,{"$f":"IF('eP-ConceptMap'!S173=0,\"//---END\",'eP-ConceptMap'!S173)","v":"* group[=].element[=].target.code = #MedicationRequest.reasonCode"}]
[null,{"$f":"IF('eP-ConceptMap'!S174=0,\"//---END\",'eP-ConceptMap'!S174)","v":"* group[=].element[=].target.display = ##34###34#"}]
[null,{"$f":"IF('eP-ConceptMap'!S175=0,\"//---END\",'eP-ConceptMap'!S175)","v":"* group[=].element[=].target.equivalence = #equivalent"}]
[null,{"$f":"IF('eP-ConceptMap'!S176=0,\"//---END\",'eP-ConceptMap'!S176)","v":""}]
[null,{"$f":"IF('eP-ConceptMap'!S177=0,\"//---END\",'eP-ConceptMap'!S177)","v":"* group[=].element[+].code = #Prescription.details.substitution"}]
[null,{"$f":"IF('eP-ConceptMap'!S178=0,\"//---END\",'eP-ConceptMap'!S178)","v":"* group[=].element[=].display = ##34#A.1.5.11 Substitution##34#"}]
[null,{"$f":"IF('eP-ConceptMap'!S179=0,\"//---END\",'eP-ConceptMap'!S179)","v":"* group[=].element[=].target.code = #MedicationRequest.substitution.allowedCodeableConcept"}]
[null,{"$f":"IF('eP-ConceptMap'!S180=0,\"//---END\",'eP-ConceptMap'!S180)","v":"* group[=].element[=].target.display = ##34###34#"}]
[null,{"$f":"IF('eP-ConceptMap'!S181=0,\"//---END\",'eP-ConceptMap'!S181)","v":"* group[=].element[=].target.equivalence = #equivalent"}]
[null,{"$f":"IF('eP-ConceptMap'!S182=0,\"//---END\",'eP-ConceptMap'!S182)","v":""}]
[null,{"$f":"IF('eP-ConceptMap'!S183=0,\"//---END\",'eP-ConceptMap'!S183)","v":"//---END"}]
[null,{"$f":"IF('eP-ConceptMap'!S184=0,\"//---END\",'eP-ConceptMap'!S184)","v":"//---END"}]
[null,{"$f":"IF('eP-ConceptMap'!S185=0,\"//---END\",'eP-ConceptMap'!S185)","v":"//---END"}]
[null,{"$f":"IF('eP-ConceptMap'!S186=0,\"//---END\",'eP-ConceptMap'!S186)","v":"//---END"}]
[null,{"$f":"IF('eP-ConceptMap'!S187=0,\"//---END\",'eP-ConceptMap'!S187)","v":"//---END"}]
[null,{"$f":"IF('eP-ConceptMap'!S188=0,\"//---END\",'eP-ConceptMap'!S188)","v":"//---END"}]
[null,{"$f":"IF('eP-ConceptMap'!S189=0,\"//---END\",'eP-ConceptMap'!S189)","v":"//---END"}]
[]
[]
[]
[]
[]
[]
[null,{"$f":"\"* group[+].source = ##34#\"&'eP-ConceptMap-2'!E6&\"##34#\"","v":"* group[+].source = ##34#http://hl7.eu/fhir/ig/xpandh-mpd/StructureDefinition/Prescription##34#"}]
[null,{"$f":"\"* group[=].target = ##34#\"&'eP-ConceptMap-2'!E7&\"##34#\"","v":"* group[=].target = ##34#http://hl7.eu/fhir/ig/xpandh-mpd/StructureDefinition/Practitioner-eu-xpandh##34#"}]
[]
[null,{"$f":"IF('eP-ConceptMap-2'!S15=0,\"//---END\",'eP-ConceptMap-2'!S15)","v":"* group[=].element[+].code = #Prescription.prescriber.familyName"}]
[null,{"$f":"IF('eP-ConceptMap-2'!S16=0,\"//---END\",'eP-ConceptMap-2'!S16)","v":"* group[=].element[=].display = ##34#A.1.3.1 Familyname##34#"}]
[null,{"$f":"IF('eP-ConceptMap-2'!S17=0,\"//---END\",'eP-ConceptMap-2'!S17)","v":"* group[=].element[=].target.code = #Practitioner.name.given"}]
[null,{"$f":"IF('eP-ConceptMap-2'!S18=0,\"//---END\",'eP-ConceptMap-2'!S18)","v":"* group[=].element[=].target.display = ##34###34#"}]
[null,{"$f":"IF('eP-ConceptMap-2'!S19=0,\"//---END\",'eP-ConceptMap-2'!S19)","v":"* group[=].element[=].target.equivalence = #equivalent"}]
[null,{"$f":"IF('eP-ConceptMap-2'!S20=0,\"//---END\",'eP-ConceptMap-2'!S20)","v":""}]
[null,{"$f":"IF('eP-ConceptMap-2'!S21=0,\"//---END\",'eP-ConceptMap-2'!S21)","v":"* group[=].element[+].code = #Prescription.prescriber.givenName"}]
[null,{"$f":"IF('eP-ConceptMap-2'!S22=0,\"//---END\",'eP-ConceptMap-2'!S22)","v":"* group[=].element[=].display = ##34#A.1.3.2 Given name##34#"}]
[null,{"$f":"IF('eP-ConceptMap-2'!S23=0,\"//---END\",'eP-ConceptMap-2'!S23)","v":"* group[=].element[=].target.code = #Practitioner.name.family"}]
[null,{"$f":"IF('eP-ConceptMap-2'!S24=0,\"//---END\",'eP-ConceptMap-2'!S24)","v":"* group[=].element[=].target.display = ##34###34#"}]
[null,{"$f":"IF('eP-ConceptMap-2'!S25=0,\"//---END\",'eP-ConceptMap-2'!S25)","v":"* group[=].element[=].target.equivalence = #equivalent"}]
[null,{"$f":"IF('eP-ConceptMap-2'!S26=0,\"//---END\",'eP-ConceptMap-2'!S26)","v":""}]
[null,{"$f":"IF('eP-ConceptMap-2'!S27=0,\"//---END\",'eP-ConceptMap-2'!S27)","v":"* group[=].element[+].code = #Prescription.prescriber.qualification"}]
[null,{"$f":"IF('eP-ConceptMap-2'!S28=0,\"//---END\",'eP-ConceptMap-2'!S28)","v":"* group[=].element[=].display = ##34#A.1.3.3 Professional qualifications##34#"}]
[null,{"$f":"IF('eP-ConceptMap-2'!S29=0,\"//---END\",'eP-ConceptMap-2'!S29)","v":"* group[=].element[=].target.code = #Practitioner.qualification"}]
[null,{"$f":"IF('eP-ConceptMap-2'!S30=0,\"//---END\",'eP-ConceptMap-2'!S30)","v":"* group[=].element[=].target.display = ##34###34#"}]
[null,{"$f":"IF('eP-ConceptMap-2'!S31=0,\"//---END\",'eP-ConceptMap-2'!S31)","v":"* group[=].element[=].target.equivalence = #equivalent"}]
[null,{"$f":"IF('eP-ConceptMap-2'!S32=0,\"//---END\",'eP-ConceptMap-2'!S32)","v":""}]
[null,{"$f":"IF('eP-ConceptMap-2'!S33=0,\"//---END\",'eP-ConceptMap-2'!S33)","v":"* group[=].element[+].code = #Prescription.prescriber.contact"}]
[null,{"$f":"IF('eP-ConceptMap-2'!S34=0,\"//---END\",'eP-ConceptMap-2'!S34)","v":"* group[=].element[=].display = ##34#A.1.3.4 Details for direct contact##34#"}]
[null,{"$f":"IF('eP-ConceptMap-2'!S35=0,\"//---END\",'eP-ConceptMap-2'!S35)","v":"* group[=].element[=].target.code = #Practitioner.telecom"}]
[null,{"$f":"IF('eP-ConceptMap-2'!S36=0,\"//---END\",'eP-ConceptMap-2'!S36)","v":"* group[=].element[=].target.display = ##34###34#"}]
[null,{"$f":"IF('eP-ConceptMap-2'!S37=0,\"//---END\",'eP-ConceptMap-2'!S37)","v":"* group[=].element[=].target.equivalence = #equivalent"}]
[null,{"$f":"IF('eP-ConceptMap-2'!S38=0,\"//---END\",'eP-ConceptMap-2'!S38)","v":""}]
[null,{"$f":"IF('eP-ConceptMap-2'!S39=0,\"//---END\",'eP-ConceptMap-2'!S39)","v":"* group[=].element[+].code = #Prescription.prescriber.workAddress"}]
[null,{"$f":"IF('eP-ConceptMap-2'!S40=0,\"//---END\",'eP-ConceptMap-2'!S40)","v":"* group[=].element[=].display = ##34#A.1.3.5 Work address##34#"}]
[null,{"$f":"IF('eP-ConceptMap-2'!S41=0,\"//---END\",'eP-ConceptMap-2'!S41)","v":"* group[=].element[=].target.code = #Practitioner.address"}]
[null,{"$f":"IF('eP-ConceptMap-2'!S42=0,\"//---END\",'eP-ConceptMap-2'!S42)","v":"* group[=].element[=].target.display = ##34###34#"}]
[null,{"$f":"IF('eP-ConceptMap-2'!S43=0,\"//---END\",'eP-ConceptMap-2'!S43)","v":"* group[=].element[=].target.equivalence = #equivalent"}]
[null,{"$f":"IF('eP-ConceptMap-2'!S44=0,\"//---END\",'eP-ConceptMap-2'!S44)","v":"* group[=].element[=].target.comment = ##34#where use = 'work'##34#"}]
[null,{"$f":"IF('eP-ConceptMap-2'!S45=0,\"//---END\",'eP-ConceptMap-2'!S45)","v":"* group[=].element[+].code = #Prescription.prescriber.identifier"}]
[null,{"$f":"IF('eP-ConceptMap-2'!S46=0,\"//---END\",'eP-ConceptMap-2'!S46)","v":"* group[=].element[=].display = ##34#A.1.3.7  Health care provider identifier##34#"}]
[null,{"$f":"IF('eP-ConceptMap-2'!S47=0,\"//---END\",'eP-ConceptMap-2'!S47)","v":"* group[=].element[=].target.code = #Practitioner.identifier"}]
[null,{"$f":"IF('eP-ConceptMap-2'!S48=0,\"//---END\",'eP-ConceptMap-2'!S48)","v":"* group[=].element[=].target.display = ##34###34#"}]
[null,{"$f":"IF('eP-ConceptMap-2'!S49=0,\"//---END\",'eP-ConceptMap-2'!S49)","v":"* group[=].element[=].target.equivalence = #relatedto"}]
[null,{"$f":"IF('eP-ConceptMap-2'!S50=0,\"//---END\",'eP-ConceptMap-2'!S50)","v":""}]
[null,{"$f":"IF('eP-ConceptMap-2'!S51=0,\"//---END\",'eP-ConceptMap-2'!S51)","v":"//---END"}]
[null,{"$f":"IF('eP-ConceptMap-2'!S52=0,\"//---END\",'eP-ConceptMap-2'!S52)","v":"//---END"}]
[null,{"$f":"IF('eP-ConceptMap-2'!S53=0,\"//---END\",'eP-ConceptMap-2'!S53)","v":"//---END"}]
[null,{"$f":"IF('eP-ConceptMap-2'!S54=0,\"//---END\",'eP-ConceptMap-2'!S54)","v":"//---END"}]
[null,{"$f":"IF('eP-ConceptMap-2'!S55=0,\"//---END\",'eP-ConceptMap-2'!S55)","v":"//---END"}]
[null,{"$f":"IF('eP-ConceptMap-2'!S56=0,\"//---END\",'eP-ConceptMap-2'!S56)","v":"//---END"}]
[null,{"$f":"IF('eP-ConceptMap-2'!S57=0,\"//---END\",'eP-ConceptMap-2'!S57)","v":"//---END"}]

{"sheet":"Subj","index":13,"n_rows":16,"n_cols":9,"rows_kept":16,"cut":false,"hidden":false,"merged":[]}
[null,null,null,null,null,null,null,null,"// -------------------------------------------------------------------------------"]
[null,null,null,null,null,null,null,null,"//  Logical Model"]
[null,null,null,null,null,null,null,null,{"$f":"I1","v":"// -------------------------------------------------------------------------------"}]
["Name","SubjectEpEhn",null,null,null,null,null,null,{"$f":"CONCATENATE(\"Logical: \",B4)","v":"Logical: SubjectEpEhn"}]
["Id","Subject",null,null,null,null,null,null,{"$f":"CONCATENATE(\"Id: \",B5)","v":"Id: Subject"}]
["Title","A.1.1 Patient administrative data",null,null,null,null,null,null,{"$f":"CONCATENATE(\"Title: ##34#\",B6,\"##34#\")","v":"Title: ##34#A.1.1 Patient administrative data##34#"}]
["Description","Patient. Sections A1.1 of the eHN guideline.","Data Element ","Data element description","min","max","dataType",null,{"$f":"CONCATENATE(\"Description: \",\" ##334#\",B7,\"##334#\",)","v":"Description:  ##334#Patient. Sections A1.1 of the eHN guideline.##334#"}]
[1,"familyName","A.1.1.1 Familyname/surname","The family name/surname/last name of the patient. This field can contain more than one element or multiple fields could be present.",0,"*","string",null,{"$f":"CONCATENATE(\"* \",B8, \" \",E8,\"..\",F8,\" \",G8,\" ##34#\",C8,\"##34# ##334#\",D8,\"##334#\")","v":"* familyName 0..* string ##34#A.1.1.1 Familyname/surname##34# ##334#The family name/surname/last name of the patient. This field can contain more than one element or multiple fields could be present.##334#"}]
[2,"givenName","A.1.1.2 Given name","The given name/first name of the patient (also known as forename or first \nname) [ISO TS 22220:2011]. This field can contain more than one element.",0,"*","string",null,{"$f":"CONCATENATE(\"* \",B9, \" \",E9,\"..\",F9,\" \",G9,\" ##34#\",C9,\"##34# ##334#\",D9,\"##334#\")","v":"* givenName 0..* string ##34#A.1.1.2 Given name##34# ##334#The given name/first name of the patient (also known as forename or first \nname) [ISO TS 22220:2011]. This field can contain more than one element.##334#"}]
[3,"dateOfBirth","A.1.1.3 Date of birth","The date of birth of the patient [ISO TS 22220:2011].\nThis field may contain only the year if the day and month are not available, \ne.g.: 2009 - Preferred system(s): ISO 8601 ",0,1,"dateTime",null,"* dateOfBirth 0..1 dateTime ##34#A.1.1.3 Date of birth##34# ##334#The date of birth of the patient [ISO TS 22220:2011].\nThis field may contain only the year if the day and month are not available, \ne.g.: 2009 - Preferred system(s): ISO 8601 ##334#"]
[4,"identifier","A.1.1.4 Personal identifier","Country ID, unique to the patient in that country. Example: ID for a Portuguese patient, national healthcare patient ID. Multiple identifiers could be provided.",0,1,"Identifier",null,"* identifier 0..1 Identifier ##34#A.1.1.4 Personal identifier##34# ##334#Country ID, unique to the patient in that country. Example: ID for a Portuguese patient, national healthcare patient ID. Multiple identifiers could be provided.##334#"]
[5,"gender","A.1.1.5 Gender","This field must contain a recognised valid value for 'administrative gender'. \nIf different, 'physiological sex' should be communicated elsewhere.",0,1,"CodeableConcept",null,"* gender 0..1 CodeableConcept ##34#A.1.1.5 Gender##34# ##334#This field must contain a recognised valid value for 'administrative gender'. \nIf different, 'physiological sex' should be communicated elsewhere.##334#"]
[null,null,null,null,null,null,null,null,"*  ..  ##34###34# ##334###334#"]
[null,null,null,null,null,null,null,null,"*  ..  ##34###34# ##334###334#"]
[null,null,null,null,null,null,null,null,"*  ..  ##34###34# ##334###334#"]
[null,null,null,null,null,null,null,null,"*  ..  ##34###34# ##334###334#"]

{"sheet":"Subj-fsh","index":14,"n_rows":32,"n_cols":7,"rows_kept":32,"cut":false,"hidden":false,"merged":[]}
[null,null,{"$f":"Subj!I1","v":"// -------------------------------------------------------------------------------"}]
[null,null,{"$f":"Subj!I2","v":"//  Logical Model"},null,null,null,{"$f":"Subj!B5&\".fsh\"","v":"Subject.fsh"}]
[null,null,{"$f":"Subj!I3","v":"// -------------------------------------------------------------------------------"}]
[null,null,{"$f":"Subj!I4","v":"Logical: SubjectEpEhn"}]
[null,null,{"$f":"Subj!I5","v":"Id: Subject"}]
[null,null,{"$f":"Subj!I6","v":"Title: ##34#A.1.1 Patient administrative data##34#"}]
[null,null,{"$f":"Subj!I7","v":"Description:  ##334#Patient. Sections A1.1 of the eHN guideline.##334#"}]
[null,null,{"$f":"IF(Subj!I8=\"*  ..  ##34###34# ##334###334#\",\"//--- END\",Subj!I8)","v":"* familyName 0..* string ##34#A.1.1.1 Familyname/surname##34# ##334#The family name/surname/last name of the patient. This field can contain more than one element or multiple fields could be present.##334#"}]
[null,null,{"$f":"IF(Subj!I9=\"*  ..  ##34###34# ##334###334#\",\"//--- END\",Subj!I9)","v":"* givenName 0..* string ##34#A.1.1.2 Given name##34# ##334#The given name/first name of the patient (also known as forename or first \nname) [ISO TS 22220:2011]. This field can contain more than one element.##334#"}]
[null,null,{"$f":"IF(Subj!I10=\"*  ..  ##34###34# ##334###334#\",\"//--- END\",Subj!I10)","v":"* dateOfBirth 0..1 dateTime ##34#A.1.1.3 Date of birth##34# ##334#The date of birth of the patient [ISO TS 22220:2011].\nThis field may contain only the year if the day and month are not available, \ne.g.: 2009 - Preferred system(s): ISO 8601 ##334#"},null," "]
[null,null,{"$f":"IF(Subj!I11=\"*  ..  ##34###34# ##334###334#\",\"//--- END\",Subj!I11)","v":"* identifier 0..1 Identifier ##34#A.1.1.4 Personal identifier##34# ##334#Country ID, unique to the patient in that country. Example: ID for a Portuguese patient, national healthcare patient ID. Multiple identifiers could be provided.##334#"}]
[null,null,{"$f":"IF(Subj!I12=\"*  ..  ##34###34# ##334###334#\",\"//--- END\",Subj!I12)","v":"* gender 0..1 CodeableConcept ##34#A.1.1.5 Gender##34# ##334#This field must contain a recognised valid value for 'administrative gender'. \nIf different, 'physiological sex' should be communicated elsewhere.##334#"}]
[null,null,{"$f":"IF(Subj!I13=\"*  ..  ##34###34# ##334###334#\",\"//--- END\",Subj!I13)","v":"//--- END"}]
[null,null,{"$f":"IF(Subj!I14=\"*  ..  ##34###34# ##334###334#\",\"//--- END\",Subj!I14)","v":"//--- END"}]
[null,null,{"$f":"IF(Subj!I15=\"*  ..  ##34###34# ##334###334#\",\"//--- END\",Subj!I15)","v":"//--- END"}]
[null,null,{"$f":"IF(Subj!I16=\"*  ..  ##34###34# ##334###334#\",\"//--- END\",Subj!I16)","v":"//--- END"}]
[]
[]
[]
[]
[]
[]
[]
[]
[]
[]
[]
[]
[]
[null,null,{"$f":"#REF!","v":{"$error":"#REF!"}}]
[null,null,{"$f":"#REF!","v":{"$error":"#REF!"}}]
[null,null,{"$f":"#REF!","v":{"$error":"#REF!"}}]

{"sheet":"Subj-ConceptMap-1","index":15,"n_rows":190,"n_cols":19,"rows_kept":190,"cut":false,"hidden":false,"merged":[[2,4,2,6],[3,4,3,6],[5,4,5,6],[6,4,6,6]]}
[]
[]
[null,"Mapping","LabRptSubject2Fhir","Source URI","http://hl7.eu/fhir/laboratory/StructureDefinition/Subject"]
[null,"Id","subject2FHIR-eu-xpandh","Target URI","http://hl7.eu/fhir/laboratory/StructureDefinition/Patient-eu-xpandh"]
[null,"Title","eHN Subject to this guide Map"]
[null,"Source","http://hl7.eu/fhir/laboratory/StructureDefinition/LabReport","Source Group","http://hl7.eu/fhir/laboratory/StructureDefinition/Subject"]
[null,"Target","http://hl7.eu/fhir/laboratory","Target Group","http://hl7.eu/fhir/laboratory/StructureDefinition/Patient-eu-xpandh"]
[null,"description","eHN Subject Model to this guide Map",null,null,null,null,null,"* group[=].element[+].code = #Osiris.Patient.BirthDate","* group[=].element[=].display = \"Birth Date [C4]\"","* group[=].element[=].target.code = #Subject.dateOfBirth.date","* group[=].element[=].target.display = \"Date of birth\"","* group[=].element[=].target.equivalence = #equivalent",null,null,"Elements",6]
[null,"purpose","It shows how the Laboratory Report Subject data set defined by the EU eHN guidelines is mapped into this guide"]
[]
[null,null,null,null,null,null,null,null,"source:code","source:display","code","display","target to source","Comment"]
[]
[null,null,null,null,null,"target to source","Comment"]
[null,{"$f":"Subj!B5","v":"Subject"},null,"Patient"]
[null,{"$f":"Subj!B8","v":"familyName"},{"$f":"Subj!C8","v":"A.1.1.1 Familyname/surname"},null,null,"relatedto",null,null,{"$f":"\"* group[=].element[+].code = #\"&$B$14&\".\"&B15","v":"* group[=].element[+].code = #Subject.familyName"},{"$f":"\"* group[=].element[=].display = ##34#\"&C15&\"##34#\"","v":"* group[=].element[=].display = ##34#A.1.1.1 Familyname/surname##34#"},{"$f":"IF(F15=\"unmatched\",\"//-- unmatched\",IF(D15=\"\",\"* group[=].element[=].target.code = #\"&$D$14,\"* group[=].element[=].target.code = #\"&$D$14&\".\"&D15))","v":"* group[=].element[=].target.code = #Patient"},{"$f":"IF(F15=\"unmatched\",\"//-- unmatched\",\"* group[=].element[=].target.display = ##34#\"&E15&\"##34#\")","v":"* group[=].element[=].target.display = ##34###34#"},{"$f":"\"* group[=].element[=].target.equivalence = #\"&F15","v":"* group[=].element[=].target.equivalence = #relatedto"},{"$f":"IF(G15<>\"\",CONCATENATE(\"* group[=].element[=].target.comment = \",\"##34#\",G15,\"##34#\"),\"\")","v":""},null,1,{"$f":"IF(MOD(P15,$Q$8)=0,P15/$Q$8-1,INT(P15/$Q$8))","v":0},{"$f":"IF(MOD(P15,$Q$8)=0,$Q$8,MOD(P15,$Q$8))","v":1},{"$f":"INDEX('Subj-ConceptMap-1'!$I$15:$N$270,Q15+1,R15)","v":"* group[=].element[+].code = #Subject.familyName"}]
[null,{"$f":"Subj!B9","v":"givenName"},{"$f":"Subj!C9","v":"A.1.1.2 Given name"},"name.family",null,"equivalent",null,null,{"$f":"\"* group[=].element[+].code = #\"&$B$14&\".\"&B16","v":"* group[=].element[+].code = #Subject.givenName"},{"$f":"\"* group[=].element[=].display = ##34#\"&C16&\"##34#\"","v":"* group[=].element[=].display = ##34#A.1.1.2 Given name##34#"},{"$f":"IF(F16=\"unmatched\",\"//-- unmatched\",IF(D16=\"\",\"* group[=].element[=].target.code = #\"&$D$14,\"* group[=].element[=].target.code = #\"&$D$14&\".\"&D16))","v":"* group[=].element[=].target.code = #Patient.name.family"},{"$f":"IF(F16=\"unmatched\",\"//-- unmatched\",\"* group[=].element[=].target.display = ##34#\"&E16&\"##34#\")","v":"* group[=].element[=].target.display = ##34###34#"},{"$f":"\"* group[=].element[=].target.equivalence = #\"&F16","v":"* group[=].element[=].target.equivalence = #equivalent"},"",null,2,{"$f":"IF(MOD(P16,$Q$8)=0,P16/$Q$8-1,INT(P16/$Q$8))","v":0},{"$f":"IF(MOD(P16,$Q$8)=0,$Q$8,MOD(P16,$Q$8))","v":2},{"$f":"INDEX('Subj-ConceptMap-1'!$I$15:$N$270,Q16+1,R16)","v":"* group[=].element[=].display = ##34#A.1.1.1 Familyname/surname##34#"}]
[null,{"$f":"Subj!B10","v":"dateOfBirth"},{"$f":"Subj!C10","v":"A.1.1.3 Date of birth"},"name.given",null,"equivalent",null,null,"* group[=].element[+].code = #Subject.dateOfBirth","* group[=].element[=].display = ##34#A.1.1.3 Date of birth##34#","* group[=].element[=].target.code = #Patient.name.given","* group[=].element[=].target.display = ##34###34#","* group[=].element[=].target.equivalence = #equivalent","",null,3,0,3,{"$f":"INDEX('Subj-ConceptMap-1'!$I$15:$N$270,Q17+1,R17)","v":"* group[=].element[=].target.code = #Patient"}]
[null,{"$f":"Subj!B11","v":"identifier"},{"$f":"Subj!C11","v":"A.1.1.4 Personal identifier"},"birthDate",null,"equivalent",null,null,"* group[=].element[+].code = #Subject.identifier","* group[=].element[=].display = ##34#A.1.1.4 Personal identifier##34#","* group[=].element[=].target.code = #Patient.birthDate","* group[=].element[=].target.display = ##34###34#","* group[=].element[=].target.equivalence = #equivalent","",null,4,0,4,{"$f":"INDEX('Subj-ConceptMap-1'!$I$15:$N$270,Q18+1,R18)","v":"* group[=].element[=].target.display = ##34###34#"}]
[null,{"$f":"Subj!B12","v":"gender"},{"$f":"Subj!C12","v":"A.1.1.5 Gender"},"identifier",null,"equivalent",null,null,"* group[=].element[+].code = #Subject.gender","* group[=].element[=].display = ##34#A.1.1.5 Gender##34#","* group[=].element[=].target.code = #Patient.identifier","* group[=].element[=].target.display = ##34###34#","* group[=].element[=].target.equivalence = #equivalent","",null,5,0,5,{"$f":"INDEX('Subj-ConceptMap-1'!$I$15:$N$270,Q19+1,R19)","v":"* group[=].element[=].target.equivalence = #relatedto"}]
[null,{"$f":"Subj!B13","v":0},{"$f":"Subj!C13","v":0},"gender",null,"equivalent",null,null,"* group[=].element[+].code = #Subject.0","* group[=].element[=].display = ##34#0##34#","* group[=].element[=].target.code = #Patient.gender","* group[=].element[=].target.display = ##34###34#","* group[=].element[=].target.equivalence = #equivalent","",null,6,0,6,{"$f":"INDEX('Subj-ConceptMap-1'!$I$15:$N$270,Q20+1,R20)","v":""}]
[null,{"$f":"Subj!#REF!","v":{"$error":"#REF!"}},{"$f":"Subj!#REF!","v":{"$error":"#REF!"}},null,null,"relatedto",null,null,{"$error":"#REF!"},{"$error":"#REF!"},"* group[=].element[=].target.code = #Patient","* group[=].element[=].target.display = ##34###34#","* group[=].element[=].target.equivalence = #relatedto","",null,7,1,1,{"$f":"INDEX('Subj-ConceptMap-1'!$I$15:$N$270,Q21+1,R21)","v":"* group[=].element[+].code = #Subject.givenName"}]
[null,{"$f":"Subj!#REF!","v":{"$error":"#REF!"}},{"$f":"Subj!#REF!","v":{"$error":"#REF!"}},"address",null,"equivalent",null,null,{"$error":"#REF!"},{"$error":"#REF!"},"* group[=].element[=].target.code = #Patient.address","* group[=].element[=].target.display = ##34###34#","* group[=].element[=].target.equivalence = #equivalent","",null,8,1,2,{"$f":"INDEX('Subj-ConceptMap-1'!$I$15:$N$270,Q22+1,R22)","v":"* group[=].element[=].display = ##34#A.1.1.2 Given name##34#"}]
[null,{"$f":"Subj!#REF!","v":{"$error":"#REF!"}},{"$f":"Subj!#REF!","v":{"$error":"#REF!"}},"telecom",null,"equivalent",null,null,{"$error":"#REF!"},{"$error":"#REF!"},"* group[=].element[=].target.code = #Patient.telecom","* group[=].element[=].target.display = ##34###34#","* group[=].element[=].target.equivalence = #equivalent","",null,9,1,3,{"$f":"INDEX('Subj-ConceptMap-1'!$I$15:$N$270,Q23+1,R23)","v":"* group[=].element[=].target.code = #Patient.name.family"}]
[null,null,null,null,null,null,null,null,null,null,null,null,null,null,null,10,{"$f":"IF(MOD(P24,$Q$8)=0,P24/$Q$8-1,INT(P24/$Q$8))","v":1},{"$f":"IF(MOD(P24,$Q$8)=0,$Q$8,MOD(P24,$Q$8))","v":4},{"$f":"INDEX('Subj-ConceptMap-1'!$I$15:$N$270,Q24+1,R24)","v":"* group[=].element[=].target.display = ##34###34#"}]
[null,null,null,null,null,null,null,null,null,null,null,null,null,null,null,11,1,5,{"$f":"INDEX('Subj-ConceptMap-1'!$I$15:$N$270,Q25+1,R25)","v":"* group[=].element[=].target.equivalence = #equivalent"}]
[null,null,null,null,null,null,null,null,null,null,null,null,null,null,null,12,1,6,{"$f":"INDEX('Subj-ConceptMap-1'!$I$15:$N$270,Q26+1,R26)","v":""}]
[null,null,null,null,null,null,null,null,null,null,null,null,null,null,null,13,2,1,{"$f":"INDEX('Subj-ConceptMap-1'!$I$15:$N$270,Q27+1,R27)","v":"* group[=].element[+].code = #Subject.dateOfBirth"}]
[null,null,null,null,null,null,null,null,null,null,null,null,null,null,null,14,2,2,{"$f":"INDEX('Subj-ConceptMap-1'!$I$15:$N$270,Q28+1,R28)","v":"* group[=].element[=].display = ##34#A.1.1.3 Date of birth##34#"}]
[null,null,null,null,null,null,null,null,null,null,null,null,null,null,null,15,2,3,{"$f":"INDEX('Subj-ConceptMap-1'!$I$15:$N$270,Q29+1,R29)","v":"* group[=].element[=].target.code = #Patient.name.given"}]
[null,null,null,null,null,null,null,null,null,null,null,null,null,null,null,16,2,4,{"$f":"INDEX('Subj-ConceptMap-1'!$I$15:$N$270,Q30+1,R30)","v":"* group[=].element[=].target.display = ##34###34#"}]
[null,null,null,null,null,null,null,null,null,null,null,null,null,null,null,17,2,5,{"$f":"INDEX('Subj-ConceptMap-1'!$I$15:$N$270,Q31+1,R31)","v":"* group[=].element[=].target.equivalence = #equivalent"}]
[null,null,null,null,null,null,null,null,null,null,null,null,null,null,null,18,2,6,{"$f":"INDEX('Subj-ConceptMap-1'!$I$15:$N$270,Q32+1,R32)","v":""}]
[null,null,null,null,null,null,null,null,null,null,null,null,null,null,null,19,3,1,{"$f":"INDEX('Subj-ConceptMap-1'!$I$15:$N$270,Q33+1,R33)","v":"* group[=].element[+].code = #Subject.identifier"}]
[null,null,null,null,null,null,null,null,null,null,null,null,null,null,null,20,3,2,{"$f":"INDEX('Subj-ConceptMap-1'!$I$15:$N$270,Q34+1,R34)","v":"* group[=].element[=].display = ##34#A.1.1.4 Personal identifier##34#"}]
[null,null,null,null,null,null,null,null,null,null,null,null,null,null,null,21,3,3,{"$f":"INDEX('Subj-ConceptMap-1'!$I$15:$N$270,Q35+1,R35)","v":"* group[=].element[=].target.code = #Patient.birthDate"}]
[null,null,null,null,null,null,null,null,null,null,null,null,null,null,null,22,3,4,{"$f":"INDEX('Subj-ConceptMap-1'!$I$15:$N$270,Q36+1,R36)","v":"* group[=].element[=].target.display = ##34###34#"}]
[null,null,null,null,null,null,null,null,null,null,null,null,null,null,null,23,3,5,{"$f":"INDEX('Subj-ConceptMap-1'!$I$15:$N$270,Q37+1,R37)","v":"* group[=].element[=].target.equivalence = #equivalent"}]
[null,null,null,null,null,null,null,null,null,null,null,null,null,null,null,24,3,6,{"$f":"INDEX('Subj-ConceptMap-1'!$I$15:$N$270,Q38+1,R38)","v":""}]
[null,null,null,null,null,null,null,null,null,null,null,null,null,null,null,25,4,1,{"$f":"INDEX('Subj-ConceptMap-1'!$I$15:$N$270,Q39+1,R39)","v":"* group[=].element[+].code = #Subject.gender"}]
[null,null,null,null,null,null,null,null,null,null,null,null,null,null,null,26,4,2,{"$f":"INDEX('Subj-ConceptMap-1'!$I$15:$N$270,Q40+1,R40)","v":"* group[=].element[=].display = ##34#A.1.1.5 Gender##34#"}]
[null,null,null,null,null,null,null,null,null,null,null,null,null,null,null,27,4,3,{"$f":"INDEX('Subj-ConceptMap-1'!$I$15:$N$270,Q41+1,R41)","v":"* group[=].element[=].target.code = #Patient.identifier"}]
[null,null,null,null,null,null,null,null,null,null,null,null,null,null,null,28,4,4,{"$f":"INDEX('Subj-ConceptMap-1'!$I$15:$N$270,Q42+1,R42)","v":"* group[=].element[=].target.display = ##34###34#"}]
[null,null,null,null,null,null,null,null,null,null,null,null,null,null,null,29,4,5,{"$f":"INDEX('Subj-ConceptMap-1'!$I$15:$N$270,Q43+1,R43)","v":"* group[=].element[=].target.equivalence = #equivalent"}]
[null,null,null,null,null,null,null,null,null,null,null,null,null,null,null,30,4,6,{"$f":"INDEX('Subj-ConceptMap-1'!$I$15:$N$270,Q44+1,R44)","v":""}]
[null,null,null,null,null,null,null,null,null,null,null,null,null,null,null,31,5,1,{"$f":"INDEX('Subj-ConceptMap-1'!$I$15:$N$270,Q45+1,R45)","v":"* group[=].element[+].code = #Subject.0"}]
[null,null,null,null,null,null,null,null,null,null,null,null,null,null,null,32,5,2,{"$f":"INDEX('Subj-ConceptMap-1'!$I$15:$N$270,Q46+1,R46)","v":"* group[=].element[=].display = ##34#0##34#"}]
[null,null,null,null,null,null,null,null,null,null,null,null,null,null,null,33,5,3,{"$f":"INDEX('Subj-ConceptMap-1'!$I$15:$N$270,Q47+1,R47)","v":"* group[=].element[=].target.code = #Patient.gender"}]
[null,null,null,null,null,null,null,null,null,null,null,null,null,null,null,34,5,4,{"$f":"INDEX('Subj-ConceptMap-1'!$I$15:$N$270,Q48+1,R48)","v":"* group[=].element[=].target.display = ##34###34#"}]
[null,null,null,null,null,null,null,null,null,null,null,null,null,null,null,35,5,5,{"$f":"INDEX('Subj-ConceptMap-1'!$I$15:$N$270,Q49+1,R49)","v":"* group[=].element[=].target.equivalence = #equivalent"}]
[null,null,null,null,null,null,null,null,null,null,null,null,null,null,null,36,5,6,{"$f":"INDEX('Subj-ConceptMap-1'!$I$15:$N$270,Q50+1,R50)","v":""}]
[null,null,null,null,null,null,null,null,null,null,null,null,null,null,null,37,6,1,{"$f":"INDEX('Subj-ConceptMap-1'!$I$15:$N$270,Q51+1,R51)","v":{"$error":"#REF!"}}]
[null,null,null,null,null,null,null,null,null,null,null,null,null,null,null,38,6,2,{"$f":"INDEX('Subj-ConceptMap-1'!$I$15:$N$270,Q52+1,R52)","v":{"$error":"#REF!"}}]
[null,null,null,null,null,null,null,null,null,null,null,null,null,null,null,39,6,3,{"$f":"INDEX('Subj-ConceptMap-1'!$I$15:$N$270,Q53+1,R53)","v":"* group[=].element[=].target.code = #Patient"}]
[null,null,null,null,null,null,null,null,null,null,null,null,null,null,null,40,6,4,{"$f":"INDEX('Subj-ConceptMap-1'!$I$15:$N$270,Q54+1,R54)","v":"* group[=].element[=].target.display = ##34###34#"}]
[null,null,null,null,null,null,null,null,null,null,null,null,null,null,null,41,6,5,{"$f":"INDEX('Subj-ConceptMap-1'!$I$15:$N$270,Q55+1,R55)","v":"* group[=].element[=].target.equivalence = #relatedto"}]
[null,null,null,null,null,null,null,null,null,null,null,null,null,null,null,42,{"$f":"IF(MOD(P56,$Q$8)=0,P56/$Q$8-1,INT(P56/$Q$8))","v":6},{"$f":"IF(MOD(P56,$Q$8)=0,$Q$8,MOD(P56,$Q$8))","v":6},{"$f":"INDEX('Subj-ConceptMap-1'!$I$15:$N$270,Q56+1,R56)","v":""}]
[null,null,null,null,null,null,null,null,null,null,null,null,null,null,null,43,7,1,{"$f":"INDEX('Subj-ConceptMap-1'!$I$15:$N$270,Q57+1,R57)","v":{"$error":"#REF!"}}]
[null,null,null,null,null,null,null,null,null,null,null,null,null,null,null,44,7,2,{"$f":"INDEX('Subj-ConceptMap-1'!$I$15:$N$270,Q58+1,R58)","v":{"$error":"#REF!"}}]
[null,null,null,null,null,null,null,null,null,null,null,null,null,null,null,45,7,3,{"$f":"INDEX('Subj-ConceptMap-1'!$I$15:$N$270,Q59+1,R59)","v":"* group[=].element[=].target.code = #Patient.address"}]
[null,null,null,null,null,null,null,null,null,null,null,null,null,null,null,46,7,4,{"$f":"INDEX('Subj-ConceptMap-1'!$I$15:$N$270,Q60+1,R60)","v":"* group[=].element[=].target.display = ##34###34#"}]
[null,null,null,null,null,null,null,null,null,null,null,null,null,null,null,47,7,5,{"$f":"INDEX('Subj-ConceptMap-1'!$I$15:$N$270,Q61+1,R61)","v":"* group[=].element[=].target.equivalence = #equivalent"}]
[null,null,null,null,null,null,null,null,null,null,null,null,null,null,null,48,7,6,{"$f":"INDEX('Subj-ConceptMap-1'!$I$15:$N$270,Q62+1,R62)","v":""}]
[null,null,null,null,null,null,null,null,null,null,null,null,null,null,null,49,8,1,{"$f":"INDEX('Subj-ConceptMap-1'!$I$15:$N$270,Q63+1,R63)","v":{"$error":"#REF!"}}]
[null,null,null,null,null,null,null,null,null,null,null,null,null,null,null,50,8,2,{"$f":"INDEX('Subj-ConceptMap-1'!$I$15:$N$270,Q64+1,R64)","v":{"$error":"#REF!"}}]
[null,null,null,null,null,null,null,null,null,null,null,null,null,null,null,51,8,3,{"$f":"INDEX('Subj-ConceptMap-1'!$I$15:$N$270,Q65+1,R65)","v":"* group[=].element[=].target.code = #Patient.telecom"}]
[null,null,null,null,null,null,null,null,null,null,null,null,null,null,null,52,8,4,{"$f":"INDEX('Subj-ConceptMap-1'!$I$15:$N$270,Q66+1,R66)","v":"* group[=].element[=].target.display = ##34###34#"}]
[null,null,null,null,null,null,null,null,null,null,null,null,null,null,null,53,{"$f":"IF(MOD(P67,$Q$8)=0,P67/$Q$8-1,INT(P67/$Q$8))","v":8},{"$f":"IF(MOD(P67,$Q$8)=0,$Q$8,MOD(P67,$Q$8))","v":5},{"$f":"INDEX('Subj-ConceptMap-1'!$I$15:$N$270,Q67+1,R67)","v":"* group[=].element[=].target.equivalence = #equivalent"}]
[null,null,null,null,null,null,null,null,null,null,null,null,null,null,null,54,8,6,{"$f":"INDEX('Subj-ConceptMap-1'!$I$15:$N$270,Q68+1,R68)","v":""}]
[null,null,null,null,null,null,null,null,null,null,null,null,null,null,null,55,9,1,{"$f":"INDEX('Subj-ConceptMap-1'!$I$15:$N$270,Q69+1,R69)","v":0}]
[null,null,null,null,null,null,null,null,null,null,null,null,null,null,null,56,9,2,{"$f":"INDEX('Subj-ConceptMap-1'!$I$15:$N$270,Q70+1,R70)","v":0}]
[null,null,null,null,null,null,null,null,null,null,null,null,null,null,null,57,9,3,{"$f":"INDEX('Subj-ConceptMap-1'!$I$15:$N$270,Q71+1,R71)","v":0}]
[null,null,null,null,null,null,null,null,null,null,null,null,null,null,null,58,9,4,{"$f":"INDEX('Subj-ConceptMap-1'!$I$15:$N$270,Q72+1,R72)","v":0}]
[null,null,null,null,null,null,null,null,null,null,null,null,null,null,null,59,9,5,{"$f":"INDEX('Subj-ConceptMap-1'!$I$15:$N$270,Q73+1,R73)","v":0}]
[null,null,null,null,null,null,null,null,null,null,null,null,null,null,null,60,9,6,{"$f":"INDEX('Subj-ConceptMap-1'!$I$15:$N$270,Q74+1,R74)","v":0}]
[null,null,null,null,null,null,null,null,null,null,null,null,null,null,null,61,10,1,{"$f":"INDEX('Subj-ConceptMap-1'!$I$15:$N$270,Q75+1,R75)","v":0}]
[null,null,null,null,null,null,null,null,null,null,null,null,null,null,null,62,10,2,{"$f":"INDEX('Subj-ConceptMap-1'!$I$15:$N$270,Q76+1,R76)","v":0}]
[null,null,null,null,null,null,null,null,null,null,null,null,null,null,null,63,{"$f":"IF(MOD(P77,$Q$8)=0,P77/$Q$8-1,INT(P77/$Q$8))","v":10},{"$f":"IF(MOD(P77,$Q$8)=0,$Q$8,MOD(P77,$Q$8))","v":3},{"$f":"INDEX('Subj-ConceptMap-1'!$I$15:$N$270,Q77+1,R77)","v":0}]
[null,null,null,null,null,null,null,null,null,null,null,null,null,null,null,64,10,4,{"$f":"INDEX('Subj-ConceptMap-1'!$I$15:$N$270,Q78+1,R78)","v":0}]
[null,null,null,null,null,null,null,null,null,null,null,null,null,null,null,65,10,5,{"$f":"INDEX('Subj-ConceptMap-1'!$I$15:$N$270,Q79+1,R79)","v":0}]
[null,null,null,null,null,null,null,null,null,null,null,null,null,null,null,66,10,6,{"$f":"INDEX('Subj-ConceptMap-1'!$I$15:$N$270,Q80+1,R80)","v":0}]
[]
[]
[]
[]
[]
[]
[]
[]
[]
[]
[]
[]
[]
[]
[]
[]
[]
[]
[]
[]
[]
[]
[]
[]
[]
[]
[]
[]
[]
[]
[]
[]
[]
[]
[]
[]
[]
[]
[]
[]
[null,null,null,null,null,null,null,null,null,null,null,null,null,null,null,107,{"$f":"IF(MOD(P121,$Q$8)=0,P121/$Q$8-1,INT(P121/$Q$8))","v":17},{"$f":"IF(MOD(P121,$Q$8)=0,$Q$8,MOD(P121,$Q$8))","v":5},{"$f":"INDEX('Subj-ConceptMap-1'!$I$15:$N$270,Q121+1,R121)","v":0}]
[null,null,null,null,null,null,null,null,null,null,null,null,null,null,null,108,17,6,{"$f":"INDEX('Subj-ConceptMap-1'!$I$15:$N$270,Q122+1,R122)","v":0}]
[null,null,null,null,null,null,null,null,null,null,null,null,null,null,null,109,18,1,{"$f":"INDEX('Subj-ConceptMap-1'!$I$15:$N$270,Q123+1,R123)","v":0}]
[null,null,null,null,null,null,null,null,null,null,null,null,null,null,null,110,18,2,{"$f":"INDEX('Subj-ConceptMap-1'!$I$15:$N$270,Q124+1,R124)","v":0}]
[null,null,null,null,null,null,null,null,null,null,null,null,null,null,null,111,18,3,{"$f":"INDEX('Subj-ConceptMap-1'!$I$15:$N$270,Q125+1,R125)","v":0}]
[null,null,null,null,null,null,null,null,null,null,null,null,null,null,null,112,18,4,{"$f":"INDEX('Subj-ConceptMap-1'!$I$15:$N$270,Q126+1,R126)","v":0}]
[null,null,null,null,null,null,null,null,null,null,null,null,null,null,null,113,18,5,{"$f":"INDEX('Subj-ConceptMap-1'!$I$15:$N$270,Q127+1,R127)","v":0}]
[null,null,null,null,null,null,null,null,null,null,null,null,null,null,null,114,18,6,{"$f":"INDEX('Subj-ConceptMap-1'!$I$15:$N$270,Q128+1,R128)","v":0}]
[null,null,null,null,null,null,null,null,null,null,null,null,null,null,null,115,19,1,{"$f":"INDEX('Subj-ConceptMap-1'!$I$15:$N$270,Q129+1,R129)","v":0}]
[null,null,null,null,null,null,null,null,null,null,null,null,null,null,null,116,19,2,{"$f":"INDEX('Subj-ConceptMap-1'!$I$15:$N$270,Q130+1,R130)","v":0}]
[null,null,null,null,null,null,null,null,null,null,null,null,null,null,null,117,19,3,{"$f":"INDEX('Subj-ConceptMap-1'!$I$15:$N$270,Q131+1,R131)","v":0}]
[null,null,null,null,null,null,null,null,null,null,null,null,null,null,null,118,19,4,{"$f":"INDEX('Subj-ConceptMap-1'!$I$15:$N$270,Q132+1,R132)","v":0}]
[null,null,null,null,null,null,null,null,null,null,null,null,null,null,null,119,19,5,{"$f":"INDEX('Subj-ConceptMap-1'!$I$15:$N$270,Q133+1,R133)","v":0}]
[null,null,null,null,null,null,null,null,null,null,null,null,null,null,null,120,19,6,{"$f":"INDEX('Subj-ConceptMap-1'!$I$15:$N$270,Q134+1,R134)","v":0}]
[null,null,null,null,null,null,null,null,null,null,null,null,null,null,null,121,20,1,{"$f":"INDEX('Subj-ConceptMap-1'!$I$15:$N$270,Q135+1,R135)","v":0}]
[null,null,null,null,null,null,null,null,null,null,null,null,null,null,null,122,20,2,{"$f":"INDEX('Subj-ConceptMap-1'!$I$15:$N$270,Q136+1,R136)","v":0}]
[null,null,null,null,null,null,null,null,null,null,null,null,null,null,null,123,20,3,{"$f":"INDEX('Subj-ConceptMap-1'!$I$15:$N$270,Q137+1,R137)","v":0}]
[null,null,null,null,null,null,null,null,null,null,null,null,null,null,null,124,20,4,{"$f":"INDEX('Subj-ConceptMap-1'!$I$15:$N$270,Q138+1,R138)","v":0}]
[null,null,null,null,null,null,null,null,null,null,null,null,null,null,null,125,20,5,{"$f":"INDEX('Subj-ConceptMap-1'!$I$15:$N$270,Q139+1,R139)","v":0}]
[null,null,null,null,null,null,null,null,null,null,null,null,null,null,null,126,20,6,{"$f":"INDEX('Subj-ConceptMap-1'!$I$15:$N$270,Q140+1,R140)","v":0}]
[null,null,null,null,null,null,null,null,null,null,null,null,null,null,null,127,21,1,{"$f":"INDEX('Subj-ConceptMap-1'!$I$15:$N$270,Q141+1,R141)","v":0}]
[null,null,null,null,null,null,null,null,null,null,null,null,null,null,null,128,21,2,{"$f":"INDEX('Subj-ConceptMap-1'!$I$15:$N$270,Q142+1,R142)","v":0}]
[null,null,null,null,null,null,null,null,null,null,null,null,null,null,null,129,21,3,{"$f":"INDEX('Subj-ConceptMap-1'!$I$15:$N$270,Q143+1,R143)","v":0}]
[null,null,null,null,null,null,null,null,null,null,null,null,null,null,null,130,21,4,{"$f":"INDEX('Subj-ConceptMap-1'!$I$15:$N$270,Q144+1,R144)","v":0}]
[null,null,null,null,null,null,null,null,null,null,null,null,null,null,null,131,{"$f":"IF(MOD(P145,$Q$8)=0,P145/$Q$8-1,INT(P145/$Q$8))","v":21},{"$f":"IF(MOD(P145,$Q$8)=0,$Q$8,MOD(P145,$Q$8))","v":5},{"$f":"INDEX('Subj-ConceptMap-1'!$I$15:$N$270,Q145+1,R145)","v":0}]
[null,null,null,null,null,null,null,null,null,null,null,null,null,null,null,132,21,6,{"$f":"INDEX('Subj-ConceptMap-1'!$I$15:$N$270,Q146+1,R146)","v":0}]
[null,null,null,null,null,null,null,null,null,null,null,null,null,null,null,133,22,1,{"$f":"INDEX('Subj-ConceptMap-1'!$I$15:$N$270,Q147+1,R147)","v":0}]
[null,null,null,null,null,null,null,null,null,null,null,null,null,null,null,134,22,2,{"$f":"INDEX('Subj-ConceptMap-1'!$I$15:$N$270,Q148+1,R148)","v":0}]
[null,null,null,null,null,null,null,null,null,null,null,null,null,null,null,135,22,3,{"$f":"INDEX('Subj-ConceptMap-1'!$I$15:$N$270,Q149+1,R149)","v":0}]
[null,null,null,null,null,null,null,null,null,null,null,null,null,null,null,136,22,4,{"$f":"INDEX('Subj-ConceptMap-1'!$I$15:$N$270,Q150+1,R150)","v":0}]
[null,null,null,null,null,null,null,null,null,null,null,null,null,null,null,137,22,5,{"$f":"INDEX('Subj-ConceptMap-1'!$I$15:$N$270,Q151+1,R151)","v":0}]
[null,null,null,null,null,null,null,null,null,null,null,null,null,null,null,138,22,6,{"$f":"INDEX('Subj-ConceptMap-1'!$I$15:$N$270,Q152+1,R152)","v":0}]
[null,null,null,null,null,null,null,null,null,null,null,null,null,null,null,139,23,1,{"$f":"INDEX('Subj-ConceptMap-1'!$I$15:$N$270,Q153+1,R153)","v":0}]
[null,null,null,null,null,null,null,null,null,null,null,null,null,null,null,140,23,2,{"$f":"INDEX('Subj-ConceptMap-1'!$I$15:$N$270,Q154+1,R154)","v":0}]
[null,null,null,null,null,null,null,null,null,null,null,null,null,null,null,141,23,3,{"$f":"INDEX('Subj-ConceptMap-1'!$I$15:$N$270,Q155+1,R155)","v":0}]
[null,null,null,null,null,null,null,null,null,null,null,null,null,null,null,142,23,4,{"$f":"INDEX('Subj-ConceptMap-1'!$I$15:$N$270,Q156+1,R156)","v":0}]
[null,null,null,null,null,null,null,null,null,null,null,null,null,null,null,143,23,5,{"$f":"INDEX('Subj-ConceptMap-1'!$I$15:$N$270,Q157+1,R157)","v":0}]
[null,null,null,null,null,null,null,null,null,null,null,null,null,null,null,144,23,6,{"$f":"INDEX('Subj-ConceptMap-1'!$I$15:$N$270,Q158+1,R158)","v":0}]
[null,null,null,null,null,null,null,null,null,null,null,null,null,null,null,145,24,1,{"$f":"INDEX('Subj-ConceptMap-1'!$I$15:$N$270,Q159+1,R159)","v":0}]
[null,null,null,null,null,null,null,null,null,null,null,null,null,null,null,146,24,2,{"$f":"INDEX('Subj-ConceptMap-1'!$I$15:$N$270,Q160+1,R160)","v":0}]
[null,null,null,null,null,null,null,null,null,null,null,null,null,null,null,147,24,3,{"$f":"INDEX('Subj-ConceptMap-1'!$I$15:$N$270,Q161+1,R161)","v":0}]
[null,null,null,null,null,null,null,null,null,null,null,null,null,null,null,148,24,4,{"$f":"INDEX('Subj-ConceptMap-1'!$I$15:$N$270,Q162+1,R162)","v":0}]
[null,null,null,null,null,null,null,null,null,null,null,null,null,null,null,149,24,5,{"$f":"INDEX('Subj-ConceptMap-1'!$I$15:$N$270,Q163+1,R163)","v":0}]
[null,null,null,null,null,null,null,null,null,null,null,null,null,null,null,150,24,6,{"$f":"INDEX('Subj-ConceptMap-1'!$I$15:$N$270,Q164+1,R164)","v":0}]
[null,null,null,null,null,null,null,null,null,null,null,null,null,null,null,151,25,1,{"$f":"INDEX('Subj-ConceptMap-1'!$I$15:$N$270,Q165+1,R165)","v":0}]
[null,null,null,null,null,null,null,null,null,null,null,null,null,null,null,152,25,2,{"$f":"INDEX('Subj-ConceptMap-1'!$I$15:$N$270,Q166+1,R166)","v":0}]
[null,null,null,null,null,null,null,null,null,null,null,null,null,null,null,153,25,3,{"$f":"INDEX('Subj-ConceptMap-1'!$I$15:$N$270,Q167+1,R167)","v":0}]
[null,null,null,null,null,null,null,null,null,null,null,null,null,null,null,154,25,4,{"$f":"INDEX('Subj-ConceptMap-1'!$I$15:$N$270,Q168+1,R168)","v":0}]
[null,null,null,null,null,null,null,null,null,null,null,null,null,null,null,155,25,5,{"$f":"INDEX('Subj-ConceptMap-1'!$I$15:$N$270,Q169+1,R169)","v":0}]
[null,null,null,null,null,null,null,null,null,null,null,null,null,null,null,156,25,6,{"$f":"INDEX('Subj-ConceptMap-1'!$I$15:$N$270,Q170+1,R170)","v":0}]
[null,null,null,null,null,null,null,null,null,null,null,null,null,null,null,157,26,1,{"$f":"INDEX('Subj-ConceptMap-1'!$I$15:$N$270,Q171+1,R171)","v":0}]
[null,null,null,null,null,null,null,null,null,null,null,null,null,null,null,158,26,2,{"$f":"INDEX('Subj-ConceptMap-1'!$I$15:$N$270,Q172+1,R172)","v":0}]
[null,null,null,null,null,null,null,null,null,null,null,null,null,null,null,159,26,3,{"$f":"INDEX('Subj-ConceptMap-1'!$I$15:$N$270,Q173+1,R173)","v":0}]
[null,null,null,null,null,null,null,null,null,null,null,null,null,null,null,160,26,4,{"$f":"INDEX('Subj-ConceptMap-1'!$I$15:$N$270,Q174+1,R174)","v":0}]
[null,null,null,null,null,null,null,null,null,null,null,null,null,null,null,161,26,5,{"$f":"INDEX('Subj-ConceptMap-1'!$I$15:$N$270,Q175+1,R175)","v":0}]
[null,null,null,null,null,null,null,null,null,null,null,null,null,null,null,162,26,6,{"$f":"INDEX('Subj-ConceptMap-1'!$I$15:$N$270,Q176+1,R176)","v":0}]
[null,null,null,null,null,null,null,null,null,null,null,null,null,null,null,163,27,1,{"$f":"INDEX('Subj-ConceptMap-1'!$I$15:$N$270,Q177+1,R177)","v":0}]
[null,null,null,null,null,null,null,null,null,null,null,null,null,null,null,164,27,2,{"$f":"INDEX('Subj-ConceptMap-1'!$I$15:$N$270,Q178+1,R178)","v":0}]
[null,null,null,null,null,null,null,null,null,null,null,null,null,null,null,165,27,3,{"$f":"INDEX('Subj-ConceptMap-1'!$I$15:$N$270,Q179+1,R179)","v":0}]
[null,null,null,null,null,null,null,null,null,null,null,null,null,null,null,166,27,4,{"$f":"INDEX('Subj-ConceptMap-1'!$I$15:$N$270,Q180+1,R180)","v":0}]
[null,null,null,null,null,null,null,null,null,null,null,null,null,null,null,167,27,5,{"$f":"INDEX('Subj-ConceptMap-1'!$I$15:$N$270,Q181+1,R181)","v":0}]
[null,null,null,null,null,null,null,null,null,null,null,null,null,null,null,168,27,6,{"$f":"INDEX('Subj-ConceptMap-1'!$I$15:$N$270,Q182+1,R182)","v":0}]
[null,null,null,null,null,null,null,null,null,null,null,null,null,null,null,169,28,1,{"$f":"INDEX('Subj-ConceptMap-1'!$I$15:$N$270,Q183+1,R183)","v":0}]
[null,null,null,null,null,null,null,null,null,null,null,null,null,null,null,170,28,2,{"$f":"INDEX('Subj-ConceptMap-1'!$I$15:$N$270,Q184+1,R184)","v":0}]
[null,null,null,null,null,null,null,null,null,null,null,null,null,null,null,171,28,3,{"$f":"INDEX('Subj-ConceptMap-1'!$I$15:$N$270,Q185+1,R185)","v":0}]
[null,null,null,null,null,null,null,null,null,null,null,null,null,null,null,172,28,4,{"$f":"INDEX('Subj-ConceptMap-1'!$I$15:$N$270,Q186+1,R186)","v":0}]
[null,null,null,null,null,null,null,null,null,null,null,null,null,null,null,173,28,5,{"$f":"INDEX('Subj-ConceptMap-1'!$I$15:$N$270,Q187+1,R187)","v":0}]
[null,null,null,null,null,null,null,null,null,null,null,null,null,null,null,174,28,6,{"$f":"INDEX('Subj-ConceptMap-1'!$I$15:$N$270,Q188+1,R188)","v":0}]
[null,null,null,null,null,null,null,null,null,null,null,null,null,null,null,175,29,1,{"$f":"INDEX('Subj-ConceptMap-1'!$I$15:$N$270,Q189+1,R189)","v":0}]
[null,null,null,null,null,null,null,null,null,null,null,null,null,null,null,176,29,2,{"$f":"INDEX('Subj-ConceptMap-1'!$I$15:$N$270,Q190+1,R190)","v":0}]

{"sheet":"Subj-CM-fsh","index":16,"n_rows":77,"n_cols":7,"rows_kept":77,"cut":false,"hidden":false,"merged":[]}
[null,"// -------------------------------------------------------------------------------"]
[null,"//  Concept Model. File: ",null,null,null,null,"subject-to-fhir-map.fsh"]
[null,"// -------------------------------------------------------------------------------"]
[null,{"$f":"\"Instance: \"&'Subj-ConceptMap-1'!C4","v":"Instance: subject2FHIR-eu-xpandh"}]
[null,"InstanceOf: ConceptMap"]
[null,"Usage: #definition"]
[null,"// * url = ##34#http://terminology.hl7.it/ConceptMap/ConceptMap-subject2osiris##34#"]
[null,{"$f":"\"* name = ##34#\"&'Subj-ConceptMap-1'!C3&\"##34#\"","v":"* name = ##34#LabRptSubject2Fhir##34#"}]
[null,{"$f":"\"* title = ##34#\"&'Subj-ConceptMap-1'!C5&\"##34#\"","v":"* title = ##34#eHN Subject to this guide Map##34#"}]
[null,"* status = #draft"]
[null,"* experimental = true"]
[null,{"$f":"\"* description = ##34#\"&'Subj-ConceptMap-1'!C8&\"##34#\"","v":"* description = ##34#eHN Subject Model to this guide Map##34#"}]
[null,{"$f":"\"* purpose = ##34#\"&'Subj-ConceptMap-1'!C9&\"##34#\"","v":"* purpose = ##34#It shows how the Laboratory Report Subject data set defined by the EU eHN guidelines is mapped into this guide##34#"}]
[null,{"$f":"\"* sourceUri = ##34#\"&'Subj-ConceptMap-1'!E3&\"##34#\"","v":"* sourceUri = ##34#http://hl7.eu/fhir/laboratory/StructureDefinition/Subject##34#"}]
[null,{"$f":"\"* targetUri = ##34#\"&'Subj-ConceptMap-1'!E4&\"##34#\"","v":"* targetUri = ##34#http://hl7.eu/fhir/laboratory/StructureDefinition/Patient-eu-xpandh##34#"}]
[]
[null,{"$f":"\"* group[+].source = ##34#\"&'Subj-ConceptMap-1'!E6&\"##34#\"","v":"* group[+].source = ##34#http://hl7.eu/fhir/laboratory/StructureDefinition/Subject##34#"}]
[null,{"$f":"\"* group[=].target = ##34#\"&'Subj-ConceptMap-1'!E7&\"##34#\"","v":"* group[=].target = ##34#http://hl7.eu/fhir/laboratory/StructureDefinition/Patient-eu-xpandh##34#"}]
[]
[null,{"$f":"IF('Subj-ConceptMap-1'!S15=0,\"//---END\",'Subj-ConceptMap-1'!S15)","v":"* group[=].element[+].code = #Subject.familyName"}]
[null,{"$f":"IF('Subj-ConceptMap-1'!S16=0,\"//---END\",'Subj-ConceptMap-1'!S16)","v":"* group[=].element[=].display = ##34#A.1.1.1 Familyname/surname##34#"}]
[null,{"$f":"IF('Subj-ConceptMap-1'!S17=0,\"//---END\",'Subj-ConceptMap-1'!S17)","v":"* group[=].element[=].target.code = #Patient"}]
[null,{"$f":"IF('Subj-ConceptMap-1'!S18=0,\"//---END\",'Subj-ConceptMap-1'!S18)","v":"* group[=].element[=].target.display = ##34###34#"}]
[null,{"$f":"IF('Subj-ConceptMap-1'!S19=0,\"//---END\",'Subj-ConceptMap-1'!S19)","v":"* group[=].element[=].target.equivalence = #relatedto"}]
[null,{"$f":"IF('Subj-ConceptMap-1'!S20=0,\"//---END\",'Subj-ConceptMap-1'!S20)","v":""}]
[null,{"$f":"IF('Subj-ConceptMap-1'!S21=0,\"//---END\",'Subj-ConceptMap-1'!S21)","v":"* group[=].element[+].code = #Subject.givenName"}]
[null,{"$f":"IF('Subj-ConceptMap-1'!S22=0,\"//---END\",'Subj-ConceptMap-1'!S22)","v":"* group[=].element[=].display = ##34#A.1.1.2 Given name##34#"}]
[null,{"$f":"IF('Subj-ConceptMap-1'!S23=0,\"//---END\",'Subj-ConceptMap-1'!S23)","v":"* group[=].element[=].target.code = #Patient.name.family"}]
[null,{"$f":"IF('Subj-ConceptMap-1'!S24=0,\"//---END\",'Subj-ConceptMap-1'!S24)","v":"* group[=].element[=].target.display = ##34###34#"}]
[null,{"$f":"IF('Subj-ConceptMap-1'!S25=0,\"//---END\",'Subj-ConceptMap-1'!S25)","v":"* group[=].element[=].target.equivalence = #equivalent"}]
[null,{"$f":"IF('Subj-ConceptMap-1'!S26=0,\"//---END\",'Subj-ConceptMap-1'!S26)","v":""}]
[null,{"$f":"IF('Subj-ConceptMap-1'!S27=0,\"//---END\",'Subj-ConceptMap-1'!S27)","v":"* group[=].element[+].code = #Subject.dateOfBirth"}]
[null,{"$f":"IF('Subj-ConceptMap-1'!S28=0,\"//---END\",'Subj-ConceptMap-1'!S28)","v":"* group[=].element[=].display = ##34#A.1.1.3 Date of birth##34#"}]
[null,{"$f":"IF('Subj-ConceptMap-1'!S29=0,\"//---END\",'Subj-ConceptMap-1'!S29)","v":"* group[=].element[=].target.code = #Patient.name.given"}]
[null,{"$f":"IF('Subj-ConceptMap-1'!S30=0,\"//---END\",'Subj-ConceptMap-1'!S30)","v":"* group[=].element[=].target.display = ##34###34#"}]
[null,{"$f":"IF('Subj-ConceptMap-1'!S31=0,\"//---END\",'Subj-ConceptMap-1'!S31)","v":"* group[=].element[=].target.equivalence = #equivalent"}]
[null,{"$f":"IF('Subj-ConceptMap-1'!S32=0,\"//---END\",'Subj-ConceptMap-1'!S32)","v":""}]
[null,{"$f":"IF('Subj-ConceptMap-1'!S33=0,\"//---END\",'Subj-ConceptMap-1'!S33)","v":"* group[=].element[+].code = #Subject.identifier"}]
[null,{"$f":"IF('Subj-ConceptMap-1'!S34=0,\"//---END\",'Subj-ConceptMap-1'!S34)","v":"* group[=].element[=].display = ##34#A.1.1.4 Personal identifier##34#"}]
[null,{"$f":"IF('Subj-ConceptMap-1'!S35=0,\"//---END\",'Subj-ConceptMap-1'!S35)","v":"* group[=].element[=].target.code = #Patient.birthDate"}]
[null,{"$f":"IF('Subj-ConceptMap-1'!S36=0,\"//---END\",'Subj-ConceptMap-1'!S36)","v":"* group[=].element[=].target.display = ##34###34#"}]
[null,{"$f":"IF('Subj-ConceptMap-1'!S37=0,\"//---END\",'Subj-ConceptMap-1'!S37)","v":"* group[=].element[=].target.equivalence = #equivalent"}]
[null,{"$f":"IF('Subj-ConceptMap-1'!S38=0,\"//---END\",'Subj-ConceptMap-1'!S38)","v":""}]
[null,{"$f":"IF('Subj-ConceptMap-1'!S39=0,\"//---END\",'Subj-ConceptMap-1'!S39)","v":"* group[=].element[+].code = #Subject.gender"}]
[null,{"$f":"IF('Subj-ConceptMap-1'!S40=0,\"//---END\",'Subj-ConceptMap-1'!S40)","v":"* group[=].element[=].display = ##34#A.1.1.5 Gender##34#"}]
[null,{"$f":"IF('Subj-ConceptMap-1'!S41=0,\"//---END\",'Subj-ConceptMap-1'!S41)","v":"* group[=].element[=].target.code = #Patient.identifier"}]
[null,{"$f":"IF('Subj-ConceptMap-1'!S42=0,\"//---END\",'Subj-ConceptMap-1'!S42)","v":"* group[=].element[=].target.display = ##34###34#"}]
[null,{"$f":"IF('Subj-ConceptMap-1'!S43=0,\"//---END\",'Subj-ConceptMap-1'!S43)","v":"* group[=].element[=].target.equivalence = #equivalent"}]
[null,{"$f":"IF('Subj-ConceptMap-1'!S44=0,\"//---END\",'Subj-ConceptMap-1'!S44)","v":""}]
[null,{"$f":"IF('Subj-ConceptMap-1'!S45=0,\"//---END\",'Subj-ConceptMap-1'!S45)","v":"* group[=].element[+].code = #Subject.0"}]
[null,{"$f":"IF('Subj-ConceptMap-1'!S46=0,\"//---END\",'Subj-ConceptMap-1'!S46)","v":"* group[=].element[=].display = ##34#0##34#"}]
[null,{"$f":"IF('Subj-ConceptMap-1'!S47=0,\"//---END\",'Subj-ConceptMap-1'!S47)","v":"* group[=].element[=].target.code = #Patient.gender"}]
[null,{"$f":"IF('Subj-ConceptMap-1'!S48=0,\"//---END\",'Subj-ConceptMap-1'!S48)","v":"* group[=].element[=].target.display = ##34###34#"}]
[null,{"$f":"IF('Subj-ConceptMap-1'!S49=0,\"//---END\",'Subj-ConceptMap-1'!S49)","v":"* group[=].element[=].target.equivalence = #equivalent"}]
[null,{"$f":"IF('Subj-ConceptMap-1'!S50=0,\"//---END\",'Subj-ConceptMap-1'!S50)","v":""}]
[null,{"$f":"IF('Subj-ConceptMap-1'!S51=0,\"//---END\",'Subj-ConceptMap-1'!S51)","v":{"$error":"#REF!"}}]
[null,{"$f":"IF('Subj-ConceptMap-1'!S52=0,\"//---END\",'Subj-ConceptMap-1'!S52)","v":{"$error":"#REF!"}}]
[null,{"$f":"IF('Subj-ConceptMap-1'!S53=0,\"//---END\",'Subj-ConceptMap-1'!S53)","v":"* group[=].element[=].target.code = #Patient"}]
[null,{"$f":"IF('Subj-ConceptMap-1'!S54=0,\"//---END\",'Subj-ConceptMap-1'!S54)","v":"* group[=].element[=].target.display = ##34###34#"}]
[null,{"$f":"IF('Subj-ConceptMap-1'!S55=0,\"//---END\",'Subj-ConceptMap-1'!S55)","v":"* group[=].element[=].target.equivalence = #relatedto"}]
[null,{"$f":"IF('Subj-ConceptMap-1'!S56=0,\"//---END\",'Subj-ConceptMap-1'!S56)","v":""}]
[null,{"$f":"IF('Subj-ConceptMap-1'!S57=0,\"//---END\",'Subj-ConceptMap-1'!S57)","v":{"$error":"#REF!"}}]
[null,{"$f":"IF('Subj-ConceptMap-1'!S58=0,\"//---END\",'Subj-ConceptMap-1'!S58)","v":{"$error":"#REF!"}}]
[null,{"$f":"IF('Subj-ConceptMap-1'!S59=0,\"//---END\",'Subj-ConceptMap-1'!S59)","v":"* group[=].element[=].target.code = #Patient.address"}]
[null,{"$f":"IF('Subj-ConceptMap-1'!S60=0,\"//---END\",'Subj-ConceptMap-1'!S60)","v":"* group[=].element[=].target.display = ##34###34#"}]
[null,{"$f":"IF('Subj-ConceptMap-1'!S61=0,\"//---END\",'Subj-ConceptMap-1'!S61)","v":"* group[=].element[=].target.equivalence = #equivalent"}]
[null,{"$f":"IF('Subj-ConceptMap-1'!S62=0,\"//---END\",'Subj-ConceptMap-1'!S62)","v":""}]
[null,{"$f":"IF('Subj-ConceptMap-1'!S63=0,\"//---END\",'Subj-ConceptMap-1'!S63)","v":{"$error":"#REF!"}}]
[null,{"$f":"IF('Subj-ConceptMap-1'!S64=0,\"//---END\",'Subj-ConceptMap-1'!S64)","v":{"$error":"#REF!"}}]
[null,{"$f":"IF('Subj-ConceptMap-1'!S65=0,\"//---END\",'Subj-ConceptMap-1'!S65)","v":"* group[=].element[=].target.code = #Patient.telecom"}]
[null,{"$f":"IF('Subj-ConceptMap-1'!S66=0,\"//---END\",'Subj-ConceptMap-1'!S66)","v":"* group[=].element[=].target.display = ##34###34#"}]
[null,{"$f":"IF('Subj-ConceptMap-1'!S67=0,\"//---END\",'Subj-ConceptMap-1'!S67)","v":"* group[=].element[=].target.equivalence = #equivalent"}]
[null,{"$f":"IF('Subj-ConceptMap-1'!S68=0,\"//---END\",'Subj-ConceptMap-1'!S68)","v":""}]
[null,{"$f":"IF('Subj-ConceptMap-1'!S69=0,\"//---END\",'Subj-ConceptMap-1'!S69)","v":"//---END"}]
[null,{"$f":"IF('Subj-ConceptMap-1'!S70=0,\"//---END\",'Subj-ConceptMap-1'!S70)","v":"//---END"}]
[null,{"$f":"IF('Subj-ConceptMap-1'!S71=0,\"//---END\",'Subj-ConceptMap-1'!S71)","v":"//---END"}]
[null,{"$f":"IF('Subj-ConceptMap-1'!S72=0,\"//---END\",'Subj-ConceptMap-1'!S72)","v":"//---END"}]

{"sheet":"Product","index":17,"n_rows":26,"n_cols":9,"rows_kept":26,"cut":false,"hidden":false,"merged":[]}
[null,null,null,null,null,null,null,null,"// -------------------------------------------------------------------------------"]
[null,null,null,null,null,null,null,null,"//  Logical Model"]
[null,null,null,null,null,null,null,null,{"$f":"I1","v":"// -------------------------------------------------------------------------------"}]
["Name","MedProductEhn",null,null,null,null,null,null,{"$f":"CONCATENATE(\"Logical: \",B4)","v":"Logical: MedProductEhn"}]
["Id","MedicinalProduct",null,null,null,null,null,null,{"$f":"CONCATENATE(\"Id: \",B5)","v":"Id: MedicinalProduct"}]
["Title","A1.4 Identification of the prescribed product",null,null,null,null,null,null,{"$f":"CONCATENATE(\"Title: ##34#\",B6,\"##34#\")","v":"Title: ##34#A1.4 Identification of the prescribed product##34#"}]
["Description","Identification of the prescribed product. Section A1.4 of the eHN guideline","Data Element ","Data element description","min","max","dataType",null,{"$f":"CONCATENATE(\"Description: \",\" ##334#\",B7,\"##334#\",)","v":"Description:  ##334#Identification of the prescribed product. Section A1.4 of the eHN guideline##334#"}]
[1,"name","A.1.4.1 Name of the medicinal product","Brand name of the authorised medicinal product.\nIt has to be noted, that according to Implementing Directive 2012/52/EU additional requirements may apply.\n[not applicable for generic prescriptions]",0,"*","string",null,{"$f":"CONCATENATE(\"* \",B8, \" \",E8,\"..\",F8,\" \",G8,\" ##34#\",C8,\"##34# ##334#\",D8,\"##334#\")","v":"* name 0..* string ##34#A.1.4.1 Name of the medicinal product##34# ##334#Brand name of the authorised medicinal product.\nIt has to be noted, that according to Implementing Directive 2012/52/EU additional requirements may apply.\n[not applicable for generic prescriptions]##334#"}]
[2,"mpid","A.1.4.2 Identifier of the medicinal product","Identifier of a medicinal product refers to the product inside the package, not the packaged item as such. It could be MPID according to ISO 11615, EMA PMS ID and/or a national identifier.\n[not applicable for generic prescriptions]\n - Preferred system(s): EMA PMS",0,"*","Identifier",null,{"$f":"CONCATENATE(\"* \",B9, \" \",E9,\"..\",F9,\" \",G9,\" ##34#\",C9,\"##34# ##334#\",D9,\"##334#\")","v":"* mpid 0..* Identifier ##34#A.1.4.2 Identifier of the medicinal product##34# ##334#Identifier of a medicinal product refers to the product inside the package, not the packaged item as such. It could be MPID according to ISO 11615, EMA PMS ID and/or a national identifier.\n[not applicable for generic prescriptions]\n - Preferred system(s): EMA PMS##334#"}]
[3,"phpid","A.1.4.2.1 Identifier(s) of the pharmaceutical product","Identifier of a pharmaceutical product refers to unique PhPID according to ISO 11616. This could be a part of a description of a specific medicinal product or an attribute of a generic prescription.\n[not applicable for generic prescriptions]\n - Preferred system(s): EMA PMS",0,"*","Identifier",null,"* phpid 0..* Identifier ##34#A.1.4.2.1 Identifier(s) of the pharmaceutical product##34# ##334#Identifier of a pharmaceutical product refers to unique PhPID according to ISO 11616. This could be a part of a description of a specific medicinal product or an attribute of a generic prescription.\n[not applicable for generic prescriptions]\n - Preferred system(s): EMA PMS##334#"]
[4,"pcid","A.1.4.2.2 Identifier(s) of the packaged medicinal product","Identifier of a packaged medicinal product refers to a specific pack size of a specific product. It could be PCID according to ISO 11615 and/or its national equivalent.\n[not applicable for generic prescriptions]\n - Preferred system(s): EMA PMS",0,"*","Identifier",null,"* pcid 0..* Identifier ##34#A.1.4.2.2 Identifier(s) of the packaged medicinal product##34# ##334#Identifier of a packaged medicinal product refers to a specific pack size of a specific product. It could be PCID according to ISO 11615 and/or its national equivalent.\n[not applicable for generic prescriptions]\n - Preferred system(s): EMA PMS##334#"]
[5,"marketingAuthHolder","A.1.4.3 Marketing authorisation holder","Organisation that holds the marketing authorisation of the prescribed product.\n[not applicable for generic prescriptions]",0,1,"Organization",null,"* marketingAuthHolder 0..1 Organization ##34#A.1.4.3 Marketing authorisation holder##34# ##334#Organisation that holds the marketing authorisation of the prescribed product.\n[not applicable for generic prescriptions]##334#"]
[6,"activeSubstance","A.1.4.4 Active substance(s)","All active substances according to ISO 11238. Referred to by \"common name\" in implementing directive 2012/52/EU. \n - Preferred system(s): EMA SMS",0,"*","CodeableConcept",null,"* activeSubstance 0..* CodeableConcept ##34#A.1.4.4 Active substance(s)##34# ##334#All active substances according to ISO 11238. Referred to by \"common name\" in implementing directive 2012/52/EU. \n - Preferred system(s): EMA SMS##334#"]
[7,"strength","A.1.4.4.1 Strength of the active substance(s)","Presentation and/or concentration strength of the active substances. In addition, reference strength could be provided (Article 1 of Directive 2001/83/EC).\n - Preferred system(s): UCUM; EDQM",0,"*","Ratio",null,"* strength 0..* Ratio ##34#A.1.4.4.1 Strength of the active substance(s)##34# ##334#Presentation and/or concentration strength of the active substances. In addition, reference strength could be provided (Article 1 of Directive 2001/83/EC).\n - Preferred system(s): UCUM; EDQM##334#"]
[8,"classification","A.1.4.5 Product classification ","WHO ATC code of the product \n - Preferred system(s): ATC",0,"*","CodeableConcept",null,"* classification 0..* CodeableConcept ##34#A.1.4.5 Product classification ##34# ##334#WHO ATC code of the product \n - Preferred system(s): ATC##334#"]
[9,"doseForm","A.1.4.6 Pharmaceutical dose form(s)","Dose form of a product could be either authorised dose form (includes EDQM combination pack dose forms), administrable dose form or manufactured item dose form. It must be made clear which type of dose forms are provided. For example, for the same product several different dose forms can be provided: ‘powder and solvent for solution for injection’ as authorised dose form, ‘solution for injection’ as administrable dose form, and ‘powder’ and ‘solvent’ as the dose forms for the manufactured items in the inner packaging.\nReferred to by \"pharmaceutical formulation\" in implementing directive 2012/52/EU.\n - Preferred system(s): EDQM",0,"*","CodeableConcept",null,"* doseForm 0..* CodeableConcept ##34#A.1.4.6 Pharmaceutical dose form(s)##34# ##334#Dose form of a product could be either authorised dose form (includes EDQM combination pack dose forms), administrable dose form or manufactured item dose form. It must be made clear which type of dose forms are provided. For example, for the same product several different dose forms can be provided: ‘powder and solvent for solution for injection’ as authorised dose form, ‘solution for injection’ as administrable dose form, and ‘powder’ and ‘solvent’ as the dose forms for the manufactured items in the inner packaging.\nReferred to by \"pharmaceutical formulation\" in implementing directive 2012/52/EU.\n - Preferred system(s): EDQM##334#"]
[10,"unitOfPresentation","A.1.4.7 Unit of presentation(s)","Unit of presentation is used as a unit when describing the strength, but according to ISO IDMP it is also a separate attribute of the pharmaceutical product and manufactured item.\n - Preferred system(s): EDQM",0,"*","CodeableConcept",null,"* unitOfPresentation 0..* CodeableConcept ##34#A.1.4.7 Unit of presentation(s)##34# ##334#Unit of presentation is used as a unit when describing the strength, but according to ISO IDMP it is also a separate attribute of the pharmaceutical product and manufactured item.\n - Preferred system(s): EDQM##334#"]
[11,"packageType","A.1.4.8 Package type","Type of the container, Examples: bottle, blister, box\n - Preferred system(s): EDQM",0,"*","CodeableConcept",null,"* packageType 0..* CodeableConcept ##34#A.1.4.8 Package type##34# ##334#Type of the container, Examples: bottle, blister, box\n - Preferred system(s): EDQM##334#"]
[12,"PackageSize","A.1.4.9 Pack size","Typically, the pack size is the number of unit of presentations in the package. \nIt could also be presented using units of measurement (ml, g). In some cases, there is a need to refine the package size that it describes the amounts of different manufactured items in more than one inner packages. However, the overall amount of a prescribed product must be calculable from the pack size description.\n - Preferred system(s): UCUM; EDQM",0,"*","BackboneElement",null,"* PackageSize 0..* BackboneElement ##34#A.1.4.9 Pack size##34# ##334#Typically, the pack size is the number of unit of presentations in the package. \nIt could also be presented using units of measurement (ml, g). In some cases, there is a need to refine the package size that it describes the amounts of different manufactured items in more than one inner packages. However, the overall amount of a prescribed product must be calculable from the pack size description.\n - Preferred system(s): UCUM; EDQM##334#"]
[null,null,null,null,null,null,null,null,"*  ..  ##34###34# ##334###334#"]
[null,null,null,null,null,null,null,null,"*  ..  ##34###34# ##334###334#"]
[null,null,null,null,null,null,null,null,"*  ..  ##34###34# ##334###334#"]
[null,null,null,null,null,null,null,null,"*  ..  ##34###34# ##334###334#"]
[null,null,null,null,null,null,null,null,"*  ..  ##34###34# ##334###334#"]
[null,null,null,null,null,null,null,null,"*  ..  ##34###34# ##334###334#"]
[null,null,null,null,null,null,null,null,"*  ..  ##34###34# ##334###334#"]

{"sheet":"Product-fsh","index":18,"n_rows":25,"n_cols":7,"rows_kept":25,"cut":false,"hidden":false,"merged":[]}
[null,null,{"$f":"Product!I1","v":"// -------------------------------------------------------------------------------"}]
[null,null,{"$f":"Product!I2","v":"//  Logical Model"},null,null,null,{"$f":"Product!B5&\".fsh\"","v":"MedicinalProduct.fsh"}]
[null,null,{"$f":"Product!I3","v":"// -------------------------------------------------------------------------------"}]
[null,null,{"$f":"Product!I4","v":"Logical: MedProductEhn"}]
[null,null,{"$f":"Product!I5","v":"Id: MedicinalProduct"}]
[null,null,{"$f":"Product!I6","v":"Title: ##34#A1.4 Identification of the prescribed product##34#"}]
[null,null,{"$f":"Product!I7","v":"Description:  ##334#Identification of the prescribed product. Section A1.4 of the eHN guideline##334#"}]
[null,null,{"$f":"IF(Product!I8=\"*  ..  ##34###34# ##334###334#\",\"//--- END\",Product!I8)","v":"* name 0..* string ##34#A.1.4.1 Name of the medicinal product##34# ##334#Brand name of the authorised medicinal product.\nIt has to be noted, that according to Implementing Directive 2012/52/EU additional requirements may apply.\n[not applicable for generic prescriptions]##334#"}]
[null,null,{"$f":"IF(Product!I9=\"*  ..  ##34###34# ##334###334#\",\"//--- END\",Product!I9)","v":"* mpid 0..* Identifier ##34#A.1.4.2 Identifier of the medicinal product##34# ##334#Identifier of a medicinal product refers to the product inside the package, not the packaged item as such. It could be MPID according to ISO 11615, EMA PMS ID and/or a national identifier.\n[not applicable for generic prescriptions]\n - Preferred system(s): EMA PMS##334#"}]
[null,null,{"$f":"IF(Product!I10=\"*  ..  ##34###34# ##334###334#\",\"//--- END\",Product!I10)","v":"* phpid 0..* Identifier ##34#A.1.4.2.1 Identifier(s) of the pharmaceutical product##34# ##334#Identifier of a pharmaceutical product refers to unique PhPID according to ISO 11616. This could be a part of a description of a specific medicinal product or an attribute of a generic prescription.\n[not applicable for generic prescriptions]\n - Preferred system(s): EMA PMS##334#"},null," "]
[null,null,{"$f":"IF(Product!I11=\"*  ..  ##34###34# ##334###334#\",\"//--- END\",Product!I11)","v":"* pcid 0..* Identifier ##34#A.1.4.2.2 Identifier(s) of the packaged medicinal product##34# ##334#Identifier of a packaged medicinal product refers to a specific pack size of a specific product. It could be PCID according to ISO 11615 and/or its national equivalent.\n[not applicable for generic prescriptions]\n - Preferred system(s): EMA PMS##334#"}]
[null,null,{"$f":"IF(Product!I12=\"*  ..  ##34###34# ##334###334#\",\"//--- END\",Product!I12)","v":"* marketingAuthHolder 0..1 Organization ##34#A.1.4.3 Marketing authorisation holder##34# ##334#Organisation that holds the marketing authorisation of the prescribed product.\n[not applicable for generic prescriptions]##334#"}]
[null,null,{"$f":"IF(Product!I13=\"*  ..  ##34###34# ##334###334#\",\"//--- END\",Product!I13)","v":"* activeSubstance 0..* CodeableConcept ##34#A.1.4.4 Active substance(s)##34# ##334#All active substances according to ISO 11238. Referred to by \"common name\" in implementing directive 2012/52/EU. \n - Preferred system(s): EMA SMS##334#"}]
[null,null,{"$f":"IF(Product!I14=\"*  ..  ##34###34# ##334###334#\",\"//--- END\",Product!I14)","v":"* strength 0..* Ratio ##34#A.1.4.4.1 Strength of the active substance(s)##34# ##334#Presentation and/or concentration strength of the active substances. In addition, reference strength could be provided (Article 1 of Directive 2001/83/EC).\n - Preferred system(s): UCUM; EDQM##334#"}]
[null,null,{"$f":"IF(Product!I15=\"*  ..  ##34###34# ##334###334#\",\"//--- END\",Product!I15)","v":"* classification 0..* CodeableConcept ##34#A.1.4.5 Product classification ##34# ##334#WHO ATC code of the product \n - Preferred system(s): ATC##334#"}]
[null,null,{"$f":"IF(Product!I16=\"*  ..  ##34###34# ##334###334#\",\"//--- END\",Product!I16)","v":"* doseForm 0..* CodeableConcept ##34#A.1.4.6 Pharmaceutical dose form(s)##34# ##334#Dose form of a product could be either authorised dose form (includes EDQM combination pack dose forms), administrable dose form or manufactured item dose form. It must be made clear which type of dose forms are provided. For example, for the same product several different dose forms can be provided: ‘powder and solvent for solution for injection’ as authorised dose form, ‘solution for injection’ as administrable dose form, and ‘powder’ and ‘solvent’ as the dose forms for the manufactured items in the inner packaging.\nReferred to by \"pharmaceutical formulation\" in implementing directive 2012/52/EU.\n - Preferred system(s): EDQM##334#"}]
[null,null,{"$f":"IF(Product!I17=\"*  ..  ##34###34# ##334###334#\",\"//--- END\",Product!I17)","v":"* unitOfPresentation 0..* CodeableConcept ##34#A.1.4.7 Unit of presentation(s)##34# ##334#Unit of presentation is used as a unit when describing the strength, but according to ISO IDMP it is also a separate attribute of the pharmaceutical product and manufactured item.\n - Preferred system(s): EDQM##334#"}]
[null,null,{"$f":"IF(Product!I18=\"*  ..  ##34###34# ##334###334#\",\"//--- END\",Product!I18)","v":"* packageType 0..* CodeableConcept ##34#A.1.4.8 Package type##34# ##334#Type of the container, Examples: bottle, blister, box\n - Preferred system(s): EDQM##334#"}]
[null,null,{"$f":"IF(Product!I19=\"*  ..  ##34###34# ##334###334#\",\"//--- END\",Product!I19)","v":"* PackageSize 0..* BackboneElement ##34#A.1.4.9 Pack size##34# ##334#Typically, the pack size is the number of unit of presentations in the package. \nIt could also be presented using units of measurement (ml, g). In some cases, there is a need to refine the package size that it describes the amounts of different manufactured items in more than one inner packages. However, the overall amount of a prescribed product must be calculable from the pack size description.\n - Preferred system(s): UCUM; EDQM##334#"}]
[null,null,{"$f":"IF(Product!I20=\"*  ..  ##34###34# ##334###334#\",\"//--- END\",Product!I20)","v":"//--- END"}]
[null,null,{"$f":"IF(Product!I21=\"*  ..  ##34###34# ##334###334#\",\"//--- END\",Product!I21)","v":"//--- END"}]
[null,null,{"$f":"IF(Product!I22=\"*  ..  ##34###34# ##334###334#\",\"//--- END\",Product!I22)","v":"//--- END"}]
[null,null,{"$f":"IF(Product!I23=\"*  ..  ##34###34# ##334###334#\",\"//--- END\",Product!I23)","v":"//--- END"}]
[null,null,{"$f":"IF(Product!I24=\"*  ..  ##34###34# ##334###334#\",\"//--- END\",Product!I24)","v":"//--- END"}]
[null,null,{"$f":"IF(Product!I25=\"*  ..  ##34###34# ##334###334#\",\"//--- END\",Product!I25)","v":"//--- END"}]

{"sheet":"Product-ConceptMap","index":19,"n_rows":112,"n_cols":19,"rows_kept":112,"cut":false,"hidden":false,"merged":[[2,4,2,6],[3,4,3,6],[5,4,5,6],[6,4,6,6]]}
[null,null,"http://hl7.eu/fhir/ig/xpandh-mpd/StructureDefinition/"]
[]
[null,"Mapping","MedProd2Fhir","Source URI",{"$f":"C1&eP!B5","v":"http://hl7.eu/fhir/ig/xpandh-mpd/StructureDefinition/Prescription"}]
[null,"Id","medProd2FHIR-eu-xpandh","Target URI",{"$f":"C6&\"/StructureDefinition/\"&C7","v":"http://hl7.eu/fhir/ig/xpandh-mpd//StructureDefinition/Medication-eu-xpandh"}]
[null,"Title","eHN Medicinal Product to this guide Map"]
[null,"IG url","http://hl7.eu/fhir/ig/xpandh-mpd/","Source Group",{"$f":"E3","v":"http://hl7.eu/fhir/ig/xpandh-mpd/StructureDefinition/Prescription"}]
[null,"Targte Profile Model","Medication-eu-xpandh","Target Group",{"$f":"E4","v":"http://hl7.eu/fhir/ig/xpandh-mpd//StructureDefinition/Medication-eu-xpandh"}]
[null,"description","eHN Medicinal Product Model to this guide Map",null,null,null,null,null,"* group[=].element[+].code = #Osiris.Patient.BirthDate","* group[=].element[=].display = \"Birth Date [C4]\"","* group[=].element[=].target.code = #Subject.dateOfBirth.date","* group[=].element[=].target.display = \"Date of birth\"","* group[=].element[=].target.equivalence = #equivalent",null,null,"Elements",6]
[null,"purpose","It shows how the Medicinal Product data set defined by the EU eHN guidelines is mapped into this guide"]
[]
[null,null,null,null,null,null,null,null,"source:code","source:display","code","display","target to source","Comment"]
[]
[null,null,null,null,null,"target to source","Comment"]
[null,{"$f":"Product!B5","v":"MedicinalProduct"},null,"Medication"]
[null,{"$f":"Product!B8","v":"name"},{"$f":"Product!C8","v":"A.1.4.1 Name of the medicinal product"},"code.text",null,"relatedto","to be checked",null,{"$f":"\"* group[=].element[+].code = #\"&$B$14&\".\"&B15","v":"* group[=].element[+].code = #MedicinalProduct.name"},{"$f":"\"* group[=].element[=].display = ##34#\"&C15&\"##34#\"","v":"* group[=].element[=].display = ##34#A.1.4.1 Name of the medicinal product##34#"},{"$f":"IF(F15=\"unmatched\",\"//-- unmatched\",IF(D15=\"\",\"* group[=].element[=].target.code = #\"&$D$14,\"* group[=].element[=].target.code = #\"&$D$14&\".\"&D15))","v":"* group[=].element[=].target.code = #Medication.code.text"},{"$f":"IF(F15=\"unmatched\",\"//-- unmatched\",\"* group[=].element[=].target.display = ##34#\"&E15&\"##34#\")","v":"* group[=].element[=].target.display = ##34###34#"},{"$f":"\"* group[=].element[=].target.equivalence = #\"&F15","v":"* group[=].element[=].target.equivalence = #relatedto"},{"$f":"IF(G15<>\"\",CONCATENATE(\"* group[=].element[=].target.comment = \",\"##34#\",G15,\"##34#\"),\"\")","v":"* group[=].element[=].target.comment = ##34#to be checked##34#"},null,1,{"$f":"IF(MOD(P15,$Q$8)=0,P15/$Q$8-1,INT(P15/$Q$8))","v":0},{"$f":"IF(MOD(P15,$Q$8)=0,$Q$8,MOD(P15,$Q$8))","v":1},{"$f":"INDEX('Product-ConceptMap'!$I$15:$N$273,Q15+1,R15)","v":"* group[=].element[+].code = #MedicinalProduct.name"}]
[null,{"$f":"Product!B9","v":"mpid"},{"$f":"Product!C9","v":"A.1.4.2 Identifier of the medicinal product"},"code.coding",null,"relatedto","How it is implemented now in the IPS. TBD",null,{"$f":"\"* group[=].element[+].code = #\"&$B$14&\".\"&B16","v":"* group[=].element[+].code = #MedicinalProduct.mpid"},"* group[=].element[=].display = ##34#A.1.4.2 Identifier of the medicinal product##34#",{"$f":"IF(F16=\"unmatched\",\"//-- unmatched\",IF(D16=\"\",\"* group[=].element[=].target.code = #\"&$D$14,\"* group[=].element[=].target.code = #\"&$D$14&\".\"&D16))","v":"* group[=].element[=].target.code = #Medication.code.coding"},"* group[=].element[=].target.display = ##34###34#","* group[=].element[=].target.equivalence = #relatedto","* group[=].element[=].target.comment = ##34#How it is implemented now in the IPS. TBD##34#",null,2,{"$f":"IF(MOD(P16,$Q$8)=0,P16/$Q$8-1,INT(P16/$Q$8))","v":0},{"$f":"IF(MOD(P16,$Q$8)=0,$Q$8,MOD(P16,$Q$8))","v":2},{"$f":"INDEX('Product-ConceptMap'!$I$15:$N$273,Q16+1,R16)","v":"* group[=].element[=].display = ##34#A.1.4.1 Name of the medicinal product##34#"}]
[null,{"$f":"Product!B10","v":"phpid"},{"$f":"Product!C10","v":"A.1.4.2.1 Identifier(s) of the pharmaceutical product"},"code.coding",null,"relatedto","How it is implemented now in the IPS. TBD",null,{"$f":"\"* group[=].element[+].code = #\"&$B$14&\".\"&B17","v":"* group[=].element[+].code = #MedicinalProduct.phpid"},{"$f":"\"* group[=].element[=].display = ##34#\"&C17&\"##34#\"","v":"* group[=].element[=].display = ##34#A.1.4.2.1 Identifier(s) of the pharmaceutical product##34#"},{"$f":"IF(F17=\"unmatched\",\"//-- unmatched\",IF(D17=\"\",\"* group[=].element[=].target.code = #\"&$D$14,\"* group[=].element[=].target.code = #\"&$D$14&\".\"&D17))","v":"* group[=].element[=].target.code = #Medication.code.coding"},{"$f":"IF(F17=\"unmatched\",\"//-- unmatched\",\"* group[=].element[=].target.display = ##34#\"&E17&\"##34#\")","v":"* group[=].element[=].target.display = ##34###34#"},{"$f":"\"* group[=].element[=].target.equivalence = #\"&F17","v":"* group[=].element[=].target.equivalence = #relatedto"},{"$f":"IF(G17<>\"\",CONCATENATE(\"* group[=].element[=].target.comment = \",\"##34#\",G17,\"##34#\"),\"\")","v":"* group[=].element[=].target.comment = ##34#How it is implemented now in the IPS. TBD##34#"},null,3,0,3,{"$f":"INDEX('Product-ConceptMap'!$I$15:$N$273,Q17+1,R17)","v":"* group[=].element[=].target.code = #Medication.code.text"}]
[null,{"$f":"Product!B11","v":"pcid"},{"$f":"Product!C11","v":"A.1.4.2.2 Identifier(s) of the packaged medicinal product"},"code.coding",null,"relatedto","How it is implemented now in the IPS. TBD",null,"* group[=].element[+].code = #MedicinalProduct.pcid","* group[=].element[=].display = ##34#A.1.4.2.2 Identifier(s) of the packaged medicinal product##34#","* group[=].element[=].target.code = #Medication.code.coding","* group[=].element[=].target.display = ##34###34#","* group[=].element[=].target.equivalence = #relatedto","* group[=].element[=].target.comment = ##34#How it is implemented now in the IPS. TBD##34#",null,4,0,4,{"$f":"INDEX('Product-ConceptMap'!$I$15:$N$273,Q18+1,R18)","v":"* group[=].element[=].target.display = ##34###34#"}]
[null,{"$f":"Product!B12","v":"marketingAuthHolder"},{"$f":"Product!C12","v":"A.1.4.3 Marketing authorisation holder"},"manufacturer",null,"equivalent",null,null,"* group[=].element[+].code = #MedicinalProduct.marketingAuthHolder","* group[=].element[=].display = ##34#A.1.4.3 Marketing authorisation holder##34#","* group[=].element[=].target.code = #Medication.manufacturer","* group[=].element[=].target.display = ##34###34#","* group[=].element[=].target.equivalence = #equivalent","",null,5,0,5,{"$f":"INDEX('Product-ConceptMap'!$I$15:$N$273,Q19+1,R19)","v":"* group[=].element[=].target.equivalence = #relatedto"}]
[null,{"$f":"Product!B13","v":"activeSubstance"},{"$f":"Product!C13","v":"A.1.4.4 Active substance(s)"},"ingredient",null,"equivalent","where isActitve = 'true'",null,"* group[=].element[+].code = #MedicinalProduct.activeSubstance","* group[=].element[=].display = ##34#A.1.4.4 Active substance(s)##34#","* group[=].element[=].target.code = #Medication.ingredient","* group[=].element[=].target.display = ##34###34#","* group[=].element[=].target.equivalence = #equivalent","* group[=].element[=].target.comment = ##34#where isActitve = 'true'##34#",null,6,0,6,{"$f":"INDEX('Product-ConceptMap'!$I$15:$N$273,Q20+1,R20)","v":"* group[=].element[=].target.comment = ##34#to be checked##34#"}]
[null,{"$f":"Product!B14","v":"strength"},{"$f":"Product!C14","v":"A.1.4.4.1 Strength of the active substance(s)"},"ingredient.strength",null,"relatedto","only one kind of strength is provided.\nClarify how to provide ingredient and strength as text",null,"* group[=].element[+].code = #MedicinalProduct.strength","* group[=].element[=].display = ##34#A.1.4.4.1 Strength of the active substance(s)##34#","* group[=].element[=].target.code = #Medication.ingredient.strength","* group[=].element[=].target.display = ##34###34#","* group[=].element[=].target.equivalence = #relatedto","* group[=].element[=].target.comment = ##34#only one kind of strength is provided.\nClarify how to provide ingredient and strength as text##34#",null,7,1,1,{"$f":"INDEX('Product-ConceptMap'!$I$15:$N$273,Q21+1,R21)","v":"* group[=].element[+].code = #MedicinalProduct.mpid"}]
[null,{"$f":"Product!B15","v":"classification"},{"$f":"Product!C15","v":"A.1.4.5 Product classification "},"extension(definition).ValueReference",null,"relatedto","MedicationKnowledge.medicineClassification.classification.\nType to be defined",null,"* group[=].element[+].code = #MedicinalProduct.classification","* group[=].element[=].display = ##34#A.1.4.5 Product classification ##34#","* group[=].element[=].target.code = #Medication.extension(definition).ValueReference","* group[=].element[=].target.display = ##34###34#","* group[=].element[=].target.equivalence = #relatedto","* group[=].element[=].target.comment = ##34#MedicationKnowledge.medicineClassification.classification.\nType to be defined##34#",null,8,1,2,{"$f":"INDEX('Product-ConceptMap'!$I$15:$N$273,Q22+1,R22)","v":"* group[=].element[=].display = ##34#A.1.4.2 Identifier of the medicinal product##34#"}]
[null,{"$f":"Product!B15","v":"classification"},{"$f":"Product!C15","v":"A.1.4.5 Product classification "},"code.coding",null,"equivalent","How it is implemented now in the IPS",null,"* group[=].element[+].code = #MedicinalProduct.classification","* group[=].element[=].display = ##34#A.1.4.5 Product classification ##34#","* group[=].element[=].target.code = #Medication.code.coding","* group[=].element[=].target.display = ##34###34#","* group[=].element[=].target.equivalence = #equivalent","* group[=].element[=].target.comment = ##34#How it is implemented now in the IPS##34#",null,9,1,{"$f":"IF(MOD(P23,$Q$8)=0,$Q$8,MOD(P23,$Q$8))","v":3},{"$f":"INDEX('Product-ConceptMap'!$I$15:$N$273,Q23+1,R23)","v":"* group[=].element[=].target.code = #Medication.code.coding"}]
[null,{"$f":"Product!B16","v":"doseForm"},{"$f":"Product!C16","v":"A.1.4.6 Pharmaceutical dose form(s)"},"form",null,"relatedto",null,null,"* group[=].element[+].code = #MedicinalProduct.doseForm","* group[=].element[=].display = ##34#A.1.4.6 Pharmaceutical dose form(s)##34#","* group[=].element[=].target.code = #Medication.form","* group[=].element[=].target.display = ##34###34#","* group[=].element[=].target.equivalence = #relatedto","",null,10,1,4,{"$f":"INDEX('Product-ConceptMap'!$I$15:$N$273,Q24+1,R24)","v":"* group[=].element[=].target.display = ##34###34#"}]
[null,{"$f":"Product!B17","v":"unitOfPresentation"},{"$f":"Product!C17","v":"A.1.4.7 Unit of presentation(s)"},"ingredient.strength.denominator.code",null,"equivalent","if it is the presentation strength",null,"* group[=].element[+].code = #MedicinalProduct.unitOfPresentation","* group[=].element[=].display = ##34#A.1.4.7 Unit of presentation(s)##34#","* group[=].element[=].target.code = #Medication.ingredient.strength.denominator.code","* group[=].element[=].target.display = ##34###34#","* group[=].element[=].target.equivalence = #equivalent","* group[=].element[=].target.comment = ##34#if it is the presentation strength##34#",null,11,1,5,{"$f":"INDEX('Product-ConceptMap'!$I$15:$N$273,Q25+1,R25)","v":"* group[=].element[=].target.equivalence = #relatedto"}]
[null,{"$f":"Product!B18","v":"packageType"},{"$f":"Product!C18","v":"A.1.4.8 Package type"},"contained.packaging.type",null,"relatedto","if contained",null,"* group[=].element[+].code = #MedicinalProduct.packageType","* group[=].element[=].display = ##34#A.1.4.8 Package type##34#","* group[=].element[=].target.code = #Medication.contained.packaging.type","* group[=].element[=].target.display = ##34###34#","* group[=].element[=].target.equivalence = #relatedto","* group[=].element[=].target.comment = ##34#if contained##34#",null,12,1,6,{"$f":"INDEX('Product-ConceptMap'!$I$15:$N$273,Q26+1,R26)","v":"* group[=].element[=].target.comment = ##34#How it is implemented now in the IPS. TBD##34#"}]
[null,{"$f":"Product!B19","v":"PackageSize"},{"$f":"Product!C19","v":"A.1.4.9 Pack size"},"contained.packaging.quantity",null,"relatedto","if contained",null,"* group[=].element[+].code = #MedicinalProduct.PackageSize","* group[=].element[=].display = ##34#A.1.4.9 Pack size##34#","* group[=].element[=].target.code = #Medication.contained.packaging.quantity","* group[=].element[=].target.display = ##34###34#","* group[=].element[=].target.equivalence = #relatedto","* group[=].element[=].target.comment = ##34#if contained##34#",null,13,2,1,{"$f":"INDEX('Product-ConceptMap'!$I$15:$N$273,Q27+1,R27)","v":"* group[=].element[+].code = #MedicinalProduct.phpid"}]
[null,{"$f":"Product!B18","v":"packageType"},{"$f":"Product!C18","v":"A.1.4.8 Package type"},"extension(definition).ValueReference",null,"relatedto","MedicationKnowledge.packaging.type",null,"* group[=].element[+].code = #MedicinalProduct.packageType","* group[=].element[=].display = ##34#A.1.4.8 Package type##34#","* group[=].element[=].target.code = #Medication.extension(definition).ValueReference","* group[=].element[=].target.display = ##34###34#","* group[=].element[=].target.equivalence = #relatedto","* group[=].element[=].target.comment = ##34#MedicationKnowledge.packaging.type##34#",null,14,2,2,{"$f":"INDEX('Product-ConceptMap'!$I$15:$N$273,Q28+1,R28)","v":"* group[=].element[=].display = ##34#A.1.4.2.1 Identifier(s) of the pharmaceutical product##34#"}]
[null,{"$f":"Product!B19","v":"PackageSize"},{"$f":"Product!C19","v":"A.1.4.9 Pack size"},"extension(definition).ValueReference",null,"relatedto","MedicationKnowledge.packaging.quantity",null,"* group[=].element[+].code = #MedicinalProduct.PackageSize","* group[=].element[=].display = ##34#A.1.4.9 Pack size##34#","* group[=].element[=].target.code = #Medication.extension(definition).ValueReference","* group[=].element[=].target.display = ##34###34#","* group[=].element[=].target.equivalence = #relatedto","* group[=].element[=].target.comment = ##34#MedicationKnowledge.packaging.quantity##34#",null,15,2,3,{"$f":"INDEX('Product-ConceptMap'!$I$15:$N$273,Q29+1,R29)","v":"* group[=].element[=].target.code = #Medication.code.coding"}]
[null,null,null,null,null,null,null,null,null,null,null,null,null,null,null,16,2,4,{"$f":"INDEX('Product-ConceptMap'!$I$15:$N$273,Q30+1,R30)","v":"* group[=].element[=].target.display = ##34###34#"}]
[null,null,null,null,null,null,null,null,null,null,null,null,null,null,null,17,2,5,{"$f":"INDEX('Product-ConceptMap'!$I$15:$N$273,Q31+1,R31)","v":"* group[=].element[=].target.equivalence = #relatedto"}]
[null,null,null,null,null,null,null,null,null,null,null,null,null,null,null,18,2,6,{"$f":"INDEX('Product-ConceptMap'!$I$15:$N$273,Q32+1,R32)","v":"* group[=].element[=].target.comment = ##34#How it is implemented now in the IPS. TBD##34#"}]
[null,null,null,null,null,null,null,null,null,null,null,null,null,null,null,19,3,1,{"$f":"INDEX('Product-ConceptMap'!$I$15:$N$273,Q33+1,R33)","v":"* group[=].element[+].code = #MedicinalProduct.pcid"}]
[null,null,null,null,null,null,null,null,null,null,null,null,null,null,null,20,3,2,{"$f":"INDEX('Product-ConceptMap'!$I$15:$N$273,Q34+1,R34)","v":"* group[=].element[=].display = ##34#A.1.4.2.2 Identifier(s) of the packaged medicinal product##34#"}]
[null,null,null,null,null,null,null,null,null,null,null,null,null,null,null,21,3,3,{"$f":"INDEX('Product-ConceptMap'!$I$15:$N$273,Q35+1,R35)","v":"* group[=].element[=].target.code = #Medication.code.coding"}]
[null,null,null,null,null,null,null,null,null,null,null,null,null,null,null,22,3,4,{"$f":"INDEX('Product-ConceptMap'!$I$15:$N$273,Q36+1,R36)","v":"* group[=].element[=].target.display = ##34###34#"}]
[null,null,null,null,null,null,null,null,null,null,null,null,null,null,null,23,3,5,{"$f":"INDEX('Product-ConceptMap'!$I$15:$N$273,Q37+1,R37)","v":"* group[=].element[=].target.equivalence = #relatedto"}]
[null,null,null,null,null,null,null,null,null,null,null,null,null,null,null,24,3,6,{"$f":"INDEX('Product-ConceptMap'!$I$15:$N$273,Q38+1,R38)","v":"* group[=].element[=].target.comment = ##34#How it is implemented now in the IPS. TBD##34#"}]
[null,null,null,null,null,null,null,null,null,null,null,null,null,null,null,25,4,1,{"$f":"INDEX('Product-ConceptMap'!$I$15:$N$273,Q39+1,R39)","v":"* group[=].element[+].code = #MedicinalProduct.marketingAuthHolder"}]
[null,null,null,null,null,null,null,null,null,null,null,null,null,null,null,26,4,2,{"$f":"INDEX('Product-ConceptMap'!$I$15:$N$273,Q40+1,R40)","v":"* group[=].element[=].display = ##34#A.1.4.3 Marketing authorisation holder##34#"}]
[null,null,null,null,null,null,null,null,null,null,null,null,null,null,null,27,4,3,{"$f":"INDEX('Product-ConceptMap'!$I$15:$N$273,Q41+1,R41)","v":"* group[=].element[=].target.code = #Medication.manufacturer"}]
[null,null,null,null,null,null,null,null,null,null,null,null,null,null,null,28,4,4,{"$f":"INDEX('Product-ConceptMap'!$I$15:$N$273,Q42+1,R42)","v":"* group[=].element[=].target.display = ##34###34#"}]
[null,null,null,null,null,null,null,null,null,null,null,null,null,null,null,29,4,5,{"$f":"INDEX('Product-ConceptMap'!$I$15:$N$273,Q43+1,R43)","v":"* group[=].element[=].target.equivalence = #equivalent"}]
[null,null,null,null,null,null,null,null,null,null,null,null,null,null,null,30,4,6,{"$f":"INDEX('Product-ConceptMap'!$I$15:$N$273,Q44+1,R44)","v":""}]
[null,null,null,null,null,null,null,null,null,null,null,null,null,null,null,31,5,1,{"$f":"INDEX('Product-ConceptMap'!$I$15:$N$273,Q45+1,R45)","v":"* group[=].element[+].code = #MedicinalProduct.activeSubstance"}]
[null,null,null,null,null,null,null,null,null,null,null,null,null,null,null,32,5,2,{"$f":"INDEX('Product-ConceptMap'!$I$15:$N$273,Q46+1,R46)","v":"* group[=].element[=].display = ##34#A.1.4.4 Active substance(s)##34#"}]
[null,null,null,null,null,null,null,null,null,null,null,null,null,null,null,33,5,3,{"$f":"INDEX('Product-ConceptMap'!$I$15:$N$273,Q47+1,R47)","v":"* group[=].element[=].target.code = #Medication.ingredient"}]
[null,null,null,null,null,null,null,null,null,null,null,null,null,null,null,34,5,4,{"$f":"INDEX('Product-ConceptMap'!$I$15:$N$273,Q48+1,R48)","v":"* group[=].element[=].target.display = ##34###34#"}]
[null,null,null,null,null,null,null,null,null,null,null,null,null,null,null,35,5,5,{"$f":"INDEX('Product-ConceptMap'!$I$15:$N$273,Q49+1,R49)","v":"* group[=].element[=].target.equivalence = #equivalent"}]
[null,null,null,null,null,null,null,null,null,null,null,null,null,null,null,36,5,6,{"$f":"INDEX('Product-ConceptMap'!$I$15:$N$273,Q50+1,R50)","v":"* group[=].element[=].target.comment = ##34#where isActitve = 'true'##34#"}]
[null,null,null,null,null,null,null,null,null,null,null,null,null,null,null,37,6,1,{"$f":"INDEX('Product-ConceptMap'!$I$15:$N$273,Q51+1,R51)","v":"* group[=].element[+].code = #MedicinalProduct.strength"}]
[null,null,null,null,null,null,null,null,null,null,null,null,null,null,null,38,6,2,{"$f":"INDEX('Product-ConceptMap'!$I$15:$N$273,Q52+1,R52)","v":"* group[=].element[=].display = ##34#A.1.4.4.1 Strength of the active substance(s)##34#"}]
[null,null,null,null,null,null,null,null,null,null,null,null,null,null,null,39,6,3,{"$f":"INDEX('Product-ConceptMap'!$I$15:$N$273,Q53+1,R53)","v":"* group[=].element[=].target.code = #Medication.ingredient.strength"}]
[null,null,null,null,null,null,null,null,null,null,null,null,null,null,null,40,6,4,{"$f":"INDEX('Product-ConceptMap'!$I$15:$N$273,Q54+1,R54)","v":"* group[=].element[=].target.display = ##34###34#"}]
[null,null,null,null,null,null,null,null,null,null,null,null,null,null,null,41,6,5,{"$f":"INDEX('Product-ConceptMap'!$I$15:$N$273,Q55+1,R55)","v":"* group[=].element[=].target.equivalence = #relatedto"}]
[null,null,null,null,null,null,null,null,null,null,null,null,null,null,null,42,6,6,{"$f":"INDEX('Product-ConceptMap'!$I$15:$N$273,Q56+1,R56)","v":"* group[=].element[=].target.comment = ##34#only one kind of strength is provided.\nClarify how to provide ingredient and strength as text##34#"}]
[null,null,null,null,null,null,null,null,null,null,null,null,null,null,null,43,7,1,{"$f":"INDEX('Product-ConceptMap'!$I$15:$N$273,Q57+1,R57)","v":"* group[=].element[+].code = #MedicinalProduct.classification"}]
[null,null,null,null,null,null,null,null,null,null,null,null,null,null,null,44,7,2,{"$f":"INDEX('Product-ConceptMap'!$I$15:$N$273,Q58+1,R58)","v":"* group[=].element[=].display = ##34#A.1.4.5 Product classification ##34#"}]
[null,null,null,null,null,null,null,null,null,null,null,null,null,null,null,45,7,3,{"$f":"INDEX('Product-ConceptMap'!$I$15:$N$273,Q59+1,R59)","v":"* group[=].element[=].target.code = #Medication.extension(definition).ValueReference"}]
[null,null,null,null,null,null,null,null,null,null,null,null,null,null,null,46,7,4,{"$f":"INDEX('Product-ConceptMap'!$I$15:$N$273,Q60+1,R60)","v":"* group[=].element[=].target.display = ##34###34#"}]
[null,null,null,null,null,null,null,null,null,null,null,null,null,null,null,47,7,5,{"$f":"INDEX('Product-ConceptMap'!$I$15:$N$273,Q61+1,R61)","v":"* group[=].element[=].target.equivalence = #relatedto"}]
[null,null,null,null,null,null,null,null,null,null,null,null,null,null,null,48,7,6,{"$f":"INDEX('Product-ConceptMap'!$I$15:$N$273,Q62+1,R62)","v":"* group[=].element[=].target.comment = ##34#MedicationKnowledge.medicineClassification.classification.\nType to be defined##34#"}]
[null,null,null,null,null,null,null,null,null,null,null,null,null,null,null,49,8,1,{"$f":"INDEX('Product-ConceptMap'!$I$15:$N$273,Q63+1,R63)","v":"* group[=].element[+].code = #MedicinalProduct.classification"}]
[null,null,null,null,null,null,null,null,null,null,null,null,null,null,null,50,8,2,{"$f":"INDEX('Product-ConceptMap'!$I$15:$N$273,Q64+1,R64)","v":"* group[=].element[=].display = ##34#A.1.4.5 Product classification ##34#"}]
[null,null,null,null,null,null,null,null,null,null,null,null,null,null,null,51,8,3,{"$f":"INDEX('Product-ConceptMap'!$I$15:$N$273,Q65+1,R65)","v":"* group[=].element[=].target.code = #Medication.code.coding"}]
[null,null,null,null,null,null,null,null,null,null,null,null,null,null,null,52,8,4,{"$f":"INDEX('Product-ConceptMap'!$I$15:$N$273,Q66+1,R66)","v":"* group[=].element[=].target.display = ##34###34#"}]
[null,null,null,null,null,null,null,null,null,null,null,null,null,null,null,53,8,5,{"$f":"INDEX('Product-ConceptMap'!$I$15:$N$273,Q67+1,R67)","v":"* group[=].element[=].target.equivalence = #equivalent"}]
[null,null,null,null,null,null,null,null,null,null,null,null,null,null,null,54,8,6,{"$f":"INDEX('Product-ConceptMap'!$I$15:$N$273,Q68+1,R68)","v":"* group[=].element[=].target.comment = ##34#How it is implemented now in the IPS##34#"}]
[null,null,null,null,null,null,null,null,null,null,null,null,null,null,null,55,9,1,{"$f":"INDEX('Product-ConceptMap'!$I$15:$N$273,Q69+1,R69)","v":"* group[=].element[+].code = #MedicinalProduct.doseForm"}]
[null,null,null,null,null,null,null,null,null,null,null,null,null,null,null,56,9,2,{"$f":"INDEX('Product-ConceptMap'!$I$15:$N$273,Q70+1,R70)","v":"* group[=].element[=].display = ##34#A.1.4.6 Pharmaceutical dose form(s)##34#"}]
[null,null,null,null,null,null,null,null,null,null,null,null,null,null,null,57,9,3,{"$f":"INDEX('Product-ConceptMap'!$I$15:$N$273,Q71+1,R71)","v":"* group[=].element[=].target.code = #Medication.form"}]
[null,null,null,null,null,null,null,null,null,null,null,null,null,null,null,58,9,4,{"$f":"INDEX('Product-ConceptMap'!$I$15:$N$273,Q72+1,R72)","v":"* group[=].element[=].target.display = ##34###34#"}]
[null,null,null,null,null,null,null,null,null,null,null,null,null,null,null,59,9,5,{"$f":"INDEX('Product-ConceptMap'!$I$15:$N$273,Q73+1,R73)","v":"* group[=].element[=].target.equivalence = #relatedto"}]
[null,null,null,null,null,null,null,null,null,null,null,null,null,null,null,60,9,6,{"$f":"INDEX('Product-ConceptMap'!$I$15:$N$273,Q74+1,R74)","v":""}]
[null,null,null,null,null,null,null,null,null,null,null,null,null,null,null,61,10,1,{"$f":"INDEX('Product-ConceptMap'!$I$15:$N$273,Q75+1,R75)","v":"* group[=].element[+].code = #MedicinalProduct.unitOfPresentation"}]
[null,null,null,null,null,null,null,null,null,null,null,null,null,null,null,62,10,2,{"$f":"INDEX('Product-ConceptMap'!$I$15:$N$273,Q76+1,R76)","v":"* group[=].element[=].display = ##34#A.1.4.7 Unit of presentation(s)##34#"}]
[null,null,null,null,null,null,null,null,null,null,null,null,null,null,null,63,10,3,{"$f":"INDEX('Product-ConceptMap'!$I$15:$N$273,Q77+1,R77)","v":"* group[=].element[=].target.code = #Medication.ingredient.strength.denominator.code"}]
[null,null,null,null,null,null,null,null,null,null,null,null,null,null,null,64,10,4,{"$f":"INDEX('Product-ConceptMap'!$I$15:$N$273,Q78+1,R78)","v":"* group[=].element[=].target.display = ##34###34#"}]
[null,null,null,null,null,null,null,null,null,null,null,null,null,null,null,65,10,5,{"$f":"INDEX('Product-ConceptMap'!$I$15:$N$273,Q79+1,R79)","v":"* group[=].element[=].target.equivalence = #equivalent"}]
[null,null,null,null,null,null,null,null,null,null,null,null,null,null,null,66,10,6,{"$f":"INDEX('Product-ConceptMap'!$I$15:$N$273,Q80+1,R80)","v":"* group[=].element[=].target.comment = ##34#if it is the presentation strength##34#"}]
[null,null,null,null,null,null,null,null,null,null,null,null,null,null,null,67,11,1,{"$f":"INDEX('Product-ConceptMap'!$I$15:$N$273,Q81+1,R81)","v":"* group[=].element[+].code = #MedicinalProduct.packageType"}]
[null,null,null,null,null,null,null,null,null,null,null,null,null,null,null,68,11,2,{"$f":"INDEX('Product-ConceptMap'!$I$15:$N$273,Q82+1,R82)","v":"* group[=].element[=].display = ##34#A.1.4.8 Package type##34#"}]
[null,null,null,null,null,null,null,null,null,null,null,null,null,null,null,69,11,3,{"$f":"INDEX('Product-ConceptMap'!$I$15:$N$273,Q83+1,R83)","v":"* group[=].element[=].target.code = #Medication.contained.packaging.type"}]
[null,null,null,null,null,null,null,null,null,null,null,null,null,null,null,70,11,4,{"$f":"INDEX('Product-ConceptMap'!$I$15:$N$273,Q84+1,R84)","v":"* group[=].element[=].target.display = ##34###34#"}]
[null,null,null,null,null,null,null,null,null,null,null,null,null,null,null,71,{"$f":"IF(MOD(P85,$Q$8)=0,P85/$Q$8-1,INT(P85/$Q$8))","v":11},5,{"$f":"INDEX('Product-ConceptMap'!$I$15:$N$273,Q85+1,R85)","v":"* group[=].element[=].target.equivalence = #relatedto"}]
[null,null,null,null,null,null,null,null,null,null,null,null,null,null,null,72,11,6,{"$f":"INDEX('Product-ConceptMap'!$I$15:$N$273,Q86+1,R86)","v":"* group[=].element[=].target.comment = ##34#if contained##34#"}]
[null,null,null,null,null,null,null,null,null,null,null,null,null,null,null,73,12,{"$f":"IF(MOD(P87,$Q$8)=0,$Q$8,MOD(P87,$Q$8))","v":1},{"$f":"INDEX('Product-ConceptMap'!$I$15:$N$273,Q87+1,R87)","v":"* group[=].element[+].code = #MedicinalProduct.PackageSize"}]
[null,null,null,null,null,null,null,null,null,null,null,null,null,null,null,74,12,2,{"$f":"INDEX('Product-ConceptMap'!$I$15:$N$273,Q88+1,R88)","v":"* group[=].element[=].display = ##34#A.1.4.9 Pack size##34#"}]
[null,null,null,null,null,null,null,null,null,null,null,null,null,null,null,75,12,3,{"$f":"INDEX('Product-ConceptMap'!$I$15:$N$273,Q89+1,R89)","v":"* group[=].element[=].target.code = #Medication.contained.packaging.quantity"}]
[null,null,null,null,null,null,null,null,null,null,null,null,null,null,null,76,12,4,{"$f":"INDEX('Product-ConceptMap'!$I$15:$N$273,Q90+1,R90)","v":"* group[=].element[=].target.display = ##34###34#"}]
[null,null,null,null,null,null,null,null,null,null,null,null,null,null,null,77,12,5,{"$f":"INDEX('Product-ConceptMap'!$I$15:$N$273,Q91+1,R91)","v":"* group[=].element[=].target.equivalence = #relatedto"}]
[null,null,null,null,null,null,null,null,null,null,null,null,null,null,null,78,{"$f":"IF(MOD(P92,$Q$8)=0,P92/$Q$8-1,INT(P92/$Q$8))","v":12},{"$f":"IF(MOD(P92,$Q$8)=0,$Q$8,MOD(P92,$Q$8))","v":6},{"$f":"INDEX('Product-ConceptMap'!$I$15:$N$273,Q92+1,R92)","v":"* group[=].element[=].target.comment = ##34#if contained##34#"}]
[null,null,null,null,null,null,null,null,null,null,null,null,null,null,null,79,13,{"$f":"IF(MOD(P93,$Q$8)=0,$Q$8,MOD(P93,$Q$8))","v":1},{"$f":"INDEX('Product-ConceptMap'!$I$15:$N$273,Q93+1,R93)","v":"* group[=].element[+].code = #MedicinalProduct.packageType"}]
[null,null,null,null,null,null,null,null,null,null,null,null,null,null,null,80,13,2,{"$f":"INDEX('Product-ConceptMap'!$I$15:$N$273,Q94+1,R94)","v":"* group[=].element[=].display = ##34#A.1.4.8 Package type##34#"}]
[null,null,null,null,null,null,null,null,null,null,null,null,null,null,null,81,13,3,{"$f":"INDEX('Product-ConceptMap'!$I$15:$N$273,Q95+1,R95)","v":"* group[=].element[=].target.code = #Medication.extension(definition).ValueReference"}]
[null,null,null,null,null,null,null,null,null,null,null,null,null,null,null,82,13,4,{"$f":"INDEX('Product-ConceptMap'!$I$15:$N$273,Q96+1,R96)","v":"* group[=].element[=].target.display = ##34###34#"}]
[null,null,null,null,null,null,null,null,null,null,null,null,null,null,null,83,13,5,{"$f":"INDEX('Product-ConceptMap'!$I$15:$N$273,Q97+1,R97)","v":"* group[=].element[=].target.equivalence = #relatedto"}]
[null,null,null,null,null,null,null,null,null,null,null,null,null,null,null,84,13,6,{"$f":"INDEX('Product-ConceptMap'!$I$15:$N$273,Q98+1,R98)","v":"* group[=].element[=].target.comment = ##34#MedicationKnowledge.packaging.type##34#"}]
[null,null,null,null,null,null,null,null,null,null,null,null,null,null,null,85,14,1,{"$f":"INDEX('Product-ConceptMap'!$I$15:$N$273,Q99+1,R99)","v":"* group[=].element[+].code = #MedicinalProduct.PackageSize"}]
[null,null,null,null,null,null,null,null,null,null,null,null,null,null,null,86,14,2,{"$f":"INDEX('Product-ConceptMap'!$I$15:$N$273,Q100+1,R100)","v":"* group[=].element[=].display = ##34#A.1.4.9 Pack size##34#"}]
[null,null,null,null,null,null,null,null,null,null,null,null,null,null,null,87,14,3,{"$f":"INDEX('Product-ConceptMap'!$I$15:$N$273,Q101+1,R101)","v":"* group[=].element[=].target.code = #Medication.extension(definition).ValueReference"}]
[null,null,null,null,null,null,null,null,null,null,null,null,null,null,null,88,14,4,{"$f":"INDEX('Product-ConceptMap'!$I$15:$N$273,Q102+1,R102)","v":"* group[=].element[=].target.display = ##34###34#"}]
[null,null,null,null,null,null,null,null,null,null,null,null,null,null,null,89,14,5,{"$f":"INDEX('Product-ConceptMap'!$I$15:$N$273,Q103+1,R103)","v":"* group[=].element[=].target.equivalence = #relatedto"}]
[null,null,null,null,null,null,null,null,null,null,null,null,null,null,null,90,14,6,{"$f":"INDEX('Product-ConceptMap'!$I$15:$N$273,Q104+1,R104)","v":"* group[=].element[=].target.comment = ##34#MedicationKnowledge.packaging.quantity##34#"}]
[null,null,null,null,null,null,null,null,null,null,null,null,null,null,null,91,15,1,{"$f":"INDEX('Product-ConceptMap'!$I$15:$N$273,Q105+1,R105)","v":0}]
[null,null,null,null,null,null,null,null,null,null,null,null,null,null,null,92,15,2,{"$f":"INDEX('Product-ConceptMap'!$I$15:$N$273,Q106+1,R106)","v":0}]
[null,null,null,null,null,null,null,null,null,null,null,null,null,null,null,93,15,3,{"$f":"INDEX('Product-ConceptMap'!$I$15:$N$273,Q107+1,R107)","v":0}]
[null,null,null,null,null,null,null,null,null,null,null,null,null,null,null,94,15,4,{"$f":"INDEX('Product-ConceptMap'!$I$15:$N$273,Q108+1,R108)","v":0}]
[null,null,null,null,null,null,null,null,null,null,null,null,null,null,null,95,15,5,{"$f":"INDEX('Product-ConceptMap'!$I$15:$N$273,Q109+1,R109)","v":0}]
[null,null,null,null,null,null,null,null,null,null,null,null,null,null,null,96,15,6,{"$f":"INDEX('Product-ConceptMap'!$I$15:$N$273,Q110+1,R110)","v":0}]
[null,null,null,null,null,null,null,null,null,null,null,null,null,null,null,97,16,1,{"$f":"INDEX('Product-ConceptMap'!$I$15:$N$273,Q111+1,R111)","v":0}]
[null,null,null,null,null,null,null,null,null,null,null,null,null,null,null,98,16,2,{"$f":"INDEX('Product-ConceptMap'!$I$15:$N$273,Q112+1,R112)","v":0}]

{"sheet":"Product-CM-fsh","index":20,"n_rows":121,"n_cols":7,"rows_kept":121,"cut":false,"hidden":false,"merged":[]}
[null,"// -------------------------------------------------------------------------------"]
[null,"//  Concept Model. File: ",null,null,null,null,{"$f":"'Product-ConceptMap'!C4&\".fsh\"","v":"medProd2FHIR-eu-xpandh.fsh"}]
[null,"// -------------------------------------------------------------------------------"]
[null,{"$f":"\"Instance: \"&'Product-ConceptMap'!C4","v":"Instance: medProd2FHIR-eu-xpandh"}]
[null,"InstanceOf: ConceptMap"]
[null,"Usage: #definition"]
[null,"// * url = ##34#http://terminology.hl7.it/ConceptMap/ConceptMap-subject2osiris##34#"]
[null,{"$f":"\"* name = ##34#\"&'Product-ConceptMap'!C3&\"##34#\"","v":"* name = ##34#MedProd2Fhir##34#"}]
[null,{"$f":"\"* title = ##34#\"&'Product-ConceptMap'!C5&\"##34#\"","v":"* title = ##34#eHN Medicinal Product to this guide Map##34#"}]
[null,"* status = #draft"]
[null,"* experimental = true"]
[null,{"$f":"\"* description = ##34#\"&'Product-ConceptMap'!C8&\"##34#\"","v":"* description = ##34#eHN Medicinal Product Model to this guide Map##34#"}]
[null,{"$f":"\"* purpose = ##34#\"&'Product-ConceptMap'!C9&\"##34#\"","v":"* purpose = ##34#It shows how the Medicinal Product data set defined by the EU eHN guidelines is mapped into this guide##34#"}]
[null,{"$f":"\"* sourceUri = ##34#\"&'Product-ConceptMap'!E3&\"##34#\"","v":"* sourceUri = ##34#http://hl7.eu/fhir/ig/xpandh-mpd/StructureDefinition/Prescription##34#"}]
[null,{"$f":"\"* targetUri = ##34#\"&'Product-ConceptMap'!E4&\"##34#\"","v":"* targetUri = ##34#http://hl7.eu/fhir/ig/xpandh-mpd//StructureDefinition/Medication-eu-xpandh##34#"}]
[]
[null,{"$f":"\"* group[+].source = ##34#\"&'Product-ConceptMap'!E6&\"##34#\"","v":"* group[+].source = ##34#http://hl7.eu/fhir/ig/xpandh-mpd/StructureDefinition/Prescription##34#"}]
[null,{"$f":"\"* group[=].target = ##34#\"&'Product-ConceptMap'!E7&\"##34#\"","v":"* group[=].target = ##34#http://hl7.eu/fhir/ig/xpandh-mpd//StructureDefinition/Medication-eu-xpandh##34#"}]
[]
[null,{"$f":"IF('Product-ConceptMap'!S15=0,\"//---END\",'Product-ConceptMap'!S15)","v":"* group[=].element[+].code = #MedicinalProduct.name"}]
[null,{"$f":"IF('Product-ConceptMap'!S16=0,\"//---END\",'Product-ConceptMap'!S16)","v":"* group[=].element[=].display = ##34#A.1.4.1 Name of the medicinal product##34#"}]
[null,{"$f":"IF('Product-ConceptMap'!S17=0,\"//---END\",'Product-ConceptMap'!S17)","v":"* group[=].element[=].target.code = #Medication.code.text"}]
[null,{"$f":"IF('Product-ConceptMap'!S18=0,\"//---END\",'Product-ConceptMap'!S18)","v":"* group[=].element[=].target.display = ##34###34#"}]
[null,{"$f":"IF('Product-ConceptMap'!S19=0,\"//---END\",'Product-ConceptMap'!S19)","v":"* group[=].element[=].target.equivalence = #relatedto"}]
[null,{"$f":"IF('Product-ConceptMap'!S20=0,\"//---END\",'Product-ConceptMap'!S20)","v":"* group[=].element[=].target.comment = ##34#to be checked##34#"}]
[null,{"$f":"IF('Product-ConceptMap'!S21=0,\"//---END\",'Product-ConceptMap'!S21)","v":"* group[=].element[+].code = #MedicinalProduct.mpid"}]
[null,{"$f":"IF('Product-ConceptMap'!S22=0,\"//---END\",'Product-ConceptMap'!S22)","v":"* group[=].element[=].display = ##34#A.1.4.2 Identifier of the medicinal product##34#"}]
[null,{"$f":"IF('Product-ConceptMap'!S23=0,\"//---END\",'Product-ConceptMap'!S23)","v":"* group[=].element[=].target.code = #Medication.code.coding"}]
[null,{"$f":"IF('Product-ConceptMap'!S24=0,\"//---END\",'Product-ConceptMap'!S24)","v":"* group[=].element[=].target.display = ##34###34#"}]
[null,{"$f":"IF('Product-ConceptMap'!S25=0,\"//---END\",'Product-ConceptMap'!S25)","v":"* group[=].element[=].target.equivalence = #relatedto"}]
[null,{"$f":"IF('Product-ConceptMap'!S26=0,\"//---END\",'Product-ConceptMap'!S26)","v":"* group[=].element[=].target.comment = ##34#How it is implemented now in the IPS. TBD##34#"}]
[null,{"$f":"IF('Product-ConceptMap'!S27=0,\"//---END\",'Product-ConceptMap'!S27)","v":"* group[=].element[+].code = #MedicinalProduct.phpid"}]
[null,{"$f":"IF('Product-ConceptMap'!S28=0,\"//---END\",'Product-ConceptMap'!S28)","v":"* group[=].element[=].display = ##34#A.1.4.2.1 Identifier(s) of the pharmaceutical product##34#"}]
[null,{"$f":"IF('Product-ConceptMap'!S29=0,\"//---END\",'Product-ConceptMap'!S29)","v":"* group[=].element[=].target.code = #Medication.code.coding"}]
[null,{"$f":"IF('Product-ConceptMap'!S30=0,\"//---END\",'Product-ConceptMap'!S30)","v":"* group[=].element[=].target.display = ##34###34#"}]
[null,{"$f":"IF('Product-ConceptMap'!S31=0,\"//---END\",'Product-ConceptMap'!S31)","v":"* group[=].element[=].target.equivalence = #relatedto"}]
[null,{"$f":"IF('Product-ConceptMap'!S32=0,\"//---END\",'Product-ConceptMap'!S32)","v":"* group[=].element[=].target.comment = ##34#How it is implemented now in the IPS. TBD##34#"}]
[null,{"$f":"IF('Product-ConceptMap'!S33=0,\"//---END\",'Product-ConceptMap'!S33)","v":"* group[=].element[+].code = #MedicinalProduct.pcid"}]
[null,{"$f":"IF('Product-ConceptMap'!S34=0,\"//---END\",'Product-ConceptMap'!S34)","v":"* group[=].element[=].display = ##34#A.1.4.2.2 Identifier(s) of the packaged medicinal product##34#"}]
[null,{"$f":"IF('Product-ConceptMap'!S35=0,\"//---END\",'Product-ConceptMap'!S35)","v":"* group[=].element[=].target.code = #Medication.code.coding"}]
[null,{"$f":"IF('Product-ConceptMap'!S36=0,\"//---END\",'Product-ConceptMap'!S36)","v":"* group[=].element[=].target.display = ##34###34#"}]
[null,{"$f":"IF('Product-ConceptMap'!S37=0,\"//---END\",'Product-ConceptMap'!S37)","v":"* group[=].element[=].target.equivalence = #relatedto"}]
[null,{"$f":"IF('Product-ConceptMap'!S38=0,\"//---END\",'Product-ConceptMap'!S38)","v":"* group[=].element[=].target.comment = ##34#How it is implemented now in the IPS. TBD##34#"}]
[null,{"$f":"IF('Product-ConceptMap'!S39=0,\"//---END\",'Product-ConceptMap'!S39)","v":"* group[=].element[+].code = #MedicinalProduct.marketingAuthHolder"}]
[null,{"$f":"IF('Product-ConceptMap'!S40=0,\"//---END\",'Product-ConceptMap'!S40)","v":"* group[=].element[=].display = ##34#A.1.4.3 Marketing authorisation holder##34#"}]
[null,{"$f":"IF('Product-ConceptMap'!S41=0,\"//---END\",'Product-ConceptMap'!S41)","v":"* group[=].element[=].target.code = #Medication.manufacturer"}]
[null,{"$f":"IF('Product-ConceptMap'!S42=0,\"//---END\",'Product-ConceptMap'!S42)","v":"* group[=].element[=].target.display = ##34###34#"}]
[null,{"$f":"IF('Product-ConceptMap'!S43=0,\"//---END\",'Product-ConceptMap'!S43)","v":"* group[=].element[=].target.equivalence = #equivalent"}]
[null,{"$f":"IF('Product-ConceptMap'!S44=0,\"//---END\",'Product-ConceptMap'!S44)","v":""}]
[null,{"$f":"IF('Product-ConceptMap'!S45=0,\"//---END\",'Product-ConceptMap'!S45)","v":"* group[=].element[+].code = #MedicinalProduct.activeSubstance"}]
[null,{"$f":"IF('Product-ConceptMap'!S46=0,\"//---END\",'Product-ConceptMap'!S46)","v":"* group[=].element[=].display = ##34#A.1.4.4 Active substance(s)##34#"}]
[null,{"$f":"IF('Product-ConceptMap'!S47=0,\"//---END\",'Product-ConceptMap'!S47)","v":"* group[=].element[=].target.code = #Medication.ingredient"}]
[null,{"$f":"IF('Product-ConceptMap'!S48=0,\"//---END\",'Product-ConceptMap'!S48)","v":"* group[=].element[=].target.display = ##34###34#"}]
[null,{"$f":"IF('Product-ConceptMap'!S49=0,\"//---END\",'Product-ConceptMap'!S49)","v":"* group[=].element[=].target.equivalence = #equivalent"}]
[null,{"$f":"IF('Product-ConceptMap'!S50=0,\"//---END\",'Product-ConceptMap'!S50)","v":"* group[=].element[=].target.comment = ##34#where isActitve = 'true'##34#"}]
[null,{"$f":"IF('Product-ConceptMap'!S51=0,\"//---END\",'Product-ConceptMap'!S51)","v":"* group[=].element[+].code = #MedicinalProduct.strength"}]
[null,{"$f":"IF('Product-ConceptMap'!S52=0,\"//---END\",'Product-ConceptMap'!S52)","v":"* group[=].element[=].display = ##34#A.1.4.4.1 Strength of the active substance(s)##34#"}]
[null,{"$f":"IF('Product-ConceptMap'!S53=0,\"//---END\",'Product-ConceptMap'!S53)","v":"* group[=].element[=].target.code = #Medication.ingredient.strength"}]
[null,{"$f":"IF('Product-ConceptMap'!S54=0,\"//---END\",'Product-ConceptMap'!S54)","v":"* group[=].element[=].target.display = ##34###34#"}]
[null,{"$f":"IF('Product-ConceptMap'!S55=0,\"//---END\",'Product-ConceptMap'!S55)","v":"* group[=].element[=].target.equivalence = #relatedto"}]
[null,{"$f":"IF('Product-ConceptMap'!S56=0,\"//---END\",'Product-ConceptMap'!S56)","v":"* group[=].element[=].target.comment = ##34#only one kind of strength is provided.\nClarify how to provide ingredient and strength as text##34#"}]
[null,{"$f":"IF('Product-ConceptMap'!S57=0,\"//---END\",'Product-ConceptMap'!S57)","v":"* group[=].element[+].code = #MedicinalProduct.classification"}]
[null,{"$f":"IF('Product-ConceptMap'!S58=0,\"//---END\",'Product-ConceptMap'!S58)","v":"* group[=].element[=].display = ##34#A.1.4.5 Product classification ##34#"}]
[null,{"$f":"IF('Product-ConceptMap'!S59=0,\"//---END\",'Product-ConceptMap'!S59)","v":"* group[=].element[=].target.code = #Medication.extension(definition).ValueReference"}]
[null,{"$f":"IF('Product-ConceptMap'!S60=0,\"//---END\",'Product-ConceptMap'!S60)","v":"* group[=].element[=].target.display = ##34###34#"}]
[null,{"$f":"IF('Product-ConceptMap'!S61=0,\"//---END\",'Product-ConceptMap'!S61)","v":"* group[=].element[=].target.equivalence = #relatedto"}]
[null,{"$f":"IF('Product-ConceptMap'!S62=0,\"//---END\",'Product-ConceptMap'!S62)","v":"* group[=].element[=].target.comment = ##34#MedicationKnowledge.medicineClassification.classification.\nType to be defined##34#"}]
[null,{"$f":"IF('Product-ConceptMap'!S63=0,\"//---END\",'Product-ConceptMap'!S63)","v":"* group[=].element[+].code = #MedicinalProduct.classification"}]
[null,{"$f":"IF('Product-ConceptMap'!S64=0,\"//---END\",'Product-ConceptMap'!S64)","v":"* group[=].element[=].display = ##34#A.1.4.5 Product classification ##34#"}]
[null,{"$f":"IF('Product-ConceptMap'!S65=0,\"//---END\",'Product-ConceptMap'!S65)","v":"* group[=].element[=].target.code = #Medication.code.coding"}]
[null,{"$f":"IF('Product-ConceptMap'!S66=0,\"//---END\",'Product-ConceptMap'!S66)","v":"* group[=].element[=].target.display = ##34###34#"}]
[null,{"$f":"IF('Product-ConceptMap'!S67=0,\"//---END\",'Product-ConceptMap'!S67)","v":"* group[=].element[=].target.equivalence = #equivalent"}]
[null,{"$f":"IF('Product-ConceptMap'!S68=0,\"//---END\",'Product-ConceptMap'!S68)","v":"* group[=].element[=].target.comment = ##34#How it is implemented now in the IPS##34#"}]
[null,{"$f":"IF('Product-ConceptMap'!S69=0,\"//---END\",'Product-ConceptMap'!S69)","v":"* group[=].element[+].code = #MedicinalProduct.doseForm"}]
[null,{"$f":"IF('Product-ConceptMap'!S70=0,\"//---END\",'Product-ConceptMap'!S70)","v":"* group[=].element[=].display = ##34#A.1.4.6 Pharmaceutical dose form(s)##34#"}]
[null,{"$f":"IF('Product-ConceptMap'!S71=0,\"//---END\",'Product-ConceptMap'!S71)","v":"* group[=].element[=].target.code = #Medication.form"}]
[null,{"$f":"IF('Product-ConceptMap'!S72=0,\"//---END\",'Product-ConceptMap'!S72)","v":"* group[=].element[=].target.display = ##34###34#"}]
[null,{"$f":"IF('Product-ConceptMap'!S73=0,\"//---END\",'Product-ConceptMap'!S73)","v":"* group[=].element[=].target.equivalence = #relatedto"}]
[null,{"$f":"IF('Product-ConceptMap'!S74=0,\"//---END\",'Product-ConceptMap'!S74)","v":""}]
[null,{"$f":"IF('Product-ConceptMap'!S75=0,\"//---END\",'Product-ConceptMap'!S75)","v":"* group[=].element[+].code = #MedicinalProduct.unitOfPresentation"}]
[null,{"$f":"IF('Product-ConceptMap'!S76=0,\"//---END\",'Product-ConceptMap'!S76)","v":"* group[=].element[=].display = ##34#A.1.4.7 Unit of presentation(s)##34#"}]
[null,{"$f":"IF('Product-ConceptMap'!S77=0,\"//---END\",'Product-ConceptMap'!S77)","v":"* group[=].element[=].target.code = #Medication.ingredient.strength.denominator.code"}]
[null,{"$f":"IF('Product-ConceptMap'!S78=0,\"//---END\",'Product-ConceptMap'!S78)","v":"* group[=].element[=].target.display = ##34###34#"}]
[null,{"$f":"IF('Product-ConceptMap'!S79=0,\"//---END\",'Product-ConceptMap'!S79)","v":"* group[=].element[=].target.equivalence = #equivalent"}]
[null,{"$f":"IF('Product-ConceptMap'!S80=0,\"//---END\",'Product-ConceptMap'!S80)","v":"* group[=].element[=].target.comment = ##34#if it is the presentation strength##34#"}]
[null,{"$f":"IF('Product-ConceptMap'!S81=0,\"//---END\",'Product-ConceptMap'!S81)","v":"* group[=].element[+].code = #MedicinalProduct.packageType"}]
[null,{"$f":"IF('Product-ConceptMap'!S82=0,\"//---END\",'Product-ConceptMap'!S82)","v":"* group[=].element[=].display = ##34#A.1.4.8 Package type##34#"}]
[null,{"$f":"IF('Product-ConceptMap'!S83=0,\"//---END\",'Product-ConceptMap'!S83)","v":"* group[=].element[=].target.code = #Medication.contained.packaging.type"}]
[null,{"$f":"IF('Product-ConceptMap'!S84=0,\"//---END\",'Product-ConceptMap'!S84)","v":"* group[=].element[=].target.display = ##34###34#"}]
[null,{"$f":"IF('Product-ConceptMap'!S85=0,\"//---END\",'Product-ConceptMap'!S85)","v":"* group[=].element[=].target.equivalence = #relatedto"}]
[null,{"$f":"IF('Product-ConceptMap'!S86=0,\"//---END\",'Product-ConceptMap'!S86)","v":"* group[=].element[=].target.comment = ##34#if contained##34#"}]
[null,{"$f":"IF('Product-ConceptMap'!S87=0,\"//---END\",'Product-ConceptMap'!S87)","v":"* group[=].element[+].code = #MedicinalProduct.PackageSize"}]
[null,{"$f":"IF('Product-ConceptMap'!S88=0,\"//---END\",'Product-ConceptMap'!S88)","v":"* group[=].element[=].display = ##34#A.1.4.9 Pack size##34#"}]
[null,{"$f":"IF('Product-ConceptMap'!S89=0,\"//---END\",'Product-ConceptMap'!S89)","v":"* group[=].element[=].target.code = #Medication.contained.packaging.quantity"}]
[null,{"$f":"IF('Product-ConceptMap'!S90=0,\"//---END\",'Product-ConceptMap'!S90)","v":"* group[=].element[=].target.display = ##34###34#"}]
[null,{"$f":"IF('Product-ConceptMap'!S91=0,\"//---END\",'Product-ConceptMap'!S91)","v":"* group[=].element[=].target.equivalence = #relatedto"}]
[null,{"$f":"IF('Product-ConceptMap'!S92=0,\"//---END\",'Product-ConceptMap'!S92)","v":"* group[=].element[=].target.comment = ##34#if contained##34#"}]
[null,{"$f":"IF('Product-ConceptMap'!S93=0,\"//---END\",'Product-ConceptMap'!S93)","v":"* group[=].element[+].code = #MedicinalProduct.packageType"}]
[null,{"$f":"IF('Product-ConceptMap'!S94=0,\"//---END\",'Product-ConceptMap'!S94)","v":"* group[=].element[=].display = ##34#A.1.4.8 Package type##34#"}]
[null,{"$f":"IF('Product-ConceptMap'!S95=0,\"//---END\",'Product-ConceptMap'!S95)","v":"* group[=].element[=].target.code = #Medication.extension(definition).ValueReference"}]
[null,{"$f":"IF('Product-ConceptMap'!S96=0,\"//---END\",'Product-ConceptMap'!S96)","v":"* group[=].element[=].target.display = ##34###34#"}]
[null,{"$f":"IF('Product-ConceptMap'!S97=0,\"//---END\",'Product-ConceptMap'!S97)","v":"* group[=].element[=].target.equivalence = #relatedto"}]
[null,{"$f":"IF('Product-ConceptMap'!S98=0,\"//---END\",'Product-ConceptMap'!S98)","v":"* group[=].element[=].target.comment = ##34#MedicationKnowledge.packaging.type##34#"}]
[null,{"$f":"IF('Product-ConceptMap'!S99=0,\"//---END\",'Product-ConceptMap'!S99)","v":"* group[=].element[+].code = #MedicinalProduct.PackageSize"}]
[null,{"$f":"IF('Product-ConceptMap'!S100=0,\"//---END\",'Product-ConceptMap'!S100)","v":"* group[=].element[=].display = ##34#A.1.4.9 Pack size##34#"}]
[null,{"$f":"IF('Product-ConceptMap'!S101=0,\"//---END\",'Product-ConceptMap'!S101)","v":"* group[=].element[=].target.code = #Medication.extension(definition).ValueReference"}]
[null,{"$f":"IF('Product-ConceptMap'!S102=0,\"//---END\",'Product-ConceptMap'!S102)","v":"* group[=].element[=].target.display = ##34###34#"}]
[null,{"$f":"IF('Product-ConceptMap'!S103=0,\"//---END\",'Product-ConceptMap'!S103)","v":"* group[=].element[=].target.equivalence = #relatedto"}]
[null,{"$f":"IF('Product-ConceptMap'!S104=0,\"//---END\",'Product-ConceptMap'!S104)","v":"* group[=].element[=].target.comment = ##34#MedicationKnowledge.packaging.quantity##34#"}]
[null,{"$f":"IF('Product-ConceptMap'!S105=0,\"//---END\",'Product-ConceptMap'!S105)","v":"//---END"}]
[null,{"$f":"IF('Product-ConceptMap'!S106=0,\"//---END\",'Product-ConceptMap'!S106)","v":"//---END"}]
[null,{"$f":"IF('Product-ConceptMap'!S107=0,\"//---END\",'Product-ConceptMap'!S107)","v":"//---END"}]
[null,{"$f":"IF('Product-ConceptMap'!S108=0,\"//---END\",'Product-ConceptMap'!S108)","v":"//---END"}]
[null,{"$f":"IF('Product-ConceptMap'!S109=0,\"//---END\",'Product-ConceptMap'!S109)","v":"//---END"}]
[null,{"$f":"IF('Product-ConceptMap'!S110=0,\"//---END\",'Product-ConceptMap'!S110)","v":"//---END"}]
[null,{"$f":"IF('Product-ConceptMap'!S111=0,\"//---END\",'Product-ConceptMap'!S111)","v":"//---END"}]
[null,{"$f":"IF('Product-ConceptMap'!S112=0,\"//---END\",'Product-ConceptMap'!S112)","v":"//---END"}]
[null,{"$f":"IF('Product-ConceptMap'!S113=0,\"//---END\",'Product-ConceptMap'!S113)","v":"//---END"}]
[null,{"$f":"IF('Product-ConceptMap'!S114=0,\"//---END\",'Product-ConceptMap'!S114)","v":"//---END"}]
[null,{"$f":"IF('Product-ConceptMap'!S115=0,\"//---END\",'Product-ConceptMap'!S115)","v":"//---END"}]
[null,{"$f":"IF('Product-ConceptMap'!S116=0,\"//---END\",'Product-ConceptMap'!S116)","v":"//---END"}]